Workbook

Sheet Instructions to complete
A1: Instructions to complete:
A2: 1. Please complete only the green cells in Sheets: Annex B SLA Perf requirements, Annex A Technical spec 1, Annex A Technical spec 2, Annex C Company Info, and PART 2 Pricing Schedule
A3: 2. The SLA Performance requirements and sub-sections will become part of the contracted agreement, should the Bidder be successful
A4: 3. By answering yes, the Bidder binds themselves to deliver on each corresponding aspect of the project.
A5: 4. Scores for Annexure A, B, and C, will be automatically populated from the respective sheets.

Sheet PART 1 Technical Evaluation
A1: Instructions to the evaluations committee:
A2: 1. Scores for Annexure A, B, and C, will be automatically populated from the respective sheets.
A4: PART 1: RFP Technical specifications
A5: Bidder Name: | B5: =IF('Annex A Technical req 1'!C4="","",'Annex A Technical req 1'!C4) -> hkjg nb
A6: Functional Factors | B6: Proof Required | C6: Weight | D6: Points achieved | E6: Individual section result
A7: Annex A Technical Requirement 1 | B7: Bidder to submit a completed PART 1 TECHNICAL ROPOSAL.XLSX (Sheet: Annex A Technical Requirement 1) | C7: 60% | D7: ='Annex A Technical req 1'!D10 -> 0.00 | E7: =IF(D7>=7.5,"Proceed","Do not proceed") -> Do not proceed
A8: Annex A Technical Requirement 2 | B8: Bidder to submit a completed PART 1 TECHNICAL ROPOSAL.XLSX (Sheet: Annex A Technical Requirement 2) | C8: 20% | D8: ='Annex A Technical req 2'!D55 -> 0.00 | E8: ='Annex A Technical req 2'!C57 -> Do not proceed
A9: Annex B SLA Perf requirements | B9: Bidder to submit a completed PART 1 TECHNICAL ROPOSAL.XLSX (Sheet: Annexure B: SLA Performance requirements) | C9: 10% | D9: ='Annex B SLA Perf requirements'!G24 -> 0.00 | E9: ='Annex B SLA Perf requirements'!C23 -> Do not proceed
A10: Annex C Company Information | B10: Annexure C: Company Information -Requirements: a) Presence in all Geographical locations of the CSIR b) Call Centre presence and operating hours c) Number of Next Business Day On-site Repair Agents b) Parts and stock holding available at all Geographical locations of the CSIR | C10: 10% | D10: ='Annex C Company Info'!B23/10 -> 0.00 | E10: =IF(D10>=7,"Proceed","Do not proceed") -> Do not proceed
B11: Overall PART 1 points out of 10: | D11: =(D7*C7+D8*C8+D9*C9+D10*C10)/10 -> 0.00
B12: Overall PART 1 points out of 100: | D12: =D11*10 -> 0.00
B13: Proceed or Do not proceed | D13: =IF(D12>=70,"Proceed","Do not proceed") -> Do not proceed

Sheet Annex A Technical req 1
A2: ANNEXURE A: TECHNICAL REQUIREMENTS PART 1
A4: Bidder Name: | C4: hkjg nb
A6: Scoring Summary | H6: Scoring Legend
A7: 60% | B7: The consolidated overall score for Computing Devices | D7: =IF(OR(I91=0,I123=0,N91=0,N123=0,S91=0,X91=0,AC91=0,AM91=0,AR91=0,AW91=0),0,I91*Lookups!K3+N91*Lookups!K4+S91*Lookups!K5+X91*Lookups!K6+AC91*Lookups!K7+AM91*Lookups!K8+AR91*Lookups!K9+AW91*Lookups!K10) -> 0 | H7: Not present | I7: 0
A8: 30% | B8: The consolidated overall score for Component Failures | D8: =IF(OR(H107=0,M107=0,R107=0,W107=0,AB107=0,AL107=0,AQ107=0,AV107=0),0,ROUND(100-(H107*Lookups!K3+M107*Lookups!K4+R107*Lookups!K5+W107*Lookups!K6+AB107*Lookups!K7+AL107*Lookups!K8+AQ107*Lookups!K9+AV107*Lookups!K10),0)) -> 0 | H8: Below minimum | I8: 3
A9: 10% | B9: The consolidated overall score for Docking Station/Port Replicators | D9: =IF(OR(I123=0,N123=0),0,AVERAGE(I123,N123)) -> 0 | H9: Meets mimum | I9: 6
C10: Technical Requirement 1 score out of 10 | D10: =IF(OR(D7=0,D8=0,D9=0),0,ROUND(SUMPRODUCT(A7:A9,D7:D9),0)/10) -> 0 | H10: Meets desired | I10: 8
H11: Exceeds desired or max possible | I11: 10
B14: You MUST complete the information for each Notebook/Desktop/Port Replicator option. Failure to do so will result is a score of zero for the category. You may propose the same model for one or more options by repeating the values.
B15: You MUST complete the failure rate for each components listed. You may enter a zero, but remember the failure rates submitted as part of your proposal will be included in the contract should you be successful.
A18: Weight | B18: Notebook Configuration | D18: Weight | F18: Highly Mobile Notebook (Mobile, Connector) | K18: Traditional Mainstream Notebook (Connector, Collaborator) | P18: Modern Mainstream Notebook (Connector, Collaborator) | U18: High-End Notebook (Connector, Collaborator)- 15" screen | Z18: High-End Notebook (Connector, Collaborator) - 17" screen | AE18: Weight | AF18: Configuration | AH18: Weight | AJ18: Traditional Mainstream Desktop (Connector, Collaborator) | AO18: Modern Mainstream Desktop (Connector, Collaborator) | AT18: High-End Desktop with Xeon CPU (Connector, Collaborator)
F19: Make | K19: Make | P19: Make | U19: Make | Z19: Make | AJ19: Make | AO19: Make | AT19: Make
F20: Model | K20: Model | P20: Model | U20: Model | Z20: Model | AJ20: Model | AO20: Model | AT20: Model
F21: Required | G21: Desired | H21: Proposed | I21: Score | K21: Required | L21: Desired | M21: Proposed | N21: Score | P21: Required | Q21: Desired | R21: Proposed | S21: Score | U21: Required | V21: Desired | W21: Proposed | X21: Score | Z21: Required | AA21: Desired | AB21: Proposed | AC21: Score | AJ21: Required | AK21: Desired | AL21: Proposed | AM21: Score | AO21: Required | AP21: Desired | AQ21: Proposed | AR21: Score | AT21: Required | AU21: Desired | AV21: Proposed | AW21: Score
A22: =SUM(D22:D24) -> 9% | B22: Intel Processor | C22: Family (ix) | D22: 3.0% | F22: 5 | G22: 7 | H22: 7 | I22: =IF(H22="",$I$7,IF(H22<F22,$I$8,IF(AND(H22>=F22,H22<0.9*G22),$I$9,IF(AND(H22<=G22,H22>=0.9*G22),$I$10,IF(H22>G22,$I$11,""))))) -> 8 | K22: 5 | L22: 5 | N22: =IF(M22="",$I$7,IF(M22<K22,$I$8,IF(AND(M22>=K22,M22<0.9*L22),$I$9,IF(AND(M22<=L22,M22>=0.9*L22),$I$10,IF(M22>L22,$I$11,""))))) -> 0 | P22: 5 | Q22: 7 | S22: =IF(R22="",$I$7,IF(R22<P22,$I$8,IF(AND(R22>=P22,R22<0.9*Q22),$I$9,IF(AND(R22<=Q22,R22>=0.9*Q22),$I$10,IF(R22>Q22,$I$11,""))))) -> 0 | U22: 7 | V22: 9 | X22: =IF(W22="",$I$7,IF(W22<U22,$I$8,IF(AND(W22>=U22,W22<0.9*V22),$I$9,IF(AND(W22<=V22,W22>=0.9*V22),$I$10,IF(W22>V22,$I$11,""))))) -> 0 | Z22: 7 | AA22: 9 | AC22: =IF(AB22="",$I$7,IF(AB22<Z22,$I$8,IF(AND(AB22>=Z22,AB22<0.9*AA22),$I$9,IF(AND(AB22<=AA22,AB22>=0.9*AA22),$I$10,IF(AB22>AA22,$I$11,""))))) -> 0 | AE22: =SUM(AH22:AH24) -> 12% | AF22: Intel Processor | AG22: Family (ix) | AH22: 4.0% | AJ22: 3 | AK22: 5 | AM22: =IF(AL22="",$I$7,IF(AL22<AJ22,$I$8,IF(AND(AL22>=AJ22,AL22<0.9*AK22),$I$9,IF(AND(AL22<=AK22,AL22>=0.9*AK22),$I$10,IF(AL22>AK22,$I$11,""))))) -> 0 | AO22: 5 | AP22: 7 | AR22: =IF(AQ22="",$I$7,IF(AQ22<AO22,$I$8,IF(AND(AQ22>=AO22,AQ22<0.9*AP22),$I$9,IF(AND(AQ22<=AP22,AQ22>=0.9*AP22),$I$10,IF(AQ22>AP22,$I$11,""))))) -> 0 | AT22: 10 | AU22: 10 | AW22: =IF(AV22="",$I$7,IF(AV22<AT22,$I$8,IF(AND(AV22>=AT22,AV22<0.9*AU22),$I$9,IF(AND(AV22<=AU22,AV22>=0.9*AU22),$I$10,IF(AV22>AU22,$I$11,""))))) -> 0
C23: Generation | D23: 3.0% | F23: 11 | G23: 12 | I23: =IF(H23="",$I$7,IF(H23<F23,$I$8,IF(AND(H23>=F23,H23<G23),$I$9,IF(H23=G23,$I$10,IF(H23>G23,$I$11,""))))) -> 0 | K23: 10 | L23: 11 | N23: =IF(M23="",$I$7,IF(M23<K23,$I$8,IF(AND(M23>=K23,M23<L23),$I$9,IF(M23=L23,$I$10,IF(M23>L23,$I$11,""))))) -> 0 | P23: 11 | Q23: 12 | S23: =IF(R23="",$I$7,IF(R23<P23,$I$8,IF(AND(R23>=P23,R23<Q23),$I$9,IF(R23=Q23,$I$10,IF(R23>Q23,$I$11,""))))) -> 0 | U23: 11 | V23: 12 | X23: =IF(W23="",$I$7,IF(W23<U23,$I$8,IF(AND(W23>=U23,W23<V23),$I$9,IF(W23=V23,$I$10,IF(W23>V23,$I$11,""))))) -> 0 | Z23: 11 | AA23: 12 | AC23: =IF(AB23="",$I$7,IF(AB23<Z23,$I$8,IF(AND(AB23>=Z23,AB23<AA23),$I$9,IF(AB23=AA23,$I$10,IF(AB23>AA23,$I$11,""))))) -> 0 | AG23: Generation | AH23: 4.0% | AJ23: 10 | AK23: 11 | AM23: =IF(AL23="",$I$7,IF(AL23<AJ23,$I$8,IF(AND(AL23>=AJ23,AL23<AK23),$I$9,IF(AL23=AK23,$I$10,IF(AL23>AK23,$I$11,""))))) -> 0 | AO23: 11 | AP23: 12 | AR23: =IF(AQ23="",$I$7,IF(AQ23<AO23,$I$8,IF(AND(AQ23>=AO23,AQ23<AP23),$I$9,IF(AQ23=AP23,$I$10,IF(AQ23>AP23,$I$11,""))))) -> 0 | AT23: 22 | AU23: 23 | AW23: =IF(AV23="",$I$7,IF(AV23<AT23,$I$8,IF(AND(AV23>=AT23,AV23<AU23),$I$9,IF(AV23=AU23,$I$10,IF(AV23>AU23,$I$11,""))))) -> 0
C24: Base Frequency p-cores (GHz) | D24: 3.0% | F24: 2.1 | G24: 2.1 | I24: =IF(H24="",$I$7,IF(H24<F24,$I$8,IF(AND(H24>=F24,H24<0.9*G24),$I$9,IF(AND(H24<=G24,H24>=0.9*G24),$I$10,IF(H24>G24,$I$11,""))))) -> 0 | K24: 1.6 | L24: 2.1 | N24: =IF(M24="",$I$7,IF(M24<K24,$I$8,IF(AND(M24>=K24,M24<0.9*L24),$I$9,IF(AND(M24<=L24,M24>=0.9*L24),$I$10,IF(M24>L24,$I$11,""))))) -> 0 | P24: 2.1 | Q24: 2.1 | S24: =IF(R24="",$I$7,IF(R24<P24,$I$8,IF(AND(R24>=P24,R24<0.9*Q24),$I$9,IF(AND(R24<=Q24,R24>=0.9*Q24),$I$10,IF(R24>Q24,$I$11,""))))) -> 0 | U24: 2.1 | V24: 2.4 | X24: =IF(W24="",$I$7,IF(W24<U24,$I$8,IF(AND(W24>=U24,W24<0.9*V24),$I$9,IF(AND(W24<=V24,W24>=0.9*V24),$I$10,IF(W24>V24,$I$11,""))))) -> 0 | Z24: 2.1 | AA24: 2.4 | AC24: =IF(AB24="",$I$7,IF(AB24<Z24,$I$8,IF(AND(AB24>=Z24,AB24<0.9*AA24),$I$9,IF(AND(AB24<=AA24,AB24>=0.9*AA24),$I$10,IF(AB24>AA24,$I$11,""))))) -> 0 | AG24: Base Frequency p-cores (GHz) | AH24: 4.0% | AJ24: 2.6 | AK24: 3 | AM24: =IF(AL24="",$I$7,IF(AL24<AJ24,$I$8,IF(AND(AL24>=AJ24,AL24<0.9*AK24),$I$9,IF(AND(AL24<=AK24,AL24>=0.9*AK24),$I$10,IF(AL24>AK24,$I$11,""))))) -> 0 | AO24: 2.6 | AP24: 3 | AR24: =IF(AQ24="",$I$7,IF(AQ24<AO24,$I$8,IF(AND(AQ24>=AO24,AQ24<0.9*AP24),$I$9,IF(AND(AQ24<=AP24,AQ24>=0.9*AP24),$I$10,IF(AQ24>AP24,$I$11,""))))) -> 0 | AT24: 3.7 | AU24: 4.5 | AW24: =IF(AV24="",$I$7,IF(AV24<AT24,$I$8,IF(AND(AV24>=AT24,AV24<0.9*AU24),$I$9,IF(AND(AV24<=AU24,AV24>=0.9*AU24),$I$10,IF(AV24>AU24,$I$11,""))))) -> 0
A25: =SUM(D25:D30) -> 7% | B25: Memory (RAM) | C25: Size included(GB) | D25: 3.0% | F25: 16 | G25: 16 | I25: 0 | K25: 8 | L25: 16 | N25: 0 | P25: 16 | Q25: 32 | S25: 0 | U25: 16 | V25: 32 | X25: 0 | Z25: 16 | AA25: 32 | AC25: 0 | AE25: =SUM(AH25:AH30) -> 8% | AF25: Memory (RAM) | AG25: Size included(GB) | AH25: 4.0% | AJ25: 8 | AK25: 16 | AM25: 0 | AO25: 16 | AP25: 32 | AR25: 0 | AT25: 32 | AU25: 64 | AW25: 0
C26: Generation (DDRx) | D26: 1.0% | F26: 4 | G26: 4 | I26: 0 | K26: 4 | L26: 4 | N26: 0 | P26: 4 | Q26: 4 | S26: 0 | U26: 4 | V26: 5 | X26: 0 | Z26: 4 | AA26: 5 | AC26: 0 | AG26: Generation (DDRx) | AH26: 1.0% | AJ26: 4 | AK26: 4 | AM26: 0 | AO26: 4 | AP26: 4 | AR26: 0 | AT26: 4 | AU26: 5 | AW26: 0
C27: Speed (MHz) | D27: 0.5% | F27: 2667 | G27: 3200 | I27: 0 | K27: 2667 | L27: 3200 | N27: =IF(M27="",$I$7,IF(M27<K27,$I$8,IF(AND(M27>=K27,M27<0.9*L27),$I$9,IF(AND(M27<=L27,M27>=0.9*L27),$I$10,IF(M27>L27,$I$11,""))))) -> 0 | P27: 3200 | Q27: 4268 | S27: 0 | U27: 2667 | V27: 4800 | X27: 0 | Z27: 2667 | AA27: 4800 | AC27: 0 | AG27: Speed (MHz) | AH27: 0.5% | AJ27: 2666 | AK27: 3200 | AM27: 0 | AO27: 3200 | AP27: 3200 | AR27: 0 | AT27: 3200 | AU27: 4800 | AW27: 0
C28: Total no of memory slots | D28: 1.0% | F28: 1 | G28: 2 | I28: 0 | K28: 1 | L28: 2 | N28: =IF(M28="",$I$7,IF(M28<K28,$I$8,IF(AND(M28>=K28,M28<0.9*L28),$I$9,IF(AND(M28<=L28,M28>=0.9*L28),$I$10,IF(M28>L28,$I$11,""))))) -> 0 | P28: 2 | Q28: 2 | S28: 0 | U28: 2 | V28: 2 | X28: 0 | Z28: 2 | AA28: 2 | AC28: 0 | AG28: Total no of memory slots | AH28: 1.0% | AJ28: 2 | AK28: 4 | AM28: 0 | AO28: 2 | AP28: 4 | AR28: 0 | AT28: 4 | AU28: 8 | AW28: 0
C29: Memory slots free | D29: 1.0% | F29: 0 | G29: 1 | I29: 0 | K29: 1 | L29: 1 | N29: 0 | P29: 0 | Q29: 1 | S29: 0 | U29: 1 | V29: 1 | X29: 0 | Z29: 1 | AA29: 1 | AC29: 0 | AG29: Memory slots free | AH29: 1.0% | AJ29: 1 | AK29: 2 | AM29: 0 | AO29: 1 | AP29: 2 | AR29: 0 | AT29: 2 | AU29: 4 | AW29: 0
C30: Maximum memory module size | D30: 0.5% | F30: 16 | G30: 32 | I30: 0 | K30: 16 | L30: 32 | N30: 0 | P30: 16 | Q30: 32 | S30: 0 | U30: 64 | V30: 128 | X30: 0 | Z30: 64 | AA30: 128 | AC30: 0 | AG30: Maximum memory module size | AH30: 0.5% | AJ30: 32 | AK30: 64 | AM30: 0 | AO30: 32 | AP30: 64 | AR30: 0 | AT30: 64 | AU30: 512 | AW30: 0
A31: =SUM(D31:D33) -> 8% | B31: Primary HDD | C31: Size (GB) | D31: 3.0% | F31: 512 | G31: 512 | I31: 0 | K31: 512 | L31: 512 | N31: 0 | P31: 512 | Q31: 1024 | S31: 0 | U31: 512 | V31: 1024 | X31: 0 | Z31: 512 | AA31: 1024 | AC31: 0 | AE31: =SUM(AH31:AH33) -> 8% | AF31: Primary HDD | AG31: Size (GB) | AH31: 3.0% | AJ31: 512 | AK31: 512 | AM31: 0 | AO31: 512 | AP31: 512 | AR31: 0 | AT31: 512 | AU31: 1024 | AW31: 0
C32: Connection Type | D32: 2.0% | F32: SATA SSD | G32: M.2 PCIe SSD | I32: =IF(H32="",$I$7,IF(VLOOKUP(H32,Lookups!$A$12:$B$14,2,FALSE)<VLOOKUP(F32,Lookups!$A$12:$B$14,2,FALSE),$I$8,IF(AND(VLOOKUP(H32,Lookups!$A$12:$B$14,2,FALSE)>=VLOOKUP(F32,Lookups!$A$12:$B$14,2,FALSE),VLOOKUP(H32,Lookups!$A$12:$B$14,2,FALSE)<0.8*VLOOKUP(G32,Lookups!$A$12:$B$14,2,FALSE)),$I$9,IF(AND(VLOOKUP(H32,Lookups!$A$12:$B$14,2,FALSE)<=VLOOKUP(G32,Lookups!$A$12:$B$14,2,FALSE),VLOOKUP(H32,Lookups!$A$12:$B$14,2,FALSE)>=0.8*VLOOKUP(G32,Lookups!$A$12:$B$14,2,FALSE)),$I$10,IF(VLOOKUP(H32,Lookups!$A$12:$B$14,2,FALSE)>VLOOKUP(G32,Lookups!$A$12:$B$14,2,FALSE),$I$11,""))))) -> 0 | K32: SATA SSD | L32: M.2 PCIe SSD | N32: =IF(M32="",$I$7,IF(VLOOKUP(M32,Lookups!$A$12:$B$14,2,FALSE)<VLOOKUP(K32,Lookups!$A$12:$B$14,2,FALSE),$I$8,IF(AND(VLOOKUP(M32,Lookups!$A$12:$B$14,2,FALSE)>=VLOOKUP(K32,Lookups!$A$12:$B$14,2,FALSE),VLOOKUP(M32,Lookups!$A$12:$B$14,2,FALSE)<0.8*VLOOKUP(L32,Lookups!$A$12:$B$14,2,FALSE)),$I$9,IF(AND(VLOOKUP(M32,Lookups!$A$12:$B$14,2,FALSE)<=VLOOKUP(L32,Lookups!$A$12:$B$14,2,FALSE),VLOOKUP(M32,Lookups!$A$12:$B$14,2,FALSE)>=0.8*VLOOKUP(L32,Lookups!$A$12:$B$14,2,FALSE)),$I$10,IF(VLOOKUP(M32,Lookups!$A$12:$B$14,2,FALSE)>VLOOKUP(L32,Lookups!$A$12:$B$14,2,FALSE),$I$11,""))))) -> 0 | P32: SATA SSD | Q32: M.2 PCIe SSD | S32: =IF(R32="",$I$7,IF(VLOOKUP(R32,Lookups!$A$12:$B$14,2,FALSE)<VLOOKUP(P32,Lookups!$A$12:$B$14,2,FALSE),$I$8,IF(AND(VLOOKUP(R32,Lookups!$A$12:$B$14,2,FALSE)>=VLOOKUP(P32,Lookups!$A$12:$B$14,2,FALSE),VLOOKUP(R32,Lookups!$A$12:$B$14,2,FALSE)<0.8*VLOOKUP(Q32,Lookups!$A$12:$B$14,2,FALSE)),$I$9,IF(AND(VLOOKUP(R32,Lookups!$A$12:$B$14,2,FALSE)<=VLOOKUP(Q32,Lookups!$A$12:$B$14,2,FALSE),VLOOKUP(R32,Lookups!$A$12:$B$14,2,FALSE)>=0.8*VLOOKUP(Q32,Lookups!$A$12:$B$14,2,FALSE)),$I$10,IF(VLOOKUP(R32,Lookups!$A$12:$B$14,2,FALSE)>VLOOKUP(Q32,Lookups!$A$12:$B$14,2,FALSE),$I$11,""))))) -> 0 | U32: M.2 PCIe SSD | V32: M.2 PCIe SSD | X32: =IF(W32="",$I$7,IF(VLOOKUP(W32,Lookups!$A$12:$B$14,2,FALSE)<VLOOKUP(U32,Lookups!$A$12:$B$14,2,FALSE),$I$8,IF(AND(VLOOKUP(W32,Lookups!$A$12:$B$14,2,FALSE)>=VLOOKUP(U32,Lookups!$A$12:$B$14,2,FALSE),VLOOKUP(W32,Lookups!$A$12:$B$14,2,FALSE)<0.8*VLOOKUP(V32,Lookups!$A$12:$B$14,2,FALSE)),$I$9,IF(AND(VLOOKUP(W32,Lookups!$A$12:$B$14,2,FALSE)<=VLOOKUP(V32,Lookups!$A$12:$B$14,2,FALSE),VLOOKUP(W32,Lookups!$A$12:$B$14,2,FALSE)>=0.8*VLOOKUP(V32,Lookups!$A$12:$B$14,2,FALSE)),$I$10,IF(VLOOKUP(W32,Lookups!$A$12:$B$14,2,FALSE)>VLOOKUP(V32,Lookups!$A$12:$B$14,2,FALSE),$I$11,""))))) -> 0 | Z32: M.2 PCIe SSD | AA32: M.2 PCIe SSD | AC32: =IF(AB32="",$I$7,IF(VLOOKUP(AB32,Lookups!$A$12:$B$14,2,FALSE)<VLOOKUP(Z32,Lookups!$A$12:$B$14,2,FALSE),$I$8,IF(AND(VLOOKUP(AB32,Lookups!$A$12:$B$14,2,FALSE)>=VLOOKUP(Z32,Lookups!$A$12:$B$14,2,FALSE),VLOOKUP(AB32,Lookups!$A$12:$B$14,2,FALSE)<0.8*VLOOKUP(AA32,Lookups!$A$12:$B$14,2,FALSE)),$I$9,IF(AND(VLOOKUP(AB32,Lookups!$A$12:$B$14,2,FALSE)<=VLOOKUP(AA32,Lookups!$A$12:$B$14,2,FALSE),VLOOKUP(AB32,Lookups!$A$12:$B$14,2,FALSE)>=0.8*VLOOKUP(AA32,Lookups!$A$12:$B$14,2,FALSE)),$I$10,IF(VLOOKUP(AB32,Lookups!$A$12:$B$14,2,FALSE)>VLOOKUP(AA32,Lookups!$A$12:$B$14,2,FALSE),$I$11,""))))) -> 0 | AG32: Connection Type | AH32: 2.0% | AJ32: SATA SSD | AK32: M.2 PCIe SSD | AM32: =IF(AL32="",$I$7,IF(VLOOKUP(AL32,Lookups!$A$12:$B$14,2,FALSE)<VLOOKUP(AJ32,Lookups!$A$12:$B$14,2,FALSE),$I$8,IF(AND(VLOOKUP(AL32,Lookups!$A$12:$B$14,2,FALSE)>=VLOOKUP(AJ32,Lookups!$A$12:$B$14,2,FALSE),VLOOKUP(AL32,Lookups!$A$12:$B$14,2,FALSE)<0.8*VLOOKUP(AK32,Lookups!$A$12:$B$14,2,FALSE)),$I$9,IF(AND(VLOOKUP(AL32,Lookups!$A$12:$B$14,2,FALSE)<=VLOOKUP(AK32,Lookups!$A$12:$B$14,2,FALSE),VLOOKUP(AL32,Lookups!$A$12:$B$14,2,FALSE)>=0.8*VLOOKUP(AK32,Lookups!$A$12:$B$14,2,FALSE)),$I$10,IF(VLOOKUP(AL32,Lookups!$A$12:$B$14,2,FALSE)>VLOOKUP(AK32,Lookups!$A$12:$B$14,2,FALSE),$I$11,""))))) -> 0 | AO32: SATA SSD | AP32: M.2 PCIe SSD | AR32: =IF(AQ32="",$I$7,IF(VLOOKUP(AQ32,Lookups!$A$12:$B$14,2,FALSE)<VLOOKUP(AO32,Lookups!$A$12:$B$14,2,FALSE),$I$8,IF(AND(VLOOKUP(AQ32,Lookups!$A$12:$B$14,2,FALSE)>=VLOOKUP(AO32,Lookups!$A$12:$B$14,2,FALSE),VLOOKUP(AQ32,Lookups!$A$12:$B$14,2,FALSE)<0.8*VLOOKUP(AP32,Lookups!$A$12:$B$14,2,FALSE)),$I$9,IF(AND(VLOOKUP(AQ32,Lookups!$A$12:$B$14,2,FALSE)<=VLOOKUP(AP32,Lookups!$A$12:$B$14,2,FALSE),VLOOKUP(AQ32,Lookups!$A$12:$B$14,2,FALSE)>=0.8*VLOOKUP(AP32,Lookups!$A$12:$B$14,2,FALSE)),$I$10,IF(VLOOKUP(AQ32,Lookups!$A$12:$B$14,2,FALSE)>VLOOKUP(AP32,Lookups!$A$12:$B$14,2,FALSE),$I$11,""))))) -> 0 | AT32: M.2 PCIe SSD | AU32: M.2 PCIe SSD | AW32: =IF(AV32="",$I$7,IF(VLOOKUP(AV32,Lookups!$A$12:$B$14,2,FALSE)<VLOOKUP(AT32,Lookups!$A$12:$B$14,2,FALSE),$I$8,IF(AND(VLOOKUP(AV32,Lookups!$A$12:$B$14,2,FALSE)>=VLOOKUP(AT32,Lookups!$A$12:$B$14,2,FALSE),VLOOKUP(AV32,Lookups!$A$12:$B$14,2,FALSE)<0.8*VLOOKUP(AU32,Lookups!$A$12:$B$14,2,FALSE)),$I$9,IF(AND(VLOOKUP(AV32,Lookups!$A$12:$B$14,2,FALSE)<=VLOOKUP(AU32,Lookups!$A$12:$B$14,2,FALSE),VLOOKUP(AV32,Lookups!$A$12:$B$14,2,FALSE)>=0.8*VLOOKUP(AU32,Lookups!$A$12:$B$14,2,FALSE)),$I$10,IF(VLOOKUP(AV32,Lookups!$A$12:$B$14,2,FALSE)>VLOOKUP(AU32,Lookups!$A$12:$B$14,2,FALSE),$I$11,""))))) -> 0
C33: Storage Class | D33: 3.0% | F33: 35 | G33: 40 | I33: =IF(H33="",$I$7,IF(VLOOKUP(H33,Lookups!$A$147:$B$152,2,FALSE)<VLOOKUP(F33,Lookups!$A$147:$B$152,2,FALSE),$I$8,IF(AND(VLOOKUP(H33,Lookups!$A$147:$B$152,2,FALSE)>=VLOOKUP(F33,Lookups!$A$147:$B$152,2,FALSE),VLOOKUP(H33,Lookups!$A$147:$B$152,2,FALSE)<0.8*VLOOKUP(G33,Lookups!$A$147:$B$152,2,FALSE)),$I$9,IF(AND(VLOOKUP(H33,Lookups!$A$147:$B$152,2,FALSE)<=VLOOKUP(G33,Lookups!$A$147:$B$152,2,FALSE),VLOOKUP(H33,Lookups!$A$147:$B$152,2,FALSE)>=0.8*VLOOKUP(G33,Lookups!$A$147:$B$152,2,FALSE)),$I$10,IF(VLOOKUP(H33,Lookups!$A$147:$B$152,2,FALSE)>VLOOKUP(G33,Lookups!$A$147:$B$152,2,FALSE),$I$11,""))))) -> 0 | K33: 30 | L33: 35 | N33: =IF(M33="",$I$7,IF(VLOOKUP(M33,Lookups!$A$147:$B$152,2,FALSE)<VLOOKUP(K33,Lookups!$A$147:$B$152,2,FALSE),$I$8,IF(AND(VLOOKUP(M33,Lookups!$A$147:$B$152,2,FALSE)>=VLOOKUP(K33,Lookups!$A$147:$B$152,2,FALSE),VLOOKUP(M33,Lookups!$A$147:$B$152,2,FALSE)<0.8*VLOOKUP(L33,Lookups!$A$147:$B$152,2,FALSE)),$I$9,IF(AND(VLOOKUP(M33,Lookups!$A$147:$B$152,2,FALSE)<=VLOOKUP(L33,Lookups!$A$147:$B$152,2,FALSE),VLOOKUP(M33,Lookups!$A$147:$B$152,2,FALSE)>=0.8*VLOOKUP(L33,Lookups!$A$147:$B$152,2,FALSE)),$I$10,IF(VLOOKUP(M33,Lookups!$A$147:$B$152,2,FALSE)>VLOOKUP(L33,Lookups!$A$147:$B$152,2,FALSE),$I$11,""))))) -> 0 | P33: 35 | Q33: 40 | S33: =IF(R33="",$I$7,IF(VLOOKUP(R33,Lookups!$A$147:$B$152,2,FALSE)<VLOOKUP(P33,Lookups!$A$147:$B$152,2,FALSE),$I$8,IF(AND(VLOOKUP(R33,Lookups!$A$147:$B$152,2,FALSE)>=VLOOKUP(P33,Lookups!$A$147:$B$152,2,FALSE),VLOOKUP(R33,Lookups!$A$147:$B$152,2,FALSE)<0.8*VLOOKUP(Q33,Lookups!$A$147:$B$152,2,FALSE)),$I$9,IF(AND(VLOOKUP(R33,Lookups!$A$147:$B$152,2,FALSE)<=VLOOKUP(Q33,Lookups!$A$147:$B$152,2,FALSE),VLOOKUP(R33,Lookups!$A$147:$B$152,2,FALSE)>=0.8*VLOOKUP(Q33,Lookups!$A$147:$B$152,2,FALSE)),$I$10,IF(VLOOKUP(R33,Lookups!$A$147:$B$152,2,FALSE)>VLOOKUP(Q33,Lookups!$A$147:$B$152,2,FALSE),$I$11,""))))) -> 0 | U33: 35 | V33: 40 | X33: =IF(W33="",$I$7,IF(VLOOKUP(W33,Lookups!$A$147:$B$152,2,FALSE)<VLOOKUP(U33,Lookups!$A$147:$B$152,2,FALSE),$I$8,IF(AND(VLOOKUP(W33,Lookups!$A$147:$B$152,2,FALSE)>=VLOOKUP(U33,Lookups!$A$147:$B$152,2,FALSE),VLOOKUP(W33,Lookups!$A$147:$B$152,2,FALSE)<0.8*VLOOKUP(V33,Lookups!$A$147:$B$152,2,FALSE)),$I$9,IF(AND(VLOOKUP(W33,Lookups!$A$147:$B$152,2,FALSE)<=VLOOKUP(V33,Lookups!$A$147:$B$152,2,FALSE),VLOOKUP(W33,Lookups!$A$147:$B$152,2,FALSE)>=0.8*VLOOKUP(V33,Lookups!$A$147:$B$152,2,FALSE)),$I$10,IF(VLOOKUP(W33,Lookups!$A$147:$B$152,2,FALSE)>VLOOKUP(V33,Lookups!$A$147:$B$152,2,FALSE),$I$11,""))))) -> 0 | Z33: 35 | AA33: 40 | AC33: =IF(AB33="",$I$7,IF(VLOOKUP(AB33,Lookups!$A$147:$B$152,2,FALSE)<VLOOKUP(Z33,Lookups!$A$147:$B$152,2,FALSE),$I$8,IF(AND(VLOOKUP(AB33,Lookups!$A$147:$B$152,2,FALSE)>=VLOOKUP(Z33,Lookups!$A$147:$B$152,2,FALSE),VLOOKUP(AB33,Lookups!$A$147:$B$152,2,FALSE)<0.8*VLOOKUP(AA33,Lookups!$A$147:$B$152,2,FALSE)),$I$9,IF(AND(VLOOKUP(AB33,Lookups!$A$147:$B$152,2,FALSE)<=VLOOKUP(AA33,Lookups!$A$147:$B$152,2,FALSE),VLOOKUP(AB33,Lookups!$A$147:$B$152,2,FALSE)>=0.8*VLOOKUP(AA33,Lookups!$A$147:$B$152,2,FALSE)),$I$10,IF(VLOOKUP(AB33,Lookups!$A$147:$B$152,2,FALSE)>VLOOKUP(AA33,Lookups!$A$147:$B$152,2,FALSE),$I$11,""))))) -> 0 | AG33: Storage Class | AH33: 3.0% | AJ33: 30 | AK33: 35 | AM33: =IF(AL33="",$I$7,IF(VLOOKUP(AL33,Lookups!$A$147:$B$152,2,FALSE)<VLOOKUP(AJ33,Lookups!$A$147:$B$152,2,FALSE),$I$8,IF(AND(VLOOKUP(AL33,Lookups!$A$147:$B$152,2,FALSE)>=VLOOKUP(AJ33,Lookups!$A$147:$B$152,2,FALSE),VLOOKUP(AL33,Lookups!$A$147:$B$152,2,FALSE)<0.8*VLOOKUP(AK33,Lookups!$A$147:$B$152,2,FALSE)),$I$9,IF(AND(VLOOKUP(AL33,Lookups!$A$147:$B$152,2,FALSE)<=VLOOKUP(AK33,Lookups!$A$147:$B$152,2,FALSE),VLOOKUP(AL33,Lookups!$A$147:$B$152,2,FALSE)>=0.8*VLOOKUP(AK33,Lookups!$A$147:$B$152,2,FALSE)),$I$10,IF(VLOOKUP(AL33,Lookups!$A$147:$B$152,2,FALSE)>VLOOKUP(AK33,Lookups!$A$147:$B$152,2,FALSE),$I$11,""))))) -> 0 | AO33: 30 | AP33: 35 | AR33: =IF(AQ33="",$I$7,IF(VLOOKUP(AQ33,Lookups!$A$147:$B$152,2,FALSE)<VLOOKUP(AO33,Lookups!$A$147:$B$152,2,FALSE),$I$8,IF(AND(VLOOKUP(AQ33,Lookups!$A$147:$B$152,2,FALSE)>=VLOOKUP(AO33,Lookups!$A$147:$B$152,2,FALSE),VLOOKUP(AQ33,Lookups!$A$147:$B$152,2,FALSE)<0.8*VLOOKUP(AP33,Lookups!$A$147:$B$152,2,FALSE)),$I$9,IF(AND(VLOOKUP(AQ33,Lookups!$A$147:$B$152,2,FALSE)<=VLOOKUP(AP33,Lookups!$A$147:$B$152,2,FALSE),VLOOKUP(AQ33,Lookups!$A$147:$B$152,2,FALSE)>=0.8*VLOOKUP(AP33,Lookups!$A$147:$B$152,2,FALSE)),$I$10,IF(VLOOKUP(AQ33,Lookups!$A$147:$B$152,2,FALSE)>VLOOKUP(AP33,Lookups!$A$147:$B$152,2,FALSE),$I$11,""))))) -> 0 | AT33: 35 | AU33: 40 | AW33: =IF(AV33="",$I$7,IF(VLOOKUP(AV33,Lookups!$A$147:$B$152,2,FALSE)<VLOOKUP(AT33,Lookups!$A$147:$B$152,2,FALSE),$I$8,IF(AND(VLOOKUP(AV33,Lookups!$A$147:$B$152,2,FALSE)>=VLOOKUP(AT33,Lookups!$A$147:$B$152,2,FALSE),VLOOKUP(AV33,Lookups!$A$147:$B$152,2,FALSE)<0.8*VLOOKUP(AU33,Lookups!$A$147:$B$152,2,FALSE)),$I$9,IF(AND(VLOOKUP(AV33,Lookups!$A$147:$B$152,2,FALSE)<=VLOOKUP(AU33,Lookups!$A$147:$B$152,2,FALSE),VLOOKUP(AV33,Lookups!$A$147:$B$152,2,FALSE)>=0.8*VLOOKUP(AU33,Lookups!$A$147:$B$152,2,FALSE)),$I$10,IF(VLOOKUP(AV33,Lookups!$A$147:$B$152,2,FALSE)>VLOOKUP(AU33,Lookups!$A$147:$B$152,2,FALSE),$I$11,""))))) -> 0
A34: =SUM(D34:D37) -> 4% | B34: Additional Disk Drives | C34: Maximum number of additional disk drives that can be installed | D34: 1.5% | F34: 0 | G34: 1 | I34: =IF(H34="",$I$7,IF(H34<F34,$I$8,IF(AND(H34>=F34,H34<G34),$I$9,IF(H34=G34,$I$10,IF(H34>G34,$I$11,""))))) -> 0 | K34: 0 | L34: 1 | N34: =IF(M34="",$I$7,IF(M34<K34,$I$8,IF(AND(M34>=K34,M34<L34),$I$9,IF(M34=L34,$I$10,IF(M34>L34,$I$11,""))))) -> 0 | P34: 0 | Q34: 1 | S34: =IF(R34="",$I$7,IF(R34<P34,$I$8,IF(AND(R34>=P34,R34<Q34),$I$9,IF(R34=Q34,$I$10,IF(R34>Q34,$I$11,""))))) -> 0 | U34: 0 | V34: 1 | X34: =IF(W34="",$I$7,IF(W34<U34,$I$8,IF(AND(W34>=U34,W34<V34),$I$9,IF(W34=V34,$I$10,IF(W34>V34,$I$11,""))))) -> 0 | Z34: 0 | AA34: 1 | AC34: =IF(AB34="",$I$7,IF(AB34<Z34,$I$8,IF(AND(AB34>=Z34,AB34<AA34),$I$9,IF(AB34=AA34,$I$10,IF(AB34>AA34,$I$11,""))))) -> 0 | AE34: =SUM(AH34:AH37) -> 5% | AF34: Additional Disk Drives | AG34: Maximum number of additional disk drives that can be installed | AH34: 2.0% | AJ34: 0 | AK34: 1 | AM34: =IF(AL34="",$I$7,IF(AL34<AJ34,$I$8,IF(AND(AL34>=AJ34,AL34<AK34),$I$9,IF(AL34=AK34,$I$10,IF(AL34>AK34,$I$11,""))))) -> 0 | AO34: 2 | AP34: 3 | AR34: =IF(AQ34="",$I$7,IF(AQ34<AO34,$I$8,IF(AND(AQ34>=AO34,AQ34<AP34),$I$9,IF(AQ34=AP34,$I$10,IF(AQ34>AP34,$I$11,""))))) -> 0 | AT34: 3 | AU34: 6 | AW34: =IF(AV34="",$I$7,IF(AV34<AT34,$I$8,IF(AND(AV34>=AT34,AV34<AU34),$I$9,IF(AV34=AU34,$I$10,IF(AV34>AU34,$I$11,""))))) -> 0
B35: that can be installed | C35: M.2 PCIe SSD | D35: 1.0% | F35: 0 | G35: 1 | I35: =IF(H35="",$I$7,IF(SUM(H$35:H35)>H$34,$I$7,IF(H35<F35,$I$8,IF(G35=0,IF(H35>=F35,$I$9,IF(H35=G35,$I$10,IF(H35>G35,$I$11,""))),IF(AND(H35>=F35,H35<G35),$I$9,IF(H35=G35,$I$10,IF(H35>G35,$I$11,""))))))) -> 0 | K35: 0 | L35: 1 | N35: =IF(M35="",$I$7,IF(SUM(M$35:M35)>M$34,$I$7,IF(M35<K35,$I$8,IF(L35=0,IF(M35>=K35,$I$9,IF(M35=L35,$I$10,IF(M35>L35,$I$11,""))),IF(AND(M35>=K35,M35<L35),$I$9,IF(M35=L35,$I$10,IF(M35>L35,$I$11,""))))))) -> 0 | P35: 0 | Q35: 1 | S35: =IF(R35="",$I$7,IF(SUM(R$35:R35)>R$34,$I$7,IF(R35<P35,$I$8,IF(Q35=0,IF(R35>=P35,$I$9,IF(R35=Q35,$I$10,IF(R35>Q35,$I$11,""))),IF(AND(R35>=P35,R35<Q35),$I$9,IF(R35=Q35,$I$10,IF(R35>Q35,$I$11,""))))))) -> 0 | U35: 0 | V35: 1 | X35: =IF(W35="",$I$7,IF(SUM(W$35:W35)>W$34,$I$7,IF(W35<U35,$I$8,IF(V35=0,IF(W35>=U35,$I$9,IF(W35=V35,$I$10,IF(W35>V35,$I$11,""))),IF(AND(W35>=U35,W35<V35),$I$9,IF(W35=V35,$I$10,IF(W35>V35,$I$11,""))))))) -> 0 | Z35: 0 | AA35: 1 | AC35: =IF(AB35="",$I$7,IF(SUM(AB$35:AB35)>AB$34,$I$7,IF(AB35<Z35,$I$8,IF(AA35=0,IF(AB35>=Z35,$I$9,IF(AB35=AA35,$I$10,IF(AB35>AA35,$I$11,""))),IF(AND(AB35>=Z35,AB35<AA35),$I$9,IF(AB35=AA35,$I$10,IF(AB35>AA35,$I$11,""))))))) -> 0 | AF35: that can be installed | AG35: M.2 PCIe SSD | AH35: 1.5% | AJ35: 0 | AK35: 1 | AM35: =IF(AL35="",$I$7,IF(SUM(AL$35:AL35)>AL$34,$I$7,IF(AL35<AJ35,$I$8,IF(AK35=0,IF(AL35>=AJ35,$I$9,IF(AL35=AK35,$I$10,IF(AL35>AK35,$I$11,""))),IF(AND(AL35>=AJ35,AL35<AK35),$I$9,IF(AL35=AK35,$I$10,IF(AL35>AK35,$I$11,""))))))) -> 0 | AO35: 0 | AP35: 1 | AR35: =IF(AQ35="",$I$7,IF(SUM(AQ$35:AQ35)>AQ$34,$I$7,IF(AQ35<AO35,$I$8,IF(AP35=0,IF(AQ35>=AO35,$I$9,IF(AQ35=AP35,$I$10,IF(AQ35>AP35,$I$11,""))),IF(AND(AQ35>=AO35,AQ35<AP35),$I$9,IF(AQ35=AP35,$I$10,IF(AQ35>AP35,$I$11,""))))))) -> 0 | AT35: 1 | AU35: 1 | AW35: =IF(AV35="",$I$7,IF(SUM(AV$35:AV35)>AV$34,$I$7,IF(AV35<AT35,$I$8,IF(AU35=0,IF(AV35>=AT35,$I$9,IF(AV35=AU35,$I$10,IF(AV35>AU35,$I$11,""))),IF(AND(AV35>=AT35,AV35<AU35),$I$9,IF(AV35=AU35,$I$10,IF(AV35>AU35,$I$11,""))))))) -> 0
C36: SATA SSD | D36: 1.0% | F36: 1 | G36: 0 | I36: =IF(H36="",$I$7,IF(SUM(H$35:H36)>H$34,$I$7,IF(H36<F36,$I$8,IF(G36=0,IF(H36>=F36,$I$9,IF(H36=G36,$I$10,IF(H36>G36,$I$11,""))),IF(AND(H36>=F36,H36<G36),$I$9,IF(H36=G36,$I$10,IF(H36>G36,$I$11,""))))))) -> 0 | K36: 1 | L36: 0 | N36: =IF(M36="",$I$7,IF(SUM(M$35:M36)>M$34,$I$7,IF(M36<K36,$I$8,IF(L36=0,IF(M36>=K36,$I$9,IF(M36=L36,$I$10,IF(M36>L36,$I$11,""))),IF(AND(M36>=K36,M36<L36),$I$9,IF(M36=L36,$I$10,IF(M36>L36,$I$11,""))))))) -> 0 | P36: 1 | Q36: 0 | S36: =IF(R36="",$I$7,IF(SUM(R$35:R36)>R$34,$I$7,IF(R36<P36,$I$8,IF(Q36=0,IF(R36>=P36,$I$9,IF(R36=Q36,$I$10,IF(R36>Q36,$I$11,""))),IF(AND(R36>=P36,R36<Q36),$I$9,IF(R36=Q36,$I$10,IF(R36>Q36,$I$11,""))))))) -> 0 | U36: 1 | V36: 0 | X36: =IF(W36="",$I$7,IF(SUM(W$35:W36)>W$34,$I$7,IF(W36<U36,$I$8,IF(V36=0,IF(W36>=U36,$I$9,IF(W36=V36,$I$10,IF(W36>V36,$I$11,""))),IF(AND(W36>=U36,W36<V36),$I$9,IF(W36=V36,$I$10,IF(W36>V36,$I$11,""))))))) -> 0 | Z36: 1 | AA36: 0 | AC36: =IF(AB36="",$I$7,IF(SUM(AB$35:AB36)>AB$34,$I$7,IF(AB36<Z36,$I$8,IF(AA36=0,IF(AB36>=Z36,$I$9,IF(AB36=AA36,$I$10,IF(AB36>AA36,$I$11,""))),IF(AND(AB36>=Z36,AB36<AA36),$I$9,IF(AB36=AA36,$I$10,IF(AB36>AA36,$I$11,""))))))) -> 0 | AG36: SATA SSD | AH36: 1.0% | AJ36: 0 | AK36: 1 | AM36: =IF(AL36="",$I$7,IF(SUM(AL$35:AL36)>AL$34,$I$7,IF(AL36<AJ36,$I$8,IF(AK36=0,IF(AL36>=AJ36,$I$9,IF(AL36=AK36,$I$10,IF(AL36>AK36,$I$11,""))),IF(AND(AL36>=AJ36,AL36<AK36),$I$9,IF(AL36=AK36,$I$10,IF(AL36>AK36,$I$11,""))))))) -> 0 | AO36: 2 | AP36: 2 | AR36: =IF(AQ36="",$I$7,IF(SUM(AQ$35:AQ36)>AQ$34,$I$7,IF(AQ36<AO36,$I$8,IF(AP36=0,IF(AQ36>=AO36,$I$9,IF(AQ36=AP36,$I$10,IF(AQ36>AP36,$I$11,""))),IF(AND(AQ36>=AO36,AQ36<AP36),$I$9,IF(AQ36=AP36,$I$10,IF(AQ36>AP36,$I$11,""))))))) -> 0 | AT36: 2 | AU36: 4 | AW36: =IF(AV36="",$I$7,IF(SUM(AV$35:AV36)>AV$34,$I$7,IF(AV36<AT36,$I$8,IF(AU36=0,IF(AV36>=AT36,$I$9,IF(AV36=AU36,$I$10,IF(AV36>AU36,$I$11,""))),IF(AND(AV36>=AT36,AV36<AU36),$I$9,IF(AV36=AU36,$I$10,IF(AV36>AU36,$I$11,""))))))) -> 0
C37: SATA HDD | D37: 0.5% | F37: 0 | G37: 0 | I37: =IF(H37="",$I$7,IF(SUM(H$35:H37)>H$34,$I$7,IF(H37<F37,$I$8,IF(G37=0,IF(H37>=F37,$I$9,IF(H37=G37,$I$10,IF(H37>G37,$I$11,""))),IF(AND(H37>=F37,H37<G37),$I$9,IF(H37=G37,$I$10,IF(H37>G37,$I$11,""))))))) -> 0 | K37: 0 | L37: 0 | N37: =IF(M37="",$I$7,IF(SUM(M$35:M37)>M$34,$I$7,IF(M37<K37,$I$8,IF(L37=0,IF(M37>=K37,$I$9,IF(M37=L37,$I$10,IF(M37>L37,$I$11,""))),IF(AND(M37>=K37,M37<L37),$I$9,IF(M37=L37,$I$10,IF(M37>L37,$I$11,""))))))) -> 0 | P37: 0 | Q37: 0 | S37: =IF(R37="",$I$7,IF(SUM(R$35:R37)>R$34,$I$7,IF(R37<P37,$I$8,IF(Q37=0,IF(R37>=P37,$I$9,IF(R37=Q37,$I$10,IF(R37>Q37,$I$11,""))),IF(AND(R37>=P37,R37<Q37),$I$9,IF(R37=Q37,$I$10,IF(R37>Q37,$I$11,""))))))) -> 0 | U37: 0 | V37: 0 | X37: =IF(W37="",$I$7,IF(SUM(W$35:W37)>W$34,$I$7,IF(W37<U37,$I$8,IF(V37=0,IF(W37>=U37,$I$9,IF(W37=V37,$I$10,IF(W37>V37,$I$11,""))),IF(AND(W37>=U37,W37<V37),$I$9,IF(W37=V37,$I$10,IF(W37>V37,$I$11,""))))))) -> 0 | Z37: 0 | AA37: 0 | AC37: =IF(AB37="",$I$7,IF(SUM(AB$35:AB37)>AB$34,$I$7,IF(AB37<Z37,$I$8,IF(AA37=0,IF(AB37>=Z37,$I$9,IF(AB37=AA37,$I$10,IF(AB37>AA37,$I$11,""))),IF(AND(AB37>=Z37,AB37<AA37),$I$9,IF(AB37=AA37,$I$10,IF(AB37>AA37,$I$11,""))))))) -> 0 | AG37: SATA HDD | AH37: 0.5% | AJ37: 1 | AK37: 0 | AM37: =IF(AL37="",$I$7,IF(SUM(AL$35:AL37)>AL$34,$I$7,IF(AL37<AJ37,$I$8,IF(AK37=0,IF(AL37>=AJ37,$I$9,IF(AL37=AK37,$I$10,IF(AL37>AK37,$I$11,""))),IF(AND(AL37>=AJ37,AL37<AK37),$I$9,IF(AL37=AK37,$I$10,IF(AL37>AK37,$I$11,""))))))) -> 0 | AO37: 2 | AP37: 2 | AR37: =IF(AQ37="",$I$7,IF(SUM(AQ$35:AQ37)>AQ$34,$I$7,IF(AQ37<AO37,$I$8,IF(AP37=0,IF(AQ37>=AO37,$I$9,IF(AQ37=AP37,$I$10,IF(AQ37>AP37,$I$11,""))),IF(AND(AQ37>=AO37,AQ37<AP37),$I$9,IF(AQ37=AP37,$I$10,IF(AQ37>AP37,$I$11,""))))))) -> 0 | AT37: 2 | AU37: 4 | AW37: =IF(AV37="",$I$7,IF(SUM(AV$35:AV37)>AV$34,$I$7,IF(AV37<AT37,$I$8,IF(AU37=0,IF(AV37>=AT37,$I$9,IF(AV37=AU37,$I$10,IF(AV37>AU37,$I$11,""))),IF(AND(AV37>=AT37,AV37<AU37),$I$9,IF(AV37=AU37,$I$10,IF(AV37>AU37,$I$11,""))))))) -> 0
A38: =SUM(D38:D42) -> 9% | B38: Graphics Processor Unit (GPU) | C38: Maximum Horizontal Resolution | D38: 4.0% | F38: 3840 | G38: 3840 | I38: =IF(H38="",$I$7,IF(H38<F38,$I$8,IF(AND(H38>=F38,H38<0.9*G38),$I$9,IF(AND(H38<=G38,H38>=0.9*G38),$I$10,IF(H38>G38,$I$11,""))))) -> 0 | K38: 3840 | L38: 3840 | N38: =IF(M38="",$I$7,IF(M38<K38,$I$8,IF(AND(M38>=K38,M38<0.9*L38),$I$9,IF(AND(M38<=L38,M38>=0.9*L38),$I$10,IF(M38>L38,$I$11,""))))) -> 0 | P38: 3840 | Q38: 3840 | S38: =IF(R38="",$I$7,IF(R38<P38,$I$8,IF(AND(R38>=P38,R38<0.9*Q38),$I$9,IF(AND(R38<=Q38,R38>=0.9*Q38),$I$10,IF(R38>Q38,$I$11,""))))) -> 0 | U38: 3840 | V38: 7680 | X38: =IF(W38="",$I$7,IF(W38<U38,$I$8,IF(AND(W38>=U38,W38<0.9*V38),$I$9,IF(AND(W38<=V38,W38>=0.9*V38),$I$10,IF(W38>V38,$I$11,""))))) -> 0 | Z38: 3840 | AA38: 7680 | AC38: =IF(AB38="",$I$7,IF(AB38<Z38,$I$8,IF(AND(AB38>=Z38,AB38<0.9*AA38),$I$9,IF(AND(AB38<=AA38,AB38>=0.9*AA38),$I$10,IF(AB38>AA38,$I$11,""))))) -> 0 | AE38: =SUM(AH38:AH42) -> 11% | AF38: Graphics Processor Unit (GPU) | AG38: Maximum Horizontal Resolution | AH38: 4.0% | AJ38: 3840 | AK38: 7680 | AM38: =IF(AL38="",$I$7,IF(AL38<AJ38,$I$8,IF(AND(AL38>=AJ38,AL38<0.9*AK38),$I$9,IF(AND(AL38<=AK38,AL38>=0.9*AK38),$I$10,IF(AL38>AK38,$I$11,""))))) -> 0 | AO38: 3840 | AP38: 7680 | AR38: =IF(AQ38="",$I$7,IF(AQ38<AO38,$I$8,IF(AND(AQ38>=AO38,AQ38<0.9*AP38),$I$9,IF(AND(AQ38<=AP38,AQ38>=0.9*AP38),$I$10,IF(AQ38>AP38,$I$11,""))))) -> 0 | AT38: 3840 | AU38: 7680 | AW38: =IF(AV38="",$I$7,IF(AV38<AT38,$I$8,IF(AND(AV38>=AT38,AV38<0.9*AU38),$I$9,IF(AND(AV38<=AU38,AV38>=0.9*AU38),$I$10,IF(AV38>AU38,$I$11,""))))) -> 0
C39: Maximum Vertical Resolution | F39: =IF(F38="","",VLOOKUP(F38,Lookups!$B$3:$C$7,2)) -> 2160 | G39: =IF(G38="","",VLOOKUP(G38,Lookups!$B$3:$C$7,2)) -> 2160 | H39: =IF(H38="","",VLOOKUP(H38,Lookups!$B$3:$C$7,2)) ->  | K39: =IF(K38="","",VLOOKUP(K38,Lookups!$B$3:$C$7,2)) -> 2160 | L39: =IF(L38="","",VLOOKUP(L38,Lookups!$B$3:$C$7,2)) -> 2160 | M39: =IF(M38="","",VLOOKUP(M38,Lookups!$B$3:$C$7,2)) ->  | P39: =IF(P38="","",VLOOKUP(P38,Lookups!$B$3:$C$7,2)) -> 2160 | Q39: =IF(Q38="","",VLOOKUP(Q38,Lookups!$B$3:$C$7,2)) -> 2160 | R39: =IF(R38="","",VLOOKUP(R38,Lookups!$B$3:$C$7,2)) ->  | U39: =IF(U38="","",VLOOKUP(U38,Lookups!$B$3:$C$7,2)) -> 2160 | V39: =IF(V38="","",VLOOKUP(V38,Lookups!$B$3:$C$7,2)) -> 4320 | W39: =IF(W38="","",VLOOKUP(W38,Lookups!$B$3:$C$7,2)) ->  | Z39: =IF(Z38="","",VLOOKUP(Z38,Lookups!$B$3:$C$7,2)) -> 2160 | AA39: =IF(AA38="","",VLOOKUP(AA38,Lookups!$B$3:$C$7,2)) -> 4320 | AB39: =IF(AB38="","",VLOOKUP(AB38,Lookups!$B$3:$C$7,2)) ->  | AG39: Maximum Vertical Resolution | AJ39: =IF(AJ38="","",VLOOKUP(AJ38,Lookups!$B$3:$C$7,2)) -> 2160 | AK39: =IF(AK38="","",VLOOKUP(AK38,Lookups!$B$3:$C$7,2)) -> 4320 | AL39: =IF(AL38="","",VLOOKUP(AL38,Lookups!$B$3:$C$7,2)) ->  | AO39: =IF(AO38="","",VLOOKUP(AO38,Lookups!$B$3:$C$7,2)) -> 2160 | AP39: =IF(AP38="","",VLOOKUP(AP38,Lookups!$B$3:$C$7,2)) -> 4320 | AQ39: =IF(AQ38="","",VLOOKUP(AQ38,Lookups!$B$3:$C$7,2)) ->  | AT39: =IF(AT38="","",VLOOKUP(AT38,Lookups!$B$3:$C$7,2)) -> 2160 | AU39: =IF(AU38="","",VLOOKUP(AU38,Lookups!$B$3:$C$7,2)) -> 4320 | AV39: =IF(AV38="","",VLOOKUP(AV38,Lookups!$B$3:$C$7,2)) -> 
C40: Maximum Refresh Rate at Maximum Resolution (Hz) | D40: 1.0% | F40: 60 | G40: 75 | I40: =IF(H40="",$I$7,IF(H40<F40,$I$8,IF(AND(H40>=F40,H40<0.9*G40),$I$9,IF(AND(H40<=G40,H40>=0.9*G40),$I$10,IF(H40>G40,$I$11,""))))) -> 0 | K40: 60 | L40: 75 | N40: =IF(M40="",$I$7,IF(M40<K40,$I$8,IF(AND(M40>=K40,M40<0.9*L40),$I$9,IF(AND(M40<=L40,M40>=0.9*L40),$I$10,IF(M40>L40,$I$11,""))))) -> 0 | P40: 60 | Q40: 75 | S40: =IF(R40="",$I$7,IF(R40<P40,$I$8,IF(AND(R40>=P40,R40<0.9*Q40),$I$9,IF(AND(R40<=Q40,R40>=0.9*Q40),$I$10,IF(R40>Q40,$I$11,""))))) -> 0 | U40: 75 | V40: 144 | X40: =IF(W40="",$I$7,IF(W40<U40,$I$8,IF(AND(W40>=U40,W40<0.9*V40),$I$9,IF(AND(W40<=V40,W40>=0.9*V40),$I$10,IF(W40>V40,$I$11,""))))) -> 0 | Z40: 75 | AA40: 144 | AC40: =IF(AB40="",$I$7,IF(AB40<Z40,$I$8,IF(AND(AB40>=Z40,AB40<0.9*AA40),$I$9,IF(AND(AB40<=AA40,AB40>=0.9*AA40),$I$10,IF(AB40>AA40,$I$11,""))))) -> 0 | AG40: Maximum Refresh Rate at Maximum Resolution (Hz) | AH40: 1.0% | AJ40: 60 | AK40: 75 | AM40: =IF(AL40="",$I$7,IF(AL40<AJ40,$I$8,IF(AND(AL40>=AJ40,AL40<0.9*AK40),$I$9,IF(AND(AL40<=AK40,AL40>=0.9*AK40),$I$10,IF(AL40>AK40,$I$11,""))))) -> 0 | AO40: 60 | AP40: 75 | AR40: =IF(AQ40="",$I$7,IF(AQ40<AO40,$I$8,IF(AND(AQ40>=AO40,AQ40<0.9*AP40),$I$9,IF(AND(AQ40<=AP40,AQ40>=0.9*AP40),$I$10,IF(AQ40>AP40,$I$11,""))))) -> 0 | AT40: 100 | AU40: 144 | AW40: =IF(AV40="",$I$7,IF(AV40<AT40,$I$8,IF(AND(AV40>=AT40,AV40<0.9*AU40),$I$9,IF(AND(AV40<=AU40,AV40>=0.9*AU40),$I$10,IF(AV40>AU40,$I$11,""))))) -> 0
C41: Maximum number of screens that can be connected | D41: 1.0% | F41: 2 | G41: 4 | I41: =IF(H41="",$I$7,IF(VLOOKUP(H41,Lookups!$A$155:$B$160,2,FALSE)<VLOOKUP(F41,Lookups!$A$155:$B$160,2,FALSE),$I$8,IF(AND(VLOOKUP(H41,Lookups!$A$155:$B$160,2,FALSE)>=VLOOKUP(F41,Lookups!$A$155:$B$160,2,FALSE),VLOOKUP(H41,Lookups!$A$155:$B$160,2,FALSE)<0.8*VLOOKUP(G41,Lookups!$A$155:$B$160,2,FALSE)),$I$9,IF(AND(VLOOKUP(H41,Lookups!$A$155:$B$160,2,FALSE)<=VLOOKUP(G41,Lookups!$A$155:$B$160,2,FALSE),VLOOKUP(H41,Lookups!$A$155:$B$160,2,FALSE)>=0.8*VLOOKUP(G41,Lookups!$A$155:$B$160,2,FALSE)),$I$10,IF(VLOOKUP(H41,Lookups!$A$155:$B$160,2,FALSE)>VLOOKUP(G41,Lookups!$A$155:$B$160,2,FALSE),$I$11,""))))) -> 0 | K41: 2 | L41: 4 | N41: =IF(M41="",$I$7,IF(VLOOKUP(M41,Lookups!$A$155:$B$160,2,FALSE)<VLOOKUP(K41,Lookups!$A$155:$B$160,2,FALSE),$I$8,IF(AND(VLOOKUP(M41,Lookups!$A$155:$B$160,2,FALSE)>=VLOOKUP(K41,Lookups!$A$155:$B$160,2,FALSE),VLOOKUP(M41,Lookups!$A$155:$B$160,2,FALSE)<0.8*VLOOKUP(L41,Lookups!$A$155:$B$160,2,FALSE)),$I$9,IF(AND(VLOOKUP(M41,Lookups!$A$155:$B$160,2,FALSE)<=VLOOKUP(L41,Lookups!$A$155:$B$160,2,FALSE),VLOOKUP(M41,Lookups!$A$155:$B$160,2,FALSE)>=0.8*VLOOKUP(L41,Lookups!$A$155:$B$160,2,FALSE)),$I$10,IF(VLOOKUP(M41,Lookups!$A$155:$B$160,2,FALSE)>VLOOKUP(L41,Lookups!$A$155:$B$160,2,FALSE),$I$11,""))))) -> 0 | P41: 2 | Q41: 4 | S41: =IF(R41="",$I$7,IF(VLOOKUP(R41,Lookups!$A$155:$B$160,2,FALSE)<VLOOKUP(P41,Lookups!$A$155:$B$160,2,FALSE),$I$8,IF(AND(VLOOKUP(R41,Lookups!$A$155:$B$160,2,FALSE)>=VLOOKUP(P41,Lookups!$A$155:$B$160,2,FALSE),VLOOKUP(R41,Lookups!$A$155:$B$160,2,FALSE)<0.8*VLOOKUP(Q41,Lookups!$A$155:$B$160,2,FALSE)),$I$9,IF(AND(VLOOKUP(R41,Lookups!$A$155:$B$160,2,FALSE)<=VLOOKUP(Q41,Lookups!$A$155:$B$160,2,FALSE),VLOOKUP(R41,Lookups!$A$155:$B$160,2,FALSE)>=0.8*VLOOKUP(Q41,Lookups!$A$155:$B$160,2,FALSE)),$I$10,IF(VLOOKUP(R41,Lookups!$A$155:$B$160,2,FALSE)>VLOOKUP(Q41,Lookups!$A$155:$B$160,2,FALSE),$I$11,""))))) -> 0 | U41: 4 | V41: 6 | X41: =IF(W41="",$I$7,IF(VLOOKUP(W41,Lookups!$A$155:$B$160,2,FALSE)<VLOOKUP(U41,Lookups!$A$155:$B$160,2,FALSE),$I$8,IF(AND(VLOOKUP(W41,Lookups!$A$155:$B$160,2,FALSE)>=VLOOKUP(U41,Lookups!$A$155:$B$160,2,FALSE),VLOOKUP(W41,Lookups!$A$155:$B$160,2,FALSE)<0.8*VLOOKUP(V41,Lookups!$A$155:$B$160,2,FALSE)),$I$9,IF(AND(VLOOKUP(W41,Lookups!$A$155:$B$160,2,FALSE)<=VLOOKUP(V41,Lookups!$A$155:$B$160,2,FALSE),VLOOKUP(W41,Lookups!$A$155:$B$160,2,FALSE)>=0.8*VLOOKUP(V41,Lookups!$A$155:$B$160,2,FALSE)),$I$10,IF(VLOOKUP(W41,Lookups!$A$155:$B$160,2,FALSE)>VLOOKUP(V41,Lookups!$A$155:$B$160,2,FALSE),$I$11,""))))) -> 0 | Z41: 4 | AA41: 6 | AC41: =IF(AB41="",$I$7,IF(VLOOKUP(AB41,Lookups!$A$155:$B$160,2,FALSE)<VLOOKUP(Z41,Lookups!$A$155:$B$160,2,FALSE),$I$8,IF(AND(VLOOKUP(AB41,Lookups!$A$155:$B$160,2,FALSE)>=VLOOKUP(Z41,Lookups!$A$155:$B$160,2,FALSE),VLOOKUP(AB41,Lookups!$A$155:$B$160,2,FALSE)<0.8*VLOOKUP(AA41,Lookups!$A$155:$B$160,2,FALSE)),$I$9,IF(AND(VLOOKUP(AB41,Lookups!$A$155:$B$160,2,FALSE)<=VLOOKUP(AA41,Lookups!$A$155:$B$160,2,FALSE),VLOOKUP(AB41,Lookups!$A$155:$B$160,2,FALSE)>=0.8*VLOOKUP(AA41,Lookups!$A$155:$B$160,2,FALSE)),$I$10,IF(VLOOKUP(AB41,Lookups!$A$155:$B$160,2,FALSE)>VLOOKUP(AA41,Lookups!$A$155:$B$160,2,FALSE),$I$11,""))))) -> 0 | AG41: Maximum number of screens that can be connected | AH41: 2.0% | AJ41: 2 | AK41: 4 | AM41: =IF(AL41="",$I$7,IF(VLOOKUP(AL41,Lookups!$A$155:$B$160,2,FALSE)<VLOOKUP(AJ41,Lookups!$A$155:$B$160,2,FALSE),$I$8,IF(AND(VLOOKUP(AL41,Lookups!$A$155:$B$160,2,FALSE)>=VLOOKUP(AJ41,Lookups!$A$155:$B$160,2,FALSE),VLOOKUP(AL41,Lookups!$A$155:$B$160,2,FALSE)<0.8*VLOOKUP(AK41,Lookups!$A$155:$B$160,2,FALSE)),$I$9,IF(AND(VLOOKUP(AL41,Lookups!$A$155:$B$160,2,FALSE)<=VLOOKUP(AK41,Lookups!$A$155:$B$160,2,FALSE),VLOOKUP(AL41,Lookups!$A$155:$B$160,2,FALSE)>=0.8*VLOOKUP(AK41,Lookups!$A$155:$B$160,2,FALSE)),$I$10,IF(VLOOKUP(AL41,Lookups!$A$155:$B$160,2,FALSE)>VLOOKUP(AK41,Lookups!$A$155:$B$160,2,FALSE),$I$11,""))))) -> 0 | AO41: 2 | AP41: 4 | AR41: =IF(AQ41="",$I$7,IF(VLOOKUP(AQ41,Lookups!$A$155:$B$160,2,FALSE)<VLOOKUP(AO41,Lookups!$A$155:$B$160,2,FALSE),$I$8,IF(AND(VLOOKUP(AQ41,Lookups!$A$155:$B$160,2,FALSE)>=VLOOKUP(AO41,Lookups!$A$155:$B$160,2,FALSE),VLOOKUP(AQ41,Lookups!$A$155:$B$160,2,FALSE)<0.8*VLOOKUP(AP41,Lookups!$A$155:$B$160,2,FALSE)),$I$9,IF(AND(VLOOKUP(AQ41,Lookups!$A$155:$B$160,2,FALSE)<=VLOOKUP(AP41,Lookups!$A$155:$B$160,2,FALSE),VLOOKUP(AQ41,Lookups!$A$155:$B$160,2,FALSE)>=0.8*VLOOKUP(AP41,Lookups!$A$155:$B$160,2,FALSE)),$I$10,IF(VLOOKUP(AQ41,Lookups!$A$155:$B$160,2,FALSE)>VLOOKUP(AP41,Lookups!$A$155:$B$160,2,FALSE),$I$11,""))))) -> 0 | AT41: 4 | AU41: 6 | AW41: =IF(AV41="",$I$7,IF(VLOOKUP(AV41,Lookups!$A$155:$B$160,2,FALSE)<VLOOKUP(AT41,Lookups!$A$155:$B$160,2,FALSE),$I$8,IF(AND(VLOOKUP(AV41,Lookups!$A$155:$B$160,2,FALSE)>=VLOOKUP(AT41,Lookups!$A$155:$B$160,2,FALSE),VLOOKUP(AV41,Lookups!$A$155:$B$160,2,FALSE)<0.8*VLOOKUP(AU41,Lookups!$A$155:$B$160,2,FALSE)),$I$9,IF(AND(VLOOKUP(AV41,Lookups!$A$155:$B$160,2,FALSE)<=VLOOKUP(AU41,Lookups!$A$155:$B$160,2,FALSE),VLOOKUP(AV41,Lookups!$A$155:$B$160,2,FALSE)>=0.8*VLOOKUP(AU41,Lookups!$A$155:$B$160,2,FALSE)),$I$10,IF(VLOOKUP(AV41,Lookups!$A$155:$B$160,2,FALSE)>VLOOKUP(AU41,Lookups!$A$155:$B$160,2,FALSE),$I$11,""))))) -> 0
C42: Integrated/Discreet | D42: 3.0% | F42: Integrated | G42: Integrated | I42: =IF(H42="",$I$7,IF(VLOOKUP(H42,Lookups!$A$27:$B$28,2,FALSE)<VLOOKUP(F42,Lookups!$A$27:$B$28,2,FALSE),$I$8,IF(AND(VLOOKUP(H42,Lookups!$A$27:$B$28,2,FALSE)>=VLOOKUP(F42,Lookups!$A$27:$B$28,2,FALSE),VLOOKUP(H42,Lookups!$A$27:$B$28,2,FALSE)<0.8*VLOOKUP(G42,Lookups!$A$27:$B$28,2,FALSE)),$I$9,IF(AND(VLOOKUP(H42,Lookups!$A$27:$B$28,2,FALSE)<=VLOOKUP(G42,Lookups!$A$27:$B$28,2,FALSE),VLOOKUP(H42,Lookups!$A$27:$B$28,2,FALSE)>=0.8*VLOOKUP(G42,Lookups!$A$27:$B$28,2,FALSE)),$I$10,IF(VLOOKUP(H42,Lookups!$A$27:$B$28,2,FALSE)>VLOOKUP(G42,Lookups!$A$27:$B$28,2,FALSE),$I$11,""))))) -> 0 | K42: Integrated | L42: Integrated | N42: =IF(M42="",$I$7,IF(VLOOKUP(M42,Lookups!$A$27:$B$28,2,FALSE)<VLOOKUP(K42,Lookups!$A$27:$B$28,2,FALSE),$I$8,IF(AND(VLOOKUP(M42,Lookups!$A$27:$B$28,2,FALSE)>=VLOOKUP(K42,Lookups!$A$27:$B$28,2,FALSE),VLOOKUP(M42,Lookups!$A$27:$B$28,2,FALSE)<0.8*VLOOKUP(L42,Lookups!$A$27:$B$28,2,FALSE)),$I$9,IF(AND(VLOOKUP(M42,Lookups!$A$27:$B$28,2,FALSE)<=VLOOKUP(L42,Lookups!$A$27:$B$28,2,FALSE),VLOOKUP(M42,Lookups!$A$27:$B$28,2,FALSE)>=0.8*VLOOKUP(L42,Lookups!$A$27:$B$28,2,FALSE)),$I$10,IF(VLOOKUP(M42,Lookups!$A$27:$B$28,2,FALSE)>VLOOKUP(L42,Lookups!$A$27:$B$28,2,FALSE),$I$11,""))))) -> 0 | P42: Integrated | Q42: Integrated | S42: =IF(R42="",$I$7,IF(VLOOKUP(R42,Lookups!$A$27:$B$28,2,FALSE)<VLOOKUP(P42,Lookups!$A$27:$B$28,2,FALSE),$I$8,IF(AND(VLOOKUP(R42,Lookups!$A$27:$B$28,2,FALSE)>=VLOOKUP(P42,Lookups!$A$27:$B$28,2,FALSE),VLOOKUP(R42,Lookups!$A$27:$B$28,2,FALSE)<0.8*VLOOKUP(Q42,Lookups!$A$27:$B$28,2,FALSE)),$I$9,IF(AND(VLOOKUP(R42,Lookups!$A$27:$B$28,2,FALSE)<=VLOOKUP(Q42,Lookups!$A$27:$B$28,2,FALSE),VLOOKUP(R42,Lookups!$A$27:$B$28,2,FALSE)>=0.8*VLOOKUP(Q42,Lookups!$A$27:$B$28,2,FALSE)),$I$10,IF(VLOOKUP(R42,Lookups!$A$27:$B$28,2,FALSE)>VLOOKUP(Q42,Lookups!$A$27:$B$28,2,FALSE),$I$11,""))))) -> 0 | U42: Discreet | V42: Discreet | X42: =IF(W42="",$I$7,IF(VLOOKUP(W42,Lookups!$A$27:$B$28,2,FALSE)<VLOOKUP(U42,Lookups!$A$27:$B$28,2,FALSE),$I$8,IF(AND(VLOOKUP(W42,Lookups!$A$27:$B$28,2,FALSE)>=VLOOKUP(U42,Lookups!$A$27:$B$28,2,FALSE),VLOOKUP(W42,Lookups!$A$27:$B$28,2,FALSE)<0.8*VLOOKUP(V42,Lookups!$A$27:$B$28,2,FALSE)),$I$9,IF(AND(VLOOKUP(W42,Lookups!$A$27:$B$28,2,FALSE)<=VLOOKUP(V42,Lookups!$A$27:$B$28,2,FALSE),VLOOKUP(W42,Lookups!$A$27:$B$28,2,FALSE)>=0.8*VLOOKUP(V42,Lookups!$A$27:$B$28,2,FALSE)),$I$10,IF(VLOOKUP(W42,Lookups!$A$27:$B$28,2,FALSE)>VLOOKUP(V42,Lookups!$A$27:$B$28,2,FALSE),$I$11,""))))) -> 0 | Z42: Discreet | AA42: Discreet | AC42: =IF(AB42="",$I$7,IF(VLOOKUP(AB42,Lookups!$A$27:$B$28,2,FALSE)<VLOOKUP(Z42,Lookups!$A$27:$B$28,2,FALSE),$I$8,IF(AND(VLOOKUP(AB42,Lookups!$A$27:$B$28,2,FALSE)>=VLOOKUP(Z42,Lookups!$A$27:$B$28,2,FALSE),VLOOKUP(AB42,Lookups!$A$27:$B$28,2,FALSE)<0.8*VLOOKUP(AA42,Lookups!$A$27:$B$28,2,FALSE)),$I$9,IF(AND(VLOOKUP(AB42,Lookups!$A$27:$B$28,2,FALSE)<=VLOOKUP(AA42,Lookups!$A$27:$B$28,2,FALSE),VLOOKUP(AB42,Lookups!$A$27:$B$28,2,FALSE)>=0.8*VLOOKUP(AA42,Lookups!$A$27:$B$28,2,FALSE)),$I$10,IF(VLOOKUP(AB42,Lookups!$A$27:$B$28,2,FALSE)>VLOOKUP(AA42,Lookups!$A$27:$B$28,2,FALSE),$I$11,""))))) -> 0 | AG42: Integrated/Discreet | AH42: 4.0% | AJ42: Integrated | AK42: Integrated | AM42: =IF(AL42="",$I$7,IF(VLOOKUP(AL42,Lookups!$A$27:$B$28,2,FALSE)<VLOOKUP(AJ42,Lookups!$A$27:$B$28,2,FALSE),$I$8,IF(AND(VLOOKUP(AL42,Lookups!$A$27:$B$28,2,FALSE)>=VLOOKUP(AJ42,Lookups!$A$27:$B$28,2,FALSE),VLOOKUP(AL42,Lookups!$A$27:$B$28,2,FALSE)<0.8*VLOOKUP(AK42,Lookups!$A$27:$B$28,2,FALSE)),$I$9,IF(AND(VLOOKUP(AL42,Lookups!$A$27:$B$28,2,FALSE)<=VLOOKUP(AK42,Lookups!$A$27:$B$28,2,FALSE),VLOOKUP(AL42,Lookups!$A$27:$B$28,2,FALSE)>=0.8*VLOOKUP(AK42,Lookups!$A$27:$B$28,2,FALSE)),$I$10,IF(VLOOKUP(AL42,Lookups!$A$27:$B$28,2,FALSE)>VLOOKUP(AK42,Lookups!$A$27:$B$28,2,FALSE),$I$11,""))))) -> 0 | AO42: Integrated | AP42: Discreet | AR42: =IF(AQ42="",$I$7,IF(VLOOKUP(AQ42,Lookups!$A$27:$B$28,2,FALSE)<VLOOKUP(AO42,Lookups!$A$27:$B$28,2,FALSE),$I$8,IF(AND(VLOOKUP(AQ42,Lookups!$A$27:$B$28,2,FALSE)>=VLOOKUP(AO42,Lookups!$A$27:$B$28,2,FALSE),VLOOKUP(AQ42,Lookups!$A$27:$B$28,2,FALSE)<0.8*VLOOKUP(AP42,Lookups!$A$27:$B$28,2,FALSE)),$I$9,IF(AND(VLOOKUP(AQ42,Lookups!$A$27:$B$28,2,FALSE)<=VLOOKUP(AP42,Lookups!$A$27:$B$28,2,FALSE),VLOOKUP(AQ42,Lookups!$A$27:$B$28,2,FALSE)>=0.8*VLOOKUP(AP42,Lookups!$A$27:$B$28,2,FALSE)),$I$10,IF(VLOOKUP(AQ42,Lookups!$A$27:$B$28,2,FALSE)>VLOOKUP(AP42,Lookups!$A$27:$B$28,2,FALSE),$I$11,""))))) -> 0 | AT42: Discreet | AU42: Discreet | AW42: =IF(AV42="",$I$7,IF(VLOOKUP(AV42,Lookups!$A$27:$B$28,2,FALSE)<VLOOKUP(AT42,Lookups!$A$27:$B$28,2,FALSE),$I$8,IF(AND(VLOOKUP(AV42,Lookups!$A$27:$B$28,2,FALSE)>=VLOOKUP(AT42,Lookups!$A$27:$B$28,2,FALSE),VLOOKUP(AV42,Lookups!$A$27:$B$28,2,FALSE)<0.8*VLOOKUP(AU42,Lookups!$A$27:$B$28,2,FALSE)),$I$9,IF(AND(VLOOKUP(AV42,Lookups!$A$27:$B$28,2,FALSE)<=VLOOKUP(AU42,Lookups!$A$27:$B$28,2,FALSE),VLOOKUP(AV42,Lookups!$A$27:$B$28,2,FALSE)>=0.8*VLOOKUP(AU42,Lookups!$A$27:$B$28,2,FALSE)),$I$10,IF(VLOOKUP(AV42,Lookups!$A$27:$B$28,2,FALSE)>VLOOKUP(AU42,Lookups!$A$27:$B$28,2,FALSE),$I$11,""))))) -> 0
A43: =SUM(D43:D54) -> 13% | B43: Display Screen/Panel | C43: Size (Diagonal measurement in inches) | D43: 2.0% | F43: 12 | G43: 13 | I43: =IF(H43="",$I$7,IF(H43<F43,$I$8,IF(AND(H43>=F43,H43<G43),$I$9,IF(AND(H43<=G43,H43>=G43),$I$10,IF(H43>G43,$I$11,""))))) -> 0 | K43: 14 | L43: 15 | N43: =IF(M43="",$I$7,IF(M43<K43,$I$8,IF(AND(M43>=K43,M43<L43),$I$9,IF(AND(M43<=L43,M43>=L43),$I$10,IF(M43>L43,$I$11,""))))) -> 0 | P43: 15 | Q43: 15 | S43: =IF(R43="",$I$7,IF(R43<P43,$I$8,IF(AND(R43>=P43,R43<Q43),$I$9,IF(AND(R43<=Q43,R43>=Q43),$I$10,IF(R43>Q43,$I$11,""))))) -> 0 | U43: 15 | V43: 15 | X43: =IF(W43="",$I$7,IF(W43<U43,$I$8,IF(AND(W43>=U43,W43<V43),$I$9,IF(AND(W43<=V43,W43>=V43),$I$10,IF(W43>V43,$I$11,""))))) -> 0 | Z43: 17 | AA43: 17 | AC43: =IF(AB43="",$I$7,IF(AB43<Z43,$I$8,IF(AND(AB43>=Z43,AB43<AA43),$I$9,IF(AND(AB43<=AA43,AB43>=AA43),$I$10,IF(AB43>AA43,$I$11,""))))) -> 0 | AE43: =SUM(AH43:AH54) -> 13% | AF43: Display Screen/Panel | AG43: Size (Diagonal measurement in inches) | AH43: 2.0% | AJ43: 22 | AK43: 24 | AM43: =IF(AL43="",$I$7,IF(AL43<AJ43,$I$8,IF(AND(AL43>=AJ43,AL43<AK43),$I$9,IF(AND(AL43<=AK43,AL43>=AK43),$I$10,IF(AL43>AK43,$I$11,""))))) -> 0 | AO43: 24 | AP43: 27 | AR43: =IF(AQ43="",$I$7,IF(AQ43<AO43,$I$8,IF(AND(AQ43>=AO43,AQ43<AP43),$I$9,IF(AND(AQ43<=AP43,AQ43>=AP43),$I$10,IF(AQ43>AP43,$I$11,""))))) -> 0 | AT43: 27 | AU43: 32 | AW43: =IF(AV43="",$I$7,IF(AV43<AT43,$I$8,IF(AND(AV43>=AT43,AV43<AU43),$I$9,IF(AND(AV43<=AU43,AV43>=AU43),$I$10,IF(AV43>AU43,$I$11,""))))) -> 0
C44: Maximum Horizontal Resolution | D44: 2.0% | F44: 1920 | G44: 1920 | I44: =IF(H44="",$I$7,IF(H44<F44,$I$8,IF(AND(H44>=F44,H44<0.9*G44),$I$9,IF(AND(H44<=G44,H44>=0.9*G44),$I$10,IF(H44>G44,$I$11,""))))) -> 0 | K44: 1920 | L44: 1920 | N44: =IF(M44="",$I$7,IF(M44<K44,$I$8,IF(AND(M44>=K44,M44<0.9*L44),$I$9,IF(AND(M44<=L44,M44>=0.9*L44),$I$10,IF(M44>L44,$I$11,""))))) -> 0 | P44: 1920 | Q44: 3840 | S44: =IF(R44="",$I$7,IF(R44<P44,$I$8,IF(AND(R44>=P44,R44<0.9*Q44),$I$9,IF(AND(R44<=Q44,R44>=0.9*Q44),$I$10,IF(R44>Q44,$I$11,""))))) -> 0 | U44: 1920 | V44: 3840 | X44: =IF(W44="",$I$7,IF(W44<U44,$I$8,IF(AND(W44>=U44,W44<0.9*V44),$I$9,IF(AND(W44<=V44,W44>=0.9*V44),$I$10,IF(W44>V44,$I$11,""))))) -> 0 | Z44: 1920 | AA44: 3840 | AC44: =IF(AB44="",$I$7,IF(AB44<Z44,$I$8,IF(AND(AB44>=Z44,AB44<0.9*AA44),$I$9,IF(AND(AB44<=AA44,AB44>=0.9*AA44),$I$10,IF(AB44>AA44,$I$11,""))))) -> 0 | AG44: Maximum Horizontal Resolution | AH44: 2.0% | AJ44: 1920 | AK44: 1920 | AM44: =IF(AL44="",$I$7,IF(AL44<AJ44,$I$8,IF(AND(AL44>=AJ44,AL44<0.9*AK44),$I$9,IF(AND(AL44<=AK44,AL44>=0.9*AK44),$I$10,IF(AL44>AK44,$I$11,""))))) -> 0 | AO44: 1920 | AP44: 2560 | AR44: =IF(AQ44="",$I$7,IF(AQ44<AO44,$I$8,IF(AND(AQ44>=AO44,AQ44<0.9*AP44),$I$9,IF(AND(AQ44<=AP44,AQ44>=0.9*AP44),$I$10,IF(AQ44>AP44,$I$11,""))))) -> 0 | AT44: 2560 | AU44: 3840 | AW44: =IF(AV44="",$I$7,IF(AV44<AT44,$I$8,IF(AND(AV44>=AT44,AV44<0.9*AU44),$I$9,IF(AND(AV44<=AU44,AV44>=0.9*AU44),$I$10,IF(AV44>AU44,$I$11,""))))) -> 0
C45: Maximum Vertical Resolution | F45: =IF(F44="","",VLOOKUP(F44,Lookups!$B$3:$C$7,2)) -> 1080 | G45: =IF(G44="","",VLOOKUP(G44,Lookups!$B$3:$C$7,2)) -> 1080 | H45: =IF(H44="","",VLOOKUP(H44,Lookups!$B$3:$C$7,2)) ->  | K45: =IF(K44="","",VLOOKUP(K44,Lookups!$B$3:$C$7,2)) -> 1080 | L45: =IF(L44="","",VLOOKUP(L44,Lookups!$B$3:$C$7,2)) -> 1080 | M45: =IF(M44="","",VLOOKUP(M44,Lookups!$B$3:$C$7,2)) ->  | P45: =IF(P44="","",VLOOKUP(P44,Lookups!$B$3:$C$7,2)) -> 1080 | Q45: =IF(Q44="","",VLOOKUP(Q44,Lookups!$B$3:$C$7,2)) -> 2160 | R45: =IF(R44="","",VLOOKUP(R44,Lookups!$B$3:$C$7,2)) ->  | U45: =IF(U44="","",VLOOKUP(U44,Lookups!$B$3:$C$7,2)) -> 1080 | V45: =IF(V44="","",VLOOKUP(V44,Lookups!$B$3:$C$7,2)) -> 2160 | W45: =IF(W44="","",VLOOKUP(W44,Lookups!$B$3:$C$7,2)) ->  | Z45: =IF(Z44="","",VLOOKUP(Z44,Lookups!$B$3:$C$7,2)) -> 1080 | AA45: =IF(AA44="","",VLOOKUP(AA44,Lookups!$B$3:$C$7,2)) -> 2160 | AB45: =IF(AB44="","",VLOOKUP(AB44,Lookups!$B$3:$C$7,2)) ->  | AG45: Maximum Vertical Resolution | AJ45: =IF(AJ44="","",VLOOKUP(AJ44,Lookups!$B$3:$C$7,2)) -> 1080 | AK45: =IF(AK44="","",VLOOKUP(AK44,Lookups!$B$3:$C$7,2)) -> 1080 | AL45: =IF(AL44="","",VLOOKUP(AL44,Lookups!$B$3:$C$7,2)) ->  | AO45: =IF(AO44="","",VLOOKUP(AO44,Lookups!$B$3:$C$7,2)) -> 1080 | AP45: =IF(AP44="","",VLOOKUP(AP44,Lookups!$B$3:$C$7,2)) -> 1440 | AQ45: =IF(AQ44="","",VLOOKUP(AQ44,Lookups!$B$3:$C$7,2)) ->  | AT45: =IF(AT44="","",VLOOKUP(AT44,Lookups!$B$3:$C$7,2)) -> 1440 | AU45: =IF(AU44="","",VLOOKUP(AU44,Lookups!$B$3:$C$7,2)) -> 2160 | AV45: =IF(AV44="","",VLOOKUP(AV44,Lookups!$B$3:$C$7,2)) -> 
C46: Maximum Refresh Rate at Maximum Resolution (Hz) | D46: 1.0% | F46: 60 | G46: 75 | I46: =IF(H46="",$I$7,IF(H46<F46,$I$8,IF(AND(H46>=F46,H46<0.9*G46),$I$9,IF(AND(H46<=G46,H46>=0.9*G46),$I$10,IF(H46>G46,$I$11,""))))) -> 0 | K46: 60 | L46: 75 | N46: =IF(M46="",$I$7,IF(M46<K46,$I$8,IF(AND(M46>=K46,M46<0.9*L46),$I$9,IF(AND(M46<=L46,M46>=0.9*L46),$I$10,IF(M46>L46,$I$11,""))))) -> 0 | P46: 60 | Q46: 75 | S46: =IF(R46="",$I$7,IF(R46<P46,$I$8,IF(AND(R46>=P46,R46<0.9*Q46),$I$9,IF(AND(R46<=Q46,R46>=0.9*Q46),$I$10,IF(R46>Q46,$I$11,""))))) -> 0 | U46: 60 | V46: 100 | X46: =IF(W46="",$I$7,IF(W46<U46,$I$8,IF(AND(W46>=U46,W46<0.9*V46),$I$9,IF(AND(W46<=V46,W46>=0.9*V46),$I$10,IF(W46>V46,$I$11,""))))) -> 0 | Z46: 60 | AA46: 100 | AC46: =IF(AB46="",$I$7,IF(AB46<Z46,$I$8,IF(AND(AB46>=Z46,AB46<0.9*AA46),$I$9,IF(AND(AB46<=AA46,AB46>=0.9*AA46),$I$10,IF(AB46>AA46,$I$11,""))))) -> 0 | AG46: Maximum Refresh Rate at Maximum Resolution (Hz) | AH46: 1.0% | AJ46: 60 | AK46: 75 | AM46: =IF(AL46="",$I$7,IF(AL46<AJ46,$I$8,IF(AND(AL46>=AJ46,AL46<0.9*AK46),$I$9,IF(AND(AL46<=AK46,AL46>=0.9*AK46),$I$10,IF(AL46>AK46,$I$11,""))))) -> 0 | AO46: 60 | AP46: 75 | AR46: =IF(AQ46="",$I$7,IF(AQ46<AO46,$I$8,IF(AND(AQ46>=AO46,AQ46<0.9*AP46),$I$9,IF(AND(AQ46<=AP46,AQ46>=0.9*AP46),$I$10,IF(AQ46>AP46,$I$11,""))))) -> 0 | AT46: 75 | AU46: 100 | AW46: =IF(AV46="",$I$7,IF(AV46<AT46,$I$8,IF(AND(AV46>=AT46,AV46<0.9*AU46),$I$9,IF(AND(AV46<=AU46,AV46>=0.9*AU46),$I$10,IF(AV46>AU46,$I$11,""))))) -> 0
C47: Maximum Brightness (Nits) | D47: 1.0% | F47: 250 | G47: 350 | I47: =IF(H47="",$I$7,IF(H47<F47,$I$8,IF(AND(H47>=F47,H47<0.9*G47),$I$9,IF(AND(H47<=G47,H47>=0.9*G47),$I$10,IF(H47>G47,$I$11,""))))) -> 0 | K47: 250 | L47: 350 | N47: =IF(M47="",$I$7,IF(M47<K47,$I$8,IF(AND(M47>=K47,M47<0.9*L47),$I$9,IF(AND(M47<=L47,M47>=0.9*L47),$I$10,IF(M47>L47,$I$11,""))))) -> 0 | P47: 250 | Q47: 350 | S47: =IF(R47="",$I$7,IF(R47<P47,$I$8,IF(AND(R47>=P47,R47<0.9*Q47),$I$9,IF(AND(R47<=Q47,R47>=0.9*Q47),$I$10,IF(R47>Q47,$I$11,""))))) -> 0 | U47: 250 | V47: 350 | X47: =IF(W47="",$I$7,IF(W47<U47,$I$8,IF(AND(W47>=U47,W47<0.9*V47),$I$9,IF(AND(W47<=V47,W47>=0.9*V47),$I$10,IF(W47>V47,$I$11,""))))) -> 0 | Z47: 250 | AA47: 350 | AC47: =IF(AB47="",$I$7,IF(AB47<Z47,$I$8,IF(AND(AB47>=Z47,AB47<0.9*AA47),$I$9,IF(AND(AB47<=AA47,AB47>=0.9*AA47),$I$10,IF(AB47>AA47,$I$11,""))))) -> 0 | AG47: Maximum Brightness (Nits) | AH47: 1.0% | AJ47: 250 | AK47: 350 | AM47: =IF(AL47="",$I$7,IF(AL47<AJ47,$I$8,IF(AND(AL47>=AJ47,AL47<0.9*AK47),$I$9,IF(AND(AL47<=AK47,AL47>=0.9*AK47),$I$10,IF(AL47>AK47,$I$11,""))))) -> 0 | AO47: 250 | AP47: 350 | AR47: =IF(AQ47="",$I$7,IF(AQ47<AO47,$I$8,IF(AND(AQ47>=AO47,AQ47<0.9*AP47),$I$9,IF(AND(AQ47<=AP47,AQ47>=0.9*AP47),$I$10,IF(AQ47>AP47,$I$11,""))))) -> 0 | AT47: 250 | AU47: 350 | AW47: =IF(AV47="",$I$7,IF(AV47<AT47,$I$8,IF(AND(AV47>=AT47,AV47<0.9*AU47),$I$9,IF(AND(AV47<=AU47,AV47>=0.9*AU47),$I$10,IF(AV47>AU47,$I$11,""))))) -> 0
C48: Blue Light Filter | D48: 1.0% | F48: No | G48: Yes | I48: =IF(H48="",$I$7,IF(VLOOKUP(H48,Lookups!$A$32:$B$33,2,FALSE)<VLOOKUP(F48,Lookups!$A$32:$B$33,2,FALSE),$I$8,IF(AND(VLOOKUP(H48,Lookups!$A$32:$B$33,2,FALSE)>=VLOOKUP(F48,Lookups!$A$32:$B$33,2,FALSE),VLOOKUP(H48,Lookups!$A$32:$B$33,2,FALSE)<0.8*VLOOKUP(G48,Lookups!$A$32:$B$33,2,FALSE)),$I$9,IF(AND(VLOOKUP(H48,Lookups!$A$32:$B$33,2,FALSE)<=VLOOKUP(G48,Lookups!$A$32:$B$33,2,FALSE),VLOOKUP(H48,Lookups!$A$32:$B$33,2,FALSE)>=0.8*VLOOKUP(G48,Lookups!$A$32:$B$33,2,FALSE)),$I$10,IF(VLOOKUP(H48,Lookups!$A$32:$B$33,2,FALSE)>VLOOKUP(G48,Lookups!$A$32:$B$33,2,FALSE),$I$11,""))))) -> 0 | K48: No | L48: Yes | N48: =IF(M48="",$I$7,IF(VLOOKUP(M48,Lookups!$A$32:$B$33,2,FALSE)<VLOOKUP(K48,Lookups!$A$32:$B$33,2,FALSE),$I$8,IF(AND(VLOOKUP(M48,Lookups!$A$32:$B$33,2,FALSE)>=VLOOKUP(K48,Lookups!$A$32:$B$33,2,FALSE),VLOOKUP(M48,Lookups!$A$32:$B$33,2,FALSE)<0.8*VLOOKUP(L48,Lookups!$A$32:$B$33,2,FALSE)),$I$9,IF(AND(VLOOKUP(M48,Lookups!$A$32:$B$33,2,FALSE)<=VLOOKUP(L48,Lookups!$A$32:$B$33,2,FALSE),VLOOKUP(M48,Lookups!$A$32:$B$33,2,FALSE)>=0.8*VLOOKUP(L48,Lookups!$A$32:$B$33,2,FALSE)),$I$10,IF(VLOOKUP(M48,Lookups!$A$32:$B$33,2,FALSE)>VLOOKUP(L48,Lookups!$A$32:$B$33,2,FALSE),$I$11,""))))) -> 0 | P48: No | Q48: Yes | S48: =IF(R48="",$I$7,IF(VLOOKUP(R48,Lookups!$A$32:$B$33,2,FALSE)<VLOOKUP(P48,Lookups!$A$32:$B$33,2,FALSE),$I$8,IF(AND(VLOOKUP(R48,Lookups!$A$32:$B$33,2,FALSE)>=VLOOKUP(P48,Lookups!$A$32:$B$33,2,FALSE),VLOOKUP(R48,Lookups!$A$32:$B$33,2,FALSE)<0.8*VLOOKUP(Q48,Lookups!$A$32:$B$33,2,FALSE)),$I$9,IF(AND(VLOOKUP(R48,Lookups!$A$32:$B$33,2,FALSE)<=VLOOKUP(Q48,Lookups!$A$32:$B$33,2,FALSE),VLOOKUP(R48,Lookups!$A$32:$B$33,2,FALSE)>=0.8*VLOOKUP(Q48,Lookups!$A$32:$B$33,2,FALSE)),$I$10,IF(VLOOKUP(R48,Lookups!$A$32:$B$33,2,FALSE)>VLOOKUP(Q48,Lookups!$A$32:$B$33,2,FALSE),$I$11,""))))) -> 0 | U48: No | V48: Yes | X48: =IF(W48="",$I$7,IF(VLOOKUP(W48,Lookups!$A$32:$B$33,2,FALSE)<VLOOKUP(U48,Lookups!$A$32:$B$33,2,FALSE),$I$8,IF(AND(VLOOKUP(W48,Lookups!$A$32:$B$33,2,FALSE)>=VLOOKUP(U48,Lookups!$A$32:$B$33,2,FALSE),VLOOKUP(W48,Lookups!$A$32:$B$33,2,FALSE)<0.8*VLOOKUP(V48,Lookups!$A$32:$B$33,2,FALSE)),$I$9,IF(AND(VLOOKUP(W48,Lookups!$A$32:$B$33,2,FALSE)<=VLOOKUP(V48,Lookups!$A$32:$B$33,2,FALSE),VLOOKUP(W48,Lookups!$A$32:$B$33,2,FALSE)>=0.8*VLOOKUP(V48,Lookups!$A$32:$B$33,2,FALSE)),$I$10,IF(VLOOKUP(W48,Lookups!$A$32:$B$33,2,FALSE)>VLOOKUP(V48,Lookups!$A$32:$B$33,2,FALSE),$I$11,""))))) -> 0 | Z48: No | AA48: Yes | AC48: =IF(AB48="",$I$7,IF(VLOOKUP(AB48,Lookups!$A$32:$B$33,2,FALSE)<VLOOKUP(Z48,Lookups!$A$32:$B$33,2,FALSE),$I$8,IF(AND(VLOOKUP(AB48,Lookups!$A$32:$B$33,2,FALSE)>=VLOOKUP(Z48,Lookups!$A$32:$B$33,2,FALSE),VLOOKUP(AB48,Lookups!$A$32:$B$33,2,FALSE)<0.8*VLOOKUP(AA48,Lookups!$A$32:$B$33,2,FALSE)),$I$9,IF(AND(VLOOKUP(AB48,Lookups!$A$32:$B$33,2,FALSE)<=VLOOKUP(AA48,Lookups!$A$32:$B$33,2,FALSE),VLOOKUP(AB48,Lookups!$A$32:$B$33,2,FALSE)>=0.8*VLOOKUP(AA48,Lookups!$A$32:$B$33,2,FALSE)),$I$10,IF(VLOOKUP(AB48,Lookups!$A$32:$B$33,2,FALSE)>VLOOKUP(AA48,Lookups!$A$32:$B$33,2,FALSE),$I$11,""))))) -> 0 | AG48: Blue Light Filter | AH48: 1.0% | AJ48: No | AK48: Yes | AM48: =IF(AL48="",$I$7,IF(VLOOKUP(AL48,Lookups!$A$32:$B$33,2,FALSE)<VLOOKUP(AJ48,Lookups!$A$32:$B$33,2,FALSE),$I$8,IF(AND(VLOOKUP(AL48,Lookups!$A$32:$B$33,2,FALSE)>=VLOOKUP(AJ48,Lookups!$A$32:$B$33,2,FALSE),VLOOKUP(AL48,Lookups!$A$32:$B$33,2,FALSE)<0.8*VLOOKUP(AK48,Lookups!$A$32:$B$33,2,FALSE)),$I$9,IF(AND(VLOOKUP(AL48,Lookups!$A$32:$B$33,2,FALSE)<=VLOOKUP(AK48,Lookups!$A$32:$B$33,2,FALSE),VLOOKUP(AL48,Lookups!$A$32:$B$33,2,FALSE)>=0.8*VLOOKUP(AK48,Lookups!$A$32:$B$33,2,FALSE)),$I$10,IF(VLOOKUP(AL48,Lookups!$A$32:$B$33,2,FALSE)>VLOOKUP(AK48,Lookups!$A$32:$B$33,2,FALSE),$I$11,""))))) -> 0 | AO48: No | AP48: Yes | AR48: =IF(AQ48="",$I$7,IF(VLOOKUP(AQ48,Lookups!$A$32:$B$33,2,FALSE)<VLOOKUP(AO48,Lookups!$A$32:$B$33,2,FALSE),$I$8,IF(AND(VLOOKUP(AQ48,Lookups!$A$32:$B$33,2,FALSE)>=VLOOKUP(AO48,Lookups!$A$32:$B$33,2,FALSE),VLOOKUP(AQ48,Lookups!$A$32:$B$33,2,FALSE)<0.8*VLOOKUP(AP48,Lookups!$A$32:$B$33,2,FALSE)),$I$9,IF(AND(VLOOKUP(AQ48,Lookups!$A$32:$B$33,2,FALSE)<=VLOOKUP(AP48,Lookups!$A$32:$B$33,2,FALSE),VLOOKUP(AQ48,Lookups!$A$32:$B$33,2,FALSE)>=0.8*VLOOKUP(AP48,Lookups!$A$32:$B$33,2,FALSE)),$I$10,IF(VLOOKUP(AQ48,Lookups!$A$32:$B$33,2,FALSE)>VLOOKUP(AP48,Lookups!$A$32:$B$33,2,FALSE),$I$11,""))))) -> 0 | AT48: Yes | AU48: Yes | AW48: =IF(AV48="",$I$7,IF(VLOOKUP(AV48,Lookups!$A$32:$B$33,2,FALSE)<VLOOKUP(AT48,Lookups!$A$32:$B$33,2,FALSE),$I$8,IF(AND(VLOOKUP(AV48,Lookups!$A$32:$B$33,2,FALSE)>=VLOOKUP(AT48,Lookups!$A$32:$B$33,2,FALSE),VLOOKUP(AV48,Lookups!$A$32:$B$33,2,FALSE)<0.8*VLOOKUP(AU48,Lookups!$A$32:$B$33,2,FALSE)),$I$9,IF(AND(VLOOKUP(AV48,Lookups!$A$32:$B$33,2,FALSE)<=VLOOKUP(AU48,Lookups!$A$32:$B$33,2,FALSE),VLOOKUP(AV48,Lookups!$A$32:$B$33,2,FALSE)>=0.8*VLOOKUP(AU48,Lookups!$A$32:$B$33,2,FALSE)),$I$10,IF(VLOOKUP(AV48,Lookups!$A$32:$B$33,2,FALSE)>VLOOKUP(AU48,Lookups!$A$32:$B$33,2,FALSE),$I$11,""))))) -> 0
C49: Contrast Ratio | D49: 1.0% | F49: 1000:1 to 3000:1 | G49: Greater than 3000:1 | I49: =IF(H49="",$I$7,IF(VLOOKUP(H49,Lookups!$A$92:$B$94,2,FALSE)<VLOOKUP(F49,Lookups!$A$92:$B$94,2,FALSE),$I$8,IF(AND(VLOOKUP(H49,Lookups!$A$92:$B$94,2,FALSE)>=VLOOKUP(F49,Lookups!$A$92:$B$94,2,FALSE),VLOOKUP(H49,Lookups!$A$92:$B$94,2,FALSE)<0.8*VLOOKUP(G49,Lookups!$A$92:$B$94,2,FALSE)),$I$9,IF(AND(VLOOKUP(H49,Lookups!$A$92:$B$94,2,FALSE)<=VLOOKUP(G49,Lookups!$A$92:$B$94,2,FALSE),VLOOKUP(H49,Lookups!$A$92:$B$94,2,FALSE)>=0.8*VLOOKUP(G49,Lookups!$A$92:$B$94,2,FALSE)),$I$10,IF(VLOOKUP(H49,Lookups!$A$92:$B$94,2,FALSE)>VLOOKUP(G49,Lookups!$A$92:$B$94,2,FALSE),$I$11,""))))) -> 0 | K49: 1000:1 to 3000:1 | L49: Greater than 3000:1 | N49: =IF(M49="",$I$7,IF(VLOOKUP(M49,Lookups!$A$92:$B$94,2,FALSE)<VLOOKUP(K49,Lookups!$A$92:$B$94,2,FALSE),$I$8,IF(AND(VLOOKUP(M49,Lookups!$A$92:$B$94,2,FALSE)>=VLOOKUP(K49,Lookups!$A$92:$B$94,2,FALSE),VLOOKUP(M49,Lookups!$A$92:$B$94,2,FALSE)<0.8*VLOOKUP(L49,Lookups!$A$92:$B$94,2,FALSE)),$I$9,IF(AND(VLOOKUP(M49,Lookups!$A$92:$B$94,2,FALSE)<=VLOOKUP(L49,Lookups!$A$92:$B$94,2,FALSE),VLOOKUP(M49,Lookups!$A$92:$B$94,2,FALSE)>=0.8*VLOOKUP(L49,Lookups!$A$92:$B$94,2,FALSE)),$I$10,IF(VLOOKUP(M49,Lookups!$A$92:$B$94,2,FALSE)>VLOOKUP(L49,Lookups!$A$92:$B$94,2,FALSE),$I$11,""))))) -> 0 | P49: 1000:1 to 3000:1 | Q49: Greater than 3000:1 | S49: =IF(R49="",$I$7,IF(VLOOKUP(R49,Lookups!$A$92:$B$94,2,FALSE)<VLOOKUP(P49,Lookups!$A$92:$B$94,2,FALSE),$I$8,IF(AND(VLOOKUP(R49,Lookups!$A$92:$B$94,2,FALSE)>=VLOOKUP(P49,Lookups!$A$92:$B$94,2,FALSE),VLOOKUP(R49,Lookups!$A$92:$B$94,2,FALSE)<0.8*VLOOKUP(Q49,Lookups!$A$92:$B$94,2,FALSE)),$I$9,IF(AND(VLOOKUP(R49,Lookups!$A$92:$B$94,2,FALSE)<=VLOOKUP(Q49,Lookups!$A$92:$B$94,2,FALSE),VLOOKUP(R49,Lookups!$A$92:$B$94,2,FALSE)>=0.8*VLOOKUP(Q49,Lookups!$A$92:$B$94,2,FALSE)),$I$10,IF(VLOOKUP(R49,Lookups!$A$92:$B$94,2,FALSE)>VLOOKUP(Q49,Lookups!$A$92:$B$94,2,FALSE),$I$11,""))))) -> 0 | U49: 1000:1 to 3000:1 | V49: Greater than 3000:1 | X49: =IF(W49="",$I$7,IF(VLOOKUP(W49,Lookups!$A$92:$B$94,2,FALSE)<VLOOKUP(U49,Lookups!$A$92:$B$94,2,FALSE),$I$8,IF(AND(VLOOKUP(W49,Lookups!$A$92:$B$94,2,FALSE)>=VLOOKUP(U49,Lookups!$A$92:$B$94,2,FALSE),VLOOKUP(W49,Lookups!$A$92:$B$94,2,FALSE)<0.8*VLOOKUP(V49,Lookups!$A$92:$B$94,2,FALSE)),$I$9,IF(AND(VLOOKUP(W49,Lookups!$A$92:$B$94,2,FALSE)<=VLOOKUP(V49,Lookups!$A$92:$B$94,2,FALSE),VLOOKUP(W49,Lookups!$A$92:$B$94,2,FALSE)>=0.8*VLOOKUP(V49,Lookups!$A$92:$B$94,2,FALSE)),$I$10,IF(VLOOKUP(W49,Lookups!$A$92:$B$94,2,FALSE)>VLOOKUP(V49,Lookups!$A$92:$B$94,2,FALSE),$I$11,""))))) -> 0 | Z49: 1000:1 to 3000:1 | AA49: Greater than 3000:1 | AC49: =IF(AB49="",$I$7,IF(VLOOKUP(AB49,Lookups!$A$92:$B$94,2,FALSE)<VLOOKUP(Z49,Lookups!$A$92:$B$94,2,FALSE),$I$8,IF(AND(VLOOKUP(AB49,Lookups!$A$92:$B$94,2,FALSE)>=VLOOKUP(Z49,Lookups!$A$92:$B$94,2,FALSE),VLOOKUP(AB49,Lookups!$A$92:$B$94,2,FALSE)<0.8*VLOOKUP(AA49,Lookups!$A$92:$B$94,2,FALSE)),$I$9,IF(AND(VLOOKUP(AB49,Lookups!$A$92:$B$94,2,FALSE)<=VLOOKUP(AA49,Lookups!$A$92:$B$94,2,FALSE),VLOOKUP(AB49,Lookups!$A$92:$B$94,2,FALSE)>=0.8*VLOOKUP(AA49,Lookups!$A$92:$B$94,2,FALSE)),$I$10,IF(VLOOKUP(AB49,Lookups!$A$92:$B$94,2,FALSE)>VLOOKUP(AA49,Lookups!$A$92:$B$94,2,FALSE),$I$11,""))))) -> 0 | AG49: Contrast Ratio | AH49: 1.0% | AJ49: 1000:1 to 3000:1 | AK49: Greater than 3000:1 | AM49: =IF(AL49="",$I$7,IF(VLOOKUP(AL49,Lookups!$A$92:$B$94,2,FALSE)<VLOOKUP(AJ49,Lookups!$A$92:$B$94,2,FALSE),$I$8,IF(AND(VLOOKUP(AL49,Lookups!$A$92:$B$94,2,FALSE)>=VLOOKUP(AJ49,Lookups!$A$92:$B$94,2,FALSE),VLOOKUP(AL49,Lookups!$A$92:$B$94,2,FALSE)<0.8*VLOOKUP(AK49,Lookups!$A$92:$B$94,2,FALSE)),$I$9,IF(AND(VLOOKUP(AL49,Lookups!$A$92:$B$94,2,FALSE)<=VLOOKUP(AK49,Lookups!$A$92:$B$94,2,FALSE),VLOOKUP(AL49,Lookups!$A$92:$B$94,2,FALSE)>=0.8*VLOOKUP(AK49,Lookups!$A$92:$B$94,2,FALSE)),$I$10,IF(VLOOKUP(AL49,Lookups!$A$92:$B$94,2,FALSE)>VLOOKUP(AK49,Lookups!$A$92:$B$94,2,FALSE),$I$11,""))))) -> 0 | AO49: 1000:1 to 3000:1 | AP49: Greater than 3000:1 | AR49: =IF(AQ49="",$I$7,IF(VLOOKUP(AQ49,Lookups!$A$92:$B$94,2,FALSE)<VLOOKUP(AO49,Lookups!$A$92:$B$94,2,FALSE),$I$8,IF(AND(VLOOKUP(AQ49,Lookups!$A$92:$B$94,2,FALSE)>=VLOOKUP(AO49,Lookups!$A$92:$B$94,2,FALSE),VLOOKUP(AQ49,Lookups!$A$92:$B$94,2,FALSE)<0.8*VLOOKUP(AP49,Lookups!$A$92:$B$94,2,FALSE)),$I$9,IF(AND(VLOOKUP(AQ49,Lookups!$A$92:$B$94,2,FALSE)<=VLOOKUP(AP49,Lookups!$A$92:$B$94,2,FALSE),VLOOKUP(AQ49,Lookups!$A$92:$B$94,2,FALSE)>=0.8*VLOOKUP(AP49,Lookups!$A$92:$B$94,2,FALSE)),$I$10,IF(VLOOKUP(AQ49,Lookups!$A$92:$B$94,2,FALSE)>VLOOKUP(AP49,Lookups!$A$92:$B$94,2,FALSE),$I$11,""))))) -> 0 | AT49: 1000:1 to 3000:1 | AU49: Greater than 3000:1 | AW49: =IF(AV49="",$I$7,IF(VLOOKUP(AV49,Lookups!$A$92:$B$94,2,FALSE)<VLOOKUP(AT49,Lookups!$A$92:$B$94,2,FALSE),$I$8,IF(AND(VLOOKUP(AV49,Lookups!$A$92:$B$94,2,FALSE)>=VLOOKUP(AT49,Lookups!$A$92:$B$94,2,FALSE),VLOOKUP(AV49,Lookups!$A$92:$B$94,2,FALSE)<0.8*VLOOKUP(AU49,Lookups!$A$92:$B$94,2,FALSE)),$I$9,IF(AND(VLOOKUP(AV49,Lookups!$A$92:$B$94,2,FALSE)<=VLOOKUP(AU49,Lookups!$A$92:$B$94,2,FALSE),VLOOKUP(AV49,Lookups!$A$92:$B$94,2,FALSE)>=0.8*VLOOKUP(AU49,Lookups!$A$92:$B$94,2,FALSE)),$I$10,IF(VLOOKUP(AV49,Lookups!$A$92:$B$94,2,FALSE)>VLOOKUP(AU49,Lookups!$A$92:$B$94,2,FALSE),$I$11,""))))) -> 0
C50: Dynamic Range | D50: 1.0% | F50: SDR | G50: HDR | I50: =IF(H50="",$I$7,IF(VLOOKUP(H50,Lookups!$A$97:$B$98,2,FALSE)<VLOOKUP(F50,Lookups!$A$97:$B$98,2,FALSE),$I$8,IF(AND(VLOOKUP(H50,Lookups!$A$97:$B$98,2,FALSE)>=VLOOKUP(F50,Lookups!$A$97:$B$98,2,FALSE),VLOOKUP(H50,Lookups!$A$97:$B$98,2,FALSE)<0.8*VLOOKUP(G50,Lookups!$A$97:$B$98,2,FALSE)),$I$9,IF(AND(VLOOKUP(H50,Lookups!$A$97:$B$98,2,FALSE)<=VLOOKUP(G50,Lookups!$A$97:$B$98,2,FALSE),VLOOKUP(H50,Lookups!$A$97:$B$98,2,FALSE)>=0.8*VLOOKUP(G50,Lookups!$A$97:$B$98,2,FALSE)),$I$10,IF(VLOOKUP(H50,Lookups!$A$97:$B$98,2,FALSE)>VLOOKUP(G50,Lookups!$A$97:$B$98,2,FALSE),$I$11,""))))) -> 0 | K50: SDR | L50: HDR | N50: =IF(M50="",$I$7,IF(VLOOKUP(M50,Lookups!$A$97:$B$98,2,FALSE)<VLOOKUP(K50,Lookups!$A$97:$B$98,2,FALSE),$I$8,IF(AND(VLOOKUP(M50,Lookups!$A$97:$B$98,2,FALSE)>=VLOOKUP(K50,Lookups!$A$97:$B$98,2,FALSE),VLOOKUP(M50,Lookups!$A$97:$B$98,2,FALSE)<0.8*VLOOKUP(L50,Lookups!$A$97:$B$98,2,FALSE)),$I$9,IF(AND(VLOOKUP(M50,Lookups!$A$97:$B$98,2,FALSE)<=VLOOKUP(L50,Lookups!$A$97:$B$98,2,FALSE),VLOOKUP(M50,Lookups!$A$97:$B$98,2,FALSE)>=0.8*VLOOKUP(L50,Lookups!$A$97:$B$98,2,FALSE)),$I$10,IF(VLOOKUP(M50,Lookups!$A$97:$B$98,2,FALSE)>VLOOKUP(L50,Lookups!$A$97:$B$98,2,FALSE),$I$11,""))))) -> 0 | P50: SDR | Q50: HDR | S50: =IF(R50="",$I$7,IF(VLOOKUP(R50,Lookups!$A$97:$B$98,2,FALSE)<VLOOKUP(P50,Lookups!$A$97:$B$98,2,FALSE),$I$8,IF(AND(VLOOKUP(R50,Lookups!$A$97:$B$98,2,FALSE)>=VLOOKUP(P50,Lookups!$A$97:$B$98,2,FALSE),VLOOKUP(R50,Lookups!$A$97:$B$98,2,FALSE)<0.8*VLOOKUP(Q50,Lookups!$A$97:$B$98,2,FALSE)),$I$9,IF(AND(VLOOKUP(R50,Lookups!$A$97:$B$98,2,FALSE)<=VLOOKUP(Q50,Lookups!$A$97:$B$98,2,FALSE),VLOOKUP(R50,Lookups!$A$97:$B$98,2,FALSE)>=0.8*VLOOKUP(Q50,Lookups!$A$97:$B$98,2,FALSE)),$I$10,IF(VLOOKUP(R50,Lookups!$A$97:$B$98,2,FALSE)>VLOOKUP(Q50,Lookups!$A$97:$B$98,2,FALSE),$I$11,""))))) -> 0 | U50: SDR | V50: HDR | X50: =IF(W50="",$I$7,IF(VLOOKUP(W50,Lookups!$A$97:$B$98,2,FALSE)<VLOOKUP(U50,Lookups!$A$97:$B$98,2,FALSE),$I$8,IF(AND(VLOOKUP(W50,Lookups!$A$97:$B$98,2,FALSE)>=VLOOKUP(U50,Lookups!$A$97:$B$98,2,FALSE),VLOOKUP(W50,Lookups!$A$97:$B$98,2,FALSE)<0.8*VLOOKUP(V50,Lookups!$A$97:$B$98,2,FALSE)),$I$9,IF(AND(VLOOKUP(W50,Lookups!$A$97:$B$98,2,FALSE)<=VLOOKUP(V50,Lookups!$A$97:$B$98,2,FALSE),VLOOKUP(W50,Lookups!$A$97:$B$98,2,FALSE)>=0.8*VLOOKUP(V50,Lookups!$A$97:$B$98,2,FALSE)),$I$10,IF(VLOOKUP(W50,Lookups!$A$97:$B$98,2,FALSE)>VLOOKUP(V50,Lookups!$A$97:$B$98,2,FALSE),$I$11,""))))) -> 0 | Z50: SDR | AA50: HDR | AC50: =IF(AB50="",$I$7,IF(VLOOKUP(AB50,Lookups!$A$97:$B$98,2,FALSE)<VLOOKUP(Z50,Lookups!$A$97:$B$98,2,FALSE),$I$8,IF(AND(VLOOKUP(AB50,Lookups!$A$97:$B$98,2,FALSE)>=VLOOKUP(Z50,Lookups!$A$97:$B$98,2,FALSE),VLOOKUP(AB50,Lookups!$A$97:$B$98,2,FALSE)<0.8*VLOOKUP(AA50,Lookups!$A$97:$B$98,2,FALSE)),$I$9,IF(AND(VLOOKUP(AB50,Lookups!$A$97:$B$98,2,FALSE)<=VLOOKUP(AA50,Lookups!$A$97:$B$98,2,FALSE),VLOOKUP(AB50,Lookups!$A$97:$B$98,2,FALSE)>=0.8*VLOOKUP(AA50,Lookups!$A$97:$B$98,2,FALSE)),$I$10,IF(VLOOKUP(AB50,Lookups!$A$97:$B$98,2,FALSE)>VLOOKUP(AA50,Lookups!$A$97:$B$98,2,FALSE),$I$11,""))))) -> 0 | AG50: Dynamic Range | AH50: 1.0% | AJ50: SDR | AK50: HDR | AM50: =IF(AL50="",$I$7,IF(VLOOKUP(AL50,Lookups!$A$97:$B$98,2,FALSE)<VLOOKUP(AJ50,Lookups!$A$97:$B$98,2,FALSE),$I$8,IF(AND(VLOOKUP(AL50,Lookups!$A$97:$B$98,2,FALSE)>=VLOOKUP(AJ50,Lookups!$A$97:$B$98,2,FALSE),VLOOKUP(AL50,Lookups!$A$97:$B$98,2,FALSE)<0.8*VLOOKUP(AK50,Lookups!$A$97:$B$98,2,FALSE)),$I$9,IF(AND(VLOOKUP(AL50,Lookups!$A$97:$B$98,2,FALSE)<=VLOOKUP(AK50,Lookups!$A$97:$B$98,2,FALSE),VLOOKUP(AL50,Lookups!$A$97:$B$98,2,FALSE)>=0.8*VLOOKUP(AK50,Lookups!$A$97:$B$98,2,FALSE)),$I$10,IF(VLOOKUP(AL50,Lookups!$A$97:$B$98,2,FALSE)>VLOOKUP(AK50,Lookups!$A$97:$B$98,2,FALSE),$I$11,""))))) -> 0 | AO50: SDR | AP50: HDR | AR50: =IF(AQ50="",$I$7,IF(VLOOKUP(AQ50,Lookups!$A$97:$B$98,2,FALSE)<VLOOKUP(AO50,Lookups!$A$97:$B$98,2,FALSE),$I$8,IF(AND(VLOOKUP(AQ50,Lookups!$A$97:$B$98,2,FALSE)>=VLOOKUP(AO50,Lookups!$A$97:$B$98,2,FALSE),VLOOKUP(AQ50,Lookups!$A$97:$B$98,2,FALSE)<0.8*VLOOKUP(AP50,Lookups!$A$97:$B$98,2,FALSE)),$I$9,IF(AND(VLOOKUP(AQ50,Lookups!$A$97:$B$98,2,FALSE)<=VLOOKUP(AP50,Lookups!$A$97:$B$98,2,FALSE),VLOOKUP(AQ50,Lookups!$A$97:$B$98,2,FALSE)>=0.8*VLOOKUP(AP50,Lookups!$A$97:$B$98,2,FALSE)),$I$10,IF(VLOOKUP(AQ50,Lookups!$A$97:$B$98,2,FALSE)>VLOOKUP(AP50,Lookups!$A$97:$B$98,2,FALSE),$I$11,""))))) -> 0 | AT50: HDR | AU50: HDR | AW50: =IF(AV50="",$I$7,IF(VLOOKUP(AV50,Lookups!$A$97:$B$98,2,FALSE)<VLOOKUP(AT50,Lookups!$A$97:$B$98,2,FALSE),$I$8,IF(AND(VLOOKUP(AV50,Lookups!$A$97:$B$98,2,FALSE)>=VLOOKUP(AT50,Lookups!$A$97:$B$98,2,FALSE),VLOOKUP(AV50,Lookups!$A$97:$B$98,2,FALSE)<0.8*VLOOKUP(AU50,Lookups!$A$97:$B$98,2,FALSE)),$I$9,IF(AND(VLOOKUP(AV50,Lookups!$A$97:$B$98,2,FALSE)<=VLOOKUP(AU50,Lookups!$A$97:$B$98,2,FALSE),VLOOKUP(AV50,Lookups!$A$97:$B$98,2,FALSE)>=0.8*VLOOKUP(AU50,Lookups!$A$97:$B$98,2,FALSE)),$I$10,IF(VLOOKUP(AV50,Lookups!$A$97:$B$98,2,FALSE)>VLOOKUP(AU50,Lookups!$A$97:$B$98,2,FALSE),$I$11,""))))) -> 0
C51: Display Screen/Panel Technology | D51: 2.0% | F51: VA LCD | G51: IPS LCD | I51: =IF(H51="",$I$7,IF(VLOOKUP(H51,Lookups!$A$86:$B$89,2,FALSE)<VLOOKUP(F51,Lookups!$A$86:$B$89,2,FALSE),$I$8,IF(AND(VLOOKUP(H51,Lookups!$A$86:$B$89,2,FALSE)>=VLOOKUP(F51,Lookups!$A$86:$B$89,2,FALSE),VLOOKUP(H51,Lookups!$A$86:$B$89,2,FALSE)<0.8*VLOOKUP(G51,Lookups!$A$86:$B$89,2,FALSE)),$I$9,IF(AND(VLOOKUP(H51,Lookups!$A$86:$B$89,2,FALSE)<=VLOOKUP(G51,Lookups!$A$86:$B$89,2,FALSE),VLOOKUP(H51,Lookups!$A$86:$B$89,2,FALSE)>=0.8*VLOOKUP(G51,Lookups!$A$86:$B$89,2,FALSE)),$I$10,IF(VLOOKUP(H51,Lookups!$A$86:$B$89,2,FALSE)>VLOOKUP(G51,Lookups!$A$86:$B$89,2,FALSE),$I$11,""))))) -> 0 | K51: VA LCD | L51: IPS LCD | N51: =IF(M51="",$I$7,IF(VLOOKUP(M51,Lookups!$A$86:$B$89,2,FALSE)<VLOOKUP(K51,Lookups!$A$86:$B$89,2,FALSE),$I$8,IF(AND(VLOOKUP(M51,Lookups!$A$86:$B$89,2,FALSE)>=VLOOKUP(K51,Lookups!$A$86:$B$89,2,FALSE),VLOOKUP(M51,Lookups!$A$86:$B$89,2,FALSE)<0.8*VLOOKUP(L51,Lookups!$A$86:$B$89,2,FALSE)),$I$9,IF(AND(VLOOKUP(M51,Lookups!$A$86:$B$89,2,FALSE)<=VLOOKUP(L51,Lookups!$A$86:$B$89,2,FALSE),VLOOKUP(M51,Lookups!$A$86:$B$89,2,FALSE)>=0.8*VLOOKUP(L51,Lookups!$A$86:$B$89,2,FALSE)),$I$10,IF(VLOOKUP(M51,Lookups!$A$86:$B$89,2,FALSE)>VLOOKUP(L51,Lookups!$A$86:$B$89,2,FALSE),$I$11,""))))) -> 0 | P51: VA LCD | Q51: IPS LCD | S51: =IF(R51="",$I$7,IF(VLOOKUP(R51,Lookups!$A$86:$B$89,2,FALSE)<VLOOKUP(P51,Lookups!$A$86:$B$89,2,FALSE),$I$8,IF(AND(VLOOKUP(R51,Lookups!$A$86:$B$89,2,FALSE)>=VLOOKUP(P51,Lookups!$A$86:$B$89,2,FALSE),VLOOKUP(R51,Lookups!$A$86:$B$89,2,FALSE)<0.8*VLOOKUP(Q51,Lookups!$A$86:$B$89,2,FALSE)),$I$9,IF(AND(VLOOKUP(R51,Lookups!$A$86:$B$89,2,FALSE)<=VLOOKUP(Q51,Lookups!$A$86:$B$89,2,FALSE),VLOOKUP(R51,Lookups!$A$86:$B$89,2,FALSE)>=0.8*VLOOKUP(Q51,Lookups!$A$86:$B$89,2,FALSE)),$I$10,IF(VLOOKUP(R51,Lookups!$A$86:$B$89,2,FALSE)>VLOOKUP(Q51,Lookups!$A$86:$B$89,2,FALSE),$I$11,""))))) -> 0 | U51: VA LCD | V51: IPS LCD | X51: =IF(W51="",$I$7,IF(VLOOKUP(W51,Lookups!$A$86:$B$89,2,FALSE)<VLOOKUP(U51,Lookups!$A$86:$B$89,2,FALSE),$I$8,IF(AND(VLOOKUP(W51,Lookups!$A$86:$B$89,2,FALSE)>=VLOOKUP(U51,Lookups!$A$86:$B$89,2,FALSE),VLOOKUP(W51,Lookups!$A$86:$B$89,2,FALSE)<0.8*VLOOKUP(V51,Lookups!$A$86:$B$89,2,FALSE)),$I$9,IF(AND(VLOOKUP(W51,Lookups!$A$86:$B$89,2,FALSE)<=VLOOKUP(V51,Lookups!$A$86:$B$89,2,FALSE),VLOOKUP(W51,Lookups!$A$86:$B$89,2,FALSE)>=0.8*VLOOKUP(V51,Lookups!$A$86:$B$89,2,FALSE)),$I$10,IF(VLOOKUP(W51,Lookups!$A$86:$B$89,2,FALSE)>VLOOKUP(V51,Lookups!$A$86:$B$89,2,FALSE),$I$11,""))))) -> 0 | Z51: VA LCD | AA51: IPS LCD | AC51: =IF(AB51="",$I$7,IF(VLOOKUP(AB51,Lookups!$A$86:$B$89,2,FALSE)<VLOOKUP(Z51,Lookups!$A$86:$B$89,2,FALSE),$I$8,IF(AND(VLOOKUP(AB51,Lookups!$A$86:$B$89,2,FALSE)>=VLOOKUP(Z51,Lookups!$A$86:$B$89,2,FALSE),VLOOKUP(AB51,Lookups!$A$86:$B$89,2,FALSE)<0.8*VLOOKUP(AA51,Lookups!$A$86:$B$89,2,FALSE)),$I$9,IF(AND(VLOOKUP(AB51,Lookups!$A$86:$B$89,2,FALSE)<=VLOOKUP(AA51,Lookups!$A$86:$B$89,2,FALSE),VLOOKUP(AB51,Lookups!$A$86:$B$89,2,FALSE)>=0.8*VLOOKUP(AA51,Lookups!$A$86:$B$89,2,FALSE)),$I$10,IF(VLOOKUP(AB51,Lookups!$A$86:$B$89,2,FALSE)>VLOOKUP(AA51,Lookups!$A$86:$B$89,2,FALSE),$I$11,""))))) -> 0 | AG51: Display Screen/Panel Technology | AH51: 2.0% | AJ51: VA LCD | AK51: IPS LCD | AM51: =IF(AL51="",$I$7,IF(VLOOKUP(AL51,Lookups!$A$86:$B$89,2,FALSE)<VLOOKUP(AJ51,Lookups!$A$86:$B$89,2,FALSE),$I$8,IF(AND(VLOOKUP(AL51,Lookups!$A$86:$B$89,2,FALSE)>=VLOOKUP(AJ51,Lookups!$A$86:$B$89,2,FALSE),VLOOKUP(AL51,Lookups!$A$86:$B$89,2,FALSE)<0.8*VLOOKUP(AK51,Lookups!$A$86:$B$89,2,FALSE)),$I$9,IF(AND(VLOOKUP(AL51,Lookups!$A$86:$B$89,2,FALSE)<=VLOOKUP(AK51,Lookups!$A$86:$B$89,2,FALSE),VLOOKUP(AL51,Lookups!$A$86:$B$89,2,FALSE)>=0.8*VLOOKUP(AK51,Lookups!$A$86:$B$89,2,FALSE)),$I$10,IF(VLOOKUP(AL51,Lookups!$A$86:$B$89,2,FALSE)>VLOOKUP(AK51,Lookups!$A$86:$B$89,2,FALSE),$I$11,""))))) -> 0 | AO51: VA LCD | AP51: IPS LCD | AR51: =IF(AQ51="",$I$7,IF(VLOOKUP(AQ51,Lookups!$A$86:$B$89,2,FALSE)<VLOOKUP(AO51,Lookups!$A$86:$B$89,2,FALSE),$I$8,IF(AND(VLOOKUP(AQ51,Lookups!$A$86:$B$89,2,FALSE)>=VLOOKUP(AO51,Lookups!$A$86:$B$89,2,FALSE),VLOOKUP(AQ51,Lookups!$A$86:$B$89,2,FALSE)<0.8*VLOOKUP(AP51,Lookups!$A$86:$B$89,2,FALSE)),$I$9,IF(AND(VLOOKUP(AQ51,Lookups!$A$86:$B$89,2,FALSE)<=VLOOKUP(AP51,Lookups!$A$86:$B$89,2,FALSE),VLOOKUP(AQ51,Lookups!$A$86:$B$89,2,FALSE)>=0.8*VLOOKUP(AP51,Lookups!$A$86:$B$89,2,FALSE)),$I$10,IF(VLOOKUP(AQ51,Lookups!$A$86:$B$89,2,FALSE)>VLOOKUP(AP51,Lookups!$A$86:$B$89,2,FALSE),$I$11,""))))) -> 0 | AT51: IPS LCD | AU51: IPS LCD | AW51: =IF(AV51="",$I$7,IF(VLOOKUP(AV51,Lookups!$A$86:$B$89,2,FALSE)<VLOOKUP(AT51,Lookups!$A$86:$B$89,2,FALSE),$I$8,IF(AND(VLOOKUP(AV51,Lookups!$A$86:$B$89,2,FALSE)>=VLOOKUP(AT51,Lookups!$A$86:$B$89,2,FALSE),VLOOKUP(AV51,Lookups!$A$86:$B$89,2,FALSE)<0.8*VLOOKUP(AU51,Lookups!$A$86:$B$89,2,FALSE)),$I$9,IF(AND(VLOOKUP(AV51,Lookups!$A$86:$B$89,2,FALSE)<=VLOOKUP(AU51,Lookups!$A$86:$B$89,2,FALSE),VLOOKUP(AV51,Lookups!$A$86:$B$89,2,FALSE)>=0.8*VLOOKUP(AU51,Lookups!$A$86:$B$89,2,FALSE)),$I$10,IF(VLOOKUP(AV51,Lookups!$A$86:$B$89,2,FALSE)>VLOOKUP(AU51,Lookups!$A$86:$B$89,2,FALSE),$I$11,""))))) -> 0
C52: Touch Screen Capability and Type | D52: 1.0% | F52: No | G52: Yes - Capacitive Touch Display | I52: =IF(H52="",$I$7,IF(VLOOKUP(H52,Lookups!$A$101:$B$103,2,FALSE)<VLOOKUP(F52,Lookups!$A$101:$B$103,2,FALSE),$I$8,IF(AND(VLOOKUP(H52,Lookups!$A$101:$B$103,2,FALSE)>=VLOOKUP(F52,Lookups!$A$101:$B$103,2,FALSE),VLOOKUP(H52,Lookups!$A$101:$B$103,2,FALSE)<0.8*VLOOKUP(G52,Lookups!$A$101:$B$103,2,FALSE)),$I$9,IF(AND(VLOOKUP(H52,Lookups!$A$101:$B$103,2,FALSE)<=VLOOKUP(G52,Lookups!$A$101:$B$103,2,FALSE),VLOOKUP(H52,Lookups!$A$101:$B$103,2,FALSE)>=0.8*VLOOKUP(G52,Lookups!$A$101:$B$103,2,FALSE)),$I$10,IF(VLOOKUP(H52,Lookups!$A$101:$B$103,2,FALSE)>VLOOKUP(G52,Lookups!$A$101:$B$103,2,FALSE),$I$11,""))))) -> 0 | K52: No | L52: No | N52: =IF(M52="",$I$7,IF(VLOOKUP(M52,Lookups!$A$101:$B$103,2,FALSE)<VLOOKUP(K52,Lookups!$A$101:$B$103,2,FALSE),$I$8,IF(AND(VLOOKUP(M52,Lookups!$A$101:$B$103,2,FALSE)>=VLOOKUP(K52,Lookups!$A$101:$B$103,2,FALSE),VLOOKUP(M52,Lookups!$A$101:$B$103,2,FALSE)<0.8*VLOOKUP(L52,Lookups!$A$101:$B$103,2,FALSE)),$I$9,IF(AND(VLOOKUP(M52,Lookups!$A$101:$B$103,2,FALSE)<=VLOOKUP(L52,Lookups!$A$101:$B$103,2,FALSE),VLOOKUP(M52,Lookups!$A$101:$B$103,2,FALSE)>=0.8*VLOOKUP(L52,Lookups!$A$101:$B$103,2,FALSE)),$I$10,IF(VLOOKUP(M52,Lookups!$A$101:$B$103,2,FALSE)>VLOOKUP(L52,Lookups!$A$101:$B$103,2,FALSE),$I$11,""))))) -> 0 | P52: No | Q52: Yes - Capacitive Touch Display | S52: =IF(R52="",$I$7,IF(VLOOKUP(R52,Lookups!$A$101:$B$103,2,FALSE)<VLOOKUP(P52,Lookups!$A$101:$B$103,2,FALSE),$I$8,IF(AND(VLOOKUP(R52,Lookups!$A$101:$B$103,2,FALSE)>=VLOOKUP(P52,Lookups!$A$101:$B$103,2,FALSE),VLOOKUP(R52,Lookups!$A$101:$B$103,2,FALSE)<0.8*VLOOKUP(Q52,Lookups!$A$101:$B$103,2,FALSE)),$I$9,IF(AND(VLOOKUP(R52,Lookups!$A$101:$B$103,2,FALSE)<=VLOOKUP(Q52,Lookups!$A$101:$B$103,2,FALSE),VLOOKUP(R52,Lookups!$A$101:$B$103,2,FALSE)>=0.8*VLOOKUP(Q52,Lookups!$A$101:$B$103,2,FALSE)),$I$10,IF(VLOOKUP(R52,Lookups!$A$101:$B$103,2,FALSE)>VLOOKUP(Q52,Lookups!$A$101:$B$103,2,FALSE),$I$11,""))))) -> 0 | U52: No | V52: Yes - Capacitive Touch Display | X52: =IF(W52="",$I$7,IF(VLOOKUP(W52,Lookups!$A$101:$B$103,2,FALSE)<VLOOKUP(U52,Lookups!$A$101:$B$103,2,FALSE),$I$8,IF(AND(VLOOKUP(W52,Lookups!$A$101:$B$103,2,FALSE)>=VLOOKUP(U52,Lookups!$A$101:$B$103,2,FALSE),VLOOKUP(W52,Lookups!$A$101:$B$103,2,FALSE)<0.8*VLOOKUP(V52,Lookups!$A$101:$B$103,2,FALSE)),$I$9,IF(AND(VLOOKUP(W52,Lookups!$A$101:$B$103,2,FALSE)<=VLOOKUP(V52,Lookups!$A$101:$B$103,2,FALSE),VLOOKUP(W52,Lookups!$A$101:$B$103,2,FALSE)>=0.8*VLOOKUP(V52,Lookups!$A$101:$B$103,2,FALSE)),$I$10,IF(VLOOKUP(W52,Lookups!$A$101:$B$103,2,FALSE)>VLOOKUP(V52,Lookups!$A$101:$B$103,2,FALSE),$I$11,""))))) -> 0 | Z52: No | AA52: Yes - Capacitive Touch Display | AC52: =IF(AB52="",$I$7,IF(VLOOKUP(AB52,Lookups!$A$101:$B$103,2,FALSE)<VLOOKUP(Z52,Lookups!$A$101:$B$103,2,FALSE),$I$8,IF(AND(VLOOKUP(AB52,Lookups!$A$101:$B$103,2,FALSE)>=VLOOKUP(Z52,Lookups!$A$101:$B$103,2,FALSE),VLOOKUP(AB52,Lookups!$A$101:$B$103,2,FALSE)<0.8*VLOOKUP(AA52,Lookups!$A$101:$B$103,2,FALSE)),$I$9,IF(AND(VLOOKUP(AB52,Lookups!$A$101:$B$103,2,FALSE)<=VLOOKUP(AA52,Lookups!$A$101:$B$103,2,FALSE),VLOOKUP(AB52,Lookups!$A$101:$B$103,2,FALSE)>=0.8*VLOOKUP(AA52,Lookups!$A$101:$B$103,2,FALSE)),$I$10,IF(VLOOKUP(AB52,Lookups!$A$101:$B$103,2,FALSE)>VLOOKUP(AA52,Lookups!$A$101:$B$103,2,FALSE),$I$11,""))))) -> 0 | AG52: Touch Screen Capability and Type | AH52: 1.0% | AJ52: No | AK52: No | AM52: =IF(AL52="",$I$7,IF(VLOOKUP(AL52,Lookups!$A$101:$B$103,2,FALSE)<VLOOKUP(AJ52,Lookups!$A$101:$B$103,2,FALSE),$I$8,IF(AND(VLOOKUP(AL52,Lookups!$A$101:$B$103,2,FALSE)>=VLOOKUP(AJ52,Lookups!$A$101:$B$103,2,FALSE),VLOOKUP(AL52,Lookups!$A$101:$B$103,2,FALSE)<0.8*VLOOKUP(AK52,Lookups!$A$101:$B$103,2,FALSE)),$I$9,IF(AND(VLOOKUP(AL52,Lookups!$A$101:$B$103,2,FALSE)<=VLOOKUP(AK52,Lookups!$A$101:$B$103,2,FALSE),VLOOKUP(AL52,Lookups!$A$101:$B$103,2,FALSE)>=0.8*VLOOKUP(AK52,Lookups!$A$101:$B$103,2,FALSE)),$I$10,IF(VLOOKUP(AL52,Lookups!$A$101:$B$103,2,FALSE)>VLOOKUP(AK52,Lookups!$A$101:$B$103,2,FALSE),$I$11,""))))) -> 0 | AO52: No | AP52: No | AR52: =IF(AQ52="",$I$7,IF(VLOOKUP(AQ52,Lookups!$A$101:$B$103,2,FALSE)<VLOOKUP(AO52,Lookups!$A$101:$B$103,2,FALSE),$I$8,IF(AND(VLOOKUP(AQ52,Lookups!$A$101:$B$103,2,FALSE)>=VLOOKUP(AO52,Lookups!$A$101:$B$103,2,FALSE),VLOOKUP(AQ52,Lookups!$A$101:$B$103,2,FALSE)<0.8*VLOOKUP(AP52,Lookups!$A$101:$B$103,2,FALSE)),$I$9,IF(AND(VLOOKUP(AQ52,Lookups!$A$101:$B$103,2,FALSE)<=VLOOKUP(AP52,Lookups!$A$101:$B$103,2,FALSE),VLOOKUP(AQ52,Lookups!$A$101:$B$103,2,FALSE)>=0.8*VLOOKUP(AP52,Lookups!$A$101:$B$103,2,FALSE)),$I$10,IF(VLOOKUP(AQ52,Lookups!$A$101:$B$103,2,FALSE)>VLOOKUP(AP52,Lookups!$A$101:$B$103,2,FALSE),$I$11,""))))) -> 0 | AT52: No | AU52: No | AW52: =IF(AV52="",$I$7,IF(VLOOKUP(AV52,Lookups!$A$101:$B$103,2,FALSE)<VLOOKUP(AT52,Lookups!$A$101:$B$103,2,FALSE),$I$8,IF(AND(VLOOKUP(AV52,Lookups!$A$101:$B$103,2,FALSE)>=VLOOKUP(AT52,Lookups!$A$101:$B$103,2,FALSE),VLOOKUP(AV52,Lookups!$A$101:$B$103,2,FALSE)<0.8*VLOOKUP(AU52,Lookups!$A$101:$B$103,2,FALSE)),$I$9,IF(AND(VLOOKUP(AV52,Lookups!$A$101:$B$103,2,FALSE)<=VLOOKUP(AU52,Lookups!$A$101:$B$103,2,FALSE),VLOOKUP(AV52,Lookups!$A$101:$B$103,2,FALSE)>=0.8*VLOOKUP(AU52,Lookups!$A$101:$B$103,2,FALSE)),$I$10,IF(VLOOKUP(AV52,Lookups!$A$101:$B$103,2,FALSE)>VLOOKUP(AU52,Lookups!$A$101:$B$103,2,FALSE),$I$11,""))))) -> 0
C53: Pen/Stylus capability | D53: 0.5% | F53: No | G53: Yes - Active | I53: =IF(H53="",$I$7,IF(VLOOKUP(H53,Lookups!$A$21:$B$23,2,FALSE)<VLOOKUP(F53,Lookups!$A$21:$B$23,2,FALSE),$I$8,IF(AND(VLOOKUP(H53,Lookups!$A$21:$B$23,2,FALSE)>=VLOOKUP(F53,Lookups!$A$21:$B$23,2,FALSE),VLOOKUP(H53,Lookups!$A$21:$B$23,2,FALSE)<0.8*VLOOKUP(G53,Lookups!$A$21:$B$23,2,FALSE)),$I$9,IF(AND(VLOOKUP(H53,Lookups!$A$21:$B$23,2,FALSE)<=VLOOKUP(G53,Lookups!$A$21:$B$23,2,FALSE),VLOOKUP(H53,Lookups!$A$21:$B$23,2,FALSE)>=0.8*VLOOKUP(G53,Lookups!$A$21:$B$23,2,FALSE)),$I$10,IF(VLOOKUP(H53,Lookups!$A$21:$B$23,2,FALSE)>VLOOKUP(G53,Lookups!$A$21:$B$23,2,FALSE),$I$11,""))))) -> 0 | K53: No | L53: No | N53: =IF(M53="",$I$7,IF(VLOOKUP(M53,Lookups!$A$21:$B$23,2,FALSE)<VLOOKUP(K53,Lookups!$A$21:$B$23,2,FALSE),$I$8,IF(AND(VLOOKUP(M53,Lookups!$A$21:$B$23,2,FALSE)>=VLOOKUP(K53,Lookups!$A$21:$B$23,2,FALSE),VLOOKUP(M53,Lookups!$A$21:$B$23,2,FALSE)<0.8*VLOOKUP(L53,Lookups!$A$21:$B$23,2,FALSE)),$I$9,IF(AND(VLOOKUP(M53,Lookups!$A$21:$B$23,2,FALSE)<=VLOOKUP(L53,Lookups!$A$21:$B$23,2,FALSE),VLOOKUP(M53,Lookups!$A$21:$B$23,2,FALSE)>=0.8*VLOOKUP(L53,Lookups!$A$21:$B$23,2,FALSE)),$I$10,IF(VLOOKUP(M53,Lookups!$A$21:$B$23,2,FALSE)>VLOOKUP(L53,Lookups!$A$21:$B$23,2,FALSE),$I$11,""))))) -> 0 | P53: No | Q53: Yes - Active | S53: =IF(R53="",$I$7,IF(VLOOKUP(R53,Lookups!$A$21:$B$23,2,FALSE)<VLOOKUP(P53,Lookups!$A$21:$B$23,2,FALSE),$I$8,IF(AND(VLOOKUP(R53,Lookups!$A$21:$B$23,2,FALSE)>=VLOOKUP(P53,Lookups!$A$21:$B$23,2,FALSE),VLOOKUP(R53,Lookups!$A$21:$B$23,2,FALSE)<0.8*VLOOKUP(Q53,Lookups!$A$21:$B$23,2,FALSE)),$I$9,IF(AND(VLOOKUP(R53,Lookups!$A$21:$B$23,2,FALSE)<=VLOOKUP(Q53,Lookups!$A$21:$B$23,2,FALSE),VLOOKUP(R53,Lookups!$A$21:$B$23,2,FALSE)>=0.8*VLOOKUP(Q53,Lookups!$A$21:$B$23,2,FALSE)),$I$10,IF(VLOOKUP(R53,Lookups!$A$21:$B$23,2,FALSE)>VLOOKUP(Q53,Lookups!$A$21:$B$23,2,FALSE),$I$11,""))))) -> 0 | U53: No | V53: Yes - Active | X53: =IF(W53="",$I$7,IF(VLOOKUP(W53,Lookups!$A$21:$B$23,2,FALSE)<VLOOKUP(U53,Lookups!$A$21:$B$23,2,FALSE),$I$8,IF(AND(VLOOKUP(W53,Lookups!$A$21:$B$23,2,FALSE)>=VLOOKUP(U53,Lookups!$A$21:$B$23,2,FALSE),VLOOKUP(W53,Lookups!$A$21:$B$23,2,FALSE)<0.8*VLOOKUP(V53,Lookups!$A$21:$B$23,2,FALSE)),$I$9,IF(AND(VLOOKUP(W53,Lookups!$A$21:$B$23,2,FALSE)<=VLOOKUP(V53,Lookups!$A$21:$B$23,2,FALSE),VLOOKUP(W53,Lookups!$A$21:$B$23,2,FALSE)>=0.8*VLOOKUP(V53,Lookups!$A$21:$B$23,2,FALSE)),$I$10,IF(VLOOKUP(W53,Lookups!$A$21:$B$23,2,FALSE)>VLOOKUP(V53,Lookups!$A$21:$B$23,2,FALSE),$I$11,""))))) -> 0 | Z53: No | AA53: Yes - Active | AC53: =IF(AB53="",$I$7,IF(VLOOKUP(AB53,Lookups!$A$21:$B$23,2,FALSE)<VLOOKUP(Z53,Lookups!$A$21:$B$23,2,FALSE),$I$8,IF(AND(VLOOKUP(AB53,Lookups!$A$21:$B$23,2,FALSE)>=VLOOKUP(Z53,Lookups!$A$21:$B$23,2,FALSE),VLOOKUP(AB53,Lookups!$A$21:$B$23,2,FALSE)<0.8*VLOOKUP(AA53,Lookups!$A$21:$B$23,2,FALSE)),$I$9,IF(AND(VLOOKUP(AB53,Lookups!$A$21:$B$23,2,FALSE)<=VLOOKUP(AA53,Lookups!$A$21:$B$23,2,FALSE),VLOOKUP(AB53,Lookups!$A$21:$B$23,2,FALSE)>=0.8*VLOOKUP(AA53,Lookups!$A$21:$B$23,2,FALSE)),$I$10,IF(VLOOKUP(AB53,Lookups!$A$21:$B$23,2,FALSE)>VLOOKUP(AA53,Lookups!$A$21:$B$23,2,FALSE),$I$11,""))))) -> 0 | AG53: Pen/Stylus capability | AH53: 0.5% | AJ53: No | AK53: No | AM53: =IF(AL53="",$I$7,IF(VLOOKUP(AL53,Lookups!$A$21:$B$23,2,FALSE)<VLOOKUP(AJ53,Lookups!$A$21:$B$23,2,FALSE),$I$8,IF(AND(VLOOKUP(AL53,Lookups!$A$21:$B$23,2,FALSE)>=VLOOKUP(AJ53,Lookups!$A$21:$B$23,2,FALSE),VLOOKUP(AL53,Lookups!$A$21:$B$23,2,FALSE)<0.8*VLOOKUP(AK53,Lookups!$A$21:$B$23,2,FALSE)),$I$9,IF(AND(VLOOKUP(AL53,Lookups!$A$21:$B$23,2,FALSE)<=VLOOKUP(AK53,Lookups!$A$21:$B$23,2,FALSE),VLOOKUP(AL53,Lookups!$A$21:$B$23,2,FALSE)>=0.8*VLOOKUP(AK53,Lookups!$A$21:$B$23,2,FALSE)),$I$10,IF(VLOOKUP(AL53,Lookups!$A$21:$B$23,2,FALSE)>VLOOKUP(AK53,Lookups!$A$21:$B$23,2,FALSE),$I$11,""))))) -> 0 | AO53: No | AP53: No | AR53: =IF(AQ53="",$I$7,IF(VLOOKUP(AQ53,Lookups!$A$21:$B$23,2,FALSE)<VLOOKUP(AO53,Lookups!$A$21:$B$23,2,FALSE),$I$8,IF(AND(VLOOKUP(AQ53,Lookups!$A$21:$B$23,2,FALSE)>=VLOOKUP(AO53,Lookups!$A$21:$B$23,2,FALSE),VLOOKUP(AQ53,Lookups!$A$21:$B$23,2,FALSE)<0.8*VLOOKUP(AP53,Lookups!$A$21:$B$23,2,FALSE)),$I$9,IF(AND(VLOOKUP(AQ53,Lookups!$A$21:$B$23,2,FALSE)<=VLOOKUP(AP53,Lookups!$A$21:$B$23,2,FALSE),VLOOKUP(AQ53,Lookups!$A$21:$B$23,2,FALSE)>=0.8*VLOOKUP(AP53,Lookups!$A$21:$B$23,2,FALSE)),$I$10,IF(VLOOKUP(AQ53,Lookups!$A$21:$B$23,2,FALSE)>VLOOKUP(AP53,Lookups!$A$21:$B$23,2,FALSE),$I$11,""))))) -> 0 | AT53: No | AU53: No | AW53: =IF(AV53="",$I$7,IF(VLOOKUP(AV53,Lookups!$A$21:$B$23,2,FALSE)<VLOOKUP(AT53,Lookups!$A$21:$B$23,2,FALSE),$I$8,IF(AND(VLOOKUP(AV53,Lookups!$A$21:$B$23,2,FALSE)>=VLOOKUP(AT53,Lookups!$A$21:$B$23,2,FALSE),VLOOKUP(AV53,Lookups!$A$21:$B$23,2,FALSE)<0.8*VLOOKUP(AU53,Lookups!$A$21:$B$23,2,FALSE)),$I$9,IF(AND(VLOOKUP(AV53,Lookups!$A$21:$B$23,2,FALSE)<=VLOOKUP(AU53,Lookups!$A$21:$B$23,2,FALSE),VLOOKUP(AV53,Lookups!$A$21:$B$23,2,FALSE)>=0.8*VLOOKUP(AU53,Lookups!$A$21:$B$23,2,FALSE)),$I$10,IF(VLOOKUP(AV53,Lookups!$A$21:$B$23,2,FALSE)>VLOOKUP(AU53,Lookups!$A$21:$B$23,2,FALSE),$I$11,""))))) -> 0
C54: Pen/Stylus Included | D54: 0.5% | F54: No | G54: Yes - Active | I54: =IF(H54="",$I$7,IF(VLOOKUP(H54,Lookups!$A$21:$B$23,2,FALSE)<VLOOKUP(F54,Lookups!$A$21:$B$23,2,FALSE),$I$8,IF(AND(VLOOKUP(H54,Lookups!$A$21:$B$23,2,FALSE)>=VLOOKUP(F54,Lookups!$A$21:$B$23,2,FALSE),VLOOKUP(H54,Lookups!$A$21:$B$23,2,FALSE)<0.8*VLOOKUP(G54,Lookups!$A$21:$B$23,2,FALSE)),$I$9,IF(AND(VLOOKUP(H54,Lookups!$A$21:$B$23,2,FALSE)<=VLOOKUP(G54,Lookups!$A$21:$B$23,2,FALSE),VLOOKUP(H54,Lookups!$A$21:$B$23,2,FALSE)>=0.8*VLOOKUP(G54,Lookups!$A$21:$B$23,2,FALSE)),$I$10,IF(VLOOKUP(H54,Lookups!$A$21:$B$23,2,FALSE)>VLOOKUP(G54,Lookups!$A$21:$B$23,2,FALSE),$I$11,""))))) -> 0 | K54: No | L54: No | N54: =IF(M54="",$I$7,IF(VLOOKUP(M54,Lookups!$A$21:$B$23,2,FALSE)<VLOOKUP(K54,Lookups!$A$21:$B$23,2,FALSE),$I$8,IF(AND(VLOOKUP(M54,Lookups!$A$21:$B$23,2,FALSE)>=VLOOKUP(K54,Lookups!$A$21:$B$23,2,FALSE),VLOOKUP(M54,Lookups!$A$21:$B$23,2,FALSE)<0.8*VLOOKUP(L54,Lookups!$A$21:$B$23,2,FALSE)),$I$9,IF(AND(VLOOKUP(M54,Lookups!$A$21:$B$23,2,FALSE)<=VLOOKUP(L54,Lookups!$A$21:$B$23,2,FALSE),VLOOKUP(M54,Lookups!$A$21:$B$23,2,FALSE)>=0.8*VLOOKUP(L54,Lookups!$A$21:$B$23,2,FALSE)),$I$10,IF(VLOOKUP(M54,Lookups!$A$21:$B$23,2,FALSE)>VLOOKUP(L54,Lookups!$A$21:$B$23,2,FALSE),$I$11,""))))) -> 0 | P54: No | Q54: Yes - Active | S54: =IF(R54="",$I$7,IF(VLOOKUP(R54,Lookups!$A$21:$B$23,2,FALSE)<VLOOKUP(P54,Lookups!$A$21:$B$23,2,FALSE),$I$8,IF(AND(VLOOKUP(R54,Lookups!$A$21:$B$23,2,FALSE)>=VLOOKUP(P54,Lookups!$A$21:$B$23,2,FALSE),VLOOKUP(R54,Lookups!$A$21:$B$23,2,FALSE)<0.8*VLOOKUP(Q54,Lookups!$A$21:$B$23,2,FALSE)),$I$9,IF(AND(VLOOKUP(R54,Lookups!$A$21:$B$23,2,FALSE)<=VLOOKUP(Q54,Lookups!$A$21:$B$23,2,FALSE),VLOOKUP(R54,Lookups!$A$21:$B$23,2,FALSE)>=0.8*VLOOKUP(Q54,Lookups!$A$21:$B$23,2,FALSE)),$I$10,IF(VLOOKUP(R54,Lookups!$A$21:$B$23,2,FALSE)>VLOOKUP(Q54,Lookups!$A$21:$B$23,2,FALSE),$I$11,""))))) -> 0 | U54: No | V54: Yes - Active | X54: =IF(W54="",$I$7,IF(VLOOKUP(W54,Lookups!$A$21:$B$23,2,FALSE)<VLOOKUP(U54,Lookups!$A$21:$B$23,2,FALSE),$I$8,IF(AND(VLOOKUP(W54,Lookups!$A$21:$B$23,2,FALSE)>=VLOOKUP(U54,Lookups!$A$21:$B$23,2,FALSE),VLOOKUP(W54,Lookups!$A$21:$B$23,2,FALSE)<0.8*VLOOKUP(V54,Lookups!$A$21:$B$23,2,FALSE)),$I$9,IF(AND(VLOOKUP(W54,Lookups!$A$21:$B$23,2,FALSE)<=VLOOKUP(V54,Lookups!$A$21:$B$23,2,FALSE),VLOOKUP(W54,Lookups!$A$21:$B$23,2,FALSE)>=0.8*VLOOKUP(V54,Lookups!$A$21:$B$23,2,FALSE)),$I$10,IF(VLOOKUP(W54,Lookups!$A$21:$B$23,2,FALSE)>VLOOKUP(V54,Lookups!$A$21:$B$23,2,FALSE),$I$11,""))))) -> 0 | Z54: No | AA54: Yes - Active | AC54: =IF(AB54="",$I$7,IF(VLOOKUP(AB54,Lookups!$A$21:$B$23,2,FALSE)<VLOOKUP(Z54,Lookups!$A$21:$B$23,2,FALSE),$I$8,IF(AND(VLOOKUP(AB54,Lookups!$A$21:$B$23,2,FALSE)>=VLOOKUP(Z54,Lookups!$A$21:$B$23,2,FALSE),VLOOKUP(AB54,Lookups!$A$21:$B$23,2,FALSE)<0.8*VLOOKUP(AA54,Lookups!$A$21:$B$23,2,FALSE)),$I$9,IF(AND(VLOOKUP(AB54,Lookups!$A$21:$B$23,2,FALSE)<=VLOOKUP(AA54,Lookups!$A$21:$B$23,2,FALSE),VLOOKUP(AB54,Lookups!$A$21:$B$23,2,FALSE)>=0.8*VLOOKUP(AA54,Lookups!$A$21:$B$23,2,FALSE)),$I$10,IF(VLOOKUP(AB54,Lookups!$A$21:$B$23,2,FALSE)>VLOOKUP(AA54,Lookups!$A$21:$B$23,2,FALSE),$I$11,""))))) -> 0 | AG54: Pen/Stylus Included | AH54: 0.5% | AJ54: No | AK54: No | AM54: =IF(AL54="",$I$7,IF(VLOOKUP(AL54,Lookups!$A$21:$B$23,2,FALSE)<VLOOKUP(AJ54,Lookups!$A$21:$B$23,2,FALSE),$I$8,IF(AND(VLOOKUP(AL54,Lookups!$A$21:$B$23,2,FALSE)>=VLOOKUP(AJ54,Lookups!$A$21:$B$23,2,FALSE),VLOOKUP(AL54,Lookups!$A$21:$B$23,2,FALSE)<0.8*VLOOKUP(AK54,Lookups!$A$21:$B$23,2,FALSE)),$I$9,IF(AND(VLOOKUP(AL54,Lookups!$A$21:$B$23,2,FALSE)<=VLOOKUP(AK54,Lookups!$A$21:$B$23,2,FALSE),VLOOKUP(AL54,Lookups!$A$21:$B$23,2,FALSE)>=0.8*VLOOKUP(AK54,Lookups!$A$21:$B$23,2,FALSE)),$I$10,IF(VLOOKUP(AL54,Lookups!$A$21:$B$23,2,FALSE)>VLOOKUP(AK54,Lookups!$A$21:$B$23,2,FALSE),$I$11,""))))) -> 0 | AO54: No | AP54: No | AR54: =IF(AQ54="",$I$7,IF(VLOOKUP(AQ54,Lookups!$A$21:$B$23,2,FALSE)<VLOOKUP(AO54,Lookups!$A$21:$B$23,2,FALSE),$I$8,IF(AND(VLOOKUP(AQ54,Lookups!$A$21:$B$23,2,FALSE)>=VLOOKUP(AO54,Lookups!$A$21:$B$23,2,FALSE),VLOOKUP(AQ54,Lookups!$A$21:$B$23,2,FALSE)<0.8*VLOOKUP(AP54,Lookups!$A$21:$B$23,2,FALSE)),$I$9,IF(AND(VLOOKUP(AQ54,Lookups!$A$21:$B$23,2,FALSE)<=VLOOKUP(AP54,Lookups!$A$21:$B$23,2,FALSE),VLOOKUP(AQ54,Lookups!$A$21:$B$23,2,FALSE)>=0.8*VLOOKUP(AP54,Lookups!$A$21:$B$23,2,FALSE)),$I$10,IF(VLOOKUP(AQ54,Lookups!$A$21:$B$23,2,FALSE)>VLOOKUP(AP54,Lookups!$A$21:$B$23,2,FALSE),$I$11,""))))) -> 0 | AT54: No | AU54: No | AW54: =IF(AV54="",$I$7,IF(VLOOKUP(AV54,Lookups!$A$21:$B$23,2,FALSE)<VLOOKUP(AT54,Lookups!$A$21:$B$23,2,FALSE),$I$8,IF(AND(VLOOKUP(AV54,Lookups!$A$21:$B$23,2,FALSE)>=VLOOKUP(AT54,Lookups!$A$21:$B$23,2,FALSE),VLOOKUP(AV54,Lookups!$A$21:$B$23,2,FALSE)<0.8*VLOOKUP(AU54,Lookups!$A$21:$B$23,2,FALSE)),$I$9,IF(AND(VLOOKUP(AV54,Lookups!$A$21:$B$23,2,FALSE)<=VLOOKUP(AU54,Lookups!$A$21:$B$23,2,FALSE),VLOOKUP(AV54,Lookups!$A$21:$B$23,2,FALSE)>=0.8*VLOOKUP(AU54,Lookups!$A$21:$B$23,2,FALSE)),$I$10,IF(VLOOKUP(AV54,Lookups!$A$21:$B$23,2,FALSE)>VLOOKUP(AU54,Lookups!$A$21:$B$23,2,FALSE),$I$11,""))))) -> 0
A55: =SUM(D55:D57) -> 4% | B55: Video Out | C55: HDMI 2 | D55: 2.0% | F55: 1 | G55: 1 | I55: =IF(H55="",$I$7,IF(H55<F55,$I$8,IF(AND(H55>=F55,OR(G55="",H55<G55)),$I$9,IF(H55=G55,$I$10,IF(H55>G55,$I$11,""))))) -> 0 | K55: 1 | L55: 1 | N55: =IF(M55="",$I$7,IF(M55<K55,$I$8,IF(AND(M55>=K55,OR(L55="",M55<L55)),$I$9,IF(M55=L55,$I$10,IF(M55>L55,$I$11,""))))) -> 0 | P55: 1 | Q55: 1 | S55: =IF(R55="",$I$7,IF(R55<P55,$I$8,IF(AND(R55>=P55,OR(Q55="",R55<Q55)),$I$9,IF(R55=Q55,$I$10,IF(R55>Q55,$I$11,""))))) -> 0 | U55: 1 | V55: 1 | X55: =IF(W55="",$I$7,IF(W55<U55,$I$8,IF(AND(W55>=U55,OR(V55="",W55<V55)),$I$9,IF(W55=V55,$I$10,IF(W55>V55,$I$11,""))))) -> 0 | Z55: 1 | AA55: 1 | AC55: =IF(AB55="",$I$7,IF(AB55<Z55,$I$8,IF(AND(AB55>=Z55,OR(AA55="",AB55<AA55)),$I$9,IF(AB55=AA55,$I$10,IF(AB55>AA55,$I$11,""))))) -> 0 | AE55: =SUM(AH55:AH57) -> 4% | AF55: Video Out | AG55: HDMI 2 | AH55: 2.0% | AJ55: 2 | AK55: 4 | AM55: =IF(AL55="",$I$7,IF(AL55<AJ55,$I$8,IF(AND(AL55>=AJ55,OR(AK55="",AL55<AK55)),$I$9,IF(AL55=AK55,$I$10,IF(AL55>AK55,$I$11,""))))) -> 0 | AO55: 2 | AP55: 4 | AR55: =IF(AQ55="",$I$7,IF(AQ55<AO55,$I$8,IF(AND(AQ55>=AO55,OR(AP55="",AQ55<AP55)),$I$9,IF(AQ55=AP55,$I$10,IF(AQ55>AP55,$I$11,""))))) -> 0 | AT55: 4 | AU55: 6 | AW55: =IF(AV55="",$I$7,IF(AV55<AT55,$I$8,IF(AND(AV55>=AT55,OR(AU55="",AV55<AU55)),$I$9,IF(AV55=AU55,$I$10,IF(AV55>AU55,$I$11,""))))) -> 0
B56: Internal or via included adapter | C56: DisplayPort 1.4 (mini or std) | D56: 1.5% | G56: 1 | I56: 0 | L56: 1 | N56: 0 | Q56: 1 | S56: 0 | V56: 1 | X56: 0 | AA56: 1 | AC56: 0 | AF56: Internal or via included adapter | AG56: DisplayPort 1.4 (mini or std) | AH56: 1.5% | AK56: 1 | AM56: 0 | AP56: 1 | AR56: 0 | AT56: 2 | AU56: 4 | AW56: 0
C57: VGA | D57: 0.5% | F57: 1 | G57: 1 | I57: 0 | K57: 1 | L57: 1 | N57: 0 | P57: 1 | Q57: 1 | S57: 0 | U57: 1 | V57: 1 | X57: 0 | Z57: 1 | AA57: 1 | AC57: 0 | AG57: VGA | AH57: 0.5% | AM57: 0 | AR57: 0 | AW57: 0
A58: =SUM(D58:D60) -> 4% | B58: Number of USB Ports | C58: USB 2 | D58: 0.0% | I58: 0 | N58: 0 | S58: 0 | X58: 0 | AC58: 0 | AE58: =SUM(AH58:AH60) -> 4% | AF58: Number of USB Ports | AG58: USB 2 | AH58: 0.0% | AM58: 0 | AR58: 0 | AW58: 0
C59: USB 3 Gen 1 and 2 | D59: 2.0% | F59: 1 | G59: 2 | I59: 0 | K59: 1 | L59: 2 | N59: 0 | P59: 2 | Q59: 3 | S59: 0 | U59: 1 | V59: 2 | X59: 0 | Z59: 1 | AA59: 2 | AC59: 0 | AG59: USB 3 Gen 1 and 2 | AH59: 2.0% | AJ59: 2 | AK59: 4 | AM59: 0 | AO59: 4 | AP59: 6 | AR59: 0 | AT59: 6 | AU59: 10 | AW59: 0
C60: USB type C | D60: 2.0% | G60: 1 | I60: 0 | L60: 1 | N60: 0 | P60: 1 | Q60: 2 | S60: 0 | V60: 1 | X60: 0 | AA60: 1 | AC60: 0 | AG60: USB type C | AH60: 2.0% | AJ60: 1 | AK60: 2 | AM60: 0 | AO60: 1 | AP60: 2 | AR60: 0 | AT60: 2 | AU60: 4 | AW60: 0
A61: =SUM(D61:D66) -> 8% | B61: Connectivity | C61: Line in/out/mic/headphone | D61: 1.0% | F61: Yes | G61: Yes | I61: =IF(H61="",$I$7,IF(VLOOKUP(H61,Lookups!$A$31:$B$33,2,FALSE)<VLOOKUP(F61,Lookups!$A$31:$B$33,2,FALSE),$I$8,IF(AND(VLOOKUP(H61,Lookups!$A$31:$B$33,2,FALSE)>=VLOOKUP(F61,Lookups!$A$31:$B$33,2,FALSE),VLOOKUP(H61,Lookups!$A$31:$B$33,2,FALSE)<0.8*VLOOKUP(G61,Lookups!$A$31:$B$33,2,FALSE)),$I$9,IF(AND(VLOOKUP(H61,Lookups!$A$31:$B$33,2,FALSE)<=VLOOKUP(G61,Lookups!$A$31:$B$33,2,FALSE),VLOOKUP(H61,Lookups!$A$31:$B$33,2,FALSE)>=0.8*VLOOKUP(G61,Lookups!$A$31:$B$33,2,FALSE)),$I$10,IF(VLOOKUP(H61,Lookups!$A$31:$B$33,2,FALSE)>VLOOKUP(G61,Lookups!$A$31:$B$33,2,FALSE),$I$11,""))))) -> 0 | K61: Yes | L61: Yes | N61: =IF(M61="",$I$7,IF(VLOOKUP(M61,Lookups!$A$31:$B$33,2,FALSE)<VLOOKUP(K61,Lookups!$A$31:$B$33,2,FALSE),$I$8,IF(AND(VLOOKUP(M61,Lookups!$A$31:$B$33,2,FALSE)>=VLOOKUP(K61,Lookups!$A$31:$B$33,2,FALSE),VLOOKUP(M61,Lookups!$A$31:$B$33,2,FALSE)<0.8*VLOOKUP(L61,Lookups!$A$31:$B$33,2,FALSE)),$I$9,IF(AND(VLOOKUP(M61,Lookups!$A$31:$B$33,2,FALSE)<=VLOOKUP(L61,Lookups!$A$31:$B$33,2,FALSE),VLOOKUP(M61,Lookups!$A$31:$B$33,2,FALSE)>=0.8*VLOOKUP(L61,Lookups!$A$31:$B$33,2,FALSE)),$I$10,IF(VLOOKUP(M61,Lookups!$A$31:$B$33,2,FALSE)>VLOOKUP(L61,Lookups!$A$31:$B$33,2,FALSE),$I$11,""))))) -> 0 | P61: Yes | Q61: Yes | S61: =IF(R61="",$I$7,IF(VLOOKUP(R61,Lookups!$A$31:$B$33,2,FALSE)<VLOOKUP(P61,Lookups!$A$31:$B$33,2,FALSE),$I$8,IF(AND(VLOOKUP(R61,Lookups!$A$31:$B$33,2,FALSE)>=VLOOKUP(P61,Lookups!$A$31:$B$33,2,FALSE),VLOOKUP(R61,Lookups!$A$31:$B$33,2,FALSE)<0.8*VLOOKUP(Q61,Lookups!$A$31:$B$33,2,FALSE)),$I$9,IF(AND(VLOOKUP(R61,Lookups!$A$31:$B$33,2,FALSE)<=VLOOKUP(Q61,Lookups!$A$31:$B$33,2,FALSE),VLOOKUP(R61,Lookups!$A$31:$B$33,2,FALSE)>=0.8*VLOOKUP(Q61,Lookups!$A$31:$B$33,2,FALSE)),$I$10,IF(VLOOKUP(R61,Lookups!$A$31:$B$33,2,FALSE)>VLOOKUP(Q61,Lookups!$A$31:$B$33,2,FALSE),$I$11,""))))) -> 0 | U61: Yes | V61: Yes | X61: =IF(W61="",$I$7,IF(VLOOKUP(W61,Lookups!$A$31:$B$33,2,FALSE)<VLOOKUP(U61,Lookups!$A$31:$B$33,2,FALSE),$I$8,IF(AND(VLOOKUP(W61,Lookups!$A$31:$B$33,2,FALSE)>=VLOOKUP(U61,Lookups!$A$31:$B$33,2,FALSE),VLOOKUP(W61,Lookups!$A$31:$B$33,2,FALSE)<0.8*VLOOKUP(V61,Lookups!$A$31:$B$33,2,FALSE)),$I$9,IF(AND(VLOOKUP(W61,Lookups!$A$31:$B$33,2,FALSE)<=VLOOKUP(V61,Lookups!$A$31:$B$33,2,FALSE),VLOOKUP(W61,Lookups!$A$31:$B$33,2,FALSE)>=0.8*VLOOKUP(V61,Lookups!$A$31:$B$33,2,FALSE)),$I$10,IF(VLOOKUP(W61,Lookups!$A$31:$B$33,2,FALSE)>VLOOKUP(V61,Lookups!$A$31:$B$33,2,FALSE),$I$11,""))))) -> 0 | Z61: Yes | AA61: Yes | AC61: =IF(AB61="",$I$7,IF(VLOOKUP(AB61,Lookups!$A$31:$B$33,2,FALSE)<VLOOKUP(Z61,Lookups!$A$31:$B$33,2,FALSE),$I$8,IF(AND(VLOOKUP(AB61,Lookups!$A$31:$B$33,2,FALSE)>=VLOOKUP(Z61,Lookups!$A$31:$B$33,2,FALSE),VLOOKUP(AB61,Lookups!$A$31:$B$33,2,FALSE)<0.8*VLOOKUP(AA61,Lookups!$A$31:$B$33,2,FALSE)),$I$9,IF(AND(VLOOKUP(AB61,Lookups!$A$31:$B$33,2,FALSE)<=VLOOKUP(AA61,Lookups!$A$31:$B$33,2,FALSE),VLOOKUP(AB61,Lookups!$A$31:$B$33,2,FALSE)>=0.8*VLOOKUP(AA61,Lookups!$A$31:$B$33,2,FALSE)),$I$10,IF(VLOOKUP(AB61,Lookups!$A$31:$B$33,2,FALSE)>VLOOKUP(AA61,Lookups!$A$31:$B$33,2,FALSE),$I$11,""))))) -> 0 | AE61: =SUM(AH61:AH66) -> 8% | AF61: Connectivity | AG61: Line in/out/mic/headphone | AH61: 1.0% | AJ61: Yes | AK61: Yes | AM61: =IF(AL61="",$I$7,IF(VLOOKUP(AL61,Lookups!$A$31:$B$33,2,FALSE)<VLOOKUP(AJ61,Lookups!$A$31:$B$33,2,FALSE),$I$8,IF(AND(VLOOKUP(AL61,Lookups!$A$31:$B$33,2,FALSE)>=VLOOKUP(AJ61,Lookups!$A$31:$B$33,2,FALSE),VLOOKUP(AL61,Lookups!$A$31:$B$33,2,FALSE)<0.8*VLOOKUP(AK61,Lookups!$A$31:$B$33,2,FALSE)),$I$9,IF(AND(VLOOKUP(AL61,Lookups!$A$31:$B$33,2,FALSE)<=VLOOKUP(AK61,Lookups!$A$31:$B$33,2,FALSE),VLOOKUP(AL61,Lookups!$A$31:$B$33,2,FALSE)>=0.8*VLOOKUP(AK61,Lookups!$A$31:$B$33,2,FALSE)),$I$10,IF(VLOOKUP(AL61,Lookups!$A$31:$B$33,2,FALSE)>VLOOKUP(AK61,Lookups!$A$31:$B$33,2,FALSE),$I$11,""))))) -> 0 | AO61: Yes | AP61: Yes | AR61: =IF(AQ61="",$I$7,IF(VLOOKUP(AQ61,Lookups!$A$31:$B$33,2,FALSE)<VLOOKUP(AO61,Lookups!$A$31:$B$33,2,FALSE),$I$8,IF(AND(VLOOKUP(AQ61,Lookups!$A$31:$B$33,2,FALSE)>=VLOOKUP(AO61,Lookups!$A$31:$B$33,2,FALSE),VLOOKUP(AQ61,Lookups!$A$31:$B$33,2,FALSE)<0.8*VLOOKUP(AP61,Lookups!$A$31:$B$33,2,FALSE)),$I$9,IF(AND(VLOOKUP(AQ61,Lookups!$A$31:$B$33,2,FALSE)<=VLOOKUP(AP61,Lookups!$A$31:$B$33,2,FALSE),VLOOKUP(AQ61,Lookups!$A$31:$B$33,2,FALSE)>=0.8*VLOOKUP(AP61,Lookups!$A$31:$B$33,2,FALSE)),$I$10,IF(VLOOKUP(AQ61,Lookups!$A$31:$B$33,2,FALSE)>VLOOKUP(AP61,Lookups!$A$31:$B$33,2,FALSE),$I$11,""))))) -> 0 | AT61: Yes | AU61: Yes | AW61: =IF(AV61="",$I$7,IF(VLOOKUP(AV61,Lookups!$A$31:$B$33,2,FALSE)<VLOOKUP(AT61,Lookups!$A$31:$B$33,2,FALSE),$I$8,IF(AND(VLOOKUP(AV61,Lookups!$A$31:$B$33,2,FALSE)>=VLOOKUP(AT61,Lookups!$A$31:$B$33,2,FALSE),VLOOKUP(AV61,Lookups!$A$31:$B$33,2,FALSE)<0.8*VLOOKUP(AU61,Lookups!$A$31:$B$33,2,FALSE)),$I$9,IF(AND(VLOOKUP(AV61,Lookups!$A$31:$B$33,2,FALSE)<=VLOOKUP(AU61,Lookups!$A$31:$B$33,2,FALSE),VLOOKUP(AV61,Lookups!$A$31:$B$33,2,FALSE)>=0.8*VLOOKUP(AU61,Lookups!$A$31:$B$33,2,FALSE)),$I$10,IF(VLOOKUP(AV61,Lookups!$A$31:$B$33,2,FALSE)>VLOOKUP(AU61,Lookups!$A$31:$B$33,2,FALSE),$I$11,""))))) -> 0
C62: Full/mini/micro-SD Card slot | D62: 0.5% | F62: No | G62: Yes | I62: =IF(H62="",$I$7,IF(VLOOKUP(H62,Lookups!$A$31:$B$33,2,FALSE)<VLOOKUP(F62,Lookups!$A$31:$B$33,2,FALSE),$I$8,IF(AND(VLOOKUP(H62,Lookups!$A$31:$B$33,2,FALSE)>=VLOOKUP(F62,Lookups!$A$31:$B$33,2,FALSE),VLOOKUP(H62,Lookups!$A$31:$B$33,2,FALSE)<0.8*VLOOKUP(G62,Lookups!$A$31:$B$33,2,FALSE)),$I$9,IF(AND(VLOOKUP(H62,Lookups!$A$31:$B$33,2,FALSE)<=VLOOKUP(G62,Lookups!$A$31:$B$33,2,FALSE),VLOOKUP(H62,Lookups!$A$31:$B$33,2,FALSE)>=0.8*VLOOKUP(G62,Lookups!$A$31:$B$33,2,FALSE)),$I$10,IF(VLOOKUP(H62,Lookups!$A$31:$B$33,2,FALSE)>VLOOKUP(G62,Lookups!$A$31:$B$33,2,FALSE),$I$11,""))))) -> 0 | K62: No | L62: Yes | N62: =IF(M62="",$I$7,IF(VLOOKUP(M62,Lookups!$A$31:$B$33,2,FALSE)<VLOOKUP(K62,Lookups!$A$31:$B$33,2,FALSE),$I$8,IF(AND(VLOOKUP(M62,Lookups!$A$31:$B$33,2,FALSE)>=VLOOKUP(K62,Lookups!$A$31:$B$33,2,FALSE),VLOOKUP(M62,Lookups!$A$31:$B$33,2,FALSE)<0.8*VLOOKUP(L62,Lookups!$A$31:$B$33,2,FALSE)),$I$9,IF(AND(VLOOKUP(M62,Lookups!$A$31:$B$33,2,FALSE)<=VLOOKUP(L62,Lookups!$A$31:$B$33,2,FALSE),VLOOKUP(M62,Lookups!$A$31:$B$33,2,FALSE)>=0.8*VLOOKUP(L62,Lookups!$A$31:$B$33,2,FALSE)),$I$10,IF(VLOOKUP(M62,Lookups!$A$31:$B$33,2,FALSE)>VLOOKUP(L62,Lookups!$A$31:$B$33,2,FALSE),$I$11,""))))) -> 0 | P62: No | Q62: Yes | S62: =IF(R62="",$I$7,IF(VLOOKUP(R62,Lookups!$A$31:$B$33,2,FALSE)<VLOOKUP(P62,Lookups!$A$31:$B$33,2,FALSE),$I$8,IF(AND(VLOOKUP(R62,Lookups!$A$31:$B$33,2,FALSE)>=VLOOKUP(P62,Lookups!$A$31:$B$33,2,FALSE),VLOOKUP(R62,Lookups!$A$31:$B$33,2,FALSE)<0.8*VLOOKUP(Q62,Lookups!$A$31:$B$33,2,FALSE)),$I$9,IF(AND(VLOOKUP(R62,Lookups!$A$31:$B$33,2,FALSE)<=VLOOKUP(Q62,Lookups!$A$31:$B$33,2,FALSE),VLOOKUP(R62,Lookups!$A$31:$B$33,2,FALSE)>=0.8*VLOOKUP(Q62,Lookups!$A$31:$B$33,2,FALSE)),$I$10,IF(VLOOKUP(R62,Lookups!$A$31:$B$33,2,FALSE)>VLOOKUP(Q62,Lookups!$A$31:$B$33,2,FALSE),$I$11,""))))) -> 0 | U62: No | V62: Yes | X62: =IF(W62="",$I$7,IF(VLOOKUP(W62,Lookups!$A$31:$B$33,2,FALSE)<VLOOKUP(U62,Lookups!$A$31:$B$33,2,FALSE),$I$8,IF(AND(VLOOKUP(W62,Lookups!$A$31:$B$33,2,FALSE)>=VLOOKUP(U62,Lookups!$A$31:$B$33,2,FALSE),VLOOKUP(W62,Lookups!$A$31:$B$33,2,FALSE)<0.8*VLOOKUP(V62,Lookups!$A$31:$B$33,2,FALSE)),$I$9,IF(AND(VLOOKUP(W62,Lookups!$A$31:$B$33,2,FALSE)<=VLOOKUP(V62,Lookups!$A$31:$B$33,2,FALSE),VLOOKUP(W62,Lookups!$A$31:$B$33,2,FALSE)>=0.8*VLOOKUP(V62,Lookups!$A$31:$B$33,2,FALSE)),$I$10,IF(VLOOKUP(W62,Lookups!$A$31:$B$33,2,FALSE)>VLOOKUP(V62,Lookups!$A$31:$B$33,2,FALSE),$I$11,""))))) -> 0 | Z62: No | AA62: Yes | AC62: =IF(AB62="",$I$7,IF(VLOOKUP(AB62,Lookups!$A$31:$B$33,2,FALSE)<VLOOKUP(Z62,Lookups!$A$31:$B$33,2,FALSE),$I$8,IF(AND(VLOOKUP(AB62,Lookups!$A$31:$B$33,2,FALSE)>=VLOOKUP(Z62,Lookups!$A$31:$B$33,2,FALSE),VLOOKUP(AB62,Lookups!$A$31:$B$33,2,FALSE)<0.8*VLOOKUP(AA62,Lookups!$A$31:$B$33,2,FALSE)),$I$9,IF(AND(VLOOKUP(AB62,Lookups!$A$31:$B$33,2,FALSE)<=VLOOKUP(AA62,Lookups!$A$31:$B$33,2,FALSE),VLOOKUP(AB62,Lookups!$A$31:$B$33,2,FALSE)>=0.8*VLOOKUP(AA62,Lookups!$A$31:$B$33,2,FALSE)),$I$10,IF(VLOOKUP(AB62,Lookups!$A$31:$B$33,2,FALSE)>VLOOKUP(AA62,Lookups!$A$31:$B$33,2,FALSE),$I$11,""))))) -> 0 | AG62: Full/mini/micro-SD Card slot | AH62: 0.5% | AJ62: No | AK62: No | AM62: =IF(AL62="",$I$7,IF(VLOOKUP(AL62,Lookups!$A$31:$B$33,2,FALSE)<VLOOKUP(AJ62,Lookups!$A$31:$B$33,2,FALSE),$I$8,IF(AND(VLOOKUP(AL62,Lookups!$A$31:$B$33,2,FALSE)>=VLOOKUP(AJ62,Lookups!$A$31:$B$33,2,FALSE),VLOOKUP(AL62,Lookups!$A$31:$B$33,2,FALSE)<0.8*VLOOKUP(AK62,Lookups!$A$31:$B$33,2,FALSE)),$I$9,IF(AND(VLOOKUP(AL62,Lookups!$A$31:$B$33,2,FALSE)<=VLOOKUP(AK62,Lookups!$A$31:$B$33,2,FALSE),VLOOKUP(AL62,Lookups!$A$31:$B$33,2,FALSE)>=0.8*VLOOKUP(AK62,Lookups!$A$31:$B$33,2,FALSE)),$I$10,IF(VLOOKUP(AL62,Lookups!$A$31:$B$33,2,FALSE)>VLOOKUP(AK62,Lookups!$A$31:$B$33,2,FALSE),$I$11,""))))) -> 0 | AO62: No | AP62: Yes | AR62: =IF(AQ62="",$I$7,IF(VLOOKUP(AQ62,Lookups!$A$31:$B$33,2,FALSE)<VLOOKUP(AO62,Lookups!$A$31:$B$33,2,FALSE),$I$8,IF(AND(VLOOKUP(AQ62,Lookups!$A$31:$B$33,2,FALSE)>=VLOOKUP(AO62,Lookups!$A$31:$B$33,2,FALSE),VLOOKUP(AQ62,Lookups!$A$31:$B$33,2,FALSE)<0.8*VLOOKUP(AP62,Lookups!$A$31:$B$33,2,FALSE)),$I$9,IF(AND(VLOOKUP(AQ62,Lookups!$A$31:$B$33,2,FALSE)<=VLOOKUP(AP62,Lookups!$A$31:$B$33,2,FALSE),VLOOKUP(AQ62,Lookups!$A$31:$B$33,2,FALSE)>=0.8*VLOOKUP(AP62,Lookups!$A$31:$B$33,2,FALSE)),$I$10,IF(VLOOKUP(AQ62,Lookups!$A$31:$B$33,2,FALSE)>VLOOKUP(AP62,Lookups!$A$31:$B$33,2,FALSE),$I$11,""))))) -> 0 | AT62: Yes | AU62: Yes | AW62: =IF(AV62="",$I$7,IF(VLOOKUP(AV62,Lookups!$A$31:$B$33,2,FALSE)<VLOOKUP(AT62,Lookups!$A$31:$B$33,2,FALSE),$I$8,IF(AND(VLOOKUP(AV62,Lookups!$A$31:$B$33,2,FALSE)>=VLOOKUP(AT62,Lookups!$A$31:$B$33,2,FALSE),VLOOKUP(AV62,Lookups!$A$31:$B$33,2,FALSE)<0.8*VLOOKUP(AU62,Lookups!$A$31:$B$33,2,FALSE)),$I$9,IF(AND(VLOOKUP(AV62,Lookups!$A$31:$B$33,2,FALSE)<=VLOOKUP(AU62,Lookups!$A$31:$B$33,2,FALSE),VLOOKUP(AV62,Lookups!$A$31:$B$33,2,FALSE)>=0.8*VLOOKUP(AU62,Lookups!$A$31:$B$33,2,FALSE)),$I$10,IF(VLOOKUP(AV62,Lookups!$A$31:$B$33,2,FALSE)>VLOOKUP(AU62,Lookups!$A$31:$B$33,2,FALSE),$I$11,""))))) -> 0
C63: RJ45 Gigabit LAN (built-in or via an adapter) | D63: 2.0% | F63: Yes | G63: Yes | I63: =IF(H63="",$I$7,IF(VLOOKUP(H63,Lookups!$A$31:$B$33,2,FALSE)<VLOOKUP(F63,Lookups!$A$31:$B$33,2,FALSE),$I$8,IF(AND(VLOOKUP(H63,Lookups!$A$31:$B$33,2,FALSE)>=VLOOKUP(F63,Lookups!$A$31:$B$33,2,FALSE),VLOOKUP(H63,Lookups!$A$31:$B$33,2,FALSE)<0.8*VLOOKUP(G63,Lookups!$A$31:$B$33,2,FALSE)),$I$9,IF(AND(VLOOKUP(H63,Lookups!$A$31:$B$33,2,FALSE)<=VLOOKUP(G63,Lookups!$A$31:$B$33,2,FALSE),VLOOKUP(H63,Lookups!$A$31:$B$33,2,FALSE)>=0.8*VLOOKUP(G63,Lookups!$A$31:$B$33,2,FALSE)),$I$10,IF(VLOOKUP(H63,Lookups!$A$31:$B$33,2,FALSE)>VLOOKUP(G63,Lookups!$A$31:$B$33,2,FALSE),$I$11,""))))) -> 0 | K63: Yes | L63: Yes | N63: =IF(M63="",$I$7,IF(VLOOKUP(M63,Lookups!$A$31:$B$33,2,FALSE)<VLOOKUP(K63,Lookups!$A$31:$B$33,2,FALSE),$I$8,IF(AND(VLOOKUP(M63,Lookups!$A$31:$B$33,2,FALSE)>=VLOOKUP(K63,Lookups!$A$31:$B$33,2,FALSE),VLOOKUP(M63,Lookups!$A$31:$B$33,2,FALSE)<0.8*VLOOKUP(L63,Lookups!$A$31:$B$33,2,FALSE)),$I$9,IF(AND(VLOOKUP(M63,Lookups!$A$31:$B$33,2,FALSE)<=VLOOKUP(L63,Lookups!$A$31:$B$33,2,FALSE),VLOOKUP(M63,Lookups!$A$31:$B$33,2,FALSE)>=0.8*VLOOKUP(L63,Lookups!$A$31:$B$33,2,FALSE)),$I$10,IF(VLOOKUP(M63,Lookups!$A$31:$B$33,2,FALSE)>VLOOKUP(L63,Lookups!$A$31:$B$33,2,FALSE),$I$11,""))))) -> 0 | P63: Yes | Q63: Yes | S63: =IF(R63="",$I$7,IF(VLOOKUP(R63,Lookups!$A$31:$B$33,2,FALSE)<VLOOKUP(P63,Lookups!$A$31:$B$33,2,FALSE),$I$8,IF(AND(VLOOKUP(R63,Lookups!$A$31:$B$33,2,FALSE)>=VLOOKUP(P63,Lookups!$A$31:$B$33,2,FALSE),VLOOKUP(R63,Lookups!$A$31:$B$33,2,FALSE)<0.8*VLOOKUP(Q63,Lookups!$A$31:$B$33,2,FALSE)),$I$9,IF(AND(VLOOKUP(R63,Lookups!$A$31:$B$33,2,FALSE)<=VLOOKUP(Q63,Lookups!$A$31:$B$33,2,FALSE),VLOOKUP(R63,Lookups!$A$31:$B$33,2,FALSE)>=0.8*VLOOKUP(Q63,Lookups!$A$31:$B$33,2,FALSE)),$I$10,IF(VLOOKUP(R63,Lookups!$A$31:$B$33,2,FALSE)>VLOOKUP(Q63,Lookups!$A$31:$B$33,2,FALSE),$I$11,""))))) -> 0 | U63: Yes | V63: Yes | X63: =IF(W63="",$I$7,IF(VLOOKUP(W63,Lookups!$A$31:$B$33,2,FALSE)<VLOOKUP(U63,Lookups!$A$31:$B$33,2,FALSE),$I$8,IF(AND(VLOOKUP(W63,Lookups!$A$31:$B$33,2,FALSE)>=VLOOKUP(U63,Lookups!$A$31:$B$33,2,FALSE),VLOOKUP(W63,Lookups!$A$31:$B$33,2,FALSE)<0.8*VLOOKUP(V63,Lookups!$A$31:$B$33,2,FALSE)),$I$9,IF(AND(VLOOKUP(W63,Lookups!$A$31:$B$33,2,FALSE)<=VLOOKUP(V63,Lookups!$A$31:$B$33,2,FALSE),VLOOKUP(W63,Lookups!$A$31:$B$33,2,FALSE)>=0.8*VLOOKUP(V63,Lookups!$A$31:$B$33,2,FALSE)),$I$10,IF(VLOOKUP(W63,Lookups!$A$31:$B$33,2,FALSE)>VLOOKUP(V63,Lookups!$A$31:$B$33,2,FALSE),$I$11,""))))) -> 0 | Z63: Yes | AA63: Yes | AC63: =IF(AB63="",$I$7,IF(VLOOKUP(AB63,Lookups!$A$31:$B$33,2,FALSE)<VLOOKUP(Z63,Lookups!$A$31:$B$33,2,FALSE),$I$8,IF(AND(VLOOKUP(AB63,Lookups!$A$31:$B$33,2,FALSE)>=VLOOKUP(Z63,Lookups!$A$31:$B$33,2,FALSE),VLOOKUP(AB63,Lookups!$A$31:$B$33,2,FALSE)<0.8*VLOOKUP(AA63,Lookups!$A$31:$B$33,2,FALSE)),$I$9,IF(AND(VLOOKUP(AB63,Lookups!$A$31:$B$33,2,FALSE)<=VLOOKUP(AA63,Lookups!$A$31:$B$33,2,FALSE),VLOOKUP(AB63,Lookups!$A$31:$B$33,2,FALSE)>=0.8*VLOOKUP(AA63,Lookups!$A$31:$B$33,2,FALSE)),$I$10,IF(VLOOKUP(AB63,Lookups!$A$31:$B$33,2,FALSE)>VLOOKUP(AA63,Lookups!$A$31:$B$33,2,FALSE),$I$11,""))))) -> 0 | AG63: RJ45 Gigabit LAN (built-in or via an adapter) | AH63: 2.0% | AJ63: Yes | AK63: Yes | AM63: =IF(AL63="",$I$7,IF(VLOOKUP(AL63,Lookups!$A$31:$B$33,2,FALSE)<VLOOKUP(AJ63,Lookups!$A$31:$B$33,2,FALSE),$I$8,IF(AND(VLOOKUP(AL63,Lookups!$A$31:$B$33,2,FALSE)>=VLOOKUP(AJ63,Lookups!$A$31:$B$33,2,FALSE),VLOOKUP(AL63,Lookups!$A$31:$B$33,2,FALSE)<0.8*VLOOKUP(AK63,Lookups!$A$31:$B$33,2,FALSE)),$I$9,IF(AND(VLOOKUP(AL63,Lookups!$A$31:$B$33,2,FALSE)<=VLOOKUP(AK63,Lookups!$A$31:$B$33,2,FALSE),VLOOKUP(AL63,Lookups!$A$31:$B$33,2,FALSE)>=0.8*VLOOKUP(AK63,Lookups!$A$31:$B$33,2,FALSE)),$I$10,IF(VLOOKUP(AL63,Lookups!$A$31:$B$33,2,FALSE)>VLOOKUP(AK63,Lookups!$A$31:$B$33,2,FALSE),$I$11,""))))) -> 0 | AO63: Yes | AP63: Yes | AR63: =IF(AQ63="",$I$7,IF(VLOOKUP(AQ63,Lookups!$A$31:$B$33,2,FALSE)<VLOOKUP(AO63,Lookups!$A$31:$B$33,2,FALSE),$I$8,IF(AND(VLOOKUP(AQ63,Lookups!$A$31:$B$33,2,FALSE)>=VLOOKUP(AO63,Lookups!$A$31:$B$33,2,FALSE),VLOOKUP(AQ63,Lookups!$A$31:$B$33,2,FALSE)<0.8*VLOOKUP(AP63,Lookups!$A$31:$B$33,2,FALSE)),$I$9,IF(AND(VLOOKUP(AQ63,Lookups!$A$31:$B$33,2,FALSE)<=VLOOKUP(AP63,Lookups!$A$31:$B$33,2,FALSE),VLOOKUP(AQ63,Lookups!$A$31:$B$33,2,FALSE)>=0.8*VLOOKUP(AP63,Lookups!$A$31:$B$33,2,FALSE)),$I$10,IF(VLOOKUP(AQ63,Lookups!$A$31:$B$33,2,FALSE)>VLOOKUP(AP63,Lookups!$A$31:$B$33,2,FALSE),$I$11,""))))) -> 0 | AT63: Yes | AU63: Yes | AW63: =IF(AV63="",$I$7,IF(VLOOKUP(AV63,Lookups!$A$31:$B$33,2,FALSE)<VLOOKUP(AT63,Lookups!$A$31:$B$33,2,FALSE),$I$8,IF(AND(VLOOKUP(AV63,Lookups!$A$31:$B$33,2,FALSE)>=VLOOKUP(AT63,Lookups!$A$31:$B$33,2,FALSE),VLOOKUP(AV63,Lookups!$A$31:$B$33,2,FALSE)<0.8*VLOOKUP(AU63,Lookups!$A$31:$B$33,2,FALSE)),$I$9,IF(AND(VLOOKUP(AV63,Lookups!$A$31:$B$33,2,FALSE)<=VLOOKUP(AU63,Lookups!$A$31:$B$33,2,FALSE),VLOOKUP(AV63,Lookups!$A$31:$B$33,2,FALSE)>=0.8*VLOOKUP(AU63,Lookups!$A$31:$B$33,2,FALSE)),$I$10,IF(VLOOKUP(AV63,Lookups!$A$31:$B$33,2,FALSE)>VLOOKUP(AU63,Lookups!$A$31:$B$33,2,FALSE),$I$11,""))))) -> 0
C64: WiFi Generation | D64: 2.0% | F64: Gen 5 | G64: Gen 6 | I64: =IF(H64="",$I$7,IF(VLOOKUP(H64,Lookups!$A$106:$B$110,2,FALSE)<VLOOKUP(F64,Lookups!$A$106:$B$110,2,FALSE),$I$8,IF(AND(VLOOKUP(H64,Lookups!$A$106:$B$110,2,FALSE)>=VLOOKUP(F64,Lookups!$A$106:$B$110,2,FALSE),VLOOKUP(H64,Lookups!$A$106:$B$110,2,FALSE)<0.8*VLOOKUP(G64,Lookups!$A$106:$B$110,2,FALSE)),$I$9,IF(AND(VLOOKUP(H64,Lookups!$A$106:$B$110,2,FALSE)<=VLOOKUP(G64,Lookups!$A$106:$B$110,2,FALSE),VLOOKUP(H64,Lookups!$A$106:$B$110,2,FALSE)>=0.8*VLOOKUP(G64,Lookups!$A$106:$B$110,2,FALSE)),$I$10,IF(VLOOKUP(H64,Lookups!$A$106:$B$110,2,FALSE)>VLOOKUP(G64,Lookups!$A$106:$B$110,2,FALSE),$I$11,""))))) -> 0 | K64: Gen 5 | L64: Gen 6 | N64: =IF(M64="",$I$7,IF(VLOOKUP(M64,Lookups!$A$106:$B$110,2,FALSE)<VLOOKUP(K64,Lookups!$A$106:$B$110,2,FALSE),$I$8,IF(AND(VLOOKUP(M64,Lookups!$A$106:$B$110,2,FALSE)>=VLOOKUP(K64,Lookups!$A$106:$B$110,2,FALSE),VLOOKUP(M64,Lookups!$A$106:$B$110,2,FALSE)<0.8*VLOOKUP(L64,Lookups!$A$106:$B$110,2,FALSE)),$I$9,IF(AND(VLOOKUP(M64,Lookups!$A$106:$B$110,2,FALSE)<=VLOOKUP(L64,Lookups!$A$106:$B$110,2,FALSE),VLOOKUP(M64,Lookups!$A$106:$B$110,2,FALSE)>=0.8*VLOOKUP(L64,Lookups!$A$106:$B$110,2,FALSE)),$I$10,IF(VLOOKUP(M64,Lookups!$A$106:$B$110,2,FALSE)>VLOOKUP(L64,Lookups!$A$106:$B$110,2,FALSE),$I$11,""))))) -> 0 | P64: Gen 5 | Q64: Gen 6 | S64: =IF(R64="",$I$7,IF(VLOOKUP(R64,Lookups!$A$106:$B$110,2,FALSE)<VLOOKUP(P64,Lookups!$A$106:$B$110,2,FALSE),$I$8,IF(AND(VLOOKUP(R64,Lookups!$A$106:$B$110,2,FALSE)>=VLOOKUP(P64,Lookups!$A$106:$B$110,2,FALSE),VLOOKUP(R64,Lookups!$A$106:$B$110,2,FALSE)<0.8*VLOOKUP(Q64,Lookups!$A$106:$B$110,2,FALSE)),$I$9,IF(AND(VLOOKUP(R64,Lookups!$A$106:$B$110,2,FALSE)<=VLOOKUP(Q64,Lookups!$A$106:$B$110,2,FALSE),VLOOKUP(R64,Lookups!$A$106:$B$110,2,FALSE)>=0.8*VLOOKUP(Q64,Lookups!$A$106:$B$110,2,FALSE)),$I$10,IF(VLOOKUP(R64,Lookups!$A$106:$B$110,2,FALSE)>VLOOKUP(Q64,Lookups!$A$106:$B$110,2,FALSE),$I$11,""))))) -> 0 | U64: Gen 5 | V64: Gen 6 | X64: =IF(W64="",$I$7,IF(VLOOKUP(W64,Lookups!$A$106:$B$110,2,FALSE)<VLOOKUP(U64,Lookups!$A$106:$B$110,2,FALSE),$I$8,IF(AND(VLOOKUP(W64,Lookups!$A$106:$B$110,2,FALSE)>=VLOOKUP(U64,Lookups!$A$106:$B$110,2,FALSE),VLOOKUP(W64,Lookups!$A$106:$B$110,2,FALSE)<0.8*VLOOKUP(V64,Lookups!$A$106:$B$110,2,FALSE)),$I$9,IF(AND(VLOOKUP(W64,Lookups!$A$106:$B$110,2,FALSE)<=VLOOKUP(V64,Lookups!$A$106:$B$110,2,FALSE),VLOOKUP(W64,Lookups!$A$106:$B$110,2,FALSE)>=0.8*VLOOKUP(V64,Lookups!$A$106:$B$110,2,FALSE)),$I$10,IF(VLOOKUP(W64,Lookups!$A$106:$B$110,2,FALSE)>VLOOKUP(V64,Lookups!$A$106:$B$110,2,FALSE),$I$11,""))))) -> 0 | Z64: Gen 5 | AA64: Gen 6 | AC64: =IF(AB64="",$I$7,IF(VLOOKUP(AB64,Lookups!$A$106:$B$110,2,FALSE)<VLOOKUP(Z64,Lookups!$A$106:$B$110,2,FALSE),$I$8,IF(AND(VLOOKUP(AB64,Lookups!$A$106:$B$110,2,FALSE)>=VLOOKUP(Z64,Lookups!$A$106:$B$110,2,FALSE),VLOOKUP(AB64,Lookups!$A$106:$B$110,2,FALSE)<0.8*VLOOKUP(AA64,Lookups!$A$106:$B$110,2,FALSE)),$I$9,IF(AND(VLOOKUP(AB64,Lookups!$A$106:$B$110,2,FALSE)<=VLOOKUP(AA64,Lookups!$A$106:$B$110,2,FALSE),VLOOKUP(AB64,Lookups!$A$106:$B$110,2,FALSE)>=0.8*VLOOKUP(AA64,Lookups!$A$106:$B$110,2,FALSE)),$I$10,IF(VLOOKUP(AB64,Lookups!$A$106:$B$110,2,FALSE)>VLOOKUP(AA64,Lookups!$A$106:$B$110,2,FALSE),$I$11,""))))) -> 0 | AG64: WiFi Generation | AH64: 2.5% | AJ64: Gen 5 | AK64: Gen 6 | AM64: =IF(AL64="",$I$7,IF(VLOOKUP(AL64,Lookups!$A$106:$B$110,2,FALSE)<VLOOKUP(AJ64,Lookups!$A$106:$B$110,2,FALSE),$I$8,IF(AND(VLOOKUP(AL64,Lookups!$A$106:$B$110,2,FALSE)>=VLOOKUP(AJ64,Lookups!$A$106:$B$110,2,FALSE),VLOOKUP(AL64,Lookups!$A$106:$B$110,2,FALSE)<0.8*VLOOKUP(AK64,Lookups!$A$106:$B$110,2,FALSE)),$I$9,IF(AND(VLOOKUP(AL64,Lookups!$A$106:$B$110,2,FALSE)<=VLOOKUP(AK64,Lookups!$A$106:$B$110,2,FALSE),VLOOKUP(AL64,Lookups!$A$106:$B$110,2,FALSE)>=0.8*VLOOKUP(AK64,Lookups!$A$106:$B$110,2,FALSE)),$I$10,IF(VLOOKUP(AL64,Lookups!$A$106:$B$110,2,FALSE)>VLOOKUP(AK64,Lookups!$A$106:$B$110,2,FALSE),$I$11,""))))) -> 0 | AO64: Gen 5 | AP64: Gen 6 | AR64: =IF(AQ64="",$I$7,IF(VLOOKUP(AQ64,Lookups!$A$106:$B$110,2,FALSE)<VLOOKUP(AO64,Lookups!$A$106:$B$110,2,FALSE),$I$8,IF(AND(VLOOKUP(AQ64,Lookups!$A$106:$B$110,2,FALSE)>=VLOOKUP(AO64,Lookups!$A$106:$B$110,2,FALSE),VLOOKUP(AQ64,Lookups!$A$106:$B$110,2,FALSE)<0.8*VLOOKUP(AP64,Lookups!$A$106:$B$110,2,FALSE)),$I$9,IF(AND(VLOOKUP(AQ64,Lookups!$A$106:$B$110,2,FALSE)<=VLOOKUP(AP64,Lookups!$A$106:$B$110,2,FALSE),VLOOKUP(AQ64,Lookups!$A$106:$B$110,2,FALSE)>=0.8*VLOOKUP(AP64,Lookups!$A$106:$B$110,2,FALSE)),$I$10,IF(VLOOKUP(AQ64,Lookups!$A$106:$B$110,2,FALSE)>VLOOKUP(AP64,Lookups!$A$106:$B$110,2,FALSE),$I$11,""))))) -> 0 | AT64: Gen 5 | AU64: Gen 6 | AW64: =IF(AV64="",$I$7,IF(VLOOKUP(AV64,Lookups!$A$106:$B$110,2,FALSE)<VLOOKUP(AT64,Lookups!$A$106:$B$110,2,FALSE),$I$8,IF(AND(VLOOKUP(AV64,Lookups!$A$106:$B$110,2,FALSE)>=VLOOKUP(AT64,Lookups!$A$106:$B$110,2,FALSE),VLOOKUP(AV64,Lookups!$A$106:$B$110,2,FALSE)<0.8*VLOOKUP(AU64,Lookups!$A$106:$B$110,2,FALSE)),$I$9,IF(AND(VLOOKUP(AV64,Lookups!$A$106:$B$110,2,FALSE)<=VLOOKUP(AU64,Lookups!$A$106:$B$110,2,FALSE),VLOOKUP(AV64,Lookups!$A$106:$B$110,2,FALSE)>=0.8*VLOOKUP(AU64,Lookups!$A$106:$B$110,2,FALSE)),$I$10,IF(VLOOKUP(AV64,Lookups!$A$106:$B$110,2,FALSE)>VLOOKUP(AU64,Lookups!$A$106:$B$110,2,FALSE),$I$11,""))))) -> 0
C65: Bluetooth 5.1 | D65: 2.0% | F65: 5 | G65: 5.1 | I65: =IF(H65="",$I$7,IF(VLOOKUP(H65,Lookups!$A$113:$B$120,2,FALSE)<VLOOKUP(F65,Lookups!$A$113:$B$120,2,FALSE),$I$8,IF(AND(VLOOKUP(H65,Lookups!$A$113:$B$120,2,FALSE)>=VLOOKUP(F65,Lookups!$A$113:$B$120,2,FALSE),VLOOKUP(H65,Lookups!$A$113:$B$120,2,FALSE)<0.8*VLOOKUP(G65,Lookups!$A$113:$B$120,2,FALSE)),$I$9,IF(AND(VLOOKUP(H65,Lookups!$A$113:$B$120,2,FALSE)<=VLOOKUP(G65,Lookups!$A$113:$B$120,2,FALSE),VLOOKUP(H65,Lookups!$A$113:$B$120,2,FALSE)>=0.8*VLOOKUP(G65,Lookups!$A$113:$B$120,2,FALSE)),$I$10,IF(VLOOKUP(H65,Lookups!$A$113:$B$120,2,FALSE)>VLOOKUP(G65,Lookups!$A$113:$B$120,2,FALSE),$I$11,""))))) -> 0 | K65: 5 | L65: 5.1 | N65: =IF(M65="",$I$7,IF(VLOOKUP(M65,Lookups!$A$113:$B$120,2,FALSE)<VLOOKUP(K65,Lookups!$A$113:$B$120,2,FALSE),$I$8,IF(AND(VLOOKUP(M65,Lookups!$A$113:$B$120,2,FALSE)>=VLOOKUP(K65,Lookups!$A$113:$B$120,2,FALSE),VLOOKUP(M65,Lookups!$A$113:$B$120,2,FALSE)<0.8*VLOOKUP(L65,Lookups!$A$113:$B$120,2,FALSE)),$I$9,IF(AND(VLOOKUP(M65,Lookups!$A$113:$B$120,2,FALSE)<=VLOOKUP(L65,Lookups!$A$113:$B$120,2,FALSE),VLOOKUP(M65,Lookups!$A$113:$B$120,2,FALSE)>=0.8*VLOOKUP(L65,Lookups!$A$113:$B$120,2,FALSE)),$I$10,IF(VLOOKUP(M65,Lookups!$A$113:$B$120,2,FALSE)>VLOOKUP(L65,Lookups!$A$113:$B$120,2,FALSE),$I$11,""))))) -> 0 | P65: 5.1 | Q65: 5.2 | S65: =IF(R65="",$I$7,IF(VLOOKUP(R65,Lookups!$A$113:$B$120,2,FALSE)<VLOOKUP(P65,Lookups!$A$113:$B$120,2,FALSE),$I$8,IF(AND(VLOOKUP(R65,Lookups!$A$113:$B$120,2,FALSE)>=VLOOKUP(P65,Lookups!$A$113:$B$120,2,FALSE),VLOOKUP(R65,Lookups!$A$113:$B$120,2,FALSE)<0.8*VLOOKUP(Q65,Lookups!$A$113:$B$120,2,FALSE)),$I$9,IF(AND(VLOOKUP(R65,Lookups!$A$113:$B$120,2,FALSE)<=VLOOKUP(Q65,Lookups!$A$113:$B$120,2,FALSE),VLOOKUP(R65,Lookups!$A$113:$B$120,2,FALSE)>=0.8*VLOOKUP(Q65,Lookups!$A$113:$B$120,2,FALSE)),$I$10,IF(VLOOKUP(R65,Lookups!$A$113:$B$120,2,FALSE)>VLOOKUP(Q65,Lookups!$A$113:$B$120,2,FALSE),$I$11,""))))) -> 0 | U65: 5 | V65: 5.1 | X65: =IF(W65="",$I$7,IF(VLOOKUP(W65,Lookups!$A$113:$B$120,2,FALSE)<VLOOKUP(U65,Lookups!$A$113:$B$120,2,FALSE),$I$8,IF(AND(VLOOKUP(W65,Lookups!$A$113:$B$120,2,FALSE)>=VLOOKUP(U65,Lookups!$A$113:$B$120,2,FALSE),VLOOKUP(W65,Lookups!$A$113:$B$120,2,FALSE)<0.8*VLOOKUP(V65,Lookups!$A$113:$B$120,2,FALSE)),$I$9,IF(AND(VLOOKUP(W65,Lookups!$A$113:$B$120,2,FALSE)<=VLOOKUP(V65,Lookups!$A$113:$B$120,2,FALSE),VLOOKUP(W65,Lookups!$A$113:$B$120,2,FALSE)>=0.8*VLOOKUP(V65,Lookups!$A$113:$B$120,2,FALSE)),$I$10,IF(VLOOKUP(W65,Lookups!$A$113:$B$120,2,FALSE)>VLOOKUP(V65,Lookups!$A$113:$B$120,2,FALSE),$I$11,""))))) -> 0 | Z65: 5 | AA65: 5.1 | AC65: =IF(AB65="",$I$7,IF(VLOOKUP(AB65,Lookups!$A$113:$B$120,2,FALSE)<VLOOKUP(Z65,Lookups!$A$113:$B$120,2,FALSE),$I$8,IF(AND(VLOOKUP(AB65,Lookups!$A$113:$B$120,2,FALSE)>=VLOOKUP(Z65,Lookups!$A$113:$B$120,2,FALSE),VLOOKUP(AB65,Lookups!$A$113:$B$120,2,FALSE)<0.8*VLOOKUP(AA65,Lookups!$A$113:$B$120,2,FALSE)),$I$9,IF(AND(VLOOKUP(AB65,Lookups!$A$113:$B$120,2,FALSE)<=VLOOKUP(AA65,Lookups!$A$113:$B$120,2,FALSE),VLOOKUP(AB65,Lookups!$A$113:$B$120,2,FALSE)>=0.8*VLOOKUP(AA65,Lookups!$A$113:$B$120,2,FALSE)),$I$10,IF(VLOOKUP(AB65,Lookups!$A$113:$B$120,2,FALSE)>VLOOKUP(AA65,Lookups!$A$113:$B$120,2,FALSE),$I$11,""))))) -> 0 | AG65: Bluetooth 5.1 | AH65: 2.0% | AJ65: 5 | AK65: 5.1 | AM65: =IF(AL65="",$I$7,IF(VLOOKUP(AL65,Lookups!$A$113:$B$120,2,FALSE)<VLOOKUP(AJ65,Lookups!$A$113:$B$120,2,FALSE),$I$8,IF(AND(VLOOKUP(AL65,Lookups!$A$113:$B$120,2,FALSE)>=VLOOKUP(AJ65,Lookups!$A$113:$B$120,2,FALSE),VLOOKUP(AL65,Lookups!$A$113:$B$120,2,FALSE)<0.8*VLOOKUP(AK65,Lookups!$A$113:$B$120,2,FALSE)),$I$9,IF(AND(VLOOKUP(AL65,Lookups!$A$113:$B$120,2,FALSE)<=VLOOKUP(AK65,Lookups!$A$113:$B$120,2,FALSE),VLOOKUP(AL65,Lookups!$A$113:$B$120,2,FALSE)>=0.8*VLOOKUP(AK65,Lookups!$A$113:$B$120,2,FALSE)),$I$10,IF(VLOOKUP(AL65,Lookups!$A$113:$B$120,2,FALSE)>VLOOKUP(AK65,Lookups!$A$113:$B$120,2,FALSE),$I$11,""))))) -> 0 | AO65: 5.1 | AP65: 5.2 | AR65: =IF(AQ65="",$I$7,IF(VLOOKUP(AQ65,Lookups!$A$113:$B$120,2,FALSE)<VLOOKUP(AO65,Lookups!$A$113:$B$120,2,FALSE),$I$8,IF(AND(VLOOKUP(AQ65,Lookups!$A$113:$B$120,2,FALSE)>=VLOOKUP(AO65,Lookups!$A$113:$B$120,2,FALSE),VLOOKUP(AQ65,Lookups!$A$113:$B$120,2,FALSE)<0.8*VLOOKUP(AP65,Lookups!$A$113:$B$120,2,FALSE)),$I$9,IF(AND(VLOOKUP(AQ65,Lookups!$A$113:$B$120,2,FALSE)<=VLOOKUP(AP65,Lookups!$A$113:$B$120,2,FALSE),VLOOKUP(AQ65,Lookups!$A$113:$B$120,2,FALSE)>=0.8*VLOOKUP(AP65,Lookups!$A$113:$B$120,2,FALSE)),$I$10,IF(VLOOKUP(AQ65,Lookups!$A$113:$B$120,2,FALSE)>VLOOKUP(AP65,Lookups!$A$113:$B$120,2,FALSE),$I$11,""))))) -> 0 | AT65: 5.1 | AU65: 5.2 | AW65: =IF(AV65="",$I$7,IF(VLOOKUP(AV65,Lookups!$A$113:$B$120,2,FALSE)<VLOOKUP(AT65,Lookups!$A$113:$B$120,2,FALSE),$I$8,IF(AND(VLOOKUP(AV65,Lookups!$A$113:$B$120,2,FALSE)>=VLOOKUP(AT65,Lookups!$A$113:$B$120,2,FALSE),VLOOKUP(AV65,Lookups!$A$113:$B$120,2,FALSE)<0.8*VLOOKUP(AU65,Lookups!$A$113:$B$120,2,FALSE)),$I$9,IF(AND(VLOOKUP(AV65,Lookups!$A$113:$B$120,2,FALSE)<=VLOOKUP(AU65,Lookups!$A$113:$B$120,2,FALSE),VLOOKUP(AV65,Lookups!$A$113:$B$120,2,FALSE)>=0.8*VLOOKUP(AU65,Lookups!$A$113:$B$120,2,FALSE)),$I$10,IF(VLOOKUP(AV65,Lookups!$A$113:$B$120,2,FALSE)>VLOOKUP(AU65,Lookups!$A$113:$B$120,2,FALSE),$I$11,""))))) -> 0
C66: 4G/5G | D66: 0.5% | F66: Not included | G66: 5G | I66: =IF(H66="",$I$7,IF(VLOOKUP(H66,Lookups!$A$123:$B$126,2,FALSE)<VLOOKUP(F66,Lookups!$A$123:$B$126,2,FALSE),$I$8,IF(AND(VLOOKUP(H66,Lookups!$A$123:$B$126,2,FALSE)>=VLOOKUP(F66,Lookups!$A$123:$B$126,2,FALSE),VLOOKUP(H66,Lookups!$A$123:$B$126,2,FALSE)<0.8*VLOOKUP(G66,Lookups!$A$123:$B$126,2,FALSE)),$I$9,IF(AND(VLOOKUP(H66,Lookups!$A$123:$B$126,2,FALSE)<=VLOOKUP(G66,Lookups!$A$123:$B$126,2,FALSE),VLOOKUP(H66,Lookups!$A$123:$B$126,2,FALSE)>=0.8*VLOOKUP(G66,Lookups!$A$123:$B$126,2,FALSE)),$I$10,IF(VLOOKUP(H66,Lookups!$A$123:$B$126,2,FALSE)>VLOOKUP(G66,Lookups!$A$123:$B$126,2,FALSE),$I$11,""))))) -> 0 | K66: Not included | L66: Not included | N66: =IF(M66="",$I$7,IF(VLOOKUP(M66,Lookups!$A$123:$B$126,2,FALSE)<VLOOKUP(K66,Lookups!$A$123:$B$126,2,FALSE),$I$8,IF(AND(VLOOKUP(M66,Lookups!$A$123:$B$126,2,FALSE)>=VLOOKUP(K66,Lookups!$A$123:$B$126,2,FALSE),VLOOKUP(M66,Lookups!$A$123:$B$126,2,FALSE)<0.8*VLOOKUP(L66,Lookups!$A$123:$B$126,2,FALSE)),$I$9,IF(AND(VLOOKUP(M66,Lookups!$A$123:$B$126,2,FALSE)<=VLOOKUP(L66,Lookups!$A$123:$B$126,2,FALSE),VLOOKUP(M66,Lookups!$A$123:$B$126,2,FALSE)>=0.8*VLOOKUP(L66,Lookups!$A$123:$B$126,2,FALSE)),$I$10,IF(VLOOKUP(M66,Lookups!$A$123:$B$126,2,FALSE)>VLOOKUP(L66,Lookups!$A$123:$B$126,2,FALSE),$I$11,""))))) -> 0 | P66: Not included | Q66: 5G | S66: =IF(R66="",$I$7,IF(VLOOKUP(R66,Lookups!$A$123:$B$126,2,FALSE)<VLOOKUP(P66,Lookups!$A$123:$B$126,2,FALSE),$I$8,IF(AND(VLOOKUP(R66,Lookups!$A$123:$B$126,2,FALSE)>=VLOOKUP(P66,Lookups!$A$123:$B$126,2,FALSE),VLOOKUP(R66,Lookups!$A$123:$B$126,2,FALSE)<0.8*VLOOKUP(Q66,Lookups!$A$123:$B$126,2,FALSE)),$I$9,IF(AND(VLOOKUP(R66,Lookups!$A$123:$B$126,2,FALSE)<=VLOOKUP(Q66,Lookups!$A$123:$B$126,2,FALSE),VLOOKUP(R66,Lookups!$A$123:$B$126,2,FALSE)>=0.8*VLOOKUP(Q66,Lookups!$A$123:$B$126,2,FALSE)),$I$10,IF(VLOOKUP(R66,Lookups!$A$123:$B$126,2,FALSE)>VLOOKUP(Q66,Lookups!$A$123:$B$126,2,FALSE),$I$11,""))))) -> 0 | U66: Not included | V66: 5G | X66: =IF(W66="",$I$7,IF(VLOOKUP(W66,Lookups!$A$123:$B$126,2,FALSE)<VLOOKUP(U66,Lookups!$A$123:$B$126,2,FALSE),$I$8,IF(AND(VLOOKUP(W66,Lookups!$A$123:$B$126,2,FALSE)>=VLOOKUP(U66,Lookups!$A$123:$B$126,2,FALSE),VLOOKUP(W66,Lookups!$A$123:$B$126,2,FALSE)<0.8*VLOOKUP(V66,Lookups!$A$123:$B$126,2,FALSE)),$I$9,IF(AND(VLOOKUP(W66,Lookups!$A$123:$B$126,2,FALSE)<=VLOOKUP(V66,Lookups!$A$123:$B$126,2,FALSE),VLOOKUP(W66,Lookups!$A$123:$B$126,2,FALSE)>=0.8*VLOOKUP(V66,Lookups!$A$123:$B$126,2,FALSE)),$I$10,IF(VLOOKUP(W66,Lookups!$A$123:$B$126,2,FALSE)>VLOOKUP(V66,Lookups!$A$123:$B$126,2,FALSE),$I$11,""))))) -> 0 | Z66: Not included | AA66: 5G | AC66: =IF(AB66="",$I$7,IF(VLOOKUP(AB66,Lookups!$A$123:$B$126,2,FALSE)<VLOOKUP(Z66,Lookups!$A$123:$B$126,2,FALSE),$I$8,IF(AND(VLOOKUP(AB66,Lookups!$A$123:$B$126,2,FALSE)>=VLOOKUP(Z66,Lookups!$A$123:$B$126,2,FALSE),VLOOKUP(AB66,Lookups!$A$123:$B$126,2,FALSE)<0.8*VLOOKUP(AA66,Lookups!$A$123:$B$126,2,FALSE)),$I$9,IF(AND(VLOOKUP(AB66,Lookups!$A$123:$B$126,2,FALSE)<=VLOOKUP(AA66,Lookups!$A$123:$B$126,2,FALSE),VLOOKUP(AB66,Lookups!$A$123:$B$126,2,FALSE)>=0.8*VLOOKUP(AA66,Lookups!$A$123:$B$126,2,FALSE)),$I$10,IF(VLOOKUP(AB66,Lookups!$A$123:$B$126,2,FALSE)>VLOOKUP(AA66,Lookups!$A$123:$B$126,2,FALSE),$I$11,""))))) -> 0 | AG66: 4G/5G | AH66: 0.0% | AM66: =IF(AL66="",$I$7,IF(VLOOKUP(AL66,Lookups!$A$123:$B$126,2,FALSE)<VLOOKUP(AJ66,Lookups!$A$123:$B$126,2,FALSE),$I$8,IF(AND(VLOOKUP(AL66,Lookups!$A$123:$B$126,2,FALSE)>=VLOOKUP(AJ66,Lookups!$A$123:$B$126,2,FALSE),VLOOKUP(AL66,Lookups!$A$123:$B$126,2,FALSE)<0.8*VLOOKUP(AK66,Lookups!$A$123:$B$126,2,FALSE)),$I$9,IF(AND(VLOOKUP(AL66,Lookups!$A$123:$B$126,2,FALSE)<=VLOOKUP(AK66,Lookups!$A$123:$B$126,2,FALSE),VLOOKUP(AL66,Lookups!$A$123:$B$126,2,FALSE)>=0.8*VLOOKUP(AK66,Lookups!$A$123:$B$126,2,FALSE)),$I$10,IF(VLOOKUP(AL66,Lookups!$A$123:$B$126,2,FALSE)>VLOOKUP(AK66,Lookups!$A$123:$B$126,2,FALSE),$I$11,""))))) -> 0 | AR66: =IF(AQ66="",$I$7,IF(VLOOKUP(AQ66,Lookups!$A$123:$B$126,2,FALSE)<VLOOKUP(AO66,Lookups!$A$123:$B$126,2,FALSE),$I$8,IF(AND(VLOOKUP(AQ66,Lookups!$A$123:$B$126,2,FALSE)>=VLOOKUP(AO66,Lookups!$A$123:$B$126,2,FALSE),VLOOKUP(AQ66,Lookups!$A$123:$B$126,2,FALSE)<0.8*VLOOKUP(AP66,Lookups!$A$123:$B$126,2,FALSE)),$I$9,IF(AND(VLOOKUP(AQ66,Lookups!$A$123:$B$126,2,FALSE)<=VLOOKUP(AP66,Lookups!$A$123:$B$126,2,FALSE),VLOOKUP(AQ66,Lookups!$A$123:$B$126,2,FALSE)>=0.8*VLOOKUP(AP66,Lookups!$A$123:$B$126,2,FALSE)),$I$10,IF(VLOOKUP(AQ66,Lookups!$A$123:$B$126,2,FALSE)>VLOOKUP(AP66,Lookups!$A$123:$B$126,2,FALSE),$I$11,""))))) -> 0 | AW66: =IF(AV66="",$I$7,IF(VLOOKUP(AV66,Lookups!$A$123:$B$126,2,FALSE)<VLOOKUP(AT66,Lookups!$A$123:$B$126,2,FALSE),$I$8,IF(AND(VLOOKUP(AV66,Lookups!$A$123:$B$126,2,FALSE)>=VLOOKUP(AT66,Lookups!$A$123:$B$126,2,FALSE),VLOOKUP(AV66,Lookups!$A$123:$B$126,2,FALSE)<0.8*VLOOKUP(AU66,Lookups!$A$123:$B$126,2,FALSE)),$I$9,IF(AND(VLOOKUP(AV66,Lookups!$A$123:$B$126,2,FALSE)<=VLOOKUP(AU66,Lookups!$A$123:$B$126,2,FALSE),VLOOKUP(AV66,Lookups!$A$123:$B$126,2,FALSE)>=0.8*VLOOKUP(AU66,Lookups!$A$123:$B$126,2,FALSE)),$I$10,IF(VLOOKUP(AV66,Lookups!$A$123:$B$126,2,FALSE)>VLOOKUP(AU66,Lookups!$A$123:$B$126,2,FALSE),$I$11,""))))) -> 0
A67: =SUM(D67:D72) -> 1% | B67: Keyboard | C67: USA QWERTY layout | D67: 0.0% | F67: Yes | G67: Yes | I67: =IF(H67="",$I$7,IF(VLOOKUP(H67,Lookups!$A$31:$B$33,2,FALSE)<VLOOKUP(F67,Lookups!$A$31:$B$33,2,FALSE),$I$8,IF(AND(VLOOKUP(H67,Lookups!$A$31:$B$33,2,FALSE)>=VLOOKUP(F67,Lookups!$A$31:$B$33,2,FALSE),VLOOKUP(H67,Lookups!$A$31:$B$33,2,FALSE)<0.8*VLOOKUP(G67,Lookups!$A$31:$B$33,2,FALSE)),$I$9,IF(AND(VLOOKUP(H67,Lookups!$A$31:$B$33,2,FALSE)<=VLOOKUP(G67,Lookups!$A$31:$B$33,2,FALSE),VLOOKUP(H67,Lookups!$A$31:$B$33,2,FALSE)>=0.8*VLOOKUP(G67,Lookups!$A$31:$B$33,2,FALSE)),$I$10,IF(VLOOKUP(H67,Lookups!$A$31:$B$33,2,FALSE)>VLOOKUP(G67,Lookups!$A$31:$B$33,2,FALSE),$I$11,""))))) -> 0 | K67: Yes | L67: Yes | N67: =IF(M67="",$I$7,IF(VLOOKUP(M67,Lookups!$A$31:$B$33,2,FALSE)<VLOOKUP(K67,Lookups!$A$31:$B$33,2,FALSE),$I$8,IF(AND(VLOOKUP(M67,Lookups!$A$31:$B$33,2,FALSE)>=VLOOKUP(K67,Lookups!$A$31:$B$33,2,FALSE),VLOOKUP(M67,Lookups!$A$31:$B$33,2,FALSE)<0.8*VLOOKUP(L67,Lookups!$A$31:$B$33,2,FALSE)),$I$9,IF(AND(VLOOKUP(M67,Lookups!$A$31:$B$33,2,FALSE)<=VLOOKUP(L67,Lookups!$A$31:$B$33,2,FALSE),VLOOKUP(M67,Lookups!$A$31:$B$33,2,FALSE)>=0.8*VLOOKUP(L67,Lookups!$A$31:$B$33,2,FALSE)),$I$10,IF(VLOOKUP(M67,Lookups!$A$31:$B$33,2,FALSE)>VLOOKUP(L67,Lookups!$A$31:$B$33,2,FALSE),$I$11,""))))) -> 0 | P67: Yes | Q67: Yes | S67: =IF(R67="",$I$7,IF(VLOOKUP(R67,Lookups!$A$31:$B$33,2,FALSE)<VLOOKUP(P67,Lookups!$A$31:$B$33,2,FALSE),$I$8,IF(AND(VLOOKUP(R67,Lookups!$A$31:$B$33,2,FALSE)>=VLOOKUP(P67,Lookups!$A$31:$B$33,2,FALSE),VLOOKUP(R67,Lookups!$A$31:$B$33,2,FALSE)<0.8*VLOOKUP(Q67,Lookups!$A$31:$B$33,2,FALSE)),$I$9,IF(AND(VLOOKUP(R67,Lookups!$A$31:$B$33,2,FALSE)<=VLOOKUP(Q67,Lookups!$A$31:$B$33,2,FALSE),VLOOKUP(R67,Lookups!$A$31:$B$33,2,FALSE)>=0.8*VLOOKUP(Q67,Lookups!$A$31:$B$33,2,FALSE)),$I$10,IF(VLOOKUP(R67,Lookups!$A$31:$B$33,2,FALSE)>VLOOKUP(Q67,Lookups!$A$31:$B$33,2,FALSE),$I$11,""))))) -> 0 | U67: Yes | V67: Yes | X67: =IF(W67="",$I$7,IF(VLOOKUP(W67,Lookups!$A$31:$B$33,2,FALSE)<VLOOKUP(U67,Lookups!$A$31:$B$33,2,FALSE),$I$8,IF(AND(VLOOKUP(W67,Lookups!$A$31:$B$33,2,FALSE)>=VLOOKUP(U67,Lookups!$A$31:$B$33,2,FALSE),VLOOKUP(W67,Lookups!$A$31:$B$33,2,FALSE)<0.8*VLOOKUP(V67,Lookups!$A$31:$B$33,2,FALSE)),$I$9,IF(AND(VLOOKUP(W67,Lookups!$A$31:$B$33,2,FALSE)<=VLOOKUP(V67,Lookups!$A$31:$B$33,2,FALSE),VLOOKUP(W67,Lookups!$A$31:$B$33,2,FALSE)>=0.8*VLOOKUP(V67,Lookups!$A$31:$B$33,2,FALSE)),$I$10,IF(VLOOKUP(W67,Lookups!$A$31:$B$33,2,FALSE)>VLOOKUP(V67,Lookups!$A$31:$B$33,2,FALSE),$I$11,""))))) -> 0 | Z67: Yes | AA67: Yes | AC67: =IF(AB67="",$I$7,IF(VLOOKUP(AB67,Lookups!$A$31:$B$33,2,FALSE)<VLOOKUP(Z67,Lookups!$A$31:$B$33,2,FALSE),$I$8,IF(AND(VLOOKUP(AB67,Lookups!$A$31:$B$33,2,FALSE)>=VLOOKUP(Z67,Lookups!$A$31:$B$33,2,FALSE),VLOOKUP(AB67,Lookups!$A$31:$B$33,2,FALSE)<0.8*VLOOKUP(AA67,Lookups!$A$31:$B$33,2,FALSE)),$I$9,IF(AND(VLOOKUP(AB67,Lookups!$A$31:$B$33,2,FALSE)<=VLOOKUP(AA67,Lookups!$A$31:$B$33,2,FALSE),VLOOKUP(AB67,Lookups!$A$31:$B$33,2,FALSE)>=0.8*VLOOKUP(AA67,Lookups!$A$31:$B$33,2,FALSE)),$I$10,IF(VLOOKUP(AB67,Lookups!$A$31:$B$33,2,FALSE)>VLOOKUP(AA67,Lookups!$A$31:$B$33,2,FALSE),$I$11,""))))) -> 0 | AE67: =SUM(AH67:AH72) -> 3% | AF67: Keyboard | AG67: USA QWERTY layout | AH67: 0.5% | AJ67: Yes | AK67: Yes | AM67: =IF(AL67="",$I$7,IF(VLOOKUP(AL67,Lookups!$A$31:$B$33,2,FALSE)<VLOOKUP(AJ67,Lookups!$A$31:$B$33,2,FALSE),$I$8,IF(AND(VLOOKUP(AL67,Lookups!$A$31:$B$33,2,FALSE)>=VLOOKUP(AJ67,Lookups!$A$31:$B$33,2,FALSE),VLOOKUP(AL67,Lookups!$A$31:$B$33,2,FALSE)<0.8*VLOOKUP(AK67,Lookups!$A$31:$B$33,2,FALSE)),$I$9,IF(AND(VLOOKUP(AL67,Lookups!$A$31:$B$33,2,FALSE)<=VLOOKUP(AK67,Lookups!$A$31:$B$33,2,FALSE),VLOOKUP(AL67,Lookups!$A$31:$B$33,2,FALSE)>=0.8*VLOOKUP(AK67,Lookups!$A$31:$B$33,2,FALSE)),$I$10,IF(VLOOKUP(AL67,Lookups!$A$31:$B$33,2,FALSE)>VLOOKUP(AK67,Lookups!$A$31:$B$33,2,FALSE),$I$11,""))))) -> 0 | AO67: Yes | AP67: Yes | AR67: =IF(AQ67="",$I$7,IF(VLOOKUP(AQ67,Lookups!$A$31:$B$33,2,FALSE)<VLOOKUP(AO67,Lookups!$A$31:$B$33,2,FALSE),$I$8,IF(AND(VLOOKUP(AQ67,Lookups!$A$31:$B$33,2,FALSE)>=VLOOKUP(AO67,Lookups!$A$31:$B$33,2,FALSE),VLOOKUP(AQ67,Lookups!$A$31:$B$33,2,FALSE)<0.8*VLOOKUP(AP67,Lookups!$A$31:$B$33,2,FALSE)),$I$9,IF(AND(VLOOKUP(AQ67,Lookups!$A$31:$B$33,2,FALSE)<=VLOOKUP(AP67,Lookups!$A$31:$B$33,2,FALSE),VLOOKUP(AQ67,Lookups!$A$31:$B$33,2,FALSE)>=0.8*VLOOKUP(AP67,Lookups!$A$31:$B$33,2,FALSE)),$I$10,IF(VLOOKUP(AQ67,Lookups!$A$31:$B$33,2,FALSE)>VLOOKUP(AP67,Lookups!$A$31:$B$33,2,FALSE),$I$11,""))))) -> 0 | AT67: Yes | AU67: Yes | AW67: =IF(AV67="",$I$7,IF(VLOOKUP(AV67,Lookups!$A$31:$B$33,2,FALSE)<VLOOKUP(AT67,Lookups!$A$31:$B$33,2,FALSE),$I$8,IF(AND(VLOOKUP(AV67,Lookups!$A$31:$B$33,2,FALSE)>=VLOOKUP(AT67,Lookups!$A$31:$B$33,2,FALSE),VLOOKUP(AV67,Lookups!$A$31:$B$33,2,FALSE)<0.8*VLOOKUP(AU67,Lookups!$A$31:$B$33,2,FALSE)),$I$9,IF(AND(VLOOKUP(AV67,Lookups!$A$31:$B$33,2,FALSE)<=VLOOKUP(AU67,Lookups!$A$31:$B$33,2,FALSE),VLOOKUP(AV67,Lookups!$A$31:$B$33,2,FALSE)>=0.8*VLOOKUP(AU67,Lookups!$A$31:$B$33,2,FALSE)),$I$10,IF(VLOOKUP(AV67,Lookups!$A$31:$B$33,2,FALSE)>VLOOKUP(AU67,Lookups!$A$31:$B$33,2,FALSE),$I$11,""))))) -> 0
C68: Laptop-like keys | D68: 0.0% | F68: Yes | G68: Yes | I68: =IF(H68="",$I$7,IF(VLOOKUP(H68,Lookups!$A$31:$B$33,2,FALSE)<VLOOKUP(F68,Lookups!$A$31:$B$33,2,FALSE),$I$8,IF(AND(VLOOKUP(H68,Lookups!$A$31:$B$33,2,FALSE)>=VLOOKUP(F68,Lookups!$A$31:$B$33,2,FALSE),VLOOKUP(H68,Lookups!$A$31:$B$33,2,FALSE)<0.8*VLOOKUP(G68,Lookups!$A$31:$B$33,2,FALSE)),$I$9,IF(AND(VLOOKUP(H68,Lookups!$A$31:$B$33,2,FALSE)<=VLOOKUP(G68,Lookups!$A$31:$B$33,2,FALSE),VLOOKUP(H68,Lookups!$A$31:$B$33,2,FALSE)>=0.8*VLOOKUP(G68,Lookups!$A$31:$B$33,2,FALSE)),$I$10,IF(VLOOKUP(H68,Lookups!$A$31:$B$33,2,FALSE)>VLOOKUP(G68,Lookups!$A$31:$B$33,2,FALSE),$I$11,""))))) -> 0 | K68: Yes | L68: Yes | N68: =IF(M68="",$I$7,IF(VLOOKUP(M68,Lookups!$A$31:$B$33,2,FALSE)<VLOOKUP(K68,Lookups!$A$31:$B$33,2,FALSE),$I$8,IF(AND(VLOOKUP(M68,Lookups!$A$31:$B$33,2,FALSE)>=VLOOKUP(K68,Lookups!$A$31:$B$33,2,FALSE),VLOOKUP(M68,Lookups!$A$31:$B$33,2,FALSE)<0.8*VLOOKUP(L68,Lookups!$A$31:$B$33,2,FALSE)),$I$9,IF(AND(VLOOKUP(M68,Lookups!$A$31:$B$33,2,FALSE)<=VLOOKUP(L68,Lookups!$A$31:$B$33,2,FALSE),VLOOKUP(M68,Lookups!$A$31:$B$33,2,FALSE)>=0.8*VLOOKUP(L68,Lookups!$A$31:$B$33,2,FALSE)),$I$10,IF(VLOOKUP(M68,Lookups!$A$31:$B$33,2,FALSE)>VLOOKUP(L68,Lookups!$A$31:$B$33,2,FALSE),$I$11,""))))) -> 0 | P68: Yes | Q68: Yes | S68: =IF(R68="",$I$7,IF(VLOOKUP(R68,Lookups!$A$31:$B$33,2,FALSE)<VLOOKUP(P68,Lookups!$A$31:$B$33,2,FALSE),$I$8,IF(AND(VLOOKUP(R68,Lookups!$A$31:$B$33,2,FALSE)>=VLOOKUP(P68,Lookups!$A$31:$B$33,2,FALSE),VLOOKUP(R68,Lookups!$A$31:$B$33,2,FALSE)<0.8*VLOOKUP(Q68,Lookups!$A$31:$B$33,2,FALSE)),$I$9,IF(AND(VLOOKUP(R68,Lookups!$A$31:$B$33,2,FALSE)<=VLOOKUP(Q68,Lookups!$A$31:$B$33,2,FALSE),VLOOKUP(R68,Lookups!$A$31:$B$33,2,FALSE)>=0.8*VLOOKUP(Q68,Lookups!$A$31:$B$33,2,FALSE)),$I$10,IF(VLOOKUP(R68,Lookups!$A$31:$B$33,2,FALSE)>VLOOKUP(Q68,Lookups!$A$31:$B$33,2,FALSE),$I$11,""))))) -> 0 | U68: Yes | V68: Yes | X68: =IF(W68="",$I$7,IF(VLOOKUP(W68,Lookups!$A$31:$B$33,2,FALSE)<VLOOKUP(U68,Lookups!$A$31:$B$33,2,FALSE),$I$8,IF(AND(VLOOKUP(W68,Lookups!$A$31:$B$33,2,FALSE)>=VLOOKUP(U68,Lookups!$A$31:$B$33,2,FALSE),VLOOKUP(W68,Lookups!$A$31:$B$33,2,FALSE)<0.8*VLOOKUP(V68,Lookups!$A$31:$B$33,2,FALSE)),$I$9,IF(AND(VLOOKUP(W68,Lookups!$A$31:$B$33,2,FALSE)<=VLOOKUP(V68,Lookups!$A$31:$B$33,2,FALSE),VLOOKUP(W68,Lookups!$A$31:$B$33,2,FALSE)>=0.8*VLOOKUP(V68,Lookups!$A$31:$B$33,2,FALSE)),$I$10,IF(VLOOKUP(W68,Lookups!$A$31:$B$33,2,FALSE)>VLOOKUP(V68,Lookups!$A$31:$B$33,2,FALSE),$I$11,""))))) -> 0 | Z68: Yes | AA68: Yes | AC68: =IF(AB68="",$I$7,IF(VLOOKUP(AB68,Lookups!$A$31:$B$33,2,FALSE)<VLOOKUP(Z68,Lookups!$A$31:$B$33,2,FALSE),$I$8,IF(AND(VLOOKUP(AB68,Lookups!$A$31:$B$33,2,FALSE)>=VLOOKUP(Z68,Lookups!$A$31:$B$33,2,FALSE),VLOOKUP(AB68,Lookups!$A$31:$B$33,2,FALSE)<0.8*VLOOKUP(AA68,Lookups!$A$31:$B$33,2,FALSE)),$I$9,IF(AND(VLOOKUP(AB68,Lookups!$A$31:$B$33,2,FALSE)<=VLOOKUP(AA68,Lookups!$A$31:$B$33,2,FALSE),VLOOKUP(AB68,Lookups!$A$31:$B$33,2,FALSE)>=0.8*VLOOKUP(AA68,Lookups!$A$31:$B$33,2,FALSE)),$I$10,IF(VLOOKUP(AB68,Lookups!$A$31:$B$33,2,FALSE)>VLOOKUP(AA68,Lookups!$A$31:$B$33,2,FALSE),$I$11,""))))) -> 0 | AG68: Laptop-like keys | AH68: 0.5% | AJ68: Yes | AK68: Yes | AM68: =IF(AL68="",$I$7,IF(VLOOKUP(AL68,Lookups!$A$31:$B$33,2,FALSE)<VLOOKUP(AJ68,Lookups!$A$31:$B$33,2,FALSE),$I$8,IF(AND(VLOOKUP(AL68,Lookups!$A$31:$B$33,2,FALSE)>=VLOOKUP(AJ68,Lookups!$A$31:$B$33,2,FALSE),VLOOKUP(AL68,Lookups!$A$31:$B$33,2,FALSE)<0.8*VLOOKUP(AK68,Lookups!$A$31:$B$33,2,FALSE)),$I$9,IF(AND(VLOOKUP(AL68,Lookups!$A$31:$B$33,2,FALSE)<=VLOOKUP(AK68,Lookups!$A$31:$B$33,2,FALSE),VLOOKUP(AL68,Lookups!$A$31:$B$33,2,FALSE)>=0.8*VLOOKUP(AK68,Lookups!$A$31:$B$33,2,FALSE)),$I$10,IF(VLOOKUP(AL68,Lookups!$A$31:$B$33,2,FALSE)>VLOOKUP(AK68,Lookups!$A$31:$B$33,2,FALSE),$I$11,""))))) -> 0 | AO68: Yes | AP68: Yes | AR68: =IF(AQ68="",$I$7,IF(VLOOKUP(AQ68,Lookups!$A$31:$B$33,2,FALSE)<VLOOKUP(AO68,Lookups!$A$31:$B$33,2,FALSE),$I$8,IF(AND(VLOOKUP(AQ68,Lookups!$A$31:$B$33,2,FALSE)>=VLOOKUP(AO68,Lookups!$A$31:$B$33,2,FALSE),VLOOKUP(AQ68,Lookups!$A$31:$B$33,2,FALSE)<0.8*VLOOKUP(AP68,Lookups!$A$31:$B$33,2,FALSE)),$I$9,IF(AND(VLOOKUP(AQ68,Lookups!$A$31:$B$33,2,FALSE)<=VLOOKUP(AP68,Lookups!$A$31:$B$33,2,FALSE),VLOOKUP(AQ68,Lookups!$A$31:$B$33,2,FALSE)>=0.8*VLOOKUP(AP68,Lookups!$A$31:$B$33,2,FALSE)),$I$10,IF(VLOOKUP(AQ68,Lookups!$A$31:$B$33,2,FALSE)>VLOOKUP(AP68,Lookups!$A$31:$B$33,2,FALSE),$I$11,""))))) -> 0 | AT68: Yes | AU68: Yes | AW68: =IF(AV68="",$I$7,IF(VLOOKUP(AV68,Lookups!$A$31:$B$33,2,FALSE)<VLOOKUP(AT68,Lookups!$A$31:$B$33,2,FALSE),$I$8,IF(AND(VLOOKUP(AV68,Lookups!$A$31:$B$33,2,FALSE)>=VLOOKUP(AT68,Lookups!$A$31:$B$33,2,FALSE),VLOOKUP(AV68,Lookups!$A$31:$B$33,2,FALSE)<0.8*VLOOKUP(AU68,Lookups!$A$31:$B$33,2,FALSE)),$I$9,IF(AND(VLOOKUP(AV68,Lookups!$A$31:$B$33,2,FALSE)<=VLOOKUP(AU68,Lookups!$A$31:$B$33,2,FALSE),VLOOKUP(AV68,Lookups!$A$31:$B$33,2,FALSE)>=0.8*VLOOKUP(AU68,Lookups!$A$31:$B$33,2,FALSE)),$I$10,IF(VLOOKUP(AV68,Lookups!$A$31:$B$33,2,FALSE)>VLOOKUP(AU68,Lookups!$A$31:$B$33,2,FALSE),$I$11,""))))) -> 0
C69: Backlit keys | D69: 0.5% | F69: Yes | G69: Yes | I69: =IF(H69="",$I$7,IF(VLOOKUP(H69,Lookups!$A$31:$B$33,2,FALSE)<VLOOKUP(F69,Lookups!$A$31:$B$33,2,FALSE),$I$8,IF(AND(VLOOKUP(H69,Lookups!$A$31:$B$33,2,FALSE)>=VLOOKUP(F69,Lookups!$A$31:$B$33,2,FALSE),VLOOKUP(H69,Lookups!$A$31:$B$33,2,FALSE)<0.8*VLOOKUP(G69,Lookups!$A$31:$B$33,2,FALSE)),$I$9,IF(AND(VLOOKUP(H69,Lookups!$A$31:$B$33,2,FALSE)<=VLOOKUP(G69,Lookups!$A$31:$B$33,2,FALSE),VLOOKUP(H69,Lookups!$A$31:$B$33,2,FALSE)>=0.8*VLOOKUP(G69,Lookups!$A$31:$B$33,2,FALSE)),$I$10,IF(VLOOKUP(H69,Lookups!$A$31:$B$33,2,FALSE)>VLOOKUP(G69,Lookups!$A$31:$B$33,2,FALSE),$I$11,""))))) -> 0 | K69: Yes | L69: Yes | N69: =IF(M69="",$I$7,IF(VLOOKUP(M69,Lookups!$A$31:$B$33,2,FALSE)<VLOOKUP(K69,Lookups!$A$31:$B$33,2,FALSE),$I$8,IF(AND(VLOOKUP(M69,Lookups!$A$31:$B$33,2,FALSE)>=VLOOKUP(K69,Lookups!$A$31:$B$33,2,FALSE),VLOOKUP(M69,Lookups!$A$31:$B$33,2,FALSE)<0.8*VLOOKUP(L69,Lookups!$A$31:$B$33,2,FALSE)),$I$9,IF(AND(VLOOKUP(M69,Lookups!$A$31:$B$33,2,FALSE)<=VLOOKUP(L69,Lookups!$A$31:$B$33,2,FALSE),VLOOKUP(M69,Lookups!$A$31:$B$33,2,FALSE)>=0.8*VLOOKUP(L69,Lookups!$A$31:$B$33,2,FALSE)),$I$10,IF(VLOOKUP(M69,Lookups!$A$31:$B$33,2,FALSE)>VLOOKUP(L69,Lookups!$A$31:$B$33,2,FALSE),$I$11,""))))) -> 0 | P69: Yes | Q69: Yes | S69: =IF(R69="",$I$7,IF(VLOOKUP(R69,Lookups!$A$31:$B$33,2,FALSE)<VLOOKUP(P69,Lookups!$A$31:$B$33,2,FALSE),$I$8,IF(AND(VLOOKUP(R69,Lookups!$A$31:$B$33,2,FALSE)>=VLOOKUP(P69,Lookups!$A$31:$B$33,2,FALSE),VLOOKUP(R69,Lookups!$A$31:$B$33,2,FALSE)<0.8*VLOOKUP(Q69,Lookups!$A$31:$B$33,2,FALSE)),$I$9,IF(AND(VLOOKUP(R69,Lookups!$A$31:$B$33,2,FALSE)<=VLOOKUP(Q69,Lookups!$A$31:$B$33,2,FALSE),VLOOKUP(R69,Lookups!$A$31:$B$33,2,FALSE)>=0.8*VLOOKUP(Q69,Lookups!$A$31:$B$33,2,FALSE)),$I$10,IF(VLOOKUP(R69,Lookups!$A$31:$B$33,2,FALSE)>VLOOKUP(Q69,Lookups!$A$31:$B$33,2,FALSE),$I$11,""))))) -> 0 | U69: Yes | V69: Yes | X69: =IF(W69="",$I$7,IF(VLOOKUP(W69,Lookups!$A$31:$B$33,2,FALSE)<VLOOKUP(U69,Lookups!$A$31:$B$33,2,FALSE),$I$8,IF(AND(VLOOKUP(W69,Lookups!$A$31:$B$33,2,FALSE)>=VLOOKUP(U69,Lookups!$A$31:$B$33,2,FALSE),VLOOKUP(W69,Lookups!$A$31:$B$33,2,FALSE)<0.8*VLOOKUP(V69,Lookups!$A$31:$B$33,2,FALSE)),$I$9,IF(AND(VLOOKUP(W69,Lookups!$A$31:$B$33,2,FALSE)<=VLOOKUP(V69,Lookups!$A$31:$B$33,2,FALSE),VLOOKUP(W69,Lookups!$A$31:$B$33,2,FALSE)>=0.8*VLOOKUP(V69,Lookups!$A$31:$B$33,2,FALSE)),$I$10,IF(VLOOKUP(W69,Lookups!$A$31:$B$33,2,FALSE)>VLOOKUP(V69,Lookups!$A$31:$B$33,2,FALSE),$I$11,""))))) -> 0 | Z69: Yes | AA69: Yes | AC69: =IF(AB69="",$I$7,IF(VLOOKUP(AB69,Lookups!$A$31:$B$33,2,FALSE)<VLOOKUP(Z69,Lookups!$A$31:$B$33,2,FALSE),$I$8,IF(AND(VLOOKUP(AB69,Lookups!$A$31:$B$33,2,FALSE)>=VLOOKUP(Z69,Lookups!$A$31:$B$33,2,FALSE),VLOOKUP(AB69,Lookups!$A$31:$B$33,2,FALSE)<0.8*VLOOKUP(AA69,Lookups!$A$31:$B$33,2,FALSE)),$I$9,IF(AND(VLOOKUP(AB69,Lookups!$A$31:$B$33,2,FALSE)<=VLOOKUP(AA69,Lookups!$A$31:$B$33,2,FALSE),VLOOKUP(AB69,Lookups!$A$31:$B$33,2,FALSE)>=0.8*VLOOKUP(AA69,Lookups!$A$31:$B$33,2,FALSE)),$I$10,IF(VLOOKUP(AB69,Lookups!$A$31:$B$33,2,FALSE)>VLOOKUP(AA69,Lookups!$A$31:$B$33,2,FALSE),$I$11,""))))) -> 0 | AG69: Backlit keys | AH69: 0.5% | AJ69: Yes | AK69: Yes | AM69: =IF(AL69="",$I$7,IF(VLOOKUP(AL69,Lookups!$A$31:$B$33,2,FALSE)<VLOOKUP(AJ69,Lookups!$A$31:$B$33,2,FALSE),$I$8,IF(AND(VLOOKUP(AL69,Lookups!$A$31:$B$33,2,FALSE)>=VLOOKUP(AJ69,Lookups!$A$31:$B$33,2,FALSE),VLOOKUP(AL69,Lookups!$A$31:$B$33,2,FALSE)<0.8*VLOOKUP(AK69,Lookups!$A$31:$B$33,2,FALSE)),$I$9,IF(AND(VLOOKUP(AL69,Lookups!$A$31:$B$33,2,FALSE)<=VLOOKUP(AK69,Lookups!$A$31:$B$33,2,FALSE),VLOOKUP(AL69,Lookups!$A$31:$B$33,2,FALSE)>=0.8*VLOOKUP(AK69,Lookups!$A$31:$B$33,2,FALSE)),$I$10,IF(VLOOKUP(AL69,Lookups!$A$31:$B$33,2,FALSE)>VLOOKUP(AK69,Lookups!$A$31:$B$33,2,FALSE),$I$11,""))))) -> 0 | AO69: Yes | AP69: Yes | AR69: =IF(AQ69="",$I$7,IF(VLOOKUP(AQ69,Lookups!$A$31:$B$33,2,FALSE)<VLOOKUP(AO69,Lookups!$A$31:$B$33,2,FALSE),$I$8,IF(AND(VLOOKUP(AQ69,Lookups!$A$31:$B$33,2,FALSE)>=VLOOKUP(AO69,Lookups!$A$31:$B$33,2,FALSE),VLOOKUP(AQ69,Lookups!$A$31:$B$33,2,FALSE)<0.8*VLOOKUP(AP69,Lookups!$A$31:$B$33,2,FALSE)),$I$9,IF(AND(VLOOKUP(AQ69,Lookups!$A$31:$B$33,2,FALSE)<=VLOOKUP(AP69,Lookups!$A$31:$B$33,2,FALSE),VLOOKUP(AQ69,Lookups!$A$31:$B$33,2,FALSE)>=0.8*VLOOKUP(AP69,Lookups!$A$31:$B$33,2,FALSE)),$I$10,IF(VLOOKUP(AQ69,Lookups!$A$31:$B$33,2,FALSE)>VLOOKUP(AP69,Lookups!$A$31:$B$33,2,FALSE),$I$11,""))))) -> 0 | AT69: Yes | AU69: Yes | AW69: =IF(AV69="",$I$7,IF(VLOOKUP(AV69,Lookups!$A$31:$B$33,2,FALSE)<VLOOKUP(AT69,Lookups!$A$31:$B$33,2,FALSE),$I$8,IF(AND(VLOOKUP(AV69,Lookups!$A$31:$B$33,2,FALSE)>=VLOOKUP(AT69,Lookups!$A$31:$B$33,2,FALSE),VLOOKUP(AV69,Lookups!$A$31:$B$33,2,FALSE)<0.8*VLOOKUP(AU69,Lookups!$A$31:$B$33,2,FALSE)),$I$9,IF(AND(VLOOKUP(AV69,Lookups!$A$31:$B$33,2,FALSE)<=VLOOKUP(AU69,Lookups!$A$31:$B$33,2,FALSE),VLOOKUP(AV69,Lookups!$A$31:$B$33,2,FALSE)>=0.8*VLOOKUP(AU69,Lookups!$A$31:$B$33,2,FALSE)),$I$10,IF(VLOOKUP(AV69,Lookups!$A$31:$B$33,2,FALSE)>VLOOKUP(AU69,Lookups!$A$31:$B$33,2,FALSE),$I$11,""))))) -> 0
C70: Keyboard size | D70: 0.5% | F70: Compact | G70: Compact with numpad | I70: =IF(H70="",$I$7,IF(VLOOKUP(H70,Lookups!$A$36:$B$39,2,FALSE)<VLOOKUP(F70,Lookups!$A$36:$B$39,2,FALSE),$I$8,IF(AND(VLOOKUP(H70,Lookups!$A$36:$B$39,2,FALSE)>=VLOOKUP(F70,Lookups!$A$36:$B$39,2,FALSE),VLOOKUP(H70,Lookups!$A$36:$B$39,2,FALSE)<0.8*VLOOKUP(G70,Lookups!$A$36:$B$39,2,FALSE)),$I$9,IF(AND(VLOOKUP(H70,Lookups!$A$36:$B$39,2,FALSE)<=VLOOKUP(G70,Lookups!$A$36:$B$39,2,FALSE),VLOOKUP(H70,Lookups!$A$36:$B$39,2,FALSE)>=0.8*VLOOKUP(G70,Lookups!$A$36:$B$39,2,FALSE)),$I$10,IF(VLOOKUP(H70,Lookups!$A$36:$B$39,2,FALSE)>VLOOKUP(G70,Lookups!$A$36:$B$39,2,FALSE),$I$11,""))))) -> 0 | K70: Compact with numpad | L70: Compact with numpad | N70: =IF(M70="",$I$7,IF(VLOOKUP(M70,Lookups!$A$36:$B$39,2,FALSE)<VLOOKUP(K70,Lookups!$A$36:$B$39,2,FALSE),$I$8,IF(AND(VLOOKUP(M70,Lookups!$A$36:$B$39,2,FALSE)>=VLOOKUP(K70,Lookups!$A$36:$B$39,2,FALSE),VLOOKUP(M70,Lookups!$A$36:$B$39,2,FALSE)<0.8*VLOOKUP(L70,Lookups!$A$36:$B$39,2,FALSE)),$I$9,IF(AND(VLOOKUP(M70,Lookups!$A$36:$B$39,2,FALSE)<=VLOOKUP(L70,Lookups!$A$36:$B$39,2,FALSE),VLOOKUP(M70,Lookups!$A$36:$B$39,2,FALSE)>=0.8*VLOOKUP(L70,Lookups!$A$36:$B$39,2,FALSE)),$I$10,IF(VLOOKUP(M70,Lookups!$A$36:$B$39,2,FALSE)>VLOOKUP(L70,Lookups!$A$36:$B$39,2,FALSE),$I$11,""))))) -> 0 | P70: Compact with numpad | Q70: Compact with numpad | S70: =IF(R70="",$I$7,IF(VLOOKUP(R70,Lookups!$A$36:$B$39,2,FALSE)<VLOOKUP(P70,Lookups!$A$36:$B$39,2,FALSE),$I$8,IF(AND(VLOOKUP(R70,Lookups!$A$36:$B$39,2,FALSE)>=VLOOKUP(P70,Lookups!$A$36:$B$39,2,FALSE),VLOOKUP(R70,Lookups!$A$36:$B$39,2,FALSE)<0.8*VLOOKUP(Q70,Lookups!$A$36:$B$39,2,FALSE)),$I$9,IF(AND(VLOOKUP(R70,Lookups!$A$36:$B$39,2,FALSE)<=VLOOKUP(Q70,Lookups!$A$36:$B$39,2,FALSE),VLOOKUP(R70,Lookups!$A$36:$B$39,2,FALSE)>=0.8*VLOOKUP(Q70,Lookups!$A$36:$B$39,2,FALSE)),$I$10,IF(VLOOKUP(R70,Lookups!$A$36:$B$39,2,FALSE)>VLOOKUP(Q70,Lookups!$A$36:$B$39,2,FALSE),$I$11,""))))) -> 0 | U70: Compact | V70: Compact with numpad | X70: =IF(W70="",$I$7,IF(VLOOKUP(W70,Lookups!$A$36:$B$39,2,FALSE)<VLOOKUP(U70,Lookups!$A$36:$B$39,2,FALSE),$I$8,IF(AND(VLOOKUP(W70,Lookups!$A$36:$B$39,2,FALSE)>=VLOOKUP(U70,Lookups!$A$36:$B$39,2,FALSE),VLOOKUP(W70,Lookups!$A$36:$B$39,2,FALSE)<0.8*VLOOKUP(V70,Lookups!$A$36:$B$39,2,FALSE)),$I$9,IF(AND(VLOOKUP(W70,Lookups!$A$36:$B$39,2,FALSE)<=VLOOKUP(V70,Lookups!$A$36:$B$39,2,FALSE),VLOOKUP(W70,Lookups!$A$36:$B$39,2,FALSE)>=0.8*VLOOKUP(V70,Lookups!$A$36:$B$39,2,FALSE)),$I$10,IF(VLOOKUP(W70,Lookups!$A$36:$B$39,2,FALSE)>VLOOKUP(V70,Lookups!$A$36:$B$39,2,FALSE),$I$11,""))))) -> 0 | Z70: Compact | AA70: Compact with numpad | AC70: =IF(AB70="",$I$7,IF(VLOOKUP(AB70,Lookups!$A$36:$B$39,2,FALSE)<VLOOKUP(Z70,Lookups!$A$36:$B$39,2,FALSE),$I$8,IF(AND(VLOOKUP(AB70,Lookups!$A$36:$B$39,2,FALSE)>=VLOOKUP(Z70,Lookups!$A$36:$B$39,2,FALSE),VLOOKUP(AB70,Lookups!$A$36:$B$39,2,FALSE)<0.8*VLOOKUP(AA70,Lookups!$A$36:$B$39,2,FALSE)),$I$9,IF(AND(VLOOKUP(AB70,Lookups!$A$36:$B$39,2,FALSE)<=VLOOKUP(AA70,Lookups!$A$36:$B$39,2,FALSE),VLOOKUP(AB70,Lookups!$A$36:$B$39,2,FALSE)>=0.8*VLOOKUP(AA70,Lookups!$A$36:$B$39,2,FALSE)),$I$10,IF(VLOOKUP(AB70,Lookups!$A$36:$B$39,2,FALSE)>VLOOKUP(AA70,Lookups!$A$36:$B$39,2,FALSE),$I$11,""))))) -> 0 | AG70: Keyboard size | AH70: 0.5% | AJ70: Full with numpad | AK70: Full with numpad | AM70: =IF(AL70="",$I$7,IF(VLOOKUP(AL70,Lookups!$A$36:$B$39,2,FALSE)<VLOOKUP(AJ70,Lookups!$A$36:$B$39,2,FALSE),$I$8,IF(AND(VLOOKUP(AL70,Lookups!$A$36:$B$39,2,FALSE)>=VLOOKUP(AJ70,Lookups!$A$36:$B$39,2,FALSE),VLOOKUP(AL70,Lookups!$A$36:$B$39,2,FALSE)<0.8*VLOOKUP(AK70,Lookups!$A$36:$B$39,2,FALSE)),$I$9,IF(AND(VLOOKUP(AL70,Lookups!$A$36:$B$39,2,FALSE)<=VLOOKUP(AK70,Lookups!$A$36:$B$39,2,FALSE),VLOOKUP(AL70,Lookups!$A$36:$B$39,2,FALSE)>=0.8*VLOOKUP(AK70,Lookups!$A$36:$B$39,2,FALSE)),$I$10,IF(VLOOKUP(AL70,Lookups!$A$36:$B$39,2,FALSE)>VLOOKUP(AK70,Lookups!$A$36:$B$39,2,FALSE),$I$11,""))))) -> 0 | AO70: Full with numpad | AP70: Full with numpad | AR70: =IF(AQ70="",$I$7,IF(VLOOKUP(AQ70,Lookups!$A$36:$B$39,2,FALSE)<VLOOKUP(AO70,Lookups!$A$36:$B$39,2,FALSE),$I$8,IF(AND(VLOOKUP(AQ70,Lookups!$A$36:$B$39,2,FALSE)>=VLOOKUP(AO70,Lookups!$A$36:$B$39,2,FALSE),VLOOKUP(AQ70,Lookups!$A$36:$B$39,2,FALSE)<0.8*VLOOKUP(AP70,Lookups!$A$36:$B$39,2,FALSE)),$I$9,IF(AND(VLOOKUP(AQ70,Lookups!$A$36:$B$39,2,FALSE)<=VLOOKUP(AP70,Lookups!$A$36:$B$39,2,FALSE),VLOOKUP(AQ70,Lookups!$A$36:$B$39,2,FALSE)>=0.8*VLOOKUP(AP70,Lookups!$A$36:$B$39,2,FALSE)),$I$10,IF(VLOOKUP(AQ70,Lookups!$A$36:$B$39,2,FALSE)>VLOOKUP(AP70,Lookups!$A$36:$B$39,2,FALSE),$I$11,""))))) -> 0 | AT70: Full with numpad | AU70: Full with numpad | AW70: =IF(AV70="",$I$7,IF(VLOOKUP(AV70,Lookups!$A$36:$B$39,2,FALSE)<VLOOKUP(AT70,Lookups!$A$36:$B$39,2,FALSE),$I$8,IF(AND(VLOOKUP(AV70,Lookups!$A$36:$B$39,2,FALSE)>=VLOOKUP(AT70,Lookups!$A$36:$B$39,2,FALSE),VLOOKUP(AV70,Lookups!$A$36:$B$39,2,FALSE)<0.8*VLOOKUP(AU70,Lookups!$A$36:$B$39,2,FALSE)),$I$9,IF(AND(VLOOKUP(AV70,Lookups!$A$36:$B$39,2,FALSE)<=VLOOKUP(AU70,Lookups!$A$36:$B$39,2,FALSE),VLOOKUP(AV70,Lookups!$A$36:$B$39,2,FALSE)>=0.8*VLOOKUP(AU70,Lookups!$A$36:$B$39,2,FALSE)),$I$10,IF(VLOOKUP(AV70,Lookups!$A$36:$B$39,2,FALSE)>VLOOKUP(AU70,Lookups!$A$36:$B$39,2,FALSE),$I$11,""))))) -> 0
C71: Connectivity | D71: 0.0% | F71: Built-in | G71: Built-in | I71: =IF(H71="",$I$7,IF(VLOOKUP(H71,Lookups!$A$42:$B$47,2,FALSE)<VLOOKUP(F71,Lookups!$A$42:$B$47,2,FALSE),$I$8,IF(AND(VLOOKUP(H71,Lookups!$A$42:$B$47,2,FALSE)>=VLOOKUP(F71,Lookups!$A$42:$B$47,2,FALSE),VLOOKUP(H71,Lookups!$A$42:$B$47,2,FALSE)<0.8*VLOOKUP(G71,Lookups!$A$42:$B$47,2,FALSE)),$I$9,IF(AND(VLOOKUP(H71,Lookups!$A$42:$B$47,2,FALSE)<=VLOOKUP(G71,Lookups!$A$42:$B$47,2,FALSE),VLOOKUP(H71,Lookups!$A$42:$B$47,2,FALSE)>=0.8*VLOOKUP(G71,Lookups!$A$42:$B$47,2,FALSE)),$I$10,IF(VLOOKUP(H71,Lookups!$A$42:$B$47,2,FALSE)>VLOOKUP(G71,Lookups!$A$42:$B$47,2,FALSE),$I$11,""))))) -> 0 | K71: Built-in | L71: Built-in | N71: =IF(M71="",$I$7,IF(VLOOKUP(M71,Lookups!$A$42:$B$47,2,FALSE)<VLOOKUP(K71,Lookups!$A$42:$B$47,2,FALSE),$I$8,IF(AND(VLOOKUP(M71,Lookups!$A$42:$B$47,2,FALSE)>=VLOOKUP(K71,Lookups!$A$42:$B$47,2,FALSE),VLOOKUP(M71,Lookups!$A$42:$B$47,2,FALSE)<0.8*VLOOKUP(L71,Lookups!$A$42:$B$47,2,FALSE)),$I$9,IF(AND(VLOOKUP(M71,Lookups!$A$42:$B$47,2,FALSE)<=VLOOKUP(L71,Lookups!$A$42:$B$47,2,FALSE),VLOOKUP(M71,Lookups!$A$42:$B$47,2,FALSE)>=0.8*VLOOKUP(L71,Lookups!$A$42:$B$47,2,FALSE)),$I$10,IF(VLOOKUP(M71,Lookups!$A$42:$B$47,2,FALSE)>VLOOKUP(L71,Lookups!$A$42:$B$47,2,FALSE),$I$11,""))))) -> 0 | P71: Built-in | Q71: Built-in | S71: =IF(R71="",$I$7,IF(VLOOKUP(R71,Lookups!$A$42:$B$47,2,FALSE)<VLOOKUP(P71,Lookups!$A$42:$B$47,2,FALSE),$I$8,IF(AND(VLOOKUP(R71,Lookups!$A$42:$B$47,2,FALSE)>=VLOOKUP(P71,Lookups!$A$42:$B$47,2,FALSE),VLOOKUP(R71,Lookups!$A$42:$B$47,2,FALSE)<0.8*VLOOKUP(Q71,Lookups!$A$42:$B$47,2,FALSE)),$I$9,IF(AND(VLOOKUP(R71,Lookups!$A$42:$B$47,2,FALSE)<=VLOOKUP(Q71,Lookups!$A$42:$B$47,2,FALSE),VLOOKUP(R71,Lookups!$A$42:$B$47,2,FALSE)>=0.8*VLOOKUP(Q71,Lookups!$A$42:$B$47,2,FALSE)),$I$10,IF(VLOOKUP(R71,Lookups!$A$42:$B$47,2,FALSE)>VLOOKUP(Q71,Lookups!$A$42:$B$47,2,FALSE),$I$11,""))))) -> 0 | U71: Built-in | V71: Built-in | X71: =IF(W71="",$I$7,IF(VLOOKUP(W71,Lookups!$A$42:$B$47,2,FALSE)<VLOOKUP(U71,Lookups!$A$42:$B$47,2,FALSE),$I$8,IF(AND(VLOOKUP(W71,Lookups!$A$42:$B$47,2,FALSE)>=VLOOKUP(U71,Lookups!$A$42:$B$47,2,FALSE),VLOOKUP(W71,Lookups!$A$42:$B$47,2,FALSE)<0.8*VLOOKUP(V71,Lookups!$A$42:$B$47,2,FALSE)),$I$9,IF(AND(VLOOKUP(W71,Lookups!$A$42:$B$47,2,FALSE)<=VLOOKUP(V71,Lookups!$A$42:$B$47,2,FALSE),VLOOKUP(W71,Lookups!$A$42:$B$47,2,FALSE)>=0.8*VLOOKUP(V71,Lookups!$A$42:$B$47,2,FALSE)),$I$10,IF(VLOOKUP(W71,Lookups!$A$42:$B$47,2,FALSE)>VLOOKUP(V71,Lookups!$A$42:$B$47,2,FALSE),$I$11,""))))) -> 0 | Z71: Built-in | AA71: Built-in | AC71: =IF(AB71="",$I$7,IF(VLOOKUP(AB71,Lookups!$A$42:$B$47,2,FALSE)<VLOOKUP(Z71,Lookups!$A$42:$B$47,2,FALSE),$I$8,IF(AND(VLOOKUP(AB71,Lookups!$A$42:$B$47,2,FALSE)>=VLOOKUP(Z71,Lookups!$A$42:$B$47,2,FALSE),VLOOKUP(AB71,Lookups!$A$42:$B$47,2,FALSE)<0.8*VLOOKUP(AA71,Lookups!$A$42:$B$47,2,FALSE)),$I$9,IF(AND(VLOOKUP(AB71,Lookups!$A$42:$B$47,2,FALSE)<=VLOOKUP(AA71,Lookups!$A$42:$B$47,2,FALSE),VLOOKUP(AB71,Lookups!$A$42:$B$47,2,FALSE)>=0.8*VLOOKUP(AA71,Lookups!$A$42:$B$47,2,FALSE)),$I$10,IF(VLOOKUP(AB71,Lookups!$A$42:$B$47,2,FALSE)>VLOOKUP(AA71,Lookups!$A$42:$B$47,2,FALSE),$I$11,""))))) -> 0 | AG71: Connectivity | AH71: 0.5% | AJ71: Wired (USB) | AK71: Wireless (BT) | AM71: =IF(AL71="",$I$7,IF(VLOOKUP(AL71,Lookups!$A$42:$B$47,2,FALSE)<VLOOKUP(AJ71,Lookups!$A$42:$B$47,2,FALSE),$I$8,IF(AND(VLOOKUP(AL71,Lookups!$A$42:$B$47,2,FALSE)>=VLOOKUP(AJ71,Lookups!$A$42:$B$47,2,FALSE),VLOOKUP(AL71,Lookups!$A$42:$B$47,2,FALSE)<0.8*VLOOKUP(AK71,Lookups!$A$42:$B$47,2,FALSE)),$I$9,IF(AND(VLOOKUP(AL71,Lookups!$A$42:$B$47,2,FALSE)<=VLOOKUP(AK71,Lookups!$A$42:$B$47,2,FALSE),VLOOKUP(AL71,Lookups!$A$42:$B$47,2,FALSE)>=0.8*VLOOKUP(AK71,Lookups!$A$42:$B$47,2,FALSE)),$I$10,IF(VLOOKUP(AL71,Lookups!$A$42:$B$47,2,FALSE)>VLOOKUP(AK71,Lookups!$A$42:$B$47,2,FALSE),$I$11,""))))) -> 0 | AO71: Wired (USB) | AP71: Wireless (BT) | AR71: =IF(AQ71="",$I$7,IF(VLOOKUP(AQ71,Lookups!$A$42:$B$47,2,FALSE)<VLOOKUP(AO71,Lookups!$A$42:$B$47,2,FALSE),$I$8,IF(AND(VLOOKUP(AQ71,Lookups!$A$42:$B$47,2,FALSE)>=VLOOKUP(AO71,Lookups!$A$42:$B$47,2,FALSE),VLOOKUP(AQ71,Lookups!$A$42:$B$47,2,FALSE)<0.8*VLOOKUP(AP71,Lookups!$A$42:$B$47,2,FALSE)),$I$9,IF(AND(VLOOKUP(AQ71,Lookups!$A$42:$B$47,2,FALSE)<=VLOOKUP(AP71,Lookups!$A$42:$B$47,2,FALSE),VLOOKUP(AQ71,Lookups!$A$42:$B$47,2,FALSE)>=0.8*VLOOKUP(AP71,Lookups!$A$42:$B$47,2,FALSE)),$I$10,IF(VLOOKUP(AQ71,Lookups!$A$42:$B$47,2,FALSE)>VLOOKUP(AP71,Lookups!$A$42:$B$47,2,FALSE),$I$11,""))))) -> 0 | AT71: Wireless (USB Shared) | AU71: Wireless (BT) | AW71: =IF(AV71="",$I$7,IF(VLOOKUP(AV71,Lookups!$A$42:$B$47,2,FALSE)<VLOOKUP(AT71,Lookups!$A$42:$B$47,2,FALSE),$I$8,IF(AND(VLOOKUP(AV71,Lookups!$A$42:$B$47,2,FALSE)>=VLOOKUP(AT71,Lookups!$A$42:$B$47,2,FALSE),VLOOKUP(AV71,Lookups!$A$42:$B$47,2,FALSE)<0.8*VLOOKUP(AU71,Lookups!$A$42:$B$47,2,FALSE)),$I$9,IF(AND(VLOOKUP(AV71,Lookups!$A$42:$B$47,2,FALSE)<=VLOOKUP(AU71,Lookups!$A$42:$B$47,2,FALSE),VLOOKUP(AV71,Lookups!$A$42:$B$47,2,FALSE)>=0.8*VLOOKUP(AU71,Lookups!$A$42:$B$47,2,FALSE)),$I$10,IF(VLOOKUP(AV71,Lookups!$A$42:$B$47,2,FALSE)>VLOOKUP(AU71,Lookups!$A$42:$B$47,2,FALSE),$I$11,""))))) -> 0
C72: Power Source | D72: 0.0% | F72: Device | G72: Device | I72: =IF(H72="",$I$7,IF(VLOOKUP(H72,Lookups!$A$50:$B$52,2,FALSE)<VLOOKUP(F72,Lookups!$A$50:$B$52,2,FALSE),$I$8,IF(AND(VLOOKUP(H72,Lookups!$A$50:$B$52,2,FALSE)>=VLOOKUP(F72,Lookups!$A$50:$B$52,2,FALSE),VLOOKUP(H72,Lookups!$A$50:$B$52,2,FALSE)<0.8*VLOOKUP(G72,Lookups!$A$50:$B$52,2,FALSE)),$I$9,IF(AND(VLOOKUP(H72,Lookups!$A$50:$B$52,2,FALSE)<=VLOOKUP(G72,Lookups!$A$50:$B$52,2,FALSE),VLOOKUP(H72,Lookups!$A$50:$B$52,2,FALSE)>=0.8*VLOOKUP(G72,Lookups!$A$50:$B$52,2,FALSE)),$I$10,IF(VLOOKUP(H72,Lookups!$A$50:$B$52,2,FALSE)>VLOOKUP(G72,Lookups!$A$50:$B$52,2,FALSE),$I$11,""))))) -> 0 | K72: Device | L72: Device | N72: =IF(M72="",$I$7,IF(VLOOKUP(M72,Lookups!$A$50:$B$52,2,FALSE)<VLOOKUP(K72,Lookups!$A$50:$B$52,2,FALSE),$I$8,IF(AND(VLOOKUP(M72,Lookups!$A$50:$B$52,2,FALSE)>=VLOOKUP(K72,Lookups!$A$50:$B$52,2,FALSE),VLOOKUP(M72,Lookups!$A$50:$B$52,2,FALSE)<0.8*VLOOKUP(L72,Lookups!$A$50:$B$52,2,FALSE)),$I$9,IF(AND(VLOOKUP(M72,Lookups!$A$50:$B$52,2,FALSE)<=VLOOKUP(L72,Lookups!$A$50:$B$52,2,FALSE),VLOOKUP(M72,Lookups!$A$50:$B$52,2,FALSE)>=0.8*VLOOKUP(L72,Lookups!$A$50:$B$52,2,FALSE)),$I$10,IF(VLOOKUP(M72,Lookups!$A$50:$B$52,2,FALSE)>VLOOKUP(L72,Lookups!$A$50:$B$52,2,FALSE),$I$11,""))))) -> 0 | P72: Device | Q72: Device | S72: =IF(R72="",$I$7,IF(VLOOKUP(R72,Lookups!$A$50:$B$52,2,FALSE)<VLOOKUP(P72,Lookups!$A$50:$B$52,2,FALSE),$I$8,IF(AND(VLOOKUP(R72,Lookups!$A$50:$B$52,2,FALSE)>=VLOOKUP(P72,Lookups!$A$50:$B$52,2,FALSE),VLOOKUP(R72,Lookups!$A$50:$B$52,2,FALSE)<0.8*VLOOKUP(Q72,Lookups!$A$50:$B$52,2,FALSE)),$I$9,IF(AND(VLOOKUP(R72,Lookups!$A$50:$B$52,2,FALSE)<=VLOOKUP(Q72,Lookups!$A$50:$B$52,2,FALSE),VLOOKUP(R72,Lookups!$A$50:$B$52,2,FALSE)>=0.8*VLOOKUP(Q72,Lookups!$A$50:$B$52,2,FALSE)),$I$10,IF(VLOOKUP(R72,Lookups!$A$50:$B$52,2,FALSE)>VLOOKUP(Q72,Lookups!$A$50:$B$52,2,FALSE),$I$11,""))))) -> 0 | U72: Device | V72: Device | X72: =IF(W72="",$I$7,IF(VLOOKUP(W72,Lookups!$A$50:$B$52,2,FALSE)<VLOOKUP(U72,Lookups!$A$50:$B$52,2,FALSE),$I$8,IF(AND(VLOOKUP(W72,Lookups!$A$50:$B$52,2,FALSE)>=VLOOKUP(U72,Lookups!$A$50:$B$52,2,FALSE),VLOOKUP(W72,Lookups!$A$50:$B$52,2,FALSE)<0.8*VLOOKUP(V72,Lookups!$A$50:$B$52,2,FALSE)),$I$9,IF(AND(VLOOKUP(W72,Lookups!$A$50:$B$52,2,FALSE)<=VLOOKUP(V72,Lookups!$A$50:$B$52,2,FALSE),VLOOKUP(W72,Lookups!$A$50:$B$52,2,FALSE)>=0.8*VLOOKUP(V72,Lookups!$A$50:$B$52,2,FALSE)),$I$10,IF(VLOOKUP(W72,Lookups!$A$50:$B$52,2,FALSE)>VLOOKUP(V72,Lookups!$A$50:$B$52,2,FALSE),$I$11,""))))) -> 0 | Z72: Device | AA72: Device | AC72: =IF(AB72="",$I$7,IF(VLOOKUP(AB72,Lookups!$A$50:$B$52,2,FALSE)<VLOOKUP(Z72,Lookups!$A$50:$B$52,2,FALSE),$I$8,IF(AND(VLOOKUP(AB72,Lookups!$A$50:$B$52,2,FALSE)>=VLOOKUP(Z72,Lookups!$A$50:$B$52,2,FALSE),VLOOKUP(AB72,Lookups!$A$50:$B$52,2,FALSE)<0.8*VLOOKUP(AA72,Lookups!$A$50:$B$52,2,FALSE)),$I$9,IF(AND(VLOOKUP(AB72,Lookups!$A$50:$B$52,2,FALSE)<=VLOOKUP(AA72,Lookups!$A$50:$B$52,2,FALSE),VLOOKUP(AB72,Lookups!$A$50:$B$52,2,FALSE)>=0.8*VLOOKUP(AA72,Lookups!$A$50:$B$52,2,FALSE)),$I$10,IF(VLOOKUP(AB72,Lookups!$A$50:$B$52,2,FALSE)>VLOOKUP(AA72,Lookups!$A$50:$B$52,2,FALSE),$I$11,""))))) -> 0 | AG72: Power Source | AH72: 0.5% | AJ72: Device | AK72: Batteries | AM72: =IF(AL72="",$I$7,IF(VLOOKUP(AL72,Lookups!$A$50:$B$52,2,FALSE)<VLOOKUP(AJ72,Lookups!$A$50:$B$52,2,FALSE),$I$8,IF(AND(VLOOKUP(AL72,Lookups!$A$50:$B$52,2,FALSE)>=VLOOKUP(AJ72,Lookups!$A$50:$B$52,2,FALSE),VLOOKUP(AL72,Lookups!$A$50:$B$52,2,FALSE)<0.8*VLOOKUP(AK72,Lookups!$A$50:$B$52,2,FALSE)),$I$9,IF(AND(VLOOKUP(AL72,Lookups!$A$50:$B$52,2,FALSE)<=VLOOKUP(AK72,Lookups!$A$50:$B$52,2,FALSE),VLOOKUP(AL72,Lookups!$A$50:$B$52,2,FALSE)>=0.8*VLOOKUP(AK72,Lookups!$A$50:$B$52,2,FALSE)),$I$10,IF(VLOOKUP(AL72,Lookups!$A$50:$B$52,2,FALSE)>VLOOKUP(AK72,Lookups!$A$50:$B$52,2,FALSE),$I$11,""))))) -> 0 | AO72: Device | AP72: Rechareable batteries | AR72: =IF(AQ72="",$I$7,IF(VLOOKUP(AQ72,Lookups!$A$50:$B$52,2,FALSE)<VLOOKUP(AO72,Lookups!$A$50:$B$52,2,FALSE),$I$8,IF(AND(VLOOKUP(AQ72,Lookups!$A$50:$B$52,2,FALSE)>=VLOOKUP(AO72,Lookups!$A$50:$B$52,2,FALSE),VLOOKUP(AQ72,Lookups!$A$50:$B$52,2,FALSE)<0.8*VLOOKUP(AP72,Lookups!$A$50:$B$52,2,FALSE)),$I$9,IF(AND(VLOOKUP(AQ72,Lookups!$A$50:$B$52,2,FALSE)<=VLOOKUP(AP72,Lookups!$A$50:$B$52,2,FALSE),VLOOKUP(AQ72,Lookups!$A$50:$B$52,2,FALSE)>=0.8*VLOOKUP(AP72,Lookups!$A$50:$B$52,2,FALSE)),$I$10,IF(VLOOKUP(AQ72,Lookups!$A$50:$B$52,2,FALSE)>VLOOKUP(AP72,Lookups!$A$50:$B$52,2,FALSE),$I$11,""))))) -> 0 | AT72: Rechareable batteries | AU72: Rechareable batteries | AW72: =IF(AV72="",$I$7,IF(VLOOKUP(AV72,Lookups!$A$50:$B$52,2,FALSE)<VLOOKUP(AT72,Lookups!$A$50:$B$52,2,FALSE),$I$8,IF(AND(VLOOKUP(AV72,Lookups!$A$50:$B$52,2,FALSE)>=VLOOKUP(AT72,Lookups!$A$50:$B$52,2,FALSE),VLOOKUP(AV72,Lookups!$A$50:$B$52,2,FALSE)<0.8*VLOOKUP(AU72,Lookups!$A$50:$B$52,2,FALSE)),$I$9,IF(AND(VLOOKUP(AV72,Lookups!$A$50:$B$52,2,FALSE)<=VLOOKUP(AU72,Lookups!$A$50:$B$52,2,FALSE),VLOOKUP(AV72,Lookups!$A$50:$B$52,2,FALSE)>=0.8*VLOOKUP(AU72,Lookups!$A$50:$B$52,2,FALSE)),$I$10,IF(VLOOKUP(AV72,Lookups!$A$50:$B$52,2,FALSE)>VLOOKUP(AU72,Lookups!$A$50:$B$52,2,FALSE),$I$11,""))))) -> 0
A73: =SUM(D73:D77) -> 2% | B73: Pointing device | C73: Type | D73: 2.0% | F73: Trackpad | G73: Trackpad | I73: =IF(H73="",$I$7,IF(VLOOKUP(H73,Lookups!$A$80:$B$82,2,FALSE)<VLOOKUP(F73,Lookups!$A$80:$B$82,2,FALSE),$I$8,IF(AND(VLOOKUP(H73,Lookups!$A$80:$B$82,2,FALSE)>=VLOOKUP(F73,Lookups!$A$80:$B$82,2,FALSE),VLOOKUP(H73,Lookups!$A$80:$B$82,2,FALSE)<0.8*VLOOKUP(G73,Lookups!$A$80:$B$82,2,FALSE)),$I$9,IF(AND(VLOOKUP(H73,Lookups!$A$80:$B$82,2,FALSE)<=VLOOKUP(G73,Lookups!$A$80:$B$82,2,FALSE),VLOOKUP(H73,Lookups!$A$80:$B$82,2,FALSE)>=0.8*VLOOKUP(G73,Lookups!$A$80:$B$82,2,FALSE)),$I$10,IF(VLOOKUP(H73,Lookups!$A$80:$B$82,2,FALSE)>VLOOKUP(G73,Lookups!$A$80:$B$82,2,FALSE),$I$11,""))))) -> 0 | K73: Trackpad | L73: Trackpad | N73: =IF(M73="",$I$7,IF(VLOOKUP(M73,Lookups!$A$80:$B$82,2,FALSE)<VLOOKUP(K73,Lookups!$A$80:$B$82,2,FALSE),$I$8,IF(AND(VLOOKUP(M73,Lookups!$A$80:$B$82,2,FALSE)>=VLOOKUP(K73,Lookups!$A$80:$B$82,2,FALSE),VLOOKUP(M73,Lookups!$A$80:$B$82,2,FALSE)<0.8*VLOOKUP(L73,Lookups!$A$80:$B$82,2,FALSE)),$I$9,IF(AND(VLOOKUP(M73,Lookups!$A$80:$B$82,2,FALSE)<=VLOOKUP(L73,Lookups!$A$80:$B$82,2,FALSE),VLOOKUP(M73,Lookups!$A$80:$B$82,2,FALSE)>=0.8*VLOOKUP(L73,Lookups!$A$80:$B$82,2,FALSE)),$I$10,IF(VLOOKUP(M73,Lookups!$A$80:$B$82,2,FALSE)>VLOOKUP(L73,Lookups!$A$80:$B$82,2,FALSE),$I$11,""))))) -> 0 | P73: Trackpad | Q73: Trackpad | S73: =IF(R73="",$I$7,IF(VLOOKUP(R73,Lookups!$A$80:$B$82,2,FALSE)<VLOOKUP(P73,Lookups!$A$80:$B$82,2,FALSE),$I$8,IF(AND(VLOOKUP(R73,Lookups!$A$80:$B$82,2,FALSE)>=VLOOKUP(P73,Lookups!$A$80:$B$82,2,FALSE),VLOOKUP(R73,Lookups!$A$80:$B$82,2,FALSE)<0.8*VLOOKUP(Q73,Lookups!$A$80:$B$82,2,FALSE)),$I$9,IF(AND(VLOOKUP(R73,Lookups!$A$80:$B$82,2,FALSE)<=VLOOKUP(Q73,Lookups!$A$80:$B$82,2,FALSE),VLOOKUP(R73,Lookups!$A$80:$B$82,2,FALSE)>=0.8*VLOOKUP(Q73,Lookups!$A$80:$B$82,2,FALSE)),$I$10,IF(VLOOKUP(R73,Lookups!$A$80:$B$82,2,FALSE)>VLOOKUP(Q73,Lookups!$A$80:$B$82,2,FALSE),$I$11,""))))) -> 0 | U73: Trackpad | V73: Trackpad | X73: =IF(W73="",$I$7,IF(VLOOKUP(W73,Lookups!$A$80:$B$82,2,FALSE)<VLOOKUP(U73,Lookups!$A$80:$B$82,2,FALSE),$I$8,IF(AND(VLOOKUP(W73,Lookups!$A$80:$B$82,2,FALSE)>=VLOOKUP(U73,Lookups!$A$80:$B$82,2,FALSE),VLOOKUP(W73,Lookups!$A$80:$B$82,2,FALSE)<0.8*VLOOKUP(V73,Lookups!$A$80:$B$82,2,FALSE)),$I$9,IF(AND(VLOOKUP(W73,Lookups!$A$80:$B$82,2,FALSE)<=VLOOKUP(V73,Lookups!$A$80:$B$82,2,FALSE),VLOOKUP(W73,Lookups!$A$80:$B$82,2,FALSE)>=0.8*VLOOKUP(V73,Lookups!$A$80:$B$82,2,FALSE)),$I$10,IF(VLOOKUP(W73,Lookups!$A$80:$B$82,2,FALSE)>VLOOKUP(V73,Lookups!$A$80:$B$82,2,FALSE),$I$11,""))))) -> 0 | Z73: Trackpad | AA73: Trackpad | AC73: =IF(AB73="",$I$7,IF(VLOOKUP(AB73,Lookups!$A$80:$B$82,2,FALSE)<VLOOKUP(Z73,Lookups!$A$80:$B$82,2,FALSE),$I$8,IF(AND(VLOOKUP(AB73,Lookups!$A$80:$B$82,2,FALSE)>=VLOOKUP(Z73,Lookups!$A$80:$B$82,2,FALSE),VLOOKUP(AB73,Lookups!$A$80:$B$82,2,FALSE)<0.8*VLOOKUP(AA73,Lookups!$A$80:$B$82,2,FALSE)),$I$9,IF(AND(VLOOKUP(AB73,Lookups!$A$80:$B$82,2,FALSE)<=VLOOKUP(AA73,Lookups!$A$80:$B$82,2,FALSE),VLOOKUP(AB73,Lookups!$A$80:$B$82,2,FALSE)>=0.8*VLOOKUP(AA73,Lookups!$A$80:$B$82,2,FALSE)),$I$10,IF(VLOOKUP(AB73,Lookups!$A$80:$B$82,2,FALSE)>VLOOKUP(AA73,Lookups!$A$80:$B$82,2,FALSE),$I$11,""))))) -> 0 | AE73: =SUM(AH73:AH77) -> 4% | AF73: Pointing device | AG73: Type | AH73: 2.0% | AJ73: Mouse | AK73: Mouse | AM73: =IF(AL73="",$I$7,IF(VLOOKUP(AL73,Lookups!$A$80:$B$82,2,FALSE)<VLOOKUP(AJ73,Lookups!$A$80:$B$82,2,FALSE),$I$8,IF(AND(VLOOKUP(AL73,Lookups!$A$80:$B$82,2,FALSE)>=VLOOKUP(AJ73,Lookups!$A$80:$B$82,2,FALSE),VLOOKUP(AL73,Lookups!$A$80:$B$82,2,FALSE)<0.8*VLOOKUP(AK73,Lookups!$A$80:$B$82,2,FALSE)),$I$9,IF(AND(VLOOKUP(AL73,Lookups!$A$80:$B$82,2,FALSE)<=VLOOKUP(AK73,Lookups!$A$80:$B$82,2,FALSE),VLOOKUP(AL73,Lookups!$A$80:$B$82,2,FALSE)>=0.8*VLOOKUP(AK73,Lookups!$A$80:$B$82,2,FALSE)),$I$10,IF(VLOOKUP(AL73,Lookups!$A$80:$B$82,2,FALSE)>VLOOKUP(AK73,Lookups!$A$80:$B$82,2,FALSE),$I$11,""))))) -> 0 | AO73: Mouse | AP73: Mouse | AR73: =IF(AQ73="",$I$7,IF(VLOOKUP(AQ73,Lookups!$A$80:$B$82,2,FALSE)<VLOOKUP(AO73,Lookups!$A$80:$B$82,2,FALSE),$I$8,IF(AND(VLOOKUP(AQ73,Lookups!$A$80:$B$82,2,FALSE)>=VLOOKUP(AO73,Lookups!$A$80:$B$82,2,FALSE),VLOOKUP(AQ73,Lookups!$A$80:$B$82,2,FALSE)<0.8*VLOOKUP(AP73,Lookups!$A$80:$B$82,2,FALSE)),$I$9,IF(AND(VLOOKUP(AQ73,Lookups!$A$80:$B$82,2,FALSE)<=VLOOKUP(AP73,Lookups!$A$80:$B$82,2,FALSE),VLOOKUP(AQ73,Lookups!$A$80:$B$82,2,FALSE)>=0.8*VLOOKUP(AP73,Lookups!$A$80:$B$82,2,FALSE)),$I$10,IF(VLOOKUP(AQ73,Lookups!$A$80:$B$82,2,FALSE)>VLOOKUP(AP73,Lookups!$A$80:$B$82,2,FALSE),$I$11,""))))) -> 0 | AT73: Mouse | AU73: Mouse | AW73: =IF(AV73="",$I$7,IF(VLOOKUP(AV73,Lookups!$A$80:$B$82,2,FALSE)<VLOOKUP(AT73,Lookups!$A$80:$B$82,2,FALSE),$I$8,IF(AND(VLOOKUP(AV73,Lookups!$A$80:$B$82,2,FALSE)>=VLOOKUP(AT73,Lookups!$A$80:$B$82,2,FALSE),VLOOKUP(AV73,Lookups!$A$80:$B$82,2,FALSE)<0.8*VLOOKUP(AU73,Lookups!$A$80:$B$82,2,FALSE)),$I$9,IF(AND(VLOOKUP(AV73,Lookups!$A$80:$B$82,2,FALSE)<=VLOOKUP(AU73,Lookups!$A$80:$B$82,2,FALSE),VLOOKUP(AV73,Lookups!$A$80:$B$82,2,FALSE)>=0.8*VLOOKUP(AU73,Lookups!$A$80:$B$82,2,FALSE)),$I$10,IF(VLOOKUP(AV73,Lookups!$A$80:$B$82,2,FALSE)>VLOOKUP(AU73,Lookups!$A$80:$B$82,2,FALSE),$I$11,""))))) -> 0
C74: Optical tracking | D74: 0.0% | F74: Yes | G74: Yes | I74: =IF(H74="",$I$7,IF(VLOOKUP(H74,Lookups!$A$31:$B$33,2,FALSE)<VLOOKUP(F74,Lookups!$A$31:$B$33,2,FALSE),$I$8,IF(AND(VLOOKUP(H74,Lookups!$A$31:$B$33,2,FALSE)>=VLOOKUP(F74,Lookups!$A$31:$B$33,2,FALSE),VLOOKUP(H74,Lookups!$A$31:$B$33,2,FALSE)<0.8*VLOOKUP(G74,Lookups!$A$31:$B$33,2,FALSE)),$I$9,IF(AND(VLOOKUP(H74,Lookups!$A$31:$B$33,2,FALSE)<=VLOOKUP(G74,Lookups!$A$31:$B$33,2,FALSE),VLOOKUP(H74,Lookups!$A$31:$B$33,2,FALSE)>=0.8*VLOOKUP(G74,Lookups!$A$31:$B$33,2,FALSE)),$I$10,IF(VLOOKUP(H74,Lookups!$A$31:$B$33,2,FALSE)>VLOOKUP(G74,Lookups!$A$31:$B$33,2,FALSE),$I$11,""))))) -> 0 | K74: Yes | L74: Yes | N74: =IF(M74="",$I$7,IF(VLOOKUP(M74,Lookups!$A$31:$B$33,2,FALSE)<VLOOKUP(K74,Lookups!$A$31:$B$33,2,FALSE),$I$8,IF(AND(VLOOKUP(M74,Lookups!$A$31:$B$33,2,FALSE)>=VLOOKUP(K74,Lookups!$A$31:$B$33,2,FALSE),VLOOKUP(M74,Lookups!$A$31:$B$33,2,FALSE)<0.8*VLOOKUP(L74,Lookups!$A$31:$B$33,2,FALSE)),$I$9,IF(AND(VLOOKUP(M74,Lookups!$A$31:$B$33,2,FALSE)<=VLOOKUP(L74,Lookups!$A$31:$B$33,2,FALSE),VLOOKUP(M74,Lookups!$A$31:$B$33,2,FALSE)>=0.8*VLOOKUP(L74,Lookups!$A$31:$B$33,2,FALSE)),$I$10,IF(VLOOKUP(M74,Lookups!$A$31:$B$33,2,FALSE)>VLOOKUP(L74,Lookups!$A$31:$B$33,2,FALSE),$I$11,""))))) -> 0 | P74: Yes | Q74: Yes | S74: =IF(R74="",$I$7,IF(VLOOKUP(R74,Lookups!$A$31:$B$33,2,FALSE)<VLOOKUP(P74,Lookups!$A$31:$B$33,2,FALSE),$I$8,IF(AND(VLOOKUP(R74,Lookups!$A$31:$B$33,2,FALSE)>=VLOOKUP(P74,Lookups!$A$31:$B$33,2,FALSE),VLOOKUP(R74,Lookups!$A$31:$B$33,2,FALSE)<0.8*VLOOKUP(Q74,Lookups!$A$31:$B$33,2,FALSE)),$I$9,IF(AND(VLOOKUP(R74,Lookups!$A$31:$B$33,2,FALSE)<=VLOOKUP(Q74,Lookups!$A$31:$B$33,2,FALSE),VLOOKUP(R74,Lookups!$A$31:$B$33,2,FALSE)>=0.8*VLOOKUP(Q74,Lookups!$A$31:$B$33,2,FALSE)),$I$10,IF(VLOOKUP(R74,Lookups!$A$31:$B$33,2,FALSE)>VLOOKUP(Q74,Lookups!$A$31:$B$33,2,FALSE),$I$11,""))))) -> 0 | U74: Yes | V74: Yes | X74: =IF(W74="",$I$7,IF(VLOOKUP(W74,Lookups!$A$31:$B$33,2,FALSE)<VLOOKUP(U74,Lookups!$A$31:$B$33,2,FALSE),$I$8,IF(AND(VLOOKUP(W74,Lookups!$A$31:$B$33,2,FALSE)>=VLOOKUP(U74,Lookups!$A$31:$B$33,2,FALSE),VLOOKUP(W74,Lookups!$A$31:$B$33,2,FALSE)<0.8*VLOOKUP(V74,Lookups!$A$31:$B$33,2,FALSE)),$I$9,IF(AND(VLOOKUP(W74,Lookups!$A$31:$B$33,2,FALSE)<=VLOOKUP(V74,Lookups!$A$31:$B$33,2,FALSE),VLOOKUP(W74,Lookups!$A$31:$B$33,2,FALSE)>=0.8*VLOOKUP(V74,Lookups!$A$31:$B$33,2,FALSE)),$I$10,IF(VLOOKUP(W74,Lookups!$A$31:$B$33,2,FALSE)>VLOOKUP(V74,Lookups!$A$31:$B$33,2,FALSE),$I$11,""))))) -> 0 | Z74: Yes | AA74: Yes | AC74: =IF(AB74="",$I$7,IF(VLOOKUP(AB74,Lookups!$A$31:$B$33,2,FALSE)<VLOOKUP(Z74,Lookups!$A$31:$B$33,2,FALSE),$I$8,IF(AND(VLOOKUP(AB74,Lookups!$A$31:$B$33,2,FALSE)>=VLOOKUP(Z74,Lookups!$A$31:$B$33,2,FALSE),VLOOKUP(AB74,Lookups!$A$31:$B$33,2,FALSE)<0.8*VLOOKUP(AA74,Lookups!$A$31:$B$33,2,FALSE)),$I$9,IF(AND(VLOOKUP(AB74,Lookups!$A$31:$B$33,2,FALSE)<=VLOOKUP(AA74,Lookups!$A$31:$B$33,2,FALSE),VLOOKUP(AB74,Lookups!$A$31:$B$33,2,FALSE)>=0.8*VLOOKUP(AA74,Lookups!$A$31:$B$33,2,FALSE)),$I$10,IF(VLOOKUP(AB74,Lookups!$A$31:$B$33,2,FALSE)>VLOOKUP(AA74,Lookups!$A$31:$B$33,2,FALSE),$I$11,""))))) -> 0 | AG74: Optical tracking | AH74: 0.5% | AJ74: Yes | AK74: Yes | AM74: =IF(AL74="",$I$7,IF(VLOOKUP(AL74,Lookups!$A$31:$B$33,2,FALSE)<VLOOKUP(AJ74,Lookups!$A$31:$B$33,2,FALSE),$I$8,IF(AND(VLOOKUP(AL74,Lookups!$A$31:$B$33,2,FALSE)>=VLOOKUP(AJ74,Lookups!$A$31:$B$33,2,FALSE),VLOOKUP(AL74,Lookups!$A$31:$B$33,2,FALSE)<0.8*VLOOKUP(AK74,Lookups!$A$31:$B$33,2,FALSE)),$I$9,IF(AND(VLOOKUP(AL74,Lookups!$A$31:$B$33,2,FALSE)<=VLOOKUP(AK74,Lookups!$A$31:$B$33,2,FALSE),VLOOKUP(AL74,Lookups!$A$31:$B$33,2,FALSE)>=0.8*VLOOKUP(AK74,Lookups!$A$31:$B$33,2,FALSE)),$I$10,IF(VLOOKUP(AL74,Lookups!$A$31:$B$33,2,FALSE)>VLOOKUP(AK74,Lookups!$A$31:$B$33,2,FALSE),$I$11,""))))) -> 0 | AO74: Yes | AP74: Yes | AR74: =IF(AQ74="",$I$7,IF(VLOOKUP(AQ74,Lookups!$A$31:$B$33,2,FALSE)<VLOOKUP(AO74,Lookups!$A$31:$B$33,2,FALSE),$I$8,IF(AND(VLOOKUP(AQ74,Lookups!$A$31:$B$33,2,FALSE)>=VLOOKUP(AO74,Lookups!$A$31:$B$33,2,FALSE),VLOOKUP(AQ74,Lookups!$A$31:$B$33,2,FALSE)<0.8*VLOOKUP(AP74,Lookups!$A$31:$B$33,2,FALSE)),$I$9,IF(AND(VLOOKUP(AQ74,Lookups!$A$31:$B$33,2,FALSE)<=VLOOKUP(AP74,Lookups!$A$31:$B$33,2,FALSE),VLOOKUP(AQ74,Lookups!$A$31:$B$33,2,FALSE)>=0.8*VLOOKUP(AP74,Lookups!$A$31:$B$33,2,FALSE)),$I$10,IF(VLOOKUP(AQ74,Lookups!$A$31:$B$33,2,FALSE)>VLOOKUP(AP74,Lookups!$A$31:$B$33,2,FALSE),$I$11,""))))) -> 0 | AT74: Yes | AU74: Yes | AW74: =IF(AV74="",$I$7,IF(VLOOKUP(AV74,Lookups!$A$31:$B$33,2,FALSE)<VLOOKUP(AT74,Lookups!$A$31:$B$33,2,FALSE),$I$8,IF(AND(VLOOKUP(AV74,Lookups!$A$31:$B$33,2,FALSE)>=VLOOKUP(AT74,Lookups!$A$31:$B$33,2,FALSE),VLOOKUP(AV74,Lookups!$A$31:$B$33,2,FALSE)<0.8*VLOOKUP(AU74,Lookups!$A$31:$B$33,2,FALSE)),$I$9,IF(AND(VLOOKUP(AV74,Lookups!$A$31:$B$33,2,FALSE)<=VLOOKUP(AU74,Lookups!$A$31:$B$33,2,FALSE),VLOOKUP(AV74,Lookups!$A$31:$B$33,2,FALSE)>=0.8*VLOOKUP(AU74,Lookups!$A$31:$B$33,2,FALSE)),$I$10,IF(VLOOKUP(AV74,Lookups!$A$31:$B$33,2,FALSE)>VLOOKUP(AU74,Lookups!$A$31:$B$33,2,FALSE),$I$11,""))))) -> 0
C75: Tracking resolution DPI | D75: 0.0% | F75: N/A | G75: N/A | K75: N/A | L75: N/A | P75: N/A | Q75: N/A | U75: N/A | V75: N/A | Z75: N/A | AA75: N/A | AG75: Tracking resolution DPI | AH75: 0.5% | AJ75: 400 | AK75: 800 | AM75: =IF(AL75="",$I$7,IF(AL75<AJ75,$I$8,IF(AND(AL75>=AJ75,AL75<0.9*AK75),$I$9,IF(AND(AL75<=AK75,AL75>=0.9*AK75),$I$10,IF(AL75>AK75,$I$11,""))))) -> 0 | AO75: 400 | AP75: 800 | AR75: =IF(AQ75="",$I$7,IF(AQ75<AO75,$I$8,IF(AND(AQ75>=AO75,AQ75<0.9*AP75),$I$9,IF(AND(AQ75<=AP75,AQ75>=0.9*AP75),$I$10,IF(AQ75>AP75,$I$11,""))))) -> 0 | AT75: 800 | AU75: 1600 | AW75: =IF(AV75="",$I$7,IF(AV75<AT75,$I$8,IF(AND(AV75>=AT75,AV75<0.9*AU75),$I$9,IF(AND(AV75<=AU75,AV75>=0.9*AU75),$I$10,IF(AV75>AU75,$I$11,""))))) -> 0
C76: Connectivity | D76: 0.0% | F76: Built-in | G76: Built-in | I76: =IF(H76="",$I$7,IF(VLOOKUP(H76,Lookups!$A$42:$B$47,2,FALSE)<VLOOKUP(F76,Lookups!$A$42:$B$47,2,FALSE),$I$8,IF(AND(VLOOKUP(H76,Lookups!$A$42:$B$47,2,FALSE)>=VLOOKUP(F76,Lookups!$A$42:$B$47,2,FALSE),VLOOKUP(H76,Lookups!$A$42:$B$47,2,FALSE)<0.8*VLOOKUP(G76,Lookups!$A$42:$B$47,2,FALSE)),$I$9,IF(AND(VLOOKUP(H76,Lookups!$A$42:$B$47,2,FALSE)<=VLOOKUP(G76,Lookups!$A$42:$B$47,2,FALSE),VLOOKUP(H76,Lookups!$A$42:$B$47,2,FALSE)>=0.8*VLOOKUP(G76,Lookups!$A$42:$B$47,2,FALSE)),$I$10,IF(VLOOKUP(H76,Lookups!$A$42:$B$47,2,FALSE)>VLOOKUP(G76,Lookups!$A$42:$B$47,2,FALSE),$I$11,""))))) -> 0 | K76: Built-in | L76: Built-in | N76: =IF(M76="",$I$7,IF(VLOOKUP(M76,Lookups!$A$42:$B$47,2,FALSE)<VLOOKUP(K76,Lookups!$A$42:$B$47,2,FALSE),$I$8,IF(AND(VLOOKUP(M76,Lookups!$A$42:$B$47,2,FALSE)>=VLOOKUP(K76,Lookups!$A$42:$B$47,2,FALSE),VLOOKUP(M76,Lookups!$A$42:$B$47,2,FALSE)<0.8*VLOOKUP(L76,Lookups!$A$42:$B$47,2,FALSE)),$I$9,IF(AND(VLOOKUP(M76,Lookups!$A$42:$B$47,2,FALSE)<=VLOOKUP(L76,Lookups!$A$42:$B$47,2,FALSE),VLOOKUP(M76,Lookups!$A$42:$B$47,2,FALSE)>=0.8*VLOOKUP(L76,Lookups!$A$42:$B$47,2,FALSE)),$I$10,IF(VLOOKUP(M76,Lookups!$A$42:$B$47,2,FALSE)>VLOOKUP(L76,Lookups!$A$42:$B$47,2,FALSE),$I$11,""))))) -> 0 | P76: Built-in | Q76: Built-in | S76: =IF(R76="",$I$7,IF(VLOOKUP(R76,Lookups!$A$42:$B$47,2,FALSE)<VLOOKUP(P76,Lookups!$A$42:$B$47,2,FALSE),$I$8,IF(AND(VLOOKUP(R76,Lookups!$A$42:$B$47,2,FALSE)>=VLOOKUP(P76,Lookups!$A$42:$B$47,2,FALSE),VLOOKUP(R76,Lookups!$A$42:$B$47,2,FALSE)<0.8*VLOOKUP(Q76,Lookups!$A$42:$B$47,2,FALSE)),$I$9,IF(AND(VLOOKUP(R76,Lookups!$A$42:$B$47,2,FALSE)<=VLOOKUP(Q76,Lookups!$A$42:$B$47,2,FALSE),VLOOKUP(R76,Lookups!$A$42:$B$47,2,FALSE)>=0.8*VLOOKUP(Q76,Lookups!$A$42:$B$47,2,FALSE)),$I$10,IF(VLOOKUP(R76,Lookups!$A$42:$B$47,2,FALSE)>VLOOKUP(Q76,Lookups!$A$42:$B$47,2,FALSE),$I$11,""))))) -> 0 | U76: Built-in | V76: Built-in | X76: =IF(W76="",$I$7,IF(VLOOKUP(W76,Lookups!$A$42:$B$47,2,FALSE)<VLOOKUP(U76,Lookups!$A$42:$B$47,2,FALSE),$I$8,IF(AND(VLOOKUP(W76,Lookups!$A$42:$B$47,2,FALSE)>=VLOOKUP(U76,Lookups!$A$42:$B$47,2,FALSE),VLOOKUP(W76,Lookups!$A$42:$B$47,2,FALSE)<0.8*VLOOKUP(V76,Lookups!$A$42:$B$47,2,FALSE)),$I$9,IF(AND(VLOOKUP(W76,Lookups!$A$42:$B$47,2,FALSE)<=VLOOKUP(V76,Lookups!$A$42:$B$47,2,FALSE),VLOOKUP(W76,Lookups!$A$42:$B$47,2,FALSE)>=0.8*VLOOKUP(V76,Lookups!$A$42:$B$47,2,FALSE)),$I$10,IF(VLOOKUP(W76,Lookups!$A$42:$B$47,2,FALSE)>VLOOKUP(V76,Lookups!$A$42:$B$47,2,FALSE),$I$11,""))))) -> 0 | Z76: Built-in | AA76: Built-in | AC76: =IF(AB76="",$I$7,IF(VLOOKUP(AB76,Lookups!$A$42:$B$47,2,FALSE)<VLOOKUP(Z76,Lookups!$A$42:$B$47,2,FALSE),$I$8,IF(AND(VLOOKUP(AB76,Lookups!$A$42:$B$47,2,FALSE)>=VLOOKUP(Z76,Lookups!$A$42:$B$47,2,FALSE),VLOOKUP(AB76,Lookups!$A$42:$B$47,2,FALSE)<0.8*VLOOKUP(AA76,Lookups!$A$42:$B$47,2,FALSE)),$I$9,IF(AND(VLOOKUP(AB76,Lookups!$A$42:$B$47,2,FALSE)<=VLOOKUP(AA76,Lookups!$A$42:$B$47,2,FALSE),VLOOKUP(AB76,Lookups!$A$42:$B$47,2,FALSE)>=0.8*VLOOKUP(AA76,Lookups!$A$42:$B$47,2,FALSE)),$I$10,IF(VLOOKUP(AB76,Lookups!$A$42:$B$47,2,FALSE)>VLOOKUP(AA76,Lookups!$A$42:$B$47,2,FALSE),$I$11,""))))) -> 0 | AG76: Connectivity | AH76: 0.5% | AJ76: Wired (USB) | AK76: Wireless (BT) | AM76: =IF(AL76="",$I$7,IF(VLOOKUP(AL76,Lookups!$A$42:$B$47,2,FALSE)<VLOOKUP(AJ76,Lookups!$A$42:$B$47,2,FALSE),$I$8,IF(AND(VLOOKUP(AL76,Lookups!$A$42:$B$47,2,FALSE)>=VLOOKUP(AJ76,Lookups!$A$42:$B$47,2,FALSE),VLOOKUP(AL76,Lookups!$A$42:$B$47,2,FALSE)<0.8*VLOOKUP(AK76,Lookups!$A$42:$B$47,2,FALSE)),$I$9,IF(AND(VLOOKUP(AL76,Lookups!$A$42:$B$47,2,FALSE)<=VLOOKUP(AK76,Lookups!$A$42:$B$47,2,FALSE),VLOOKUP(AL76,Lookups!$A$42:$B$47,2,FALSE)>=0.8*VLOOKUP(AK76,Lookups!$A$42:$B$47,2,FALSE)),$I$10,IF(VLOOKUP(AL76,Lookups!$A$42:$B$47,2,FALSE)>VLOOKUP(AK76,Lookups!$A$42:$B$47,2,FALSE),$I$11,""))))) -> 0 | AO76: Wired (USB) | AP76: Wireless (BT) | AR76: =IF(AQ76="",$I$7,IF(VLOOKUP(AQ76,Lookups!$A$42:$B$47,2,FALSE)<VLOOKUP(AO76,Lookups!$A$42:$B$47,2,FALSE),$I$8,IF(AND(VLOOKUP(AQ76,Lookups!$A$42:$B$47,2,FALSE)>=VLOOKUP(AO76,Lookups!$A$42:$B$47,2,FALSE),VLOOKUP(AQ76,Lookups!$A$42:$B$47,2,FALSE)<0.8*VLOOKUP(AP76,Lookups!$A$42:$B$47,2,FALSE)),$I$9,IF(AND(VLOOKUP(AQ76,Lookups!$A$42:$B$47,2,FALSE)<=VLOOKUP(AP76,Lookups!$A$42:$B$47,2,FALSE),VLOOKUP(AQ76,Lookups!$A$42:$B$47,2,FALSE)>=0.8*VLOOKUP(AP76,Lookups!$A$42:$B$47,2,FALSE)),$I$10,IF(VLOOKUP(AQ76,Lookups!$A$42:$B$47,2,FALSE)>VLOOKUP(AP76,Lookups!$A$42:$B$47,2,FALSE),$I$11,""))))) -> 0 | AT76: Wireless (USB Shared) | AU76: Wireless (BT) | AW76: =IF(AV76="",$I$7,IF(VLOOKUP(AV76,Lookups!$A$42:$B$47,2,FALSE)<VLOOKUP(AT76,Lookups!$A$42:$B$47,2,FALSE),$I$8,IF(AND(VLOOKUP(AV76,Lookups!$A$42:$B$47,2,FALSE)>=VLOOKUP(AT76,Lookups!$A$42:$B$47,2,FALSE),VLOOKUP(AV76,Lookups!$A$42:$B$47,2,FALSE)<0.8*VLOOKUP(AU76,Lookups!$A$42:$B$47,2,FALSE)),$I$9,IF(AND(VLOOKUP(AV76,Lookups!$A$42:$B$47,2,FALSE)<=VLOOKUP(AU76,Lookups!$A$42:$B$47,2,FALSE),VLOOKUP(AV76,Lookups!$A$42:$B$47,2,FALSE)>=0.8*VLOOKUP(AU76,Lookups!$A$42:$B$47,2,FALSE)),$I$10,IF(VLOOKUP(AV76,Lookups!$A$42:$B$47,2,FALSE)>VLOOKUP(AU76,Lookups!$A$42:$B$47,2,FALSE),$I$11,""))))) -> 0
C77: Power Source | D77: 0.0% | F77: Device | G77: Device | I77: =IF(H77="",$I$7,IF(VLOOKUP(H77,Lookups!$A$50:$B$52,2,FALSE)<VLOOKUP(F77,Lookups!$A$50:$B$52,2,FALSE),$I$8,IF(AND(VLOOKUP(H77,Lookups!$A$50:$B$52,2,FALSE)>=VLOOKUP(F77,Lookups!$A$50:$B$52,2,FALSE),VLOOKUP(H77,Lookups!$A$50:$B$52,2,FALSE)<0.8*VLOOKUP(G77,Lookups!$A$50:$B$52,2,FALSE)),$I$9,IF(AND(VLOOKUP(H77,Lookups!$A$50:$B$52,2,FALSE)<=VLOOKUP(G77,Lookups!$A$50:$B$52,2,FALSE),VLOOKUP(H77,Lookups!$A$50:$B$52,2,FALSE)>=0.8*VLOOKUP(G77,Lookups!$A$50:$B$52,2,FALSE)),$I$10,IF(VLOOKUP(H77,Lookups!$A$50:$B$52,2,FALSE)>VLOOKUP(G77,Lookups!$A$50:$B$52,2,FALSE),$I$11,""))))) -> 0 | K77: Device | L77: Device | N77: =IF(M77="",$I$7,IF(VLOOKUP(M77,Lookups!$A$50:$B$52,2,FALSE)<VLOOKUP(K77,Lookups!$A$50:$B$52,2,FALSE),$I$8,IF(AND(VLOOKUP(M77,Lookups!$A$50:$B$52,2,FALSE)>=VLOOKUP(K77,Lookups!$A$50:$B$52,2,FALSE),VLOOKUP(M77,Lookups!$A$50:$B$52,2,FALSE)<0.8*VLOOKUP(L77,Lookups!$A$50:$B$52,2,FALSE)),$I$9,IF(AND(VLOOKUP(M77,Lookups!$A$50:$B$52,2,FALSE)<=VLOOKUP(L77,Lookups!$A$50:$B$52,2,FALSE),VLOOKUP(M77,Lookups!$A$50:$B$52,2,FALSE)>=0.8*VLOOKUP(L77,Lookups!$A$50:$B$52,2,FALSE)),$I$10,IF(VLOOKUP(M77,Lookups!$A$50:$B$52,2,FALSE)>VLOOKUP(L77,Lookups!$A$50:$B$52,2,FALSE),$I$11,""))))) -> 0 | P77: Device | Q77: Device | S77: =IF(R77="",$I$7,IF(VLOOKUP(R77,Lookups!$A$50:$B$52,2,FALSE)<VLOOKUP(P77,Lookups!$A$50:$B$52,2,FALSE),$I$8,IF(AND(VLOOKUP(R77,Lookups!$A$50:$B$52,2,FALSE)>=VLOOKUP(P77,Lookups!$A$50:$B$52,2,FALSE),VLOOKUP(R77,Lookups!$A$50:$B$52,2,FALSE)<0.8*VLOOKUP(Q77,Lookups!$A$50:$B$52,2,FALSE)),$I$9,IF(AND(VLOOKUP(R77,Lookups!$A$50:$B$52,2,FALSE)<=VLOOKUP(Q77,Lookups!$A$50:$B$52,2,FALSE),VLOOKUP(R77,Lookups!$A$50:$B$52,2,FALSE)>=0.8*VLOOKUP(Q77,Lookups!$A$50:$B$52,2,FALSE)),$I$10,IF(VLOOKUP(R77,Lookups!$A$50:$B$52,2,FALSE)>VLOOKUP(Q77,Lookups!$A$50:$B$52,2,FALSE),$I$11,""))))) -> 0 | U77: Device | V77: Device | X77: =IF(W77="",$I$7,IF(VLOOKUP(W77,Lookups!$A$50:$B$52,2,FALSE)<VLOOKUP(U77,Lookups!$A$50:$B$52,2,FALSE),$I$8,IF(AND(VLOOKUP(W77,Lookups!$A$50:$B$52,2,FALSE)>=VLOOKUP(U77,Lookups!$A$50:$B$52,2,FALSE),VLOOKUP(W77,Lookups!$A$50:$B$52,2,FALSE)<0.8*VLOOKUP(V77,Lookups!$A$50:$B$52,2,FALSE)),$I$9,IF(AND(VLOOKUP(W77,Lookups!$A$50:$B$52,2,FALSE)<=VLOOKUP(V77,Lookups!$A$50:$B$52,2,FALSE),VLOOKUP(W77,Lookups!$A$50:$B$52,2,FALSE)>=0.8*VLOOKUP(V77,Lookups!$A$50:$B$52,2,FALSE)),$I$10,IF(VLOOKUP(W77,Lookups!$A$50:$B$52,2,FALSE)>VLOOKUP(V77,Lookups!$A$50:$B$52,2,FALSE),$I$11,""))))) -> 0 | Z77: Device | AA77: Device | AC77: =IF(AB77="",$I$7,IF(VLOOKUP(AB77,Lookups!$A$50:$B$52,2,FALSE)<VLOOKUP(Z77,Lookups!$A$50:$B$52,2,FALSE),$I$8,IF(AND(VLOOKUP(AB77,Lookups!$A$50:$B$52,2,FALSE)>=VLOOKUP(Z77,Lookups!$A$50:$B$52,2,FALSE),VLOOKUP(AB77,Lookups!$A$50:$B$52,2,FALSE)<0.8*VLOOKUP(AA77,Lookups!$A$50:$B$52,2,FALSE)),$I$9,IF(AND(VLOOKUP(AB77,Lookups!$A$50:$B$52,2,FALSE)<=VLOOKUP(AA77,Lookups!$A$50:$B$52,2,FALSE),VLOOKUP(AB77,Lookups!$A$50:$B$52,2,FALSE)>=0.8*VLOOKUP(AA77,Lookups!$A$50:$B$52,2,FALSE)),$I$10,IF(VLOOKUP(AB77,Lookups!$A$50:$B$52,2,FALSE)>VLOOKUP(AA77,Lookups!$A$50:$B$52,2,FALSE),$I$11,""))))) -> 0 | AG77: Power Source | AH77: 0.5% | AJ77: Device | AK77: Batteries | AM77: =IF(AL77="",$I$7,IF(VLOOKUP(AL77,Lookups!$A$50:$B$52,2,FALSE)<VLOOKUP(AJ77,Lookups!$A$50:$B$52,2,FALSE),$I$8,IF(AND(VLOOKUP(AL77,Lookups!$A$50:$B$52,2,FALSE)>=VLOOKUP(AJ77,Lookups!$A$50:$B$52,2,FALSE),VLOOKUP(AL77,Lookups!$A$50:$B$52,2,FALSE)<0.8*VLOOKUP(AK77,Lookups!$A$50:$B$52,2,FALSE)),$I$9,IF(AND(VLOOKUP(AL77,Lookups!$A$50:$B$52,2,FALSE)<=VLOOKUP(AK77,Lookups!$A$50:$B$52,2,FALSE),VLOOKUP(AL77,Lookups!$A$50:$B$52,2,FALSE)>=0.8*VLOOKUP(AK77,Lookups!$A$50:$B$52,2,FALSE)),$I$10,IF(VLOOKUP(AL77,Lookups!$A$50:$B$52,2,FALSE)>VLOOKUP(AK77,Lookups!$A$50:$B$52,2,FALSE),$I$11,""))))) -> 0 | AO77: Device | AP77: Rechareable batteries | AR77: =IF(AQ77="",$I$7,IF(VLOOKUP(AQ77,Lookups!$A$50:$B$52,2,FALSE)<VLOOKUP(AO77,Lookups!$A$50:$B$52,2,FALSE),$I$8,IF(AND(VLOOKUP(AQ77,Lookups!$A$50:$B$52,2,FALSE)>=VLOOKUP(AO77,Lookups!$A$50:$B$52,2,FALSE),VLOOKUP(AQ77,Lookups!$A$50:$B$52,2,FALSE)<0.8*VLOOKUP(AP77,Lookups!$A$50:$B$52,2,FALSE)),$I$9,IF(AND(VLOOKUP(AQ77,Lookups!$A$50:$B$52,2,FALSE)<=VLOOKUP(AP77,Lookups!$A$50:$B$52,2,FALSE),VLOOKUP(AQ77,Lookups!$A$50:$B$52,2,FALSE)>=0.8*VLOOKUP(AP77,Lookups!$A$50:$B$52,2,FALSE)),$I$10,IF(VLOOKUP(AQ77,Lookups!$A$50:$B$52,2,FALSE)>VLOOKUP(AP77,Lookups!$A$50:$B$52,2,FALSE),$I$11,""))))) -> 0 | AT77: Rechareable batteries | AU77: Rechareable batteries | AW77: =IF(AV77="",$I$7,IF(VLOOKUP(AV77,Lookups!$A$50:$B$52,2,FALSE)<VLOOKUP(AT77,Lookups!$A$50:$B$52,2,FALSE),$I$8,IF(AND(VLOOKUP(AV77,Lookups!$A$50:$B$52,2,FALSE)>=VLOOKUP(AT77,Lookups!$A$50:$B$52,2,FALSE),VLOOKUP(AV77,Lookups!$A$50:$B$52,2,FALSE)<0.8*VLOOKUP(AU77,Lookups!$A$50:$B$52,2,FALSE)),$I$9,IF(AND(VLOOKUP(AV77,Lookups!$A$50:$B$52,2,FALSE)<=VLOOKUP(AU77,Lookups!$A$50:$B$52,2,FALSE),VLOOKUP(AV77,Lookups!$A$50:$B$52,2,FALSE)>=0.8*VLOOKUP(AU77,Lookups!$A$50:$B$52,2,FALSE)),$I$10,IF(VLOOKUP(AV77,Lookups!$A$50:$B$52,2,FALSE)>VLOOKUP(AU77,Lookups!$A$50:$B$52,2,FALSE),$I$11,""))))) -> 0
A78: =SUM(D78:D79) -> 4% | B78: Webcam and Mic | C78: Webcam Resolution | D78: 2.0% | F78: 1280x720 | G78: 1920x1080 | I78: =IF(H78="",$I$7,IF(VLOOKUP(H78,Lookups!$A$55:$B$72,2,FALSE)<VLOOKUP(F78,Lookups!$A$55:$B$72,2,FALSE),$I$8,IF(AND(VLOOKUP(H78,Lookups!$A$55:$B$72,2,FALSE)>=VLOOKUP(F78,Lookups!$A$55:$B$72,2,FALSE),VLOOKUP(H78,Lookups!$A$55:$B$72,2,FALSE)<0.8*VLOOKUP(G78,Lookups!$A$55:$B$72,2,FALSE)),$I$9,IF(AND(VLOOKUP(H78,Lookups!$A$55:$B$72,2,FALSE)<=VLOOKUP(G78,Lookups!$A$55:$B$72,2,FALSE),VLOOKUP(H78,Lookups!$A$55:$B$72,2,FALSE)>=0.8*VLOOKUP(G78,Lookups!$A$55:$B$72,2,FALSE)),$I$10,IF(VLOOKUP(H78,Lookups!$A$55:$B$72,2,FALSE)>VLOOKUP(G78,Lookups!$A$55:$B$72,2,FALSE),$I$11,""))))) -> 0 | K78: 1920x1080 | L78: 1920x1080 | N78: =IF(M78="",$I$7,IF(VLOOKUP(M78,Lookups!$A$55:$B$72,2,FALSE)<VLOOKUP(K78,Lookups!$A$55:$B$72,2,FALSE),$I$8,IF(AND(VLOOKUP(M78,Lookups!$A$55:$B$72,2,FALSE)>=VLOOKUP(K78,Lookups!$A$55:$B$72,2,FALSE),VLOOKUP(M78,Lookups!$A$55:$B$72,2,FALSE)<0.8*VLOOKUP(L78,Lookups!$A$55:$B$72,2,FALSE)),$I$9,IF(AND(VLOOKUP(M78,Lookups!$A$55:$B$72,2,FALSE)<=VLOOKUP(L78,Lookups!$A$55:$B$72,2,FALSE),VLOOKUP(M78,Lookups!$A$55:$B$72,2,FALSE)>=0.8*VLOOKUP(L78,Lookups!$A$55:$B$72,2,FALSE)),$I$10,IF(VLOOKUP(M78,Lookups!$A$55:$B$72,2,FALSE)>VLOOKUP(L78,Lookups!$A$55:$B$72,2,FALSE),$I$11,""))))) -> 0 | P78: 1920x1080 | Q78: 1920x1080 | S78: =IF(R78="",$I$7,IF(VLOOKUP(R78,Lookups!$A$55:$B$72,2,FALSE)<VLOOKUP(P78,Lookups!$A$55:$B$72,2,FALSE),$I$8,IF(AND(VLOOKUP(R78,Lookups!$A$55:$B$72,2,FALSE)>=VLOOKUP(P78,Lookups!$A$55:$B$72,2,FALSE),VLOOKUP(R78,Lookups!$A$55:$B$72,2,FALSE)<0.8*VLOOKUP(Q78,Lookups!$A$55:$B$72,2,FALSE)),$I$9,IF(AND(VLOOKUP(R78,Lookups!$A$55:$B$72,2,FALSE)<=VLOOKUP(Q78,Lookups!$A$55:$B$72,2,FALSE),VLOOKUP(R78,Lookups!$A$55:$B$72,2,FALSE)>=0.8*VLOOKUP(Q78,Lookups!$A$55:$B$72,2,FALSE)),$I$10,IF(VLOOKUP(R78,Lookups!$A$55:$B$72,2,FALSE)>VLOOKUP(Q78,Lookups!$A$55:$B$72,2,FALSE),$I$11,""))))) -> 0 | U78: 1280x720 | V78: 1920x1080 | X78: =IF(W78="",$I$7,IF(VLOOKUP(W78,Lookups!$A$55:$B$72,2,FALSE)<VLOOKUP(U78,Lookups!$A$55:$B$72,2,FALSE),$I$8,IF(AND(VLOOKUP(W78,Lookups!$A$55:$B$72,2,FALSE)>=VLOOKUP(U78,Lookups!$A$55:$B$72,2,FALSE),VLOOKUP(W78,Lookups!$A$55:$B$72,2,FALSE)<0.8*VLOOKUP(V78,Lookups!$A$55:$B$72,2,FALSE)),$I$9,IF(AND(VLOOKUP(W78,Lookups!$A$55:$B$72,2,FALSE)<=VLOOKUP(V78,Lookups!$A$55:$B$72,2,FALSE),VLOOKUP(W78,Lookups!$A$55:$B$72,2,FALSE)>=0.8*VLOOKUP(V78,Lookups!$A$55:$B$72,2,FALSE)),$I$10,IF(VLOOKUP(W78,Lookups!$A$55:$B$72,2,FALSE)>VLOOKUP(V78,Lookups!$A$55:$B$72,2,FALSE),$I$11,""))))) -> 0 | Z78: 1280x720 | AA78: 1920x1080 | AC78: =IF(AB78="",$I$7,IF(VLOOKUP(AB78,Lookups!$A$55:$B$72,2,FALSE)<VLOOKUP(Z78,Lookups!$A$55:$B$72,2,FALSE),$I$8,IF(AND(VLOOKUP(AB78,Lookups!$A$55:$B$72,2,FALSE)>=VLOOKUP(Z78,Lookups!$A$55:$B$72,2,FALSE),VLOOKUP(AB78,Lookups!$A$55:$B$72,2,FALSE)<0.8*VLOOKUP(AA78,Lookups!$A$55:$B$72,2,FALSE)),$I$9,IF(AND(VLOOKUP(AB78,Lookups!$A$55:$B$72,2,FALSE)<=VLOOKUP(AA78,Lookups!$A$55:$B$72,2,FALSE),VLOOKUP(AB78,Lookups!$A$55:$B$72,2,FALSE)>=0.8*VLOOKUP(AA78,Lookups!$A$55:$B$72,2,FALSE)),$I$10,IF(VLOOKUP(AB78,Lookups!$A$55:$B$72,2,FALSE)>VLOOKUP(AA78,Lookups!$A$55:$B$72,2,FALSE),$I$11,""))))) -> 0 | AE78: =SUM(AH78:AH79) -> 0% | AF78: Webcam and Mic | AG78: Webcam Resolution | AH78: 0.0% | AJ78: No Webcam | AK78: No Webcam | AM78: =IF(AL78="",$I$7,IF(VLOOKUP(AL78,Lookups!$A$55:$B$72,2,FALSE)<VLOOKUP(AJ78,Lookups!$A$55:$B$72,2,FALSE),$I$8,IF(AND(VLOOKUP(AL78,Lookups!$A$55:$B$72,2,FALSE)>=VLOOKUP(AJ78,Lookups!$A$55:$B$72,2,FALSE),VLOOKUP(AL78,Lookups!$A$55:$B$72,2,FALSE)<0.8*VLOOKUP(AK78,Lookups!$A$55:$B$72,2,FALSE)),$I$9,IF(AND(VLOOKUP(AL78,Lookups!$A$55:$B$72,2,FALSE)<=VLOOKUP(AK78,Lookups!$A$55:$B$72,2,FALSE),VLOOKUP(AL78,Lookups!$A$55:$B$72,2,FALSE)>=0.8*VLOOKUP(AK78,Lookups!$A$55:$B$72,2,FALSE)),$I$10,IF(VLOOKUP(AL78,Lookups!$A$55:$B$72,2,FALSE)>VLOOKUP(AK78,Lookups!$A$55:$B$72,2,FALSE),$I$11,""))))) -> 0 | AO78: No Webcam | AP78: No Webcam | AR78: =IF(AQ78="",$I$7,IF(VLOOKUP(AQ78,Lookups!$A$55:$B$72,2,FALSE)<VLOOKUP(AO78,Lookups!$A$55:$B$72,2,FALSE),$I$8,IF(AND(VLOOKUP(AQ78,Lookups!$A$55:$B$72,2,FALSE)>=VLOOKUP(AO78,Lookups!$A$55:$B$72,2,FALSE),VLOOKUP(AQ78,Lookups!$A$55:$B$72,2,FALSE)<0.8*VLOOKUP(AP78,Lookups!$A$55:$B$72,2,FALSE)),$I$9,IF(AND(VLOOKUP(AQ78,Lookups!$A$55:$B$72,2,FALSE)<=VLOOKUP(AP78,Lookups!$A$55:$B$72,2,FALSE),VLOOKUP(AQ78,Lookups!$A$55:$B$72,2,FALSE)>=0.8*VLOOKUP(AP78,Lookups!$A$55:$B$72,2,FALSE)),$I$10,IF(VLOOKUP(AQ78,Lookups!$A$55:$B$72,2,FALSE)>VLOOKUP(AP78,Lookups!$A$55:$B$72,2,FALSE),$I$11,""))))) -> 0 | AT78: No Webcam | AU78: No Webcam | AW78: =IF(AV78="",$I$7,IF(VLOOKUP(AV78,Lookups!$A$55:$B$72,2,FALSE)<VLOOKUP(AT78,Lookups!$A$55:$B$72,2,FALSE),$I$8,IF(AND(VLOOKUP(AV78,Lookups!$A$55:$B$72,2,FALSE)>=VLOOKUP(AT78,Lookups!$A$55:$B$72,2,FALSE),VLOOKUP(AV78,Lookups!$A$55:$B$72,2,FALSE)<0.8*VLOOKUP(AU78,Lookups!$A$55:$B$72,2,FALSE)),$I$9,IF(AND(VLOOKUP(AV78,Lookups!$A$55:$B$72,2,FALSE)<=VLOOKUP(AU78,Lookups!$A$55:$B$72,2,FALSE),VLOOKUP(AV78,Lookups!$A$55:$B$72,2,FALSE)>=0.8*VLOOKUP(AU78,Lookups!$A$55:$B$72,2,FALSE)),$I$10,IF(VLOOKUP(AV78,Lookups!$A$55:$B$72,2,FALSE)>VLOOKUP(AU78,Lookups!$A$55:$B$72,2,FALSE),$I$11,""))))) -> 0
C79: Built-in Mic | D79: 2.0% | F79: Yes, WITH noise cancelling | G79: Yes, WITH noise cancelling | I79: =IF(H79="",$I$7,IF(VLOOKUP(H79,Lookups!$A$75:$B$77,2,FALSE)<VLOOKUP(F79,Lookups!$A$75:$B$77,2,FALSE),$I$8,IF(AND(VLOOKUP(H79,Lookups!$A$75:$B$77,2,FALSE)>=VLOOKUP(F79,Lookups!$A$75:$B$77,2,FALSE),VLOOKUP(H79,Lookups!$A$75:$B$77,2,FALSE)<0.8*VLOOKUP(G79,Lookups!$A$75:$B$77,2,FALSE)),$I$9,IF(AND(VLOOKUP(H79,Lookups!$A$75:$B$77,2,FALSE)<=VLOOKUP(G79,Lookups!$A$75:$B$77,2,FALSE),VLOOKUP(H79,Lookups!$A$75:$B$77,2,FALSE)>=0.8*VLOOKUP(G79,Lookups!$A$75:$B$77,2,FALSE)),$I$10,IF(VLOOKUP(H79,Lookups!$A$75:$B$77,2,FALSE)>VLOOKUP(G79,Lookups!$A$75:$B$77,2,FALSE),$I$11,""))))) -> 0 | K79: Yes, without noise cancelling | L79: Yes, WITH noise cancelling | N79: =IF(M79="",$I$7,IF(VLOOKUP(M79,Lookups!$A$75:$B$77,2,FALSE)<VLOOKUP(K79,Lookups!$A$75:$B$77,2,FALSE),$I$8,IF(AND(VLOOKUP(M79,Lookups!$A$75:$B$77,2,FALSE)>=VLOOKUP(K79,Lookups!$A$75:$B$77,2,FALSE),VLOOKUP(M79,Lookups!$A$75:$B$77,2,FALSE)<0.8*VLOOKUP(L79,Lookups!$A$75:$B$77,2,FALSE)),$I$9,IF(AND(VLOOKUP(M79,Lookups!$A$75:$B$77,2,FALSE)<=VLOOKUP(L79,Lookups!$A$75:$B$77,2,FALSE),VLOOKUP(M79,Lookups!$A$75:$B$77,2,FALSE)>=0.8*VLOOKUP(L79,Lookups!$A$75:$B$77,2,FALSE)),$I$10,IF(VLOOKUP(M79,Lookups!$A$75:$B$77,2,FALSE)>VLOOKUP(L79,Lookups!$A$75:$B$77,2,FALSE),$I$11,""))))) -> 0 | P79: Yes, WITH noise cancelling | Q79: Yes, WITH noise cancelling | S79: =IF(R79="",$I$7,IF(VLOOKUP(R79,Lookups!$A$75:$B$77,2,FALSE)<VLOOKUP(P79,Lookups!$A$75:$B$77,2,FALSE),$I$8,IF(AND(VLOOKUP(R79,Lookups!$A$75:$B$77,2,FALSE)>=VLOOKUP(P79,Lookups!$A$75:$B$77,2,FALSE),VLOOKUP(R79,Lookups!$A$75:$B$77,2,FALSE)<0.8*VLOOKUP(Q79,Lookups!$A$75:$B$77,2,FALSE)),$I$9,IF(AND(VLOOKUP(R79,Lookups!$A$75:$B$77,2,FALSE)<=VLOOKUP(Q79,Lookups!$A$75:$B$77,2,FALSE),VLOOKUP(R79,Lookups!$A$75:$B$77,2,FALSE)>=0.8*VLOOKUP(Q79,Lookups!$A$75:$B$77,2,FALSE)),$I$10,IF(VLOOKUP(R79,Lookups!$A$75:$B$77,2,FALSE)>VLOOKUP(Q79,Lookups!$A$75:$B$77,2,FALSE),$I$11,""))))) -> 0 | U79: Yes, WITH noise cancelling | V79: Yes, WITH noise cancelling | X79: =IF(W79="",$I$7,IF(VLOOKUP(W79,Lookups!$A$75:$B$77,2,FALSE)<VLOOKUP(U79,Lookups!$A$75:$B$77,2,FALSE),$I$8,IF(AND(VLOOKUP(W79,Lookups!$A$75:$B$77,2,FALSE)>=VLOOKUP(U79,Lookups!$A$75:$B$77,2,FALSE),VLOOKUP(W79,Lookups!$A$75:$B$77,2,FALSE)<0.8*VLOOKUP(V79,Lookups!$A$75:$B$77,2,FALSE)),$I$9,IF(AND(VLOOKUP(W79,Lookups!$A$75:$B$77,2,FALSE)<=VLOOKUP(V79,Lookups!$A$75:$B$77,2,FALSE),VLOOKUP(W79,Lookups!$A$75:$B$77,2,FALSE)>=0.8*VLOOKUP(V79,Lookups!$A$75:$B$77,2,FALSE)),$I$10,IF(VLOOKUP(W79,Lookups!$A$75:$B$77,2,FALSE)>VLOOKUP(V79,Lookups!$A$75:$B$77,2,FALSE),$I$11,""))))) -> 0 | Z79: Yes, WITH noise cancelling | AA79: Yes, WITH noise cancelling | AC79: =IF(AB79="",$I$7,IF(VLOOKUP(AB79,Lookups!$A$75:$B$77,2,FALSE)<VLOOKUP(Z79,Lookups!$A$75:$B$77,2,FALSE),$I$8,IF(AND(VLOOKUP(AB79,Lookups!$A$75:$B$77,2,FALSE)>=VLOOKUP(Z79,Lookups!$A$75:$B$77,2,FALSE),VLOOKUP(AB79,Lookups!$A$75:$B$77,2,FALSE)<0.8*VLOOKUP(AA79,Lookups!$A$75:$B$77,2,FALSE)),$I$9,IF(AND(VLOOKUP(AB79,Lookups!$A$75:$B$77,2,FALSE)<=VLOOKUP(AA79,Lookups!$A$75:$B$77,2,FALSE),VLOOKUP(AB79,Lookups!$A$75:$B$77,2,FALSE)>=0.8*VLOOKUP(AA79,Lookups!$A$75:$B$77,2,FALSE)),$I$10,IF(VLOOKUP(AB79,Lookups!$A$75:$B$77,2,FALSE)>VLOOKUP(AA79,Lookups!$A$75:$B$77,2,FALSE),$I$11,""))))) -> 0 | AG79: Built-in Mic | AH79: 0.0% | AJ79: No built-in microphone | AK79: No built-in microphone | AM79: =IF(AL79="",$I$7,IF(VLOOKUP(AL79,Lookups!$A$75:$B$77,2,FALSE)<VLOOKUP(AJ79,Lookups!$A$75:$B$77,2,FALSE),$I$8,IF(AND(VLOOKUP(AL79,Lookups!$A$75:$B$77,2,FALSE)>=VLOOKUP(AJ79,Lookups!$A$75:$B$77,2,FALSE),VLOOKUP(AL79,Lookups!$A$75:$B$77,2,FALSE)<0.8*VLOOKUP(AK79,Lookups!$A$75:$B$77,2,FALSE)),$I$9,IF(AND(VLOOKUP(AL79,Lookups!$A$75:$B$77,2,FALSE)<=VLOOKUP(AK79,Lookups!$A$75:$B$77,2,FALSE),VLOOKUP(AL79,Lookups!$A$75:$B$77,2,FALSE)>=0.8*VLOOKUP(AK79,Lookups!$A$75:$B$77,2,FALSE)),$I$10,IF(VLOOKUP(AL79,Lookups!$A$75:$B$77,2,FALSE)>VLOOKUP(AK79,Lookups!$A$75:$B$77,2,FALSE),$I$11,""))))) -> 0 | AO79: No built-in microphone | AP79: No built-in microphone | AR79: =IF(AQ79="",$I$7,IF(VLOOKUP(AQ79,Lookups!$A$75:$B$77,2,FALSE)<VLOOKUP(AO79,Lookups!$A$75:$B$77,2,FALSE),$I$8,IF(AND(VLOOKUP(AQ79,Lookups!$A$75:$B$77,2,FALSE)>=VLOOKUP(AO79,Lookups!$A$75:$B$77,2,FALSE),VLOOKUP(AQ79,Lookups!$A$75:$B$77,2,FALSE)<0.8*VLOOKUP(AP79,Lookups!$A$75:$B$77,2,FALSE)),$I$9,IF(AND(VLOOKUP(AQ79,Lookups!$A$75:$B$77,2,FALSE)<=VLOOKUP(AP79,Lookups!$A$75:$B$77,2,FALSE),VLOOKUP(AQ79,Lookups!$A$75:$B$77,2,FALSE)>=0.8*VLOOKUP(AP79,Lookups!$A$75:$B$77,2,FALSE)),$I$10,IF(VLOOKUP(AQ79,Lookups!$A$75:$B$77,2,FALSE)>VLOOKUP(AP79,Lookups!$A$75:$B$77,2,FALSE),$I$11,""))))) -> 0 | AT79: No built-in microphone | AU79: No built-in microphone | AW79: =IF(AV79="",$I$7,IF(VLOOKUP(AV79,Lookups!$A$75:$B$77,2,FALSE)<VLOOKUP(AT79,Lookups!$A$75:$B$77,2,FALSE),$I$8,IF(AND(VLOOKUP(AV79,Lookups!$A$75:$B$77,2,FALSE)>=VLOOKUP(AT79,Lookups!$A$75:$B$77,2,FALSE),VLOOKUP(AV79,Lookups!$A$75:$B$77,2,FALSE)<0.8*VLOOKUP(AU79,Lookups!$A$75:$B$77,2,FALSE)),$I$9,IF(AND(VLOOKUP(AV79,Lookups!$A$75:$B$77,2,FALSE)<=VLOOKUP(AU79,Lookups!$A$75:$B$77,2,FALSE),VLOOKUP(AV79,Lookups!$A$75:$B$77,2,FALSE)>=0.8*VLOOKUP(AU79,Lookups!$A$75:$B$77,2,FALSE)),$I$10,IF(VLOOKUP(AV79,Lookups!$A$75:$B$77,2,FALSE)>VLOOKUP(AU79,Lookups!$A$75:$B$77,2,FALSE),$I$11,""))))) -> 0
A80: =SUM(D80) -> 3% | B80: Battery | C80: Maximum Continuous Operation on Battery Power (h) | D80: 3.0% | F80: 8 | G80: 16 | I80: =IF(H80="",$I$7,IF(H80<F80,$I$8,IF(AND(H80>=F80,H80<0.9*G80),$I$9,IF(AND(H80<=G80,H80>=0.9*G80),$I$10,IF(H80>G80,$I$11,""))))) -> 0 | K80: 8 | L80: 16 | N80: =IF(M80="",$I$7,IF(M80<K80,$I$8,IF(AND(M80>=K80,M80<0.9*L80),$I$9,IF(AND(M80<=L80,M80>=0.9*L80),$I$10,IF(M80>L80,$I$11,""))))) -> 0 | P80: 8 | Q80: 16 | S80: =IF(R80="",$I$7,IF(R80<P80,$I$8,IF(AND(R80>=P80,R80<0.9*Q80),$I$9,IF(AND(R80<=Q80,R80>=0.9*Q80),$I$10,IF(R80>Q80,$I$11,""))))) -> 0 | U80: 16 | V80: 24 | X80: =IF(W80="",$I$7,IF(W80<U80,$I$8,IF(AND(W80>=U80,W80<0.9*V80),$I$9,IF(AND(W80<=V80,W80>=0.9*V80),$I$10,IF(W80>V80,$I$11,""))))) -> 0 | Z80: 16 | AA80: 24 | AC80: =IF(AB80="",$I$7,IF(AB80<Z80,$I$8,IF(AND(AB80>=Z80,AB80<0.9*AA80),$I$9,IF(AND(AB80<=AA80,AB80>=0.9*AA80),$I$10,IF(AB80>AA80,$I$11,""))))) -> 0 | AE80: =SUM(AH80) -> 0% | AF80: Battery | AG80: Maximum Continuous Operation on Battery Power (h) | AH80: 0.0% | AM80: =IF(AL80="",$I$7,IF(AL80<AJ80,$I$8,IF(AND(AL80>=AJ80,AL80<0.9*AK80),$I$9,IF(AND(AL80<=AK80,AL80>=0.9*AK80),$I$10,IF(AL80>AK80,$I$11,""))))) -> 0 | AR80: =IF(AQ80="",$I$7,IF(AQ80<AO80,$I$8,IF(AND(AQ80>=AO80,AQ80<0.9*AP80),$I$9,IF(AND(AQ80<=AP80,AQ80>=0.9*AP80),$I$10,IF(AQ80>AP80,$I$11,""))))) -> 0 | AW80: =IF(AV80="",$I$7,IF(AV80<AT80,$I$8,IF(AND(AV80>=AT80,AV80<0.9*AU80),$I$9,IF(AND(AV80<=AU80,AV80>=0.9*AU80),$I$10,IF(AV80>AU80,$I$11,""))))) -> 0
A81: =SUM(D81:D84) -> 3% | B81: Weight and Dimensions | C81: Maximum Weight (kg) | D81: 1.5% | F81: 1.3 | G81: 1 | I81: =IF(H81="",$I$7,IF(H81>F81,$I$8,IF(AND(H81<=F81,H81>1.02*G81),$I$9,IF(AND(H81>=0.98*G81,H81<=1.02*G81),$I$10,IF(H81<0.98*G81,$I$11,""))))) -> 0 | K81: 1.6 | L81: 1.4 | N81: =IF(M81="",$I$7,IF(M81>K81,$I$8,IF(AND(M81<=K81,M81>1.02*L81),$I$9,IF(AND(M81>=0.98*L81,M81<=1.02*L81),$I$10,IF(M81<0.98*L81,$I$11,""))))) -> 0 | P81: 1.8 | Q81: 1.5 | S81: =IF(R81="",$I$7,IF(R81>P81,$I$8,IF(AND(R81<=P81,R81>1.02*Q81),$I$9,IF(AND(R81>=0.98*Q81,R81<=1.02*Q81),$I$10,IF(R81<0.98*Q81,$I$11,""))))) -> 0 | U81: 2.5 | V81: 1.8 | X81: =IF(W81="",$I$7,IF(W81>U81,$I$8,IF(AND(W81<=U81,W81>1.02*V81),$I$9,IF(AND(W81>=0.98*V81,W81<=1.02*V81),$I$10,IF(W81<0.98*V81,$I$11,""))))) -> 0 | Z81: 2.5 | AA81: 1.8 | AC81: =IF(AB81="",$I$7,IF(AB81>Z81,$I$8,IF(AND(AB81<=Z81,AB81>1.02*AA81),$I$9,IF(AND(AB81>=0.98*AA81,AB81<=1.02*AA81),$I$10,IF(AB81<0.98*AA81,$I$11,""))))) -> 0 | AE81: =SUM(AH81:AH84) -> 0% | AF81: Weight and Dimensions | AG81: Maximum Weight (kg) | AH81: 0.0% | AM81: =IF(AL81="",$I$7,IF(AL81>AJ81,$I$8,IF(AND(AL81<=AJ81,AL81>1.02*AK81),$I$9,IF(AND(AL81>=0.98*AK81,AL81<=1.02*AK81),$I$10,IF(AL81<0.98*AK81,$I$11,""))))) -> 0 | AR81: =IF(AQ81="",$I$7,IF(AQ81>AO81,$I$8,IF(AND(AQ81<=AO81,AQ81>1.02*AP81),$I$9,IF(AND(AQ81>=0.98*AP81,AQ81<=1.02*AP81),$I$10,IF(AQ81<0.98*AP81,$I$11,""))))) -> 0 | AW81: =IF(AV81="",$I$7,IF(AV81>AT81,$I$8,IF(AND(AV81<=AT81,AV81>1.02*AU81),$I$9,IF(AND(AV81>=0.98*AU81,AV81<=1.02*AU81),$I$10,IF(AV81<0.98*AU81,$I$11,""))))) -> 0
B82: (Maximum) | C82: Maximum Width (mm) | D82: 0.5% | F82: 325 | G82: 310 | I82: =IF(H82="",$I$7,IF(H82>F82,$I$8,IF(AND(H82<=F82,H82>1.015*G82),$I$9,IF(AND(H82>=0.985*G82,H82<=1.015*G82),$I$10,IF(H82<0.985*G82,$I$11,""))))) -> 0 | K82: 325 | L82: 325 | N82: =IF(M82="",$I$7,IF(M82>K82,$I$8,IF(AND(M82<=K82,M82>1.015*L82),$I$9,IF(AND(M82>=0.985*L82,M82<=1.015*L82),$I$10,IF(M82<0.985*L82,$I$11,""))))) -> 0 | P82: 325 | Q82: 325 | S82: =IF(R82="",$I$7,IF(R82>P82,$I$8,IF(AND(R82<=P82,R82>1.015*Q82),$I$9,IF(AND(R82>=0.985*Q82,R82<=1.015*Q82),$I$10,IF(R82<0.985*Q82,$I$11,""))))) -> 0 | U82: 360 | V82: 310 | X82: =IF(W82="",$I$7,IF(W82>U82,$I$8,IF(AND(W82<=U82,W82>1.015*V82),$I$9,IF(AND(W82>=0.985*V82,W82<=1.015*V82),$I$10,IF(W82<0.985*V82,$I$11,""))))) -> 0 | Z82: 360 | AA82: 310 | AC82: =IF(AB82="",$I$7,IF(AB82>Z82,$I$8,IF(AND(AB82<=Z82,AB82>1.015*AA82),$I$9,IF(AND(AB82>=0.985*AA82,AB82<=1.015*AA82),$I$10,IF(AB82<0.985*AA82,$I$11,""))))) -> 0 | AF82: (Maximum) | AG82: Maximum Width (mm) | AH82: 0.0% | AM82: =IF(AL82="",$I$7,IF(AL82>AJ82,$I$8,IF(AND(AL82<=AJ82,AL82>1.015*AK82),$I$9,IF(AND(AL82>=0.985*AK82,AL82<=1.015*AK82),$I$10,IF(AL82<0.985*AK82,$I$11,""))))) -> 0 | AR82: =IF(AQ82="",$I$7,IF(AQ82>AO82,$I$8,IF(AND(AQ82<=AO82,AQ82>1.015*AP82),$I$9,IF(AND(AQ82>=0.985*AP82,AQ82<=1.015*AP82),$I$10,IF(AQ82<0.985*AP82,$I$11,""))))) -> 0 | AW82: =IF(AV82="",$I$7,IF(AV82>AT82,$I$8,IF(AND(AV82<=AT82,AV82>1.015*AU82),$I$9,IF(AND(AV82>=0.985*AU82,AV82<=1.015*AU82),$I$10,IF(AV82<0.985*AU82,$I$11,""))))) -> 0
C83: Maximum Depth (mm) | D83: 0.5% | F83: 210 | G83: 210 | I83: =IF(H83="",$I$7,IF(H83>F83,$I$8,IF(AND(H83<=F83,H83>1.015*G83),$I$9,IF(AND(H83>=0.985*G83,H83<=1.015*G83),$I$10,IF(H83<0.985*G83,$I$11,""))))) -> 0 | K83: 215 | L83: 215 | N83: =IF(M83="",$I$7,IF(M83>K83,$I$8,IF(AND(M83<=K83,M83>1.015*L83),$I$9,IF(AND(M83>=0.985*L83,M83<=1.015*L83),$I$10,IF(M83<0.985*L83,$I$11,""))))) -> 0 | P83: 215 | Q83: 215 | S83: =IF(R83="",$I$7,IF(R83>P83,$I$8,IF(AND(R83<=P83,R83>1.015*Q83),$I$9,IF(AND(R83>=0.985*Q83,R83<=1.015*Q83),$I$10,IF(R83<0.985*Q83,$I$11,""))))) -> 0 | U83: 245 | V83: 215 | X83: =IF(W83="",$I$7,IF(W83>U83,$I$8,IF(AND(W83<=U83,W83>1.015*V83),$I$9,IF(AND(W83>=0.985*V83,W83<=1.015*V83),$I$10,IF(W83<0.985*V83,$I$11,""))))) -> 0 | Z83: 245 | AA83: 215 | AC83: =IF(AB83="",$I$7,IF(AB83>Z83,$I$8,IF(AND(AB83<=Z83,AB83>1.015*AA83),$I$9,IF(AND(AB83>=0.985*AA83,AB83<=1.015*AA83),$I$10,IF(AB83<0.985*AA83,$I$11,""))))) -> 0 | AG83: Maximum Depth (mm) | AH83: 0.0% | AM83: =IF(AL83="",$I$7,IF(AL83>AJ83,$I$8,IF(AND(AL83<=AJ83,AL83>1.015*AK83),$I$9,IF(AND(AL83>=0.985*AK83,AL83<=1.015*AK83),$I$10,IF(AL83<0.985*AK83,$I$11,""))))) -> 0 | AR83: =IF(AQ83="",$I$7,IF(AQ83>AO83,$I$8,IF(AND(AQ83<=AO83,AQ83>1.015*AP83),$I$9,IF(AND(AQ83>=0.985*AP83,AQ83<=1.015*AP83),$I$10,IF(AQ83<0.985*AP83,$I$11,""))))) -> 0 | AW83: =IF(AV83="",$I$7,IF(AV83>AT83,$I$8,IF(AND(AV83<=AT83,AV83>1.015*AU83),$I$9,IF(AND(AV83>=0.985*AU83,AV83<=1.015*AU83),$I$10,IF(AV83<0.985*AU83,$I$11,""))))) -> 0
C84: Maximum Height (mm) | D84: 0.5% | F84: 18 | G84: 18 | I84: =IF(H84="",$I$7,IF(H84>F84,$I$8,IF(AND(H84<=F84,H84>1.015*G84),$I$9,IF(AND(H84>=0.985*G84,H84<=1.015*G84),$I$10,IF(H84<0.985*G84,$I$11,""))))) -> 0 | K84: 25 | L84: 20 | N84: =IF(M84="",$I$7,IF(M84>K84,$I$8,IF(AND(M84<=K84,M84>1.015*L84),$I$9,IF(AND(M84>=0.985*L84,M84<=1.015*L84),$I$10,IF(M84<0.985*L84,$I$11,""))))) -> 0 | P84: 25 | Q84: 20 | S84: =IF(R84="",$I$7,IF(R84>P84,$I$8,IF(AND(R84<=P84,R84>1.015*Q84),$I$9,IF(AND(R84>=0.985*Q84,R84<=1.015*Q84),$I$10,IF(R84<0.985*Q84,$I$11,""))))) -> 0 | U84: 30 | V84: 25 | X84: =IF(W84="",$I$7,IF(W84>U84,$I$8,IF(AND(W84<=U84,W84>1.015*V84),$I$9,IF(AND(W84>=0.985*V84,W84<=1.015*V84),$I$10,IF(W84<0.985*V84,$I$11,""))))) -> 0 | Z84: 30 | AA84: 25 | AC84: =IF(AB84="",$I$7,IF(AB84>Z84,$I$8,IF(AND(AB84<=Z84,AB84>1.015*AA84),$I$9,IF(AND(AB84>=0.985*AA84,AB84<=1.015*AA84),$I$10,IF(AB84<0.985*AA84,$I$11,""))))) -> 0 | AG84: Maximum Height (mm) | AH84: 0.0% | AM84: =IF(AL84="",$I$7,IF(AL84>AJ84,$I$8,IF(AND(AL84<=AJ84,AL84>1.015*AK84),$I$9,IF(AND(AL84>=0.985*AK84,AL84<=1.015*AK84),$I$10,IF(AL84<0.985*AK84,$I$11,""))))) -> 0 | AR84: =IF(AQ84="",$I$7,IF(AQ84>AO84,$I$8,IF(AND(AQ84<=AO84,AQ84>1.015*AP84),$I$9,IF(AND(AQ84>=0.985*AP84,AQ84<=1.015*AP84),$I$10,IF(AQ84<0.985*AP84,$I$11,""))))) -> 0 | AW84: =IF(AV84="",$I$7,IF(AV84>AT84,$I$8,IF(AND(AV84<=AT84,AV84>1.015*AU84),$I$9,IF(AND(AV84>=0.985*AU84,AV84<=1.015*AU84),$I$10,IF(AV84<0.985*AU84,$I$11,""))))) -> 0
A85: =D85 -> 1% | B85: Operating System | C85: Windows 10/11 Professional (native or virtual) | D85: 0.5% | F85: Yes | G85: Yes | I85: =IF(H85="Yes",$I$10,$I$7) -> 0 | K85: Yes | L85: Yes | N85: =IF(M85="Yes",$I$10,$I$7) -> 0 | P85: Yes | Q85: Yes | S85: =IF(R85="Yes",$I$10,$I$7) -> 0 | U85: Yes | V85: Yes | X85: =IF(W85="Yes",$I$10,$I$7) -> 0 | Z85: Yes | AA85: Yes | AC85: =IF(AB85="Yes",$I$10,$I$7) -> 0 | AE85: =AH85 -> 0% | AF85: Operating System | AG85: Windows 10/11 Professional | AH85: 0.0% | AJ85: Yes | AK85: Yes | AM85: =IF(AL85="Yes",$I$10,$I$7) -> 0 | AO85: Yes | AP85: Yes | AR85: =IF(AQ85="Yes",$I$10,$I$7) -> 0 | AT85: Yes | AU85: Yes | AW85: =IF(AV85="Yes",$I$10,$I$7) -> 0
A86: =SUM(D86:D89) -> 13% | B86: Maximum Next Business Day (NBD) Warranty in Years Available at Point of Sale for the device | D86: 3.0% | F86: 3 | G86: 5 | I86: =IF(OR(H86="",H86="No NBD warranty available"),$I$7,IF(VLOOKUP(H86,Lookups!$A$130:$B$135,2,FALSE)<VLOOKUP(F86,Lookups!$A$130:$B$135,2,FALSE),$I$8,IF(AND(VLOOKUP(H86,Lookups!$A$130:$B$135,2,FALSE)>=VLOOKUP(F86,Lookups!$A$130:$B$135,2,FALSE),VLOOKUP(H86,Lookups!$A$130:$B$135,2,FALSE)<0.8*VLOOKUP(G86,Lookups!$A$130:$B$135,2,FALSE)),$I$9,IF(AND(VLOOKUP(H86,Lookups!$A$130:$B$135,2,FALSE)<=VLOOKUP(G86,Lookups!$A$130:$B$135,2,FALSE),VLOOKUP(H86,Lookups!$A$130:$B$135,2,FALSE)>=0.8*VLOOKUP(G86,Lookups!$A$130:$B$135,2,FALSE)),$I$10,IF(VLOOKUP(H86,Lookups!$A$130:$B$135,2,FALSE)>VLOOKUP(G86,Lookups!$A$130:$B$135,2,FALSE),$I$11,""))))) -> 0 | K86: 3 | L86: 5 | N86: =IF(OR(M86="",M86="No NBD warranty available"),$I$7,IF(VLOOKUP(M86,Lookups!$A$130:$B$135,2,FALSE)<VLOOKUP(K86,Lookups!$A$130:$B$135,2,FALSE),$I$8,IF(AND(VLOOKUP(M86,Lookups!$A$130:$B$135,2,FALSE)>=VLOOKUP(K86,Lookups!$A$130:$B$135,2,FALSE),VLOOKUP(M86,Lookups!$A$130:$B$135,2,FALSE)<0.8*VLOOKUP(L86,Lookups!$A$130:$B$135,2,FALSE)),$I$9,IF(AND(VLOOKUP(M86,Lookups!$A$130:$B$135,2,FALSE)<=VLOOKUP(L86,Lookups!$A$130:$B$135,2,FALSE),VLOOKUP(M86,Lookups!$A$130:$B$135,2,FALSE)>=0.8*VLOOKUP(L86,Lookups!$A$130:$B$135,2,FALSE)),$I$10,IF(VLOOKUP(M86,Lookups!$A$130:$B$135,2,FALSE)>VLOOKUP(L86,Lookups!$A$130:$B$135,2,FALSE),$I$11,""))))) -> 0 | P86: 5 | Q86: 7 | S86: =IF(OR(R86="",R86="No NBD warranty available"),$I$7,IF(VLOOKUP(R86,Lookups!$A$130:$B$135,2,FALSE)<VLOOKUP(P86,Lookups!$A$130:$B$135,2,FALSE),$I$8,IF(AND(VLOOKUP(R86,Lookups!$A$130:$B$135,2,FALSE)>=VLOOKUP(P86,Lookups!$A$130:$B$135,2,FALSE),VLOOKUP(R86,Lookups!$A$130:$B$135,2,FALSE)<0.8*VLOOKUP(Q86,Lookups!$A$130:$B$135,2,FALSE)),$I$9,IF(AND(VLOOKUP(R86,Lookups!$A$130:$B$135,2,FALSE)<=VLOOKUP(Q86,Lookups!$A$130:$B$135,2,FALSE),VLOOKUP(R86,Lookups!$A$130:$B$135,2,FALSE)>=0.8*VLOOKUP(Q86,Lookups!$A$130:$B$135,2,FALSE)),$I$10,IF(VLOOKUP(R86,Lookups!$A$130:$B$135,2,FALSE)>VLOOKUP(Q86,Lookups!$A$130:$B$135,2,FALSE),$I$11,""))))) -> 0 | U86: 3 | V86: 5 | X86: =IF(OR(W86="",W86="No NBD warranty available"),$I$7,IF(VLOOKUP(W86,Lookups!$A$130:$B$135,2,FALSE)<VLOOKUP(U86,Lookups!$A$130:$B$135,2,FALSE),$I$8,IF(AND(VLOOKUP(W86,Lookups!$A$130:$B$135,2,FALSE)>=VLOOKUP(U86,Lookups!$A$130:$B$135,2,FALSE),VLOOKUP(W86,Lookups!$A$130:$B$135,2,FALSE)<0.8*VLOOKUP(V86,Lookups!$A$130:$B$135,2,FALSE)),$I$9,IF(AND(VLOOKUP(W86,Lookups!$A$130:$B$135,2,FALSE)<=VLOOKUP(V86,Lookups!$A$130:$B$135,2,FALSE),VLOOKUP(W86,Lookups!$A$130:$B$135,2,FALSE)>=0.8*VLOOKUP(V86,Lookups!$A$130:$B$135,2,FALSE)),$I$10,IF(VLOOKUP(W86,Lookups!$A$130:$B$135,2,FALSE)>VLOOKUP(V86,Lookups!$A$130:$B$135,2,FALSE),$I$11,""))))) -> 0 | Z86: 3 | AA86: 5 | AC86: =IF(OR(AB86="",AB86="No NBD warranty available"),$I$7,IF(VLOOKUP(AB86,Lookups!$A$130:$B$135,2,FALSE)<VLOOKUP(Z86,Lookups!$A$130:$B$135,2,FALSE),$I$8,IF(AND(VLOOKUP(AB86,Lookups!$A$130:$B$135,2,FALSE)>=VLOOKUP(Z86,Lookups!$A$130:$B$135,2,FALSE),VLOOKUP(AB86,Lookups!$A$130:$B$135,2,FALSE)<0.8*VLOOKUP(AA86,Lookups!$A$130:$B$135,2,FALSE)),$I$9,IF(AND(VLOOKUP(AB86,Lookups!$A$130:$B$135,2,FALSE)<=VLOOKUP(AA86,Lookups!$A$130:$B$135,2,FALSE),VLOOKUP(AB86,Lookups!$A$130:$B$135,2,FALSE)>=0.8*VLOOKUP(AA86,Lookups!$A$130:$B$135,2,FALSE)),$I$10,IF(VLOOKUP(AB86,Lookups!$A$130:$B$135,2,FALSE)>VLOOKUP(AA86,Lookups!$A$130:$B$135,2,FALSE),$I$11,""))))) -> 0 | AE86: =SUM(AH86:AH89) -> 13% | AF86: Maximum Next Business Day (NBD) Warranty in Years Available at Point of Sale for the device | AH86: 6.0% | AJ86: 3 | AK86: 5 | AM86: =IF(OR(AL86="",AL86="No NBD warranty available"),$I$7,IF(VLOOKUP(AL86,Lookups!$A$130:$B$135,2,FALSE)<VLOOKUP(AJ86,Lookups!$A$130:$B$135,2,FALSE),$I$8,IF(AND(VLOOKUP(AL86,Lookups!$A$130:$B$135,2,FALSE)>=VLOOKUP(AJ86,Lookups!$A$130:$B$135,2,FALSE),VLOOKUP(AL86,Lookups!$A$130:$B$135,2,FALSE)<0.8*VLOOKUP(AK86,Lookups!$A$130:$B$135,2,FALSE)),$I$9,IF(AND(VLOOKUP(AL86,Lookups!$A$130:$B$135,2,FALSE)<=VLOOKUP(AK86,Lookups!$A$130:$B$135,2,FALSE),VLOOKUP(AL86,Lookups!$A$130:$B$135,2,FALSE)>=0.8*VLOOKUP(AK86,Lookups!$A$130:$B$135,2,FALSE)),$I$10,IF(VLOOKUP(AL86,Lookups!$A$130:$B$135,2,FALSE)>VLOOKUP(AK86,Lookups!$A$130:$B$135,2,FALSE),$I$11,""))))) -> 0 | AO86: 5 | AP86: 7 | AR86: =IF(OR(AQ86="",AQ86="No NBD warranty available"),$I$7,IF(VLOOKUP(AQ86,Lookups!$A$130:$B$135,2,FALSE)<VLOOKUP(AO86,Lookups!$A$130:$B$135,2,FALSE),$I$8,IF(AND(VLOOKUP(AQ86,Lookups!$A$130:$B$135,2,FALSE)>=VLOOKUP(AO86,Lookups!$A$130:$B$135,2,FALSE),VLOOKUP(AQ86,Lookups!$A$130:$B$135,2,FALSE)<0.8*VLOOKUP(AP86,Lookups!$A$130:$B$135,2,FALSE)),$I$9,IF(AND(VLOOKUP(AQ86,Lookups!$A$130:$B$135,2,FALSE)<=VLOOKUP(AP86,Lookups!$A$130:$B$135,2,FALSE),VLOOKUP(AQ86,Lookups!$A$130:$B$135,2,FALSE)>=0.8*VLOOKUP(AP86,Lookups!$A$130:$B$135,2,FALSE)),$I$10,IF(VLOOKUP(AQ86,Lookups!$A$130:$B$135,2,FALSE)>VLOOKUP(AP86,Lookups!$A$130:$B$135,2,FALSE),$I$11,""))))) -> 0 | AT86: 7 | AU86: 7 | AW86: =IF(OR(AV86="",AV86="No NBD warranty available"),$I$7,IF(VLOOKUP(AV86,Lookups!$A$130:$B$135,2,FALSE)<VLOOKUP(AT86,Lookups!$A$130:$B$135,2,FALSE),$I$8,IF(AND(VLOOKUP(AV86,Lookups!$A$130:$B$135,2,FALSE)>=VLOOKUP(AT86,Lookups!$A$130:$B$135,2,FALSE),VLOOKUP(AV86,Lookups!$A$130:$B$135,2,FALSE)<0.8*VLOOKUP(AU86,Lookups!$A$130:$B$135,2,FALSE)),$I$9,IF(AND(VLOOKUP(AV86,Lookups!$A$130:$B$135,2,FALSE)<=VLOOKUP(AU86,Lookups!$A$130:$B$135,2,FALSE),VLOOKUP(AV86,Lookups!$A$130:$B$135,2,FALSE)>=0.8*VLOOKUP(AU86,Lookups!$A$130:$B$135,2,FALSE)),$I$10,IF(VLOOKUP(AV86,Lookups!$A$130:$B$135,2,FALSE)>VLOOKUP(AU86,Lookups!$A$130:$B$135,2,FALSE),$I$11,""))))) -> 0
B87: Maximum Next Business Day (NBD) Warranty in Years Available at Point of Sale for the BATTERY | D87: 3.0% | F87: 3 | G87: 5 | I87: =IF(OR(H87="",H87="No NBD warranty available"),$I$7,IF(VLOOKUP(H87,Lookups!$A$130:$B$135,2,FALSE)<VLOOKUP(F87,Lookups!$A$130:$B$135,2,FALSE),$I$8,IF(AND(VLOOKUP(H87,Lookups!$A$130:$B$135,2,FALSE)>=VLOOKUP(F87,Lookups!$A$130:$B$135,2,FALSE),VLOOKUP(H87,Lookups!$A$130:$B$135,2,FALSE)<0.8*VLOOKUP(G87,Lookups!$A$130:$B$135,2,FALSE)),$I$9,IF(AND(VLOOKUP(H87,Lookups!$A$130:$B$135,2,FALSE)<=VLOOKUP(G87,Lookups!$A$130:$B$135,2,FALSE),VLOOKUP(H87,Lookups!$A$130:$B$135,2,FALSE)>=0.8*VLOOKUP(G87,Lookups!$A$130:$B$135,2,FALSE)),$I$10,IF(VLOOKUP(H87,Lookups!$A$130:$B$135,2,FALSE)>VLOOKUP(G87,Lookups!$A$130:$B$135,2,FALSE),$I$11,""))))) -> 0 | K87: 3 | L87: 5 | N87: =IF(OR(M87="",M87="No NBD warranty available"),$I$7,IF(VLOOKUP(M87,Lookups!$A$130:$B$135,2,FALSE)<VLOOKUP(K87,Lookups!$A$130:$B$135,2,FALSE),$I$8,IF(AND(VLOOKUP(M87,Lookups!$A$130:$B$135,2,FALSE)>=VLOOKUP(K87,Lookups!$A$130:$B$135,2,FALSE),VLOOKUP(M87,Lookups!$A$130:$B$135,2,FALSE)<0.8*VLOOKUP(L87,Lookups!$A$130:$B$135,2,FALSE)),$I$9,IF(AND(VLOOKUP(M87,Lookups!$A$130:$B$135,2,FALSE)<=VLOOKUP(L87,Lookups!$A$130:$B$135,2,FALSE),VLOOKUP(M87,Lookups!$A$130:$B$135,2,FALSE)>=0.8*VLOOKUP(L87,Lookups!$A$130:$B$135,2,FALSE)),$I$10,IF(VLOOKUP(M87,Lookups!$A$130:$B$135,2,FALSE)>VLOOKUP(L87,Lookups!$A$130:$B$135,2,FALSE),$I$11,""))))) -> 0 | P87: 5 | Q87: 7 | S87: =IF(OR(R87="",R87="No NBD warranty available"),$I$7,IF(VLOOKUP(R87,Lookups!$A$130:$B$135,2,FALSE)<VLOOKUP(P87,Lookups!$A$130:$B$135,2,FALSE),$I$8,IF(AND(VLOOKUP(R87,Lookups!$A$130:$B$135,2,FALSE)>=VLOOKUP(P87,Lookups!$A$130:$B$135,2,FALSE),VLOOKUP(R87,Lookups!$A$130:$B$135,2,FALSE)<0.8*VLOOKUP(Q87,Lookups!$A$130:$B$135,2,FALSE)),$I$9,IF(AND(VLOOKUP(R87,Lookups!$A$130:$B$135,2,FALSE)<=VLOOKUP(Q87,Lookups!$A$130:$B$135,2,FALSE),VLOOKUP(R87,Lookups!$A$130:$B$135,2,FALSE)>=0.8*VLOOKUP(Q87,Lookups!$A$130:$B$135,2,FALSE)),$I$10,IF(VLOOKUP(R87,Lookups!$A$130:$B$135,2,FALSE)>VLOOKUP(Q87,Lookups!$A$130:$B$135,2,FALSE),$I$11,""))))) -> 0 | U87: 3 | V87: 5 | X87: =IF(OR(W87="",W87="No NBD warranty available"),$I$7,IF(VLOOKUP(W87,Lookups!$A$130:$B$135,2,FALSE)<VLOOKUP(U87,Lookups!$A$130:$B$135,2,FALSE),$I$8,IF(AND(VLOOKUP(W87,Lookups!$A$130:$B$135,2,FALSE)>=VLOOKUP(U87,Lookups!$A$130:$B$135,2,FALSE),VLOOKUP(W87,Lookups!$A$130:$B$135,2,FALSE)<0.8*VLOOKUP(V87,Lookups!$A$130:$B$135,2,FALSE)),$I$9,IF(AND(VLOOKUP(W87,Lookups!$A$130:$B$135,2,FALSE)<=VLOOKUP(V87,Lookups!$A$130:$B$135,2,FALSE),VLOOKUP(W87,Lookups!$A$130:$B$135,2,FALSE)>=0.8*VLOOKUP(V87,Lookups!$A$130:$B$135,2,FALSE)),$I$10,IF(VLOOKUP(W87,Lookups!$A$130:$B$135,2,FALSE)>VLOOKUP(V87,Lookups!$A$130:$B$135,2,FALSE),$I$11,""))))) -> 0 | Z87: 3 | AA87: 5 | AC87: =IF(OR(AB87="",AB87="No NBD warranty available"),$I$7,IF(VLOOKUP(AB87,Lookups!$A$130:$B$135,2,FALSE)<VLOOKUP(Z87,Lookups!$A$130:$B$135,2,FALSE),$I$8,IF(AND(VLOOKUP(AB87,Lookups!$A$130:$B$135,2,FALSE)>=VLOOKUP(Z87,Lookups!$A$130:$B$135,2,FALSE),VLOOKUP(AB87,Lookups!$A$130:$B$135,2,FALSE)<0.8*VLOOKUP(AA87,Lookups!$A$130:$B$135,2,FALSE)),$I$9,IF(AND(VLOOKUP(AB87,Lookups!$A$130:$B$135,2,FALSE)<=VLOOKUP(AA87,Lookups!$A$130:$B$135,2,FALSE),VLOOKUP(AB87,Lookups!$A$130:$B$135,2,FALSE)>=0.8*VLOOKUP(AA87,Lookups!$A$130:$B$135,2,FALSE)),$I$10,IF(VLOOKUP(AB87,Lookups!$A$130:$B$135,2,FALSE)>VLOOKUP(AA87,Lookups!$A$130:$B$135,2,FALSE),$I$11,""))))) -> 0 | AF87: Maximum Next Business Day (NBD) Warranty in Years Available at Point of Sale for the BATTERY | AH87: 0.0%
B88: Next Business Day (NBD) Warranty Included in the Proposed Device for the device | D88: 3.5% | F88: 3 | G88: 5 | I88: =IF(OR(H88="",H88="No NBD warranty available"),$I$7,IF(VLOOKUP(H88,Lookups!$A$130:$B$135,2,FALSE)<VLOOKUP(F88,Lookups!$A$130:$B$135,2,FALSE),$I$8,IF(AND(VLOOKUP(H88,Lookups!$A$130:$B$135,2,FALSE)>=VLOOKUP(F88,Lookups!$A$130:$B$135,2,FALSE),VLOOKUP(H88,Lookups!$A$130:$B$135,2,FALSE)<0.8*VLOOKUP(G88,Lookups!$A$130:$B$135,2,FALSE)),$I$9,IF(AND(VLOOKUP(H88,Lookups!$A$130:$B$135,2,FALSE)<=VLOOKUP(G88,Lookups!$A$130:$B$135,2,FALSE),VLOOKUP(H88,Lookups!$A$130:$B$135,2,FALSE)>=0.8*VLOOKUP(G88,Lookups!$A$130:$B$135,2,FALSE)),$I$10,IF(VLOOKUP(H88,Lookups!$A$130:$B$135,2,FALSE)>VLOOKUP(G88,Lookups!$A$130:$B$135,2,FALSE),$I$11,""))))) -> 0 | K88: 3 | L88: 5 | N88: =IF(OR(M88="",M88="No NBD warranty available"),$I$7,IF(VLOOKUP(M88,Lookups!$A$130:$B$135,2,FALSE)<VLOOKUP(K88,Lookups!$A$130:$B$135,2,FALSE),$I$8,IF(AND(VLOOKUP(M88,Lookups!$A$130:$B$135,2,FALSE)>=VLOOKUP(K88,Lookups!$A$130:$B$135,2,FALSE),VLOOKUP(M88,Lookups!$A$130:$B$135,2,FALSE)<0.8*VLOOKUP(L88,Lookups!$A$130:$B$135,2,FALSE)),$I$9,IF(AND(VLOOKUP(M88,Lookups!$A$130:$B$135,2,FALSE)<=VLOOKUP(L88,Lookups!$A$130:$B$135,2,FALSE),VLOOKUP(M88,Lookups!$A$130:$B$135,2,FALSE)>=0.8*VLOOKUP(L88,Lookups!$A$130:$B$135,2,FALSE)),$I$10,IF(VLOOKUP(M88,Lookups!$A$130:$B$135,2,FALSE)>VLOOKUP(L88,Lookups!$A$130:$B$135,2,FALSE),$I$11,""))))) -> 0 | P88: 3 | Q88: 5 | S88: =IF(OR(R88="",R88="No NBD warranty available"),$I$7,IF(VLOOKUP(R88,Lookups!$A$130:$B$135,2,FALSE)<VLOOKUP(P88,Lookups!$A$130:$B$135,2,FALSE),$I$8,IF(AND(VLOOKUP(R88,Lookups!$A$130:$B$135,2,FALSE)>=VLOOKUP(P88,Lookups!$A$130:$B$135,2,FALSE),VLOOKUP(R88,Lookups!$A$130:$B$135,2,FALSE)<0.8*VLOOKUP(Q88,Lookups!$A$130:$B$135,2,FALSE)),$I$9,IF(AND(VLOOKUP(R88,Lookups!$A$130:$B$135,2,FALSE)<=VLOOKUP(Q88,Lookups!$A$130:$B$135,2,FALSE),VLOOKUP(R88,Lookups!$A$130:$B$135,2,FALSE)>=0.8*VLOOKUP(Q88,Lookups!$A$130:$B$135,2,FALSE)),$I$10,IF(VLOOKUP(R88,Lookups!$A$130:$B$135,2,FALSE)>VLOOKUP(Q88,Lookups!$A$130:$B$135,2,FALSE),$I$11,""))))) -> 0 | U88: 3 | V88: 5 | X88: =IF(OR(W88="",W88="No NBD warranty available"),$I$7,IF(VLOOKUP(W88,Lookups!$A$130:$B$135,2,FALSE)<VLOOKUP(U88,Lookups!$A$130:$B$135,2,FALSE),$I$8,IF(AND(VLOOKUP(W88,Lookups!$A$130:$B$135,2,FALSE)>=VLOOKUP(U88,Lookups!$A$130:$B$135,2,FALSE),VLOOKUP(W88,Lookups!$A$130:$B$135,2,FALSE)<0.8*VLOOKUP(V88,Lookups!$A$130:$B$135,2,FALSE)),$I$9,IF(AND(VLOOKUP(W88,Lookups!$A$130:$B$135,2,FALSE)<=VLOOKUP(V88,Lookups!$A$130:$B$135,2,FALSE),VLOOKUP(W88,Lookups!$A$130:$B$135,2,FALSE)>=0.8*VLOOKUP(V88,Lookups!$A$130:$B$135,2,FALSE)),$I$10,IF(VLOOKUP(W88,Lookups!$A$130:$B$135,2,FALSE)>VLOOKUP(V88,Lookups!$A$130:$B$135,2,FALSE),$I$11,""))))) -> 0 | Z88: 3 | AA88: 5 | AC88: =IF(OR(AB88="",AB88="No NBD warranty available"),$I$7,IF(VLOOKUP(AB88,Lookups!$A$130:$B$135,2,FALSE)<VLOOKUP(Z88,Lookups!$A$130:$B$135,2,FALSE),$I$8,IF(AND(VLOOKUP(AB88,Lookups!$A$130:$B$135,2,FALSE)>=VLOOKUP(Z88,Lookups!$A$130:$B$135,2,FALSE),VLOOKUP(AB88,Lookups!$A$130:$B$135,2,FALSE)<0.8*VLOOKUP(AA88,Lookups!$A$130:$B$135,2,FALSE)),$I$9,IF(AND(VLOOKUP(AB88,Lookups!$A$130:$B$135,2,FALSE)<=VLOOKUP(AA88,Lookups!$A$130:$B$135,2,FALSE),VLOOKUP(AB88,Lookups!$A$130:$B$135,2,FALSE)>=0.8*VLOOKUP(AA88,Lookups!$A$130:$B$135,2,FALSE)),$I$10,IF(VLOOKUP(AB88,Lookups!$A$130:$B$135,2,FALSE)>VLOOKUP(AA88,Lookups!$A$130:$B$135,2,FALSE),$I$11,""))))) -> 0 | AF88: Next Business Day (NBD) Warranty Included in the Proposed Device for the device | AH88: 7.0% | AJ88: 3 | AK88: 5 | AM88: =IF(OR(AL88="",AL88="No NBD warranty available"),$I$7,IF(VLOOKUP(AL88,Lookups!$A$130:$B$135,2,FALSE)<VLOOKUP(AJ88,Lookups!$A$130:$B$135,2,FALSE),$I$8,IF(AND(VLOOKUP(AL88,Lookups!$A$130:$B$135,2,FALSE)>=VLOOKUP(AJ88,Lookups!$A$130:$B$135,2,FALSE),VLOOKUP(AL88,Lookups!$A$130:$B$135,2,FALSE)<0.8*VLOOKUP(AK88,Lookups!$A$130:$B$135,2,FALSE)),$I$9,IF(AND(VLOOKUP(AL88,Lookups!$A$130:$B$135,2,FALSE)<=VLOOKUP(AK88,Lookups!$A$130:$B$135,2,FALSE),VLOOKUP(AL88,Lookups!$A$130:$B$135,2,FALSE)>=0.8*VLOOKUP(AK88,Lookups!$A$130:$B$135,2,FALSE)),$I$10,IF(VLOOKUP(AL88,Lookups!$A$130:$B$135,2,FALSE)>VLOOKUP(AK88,Lookups!$A$130:$B$135,2,FALSE),$I$11,""))))) -> 0 | AO88: 3 | AP88: 5 | AR88: =IF(OR(AQ88="",AQ88="No NBD warranty available"),$I$7,IF(VLOOKUP(AQ88,Lookups!$A$130:$B$135,2,FALSE)<VLOOKUP(AO88,Lookups!$A$130:$B$135,2,FALSE),$I$8,IF(AND(VLOOKUP(AQ88,Lookups!$A$130:$B$135,2,FALSE)>=VLOOKUP(AO88,Lookups!$A$130:$B$135,2,FALSE),VLOOKUP(AQ88,Lookups!$A$130:$B$135,2,FALSE)<0.8*VLOOKUP(AP88,Lookups!$A$130:$B$135,2,FALSE)),$I$9,IF(AND(VLOOKUP(AQ88,Lookups!$A$130:$B$135,2,FALSE)<=VLOOKUP(AP88,Lookups!$A$130:$B$135,2,FALSE),VLOOKUP(AQ88,Lookups!$A$130:$B$135,2,FALSE)>=0.8*VLOOKUP(AP88,Lookups!$A$130:$B$135,2,FALSE)),$I$10,IF(VLOOKUP(AQ88,Lookups!$A$130:$B$135,2,FALSE)>VLOOKUP(AP88,Lookups!$A$130:$B$135,2,FALSE),$I$11,""))))) -> 0 | AT88: 5 | AU88: 7 | AW88: =IF(OR(AV88="",AV88="No NBD warranty available"),$I$7,IF(VLOOKUP(AV88,Lookups!$A$130:$B$135,2,FALSE)<VLOOKUP(AT88,Lookups!$A$130:$B$135,2,FALSE),$I$8,IF(AND(VLOOKUP(AV88,Lookups!$A$130:$B$135,2,FALSE)>=VLOOKUP(AT88,Lookups!$A$130:$B$135,2,FALSE),VLOOKUP(AV88,Lookups!$A$130:$B$135,2,FALSE)<0.8*VLOOKUP(AU88,Lookups!$A$130:$B$135,2,FALSE)),$I$9,IF(AND(VLOOKUP(AV88,Lookups!$A$130:$B$135,2,FALSE)<=VLOOKUP(AU88,Lookups!$A$130:$B$135,2,FALSE),VLOOKUP(AV88,Lookups!$A$130:$B$135,2,FALSE)>=0.8*VLOOKUP(AU88,Lookups!$A$130:$B$135,2,FALSE)),$I$10,IF(VLOOKUP(AV88,Lookups!$A$130:$B$135,2,FALSE)>VLOOKUP(AU88,Lookups!$A$130:$B$135,2,FALSE),$I$11,""))))) -> 0
B89: Next Business Day (NBD) Warranty Included in the Proposed Device for the BATTERY | D89: 3.5% | F89: 3 | G89: 5 | I89: =IF(OR(H89="",H89="No NBD warranty available"),$I$7,IF(VLOOKUP(H89,Lookups!$A$130:$B$135,2,FALSE)<VLOOKUP(F89,Lookups!$A$130:$B$135,2,FALSE),$I$8,IF(AND(VLOOKUP(H89,Lookups!$A$130:$B$135,2,FALSE)>=VLOOKUP(F89,Lookups!$A$130:$B$135,2,FALSE),VLOOKUP(H89,Lookups!$A$130:$B$135,2,FALSE)<0.8*VLOOKUP(G89,Lookups!$A$130:$B$135,2,FALSE)),$I$9,IF(AND(VLOOKUP(H89,Lookups!$A$130:$B$135,2,FALSE)<=VLOOKUP(G89,Lookups!$A$130:$B$135,2,FALSE),VLOOKUP(H89,Lookups!$A$130:$B$135,2,FALSE)>=0.8*VLOOKUP(G89,Lookups!$A$130:$B$135,2,FALSE)),$I$10,IF(VLOOKUP(H89,Lookups!$A$130:$B$135,2,FALSE)>VLOOKUP(G89,Lookups!$A$130:$B$135,2,FALSE),$I$11,""))))) -> 0 | K89: 3 | L89: 5 | N89: =IF(OR(M89="",M89="No NBD warranty available"),$I$7,IF(VLOOKUP(M89,Lookups!$A$130:$B$135,2,FALSE)<VLOOKUP(K89,Lookups!$A$130:$B$135,2,FALSE),$I$8,IF(AND(VLOOKUP(M89,Lookups!$A$130:$B$135,2,FALSE)>=VLOOKUP(K89,Lookups!$A$130:$B$135,2,FALSE),VLOOKUP(M89,Lookups!$A$130:$B$135,2,FALSE)<0.8*VLOOKUP(L89,Lookups!$A$130:$B$135,2,FALSE)),$I$9,IF(AND(VLOOKUP(M89,Lookups!$A$130:$B$135,2,FALSE)<=VLOOKUP(L89,Lookups!$A$130:$B$135,2,FALSE),VLOOKUP(M89,Lookups!$A$130:$B$135,2,FALSE)>=0.8*VLOOKUP(L89,Lookups!$A$130:$B$135,2,FALSE)),$I$10,IF(VLOOKUP(M89,Lookups!$A$130:$B$135,2,FALSE)>VLOOKUP(L89,Lookups!$A$130:$B$135,2,FALSE),$I$11,""))))) -> 0 | P89: 3 | Q89: 5 | S89: =IF(OR(R89="",R89="No NBD warranty available"),$I$7,IF(VLOOKUP(R89,Lookups!$A$130:$B$135,2,FALSE)<VLOOKUP(P89,Lookups!$A$130:$B$135,2,FALSE),$I$8,IF(AND(VLOOKUP(R89,Lookups!$A$130:$B$135,2,FALSE)>=VLOOKUP(P89,Lookups!$A$130:$B$135,2,FALSE),VLOOKUP(R89,Lookups!$A$130:$B$135,2,FALSE)<0.8*VLOOKUP(Q89,Lookups!$A$130:$B$135,2,FALSE)),$I$9,IF(AND(VLOOKUP(R89,Lookups!$A$130:$B$135,2,FALSE)<=VLOOKUP(Q89,Lookups!$A$130:$B$135,2,FALSE),VLOOKUP(R89,Lookups!$A$130:$B$135,2,FALSE)>=0.8*VLOOKUP(Q89,Lookups!$A$130:$B$135,2,FALSE)),$I$10,IF(VLOOKUP(R89,Lookups!$A$130:$B$135,2,FALSE)>VLOOKUP(Q89,Lookups!$A$130:$B$135,2,FALSE),$I$11,""))))) -> 0 | U89: 3 | V89: 5 | X89: =IF(OR(W89="",W89="No NBD warranty available"),$I$7,IF(VLOOKUP(W89,Lookups!$A$130:$B$135,2,FALSE)<VLOOKUP(U89,Lookups!$A$130:$B$135,2,FALSE),$I$8,IF(AND(VLOOKUP(W89,Lookups!$A$130:$B$135,2,FALSE)>=VLOOKUP(U89,Lookups!$A$130:$B$135,2,FALSE),VLOOKUP(W89,Lookups!$A$130:$B$135,2,FALSE)<0.8*VLOOKUP(V89,Lookups!$A$130:$B$135,2,FALSE)),$I$9,IF(AND(VLOOKUP(W89,Lookups!$A$130:$B$135,2,FALSE)<=VLOOKUP(V89,Lookups!$A$130:$B$135,2,FALSE),VLOOKUP(W89,Lookups!$A$130:$B$135,2,FALSE)>=0.8*VLOOKUP(V89,Lookups!$A$130:$B$135,2,FALSE)),$I$10,IF(VLOOKUP(W89,Lookups!$A$130:$B$135,2,FALSE)>VLOOKUP(V89,Lookups!$A$130:$B$135,2,FALSE),$I$11,""))))) -> 0 | Z89: 3 | AA89: 5 | AC89: =IF(OR(AB89="",AB89="No NBD warranty available"),$I$7,IF(VLOOKUP(AB89,Lookups!$A$130:$B$135,2,FALSE)<VLOOKUP(Z89,Lookups!$A$130:$B$135,2,FALSE),$I$8,IF(AND(VLOOKUP(AB89,Lookups!$A$130:$B$135,2,FALSE)>=VLOOKUP(Z89,Lookups!$A$130:$B$135,2,FALSE),VLOOKUP(AB89,Lookups!$A$130:$B$135,2,FALSE)<0.8*VLOOKUP(AA89,Lookups!$A$130:$B$135,2,FALSE)),$I$9,IF(AND(VLOOKUP(AB89,Lookups!$A$130:$B$135,2,FALSE)<=VLOOKUP(AA89,Lookups!$A$130:$B$135,2,FALSE),VLOOKUP(AB89,Lookups!$A$130:$B$135,2,FALSE)>=0.8*VLOOKUP(AA89,Lookups!$A$130:$B$135,2,FALSE)),$I$10,IF(VLOOKUP(AB89,Lookups!$A$130:$B$135,2,FALSE)>VLOOKUP(AA89,Lookups!$A$130:$B$135,2,FALSE),$I$11,""))))) -> 0 | AF89: Next Business Day (NBD) Warranty Included in the Proposed Device for the BATTERY | AH89: 0.0% | AR89: =IF(OR(AQ89="",AQ89="No NBD warranty available"),$I$7,IF(VLOOKUP(AQ89,Lookups!$A$130:$B$135,2,FALSE)<VLOOKUP(AO89,Lookups!$A$130:$B$135,2,FALSE),$I$8,IF(AND(VLOOKUP(AQ89,Lookups!$A$130:$B$135,2,FALSE)>=VLOOKUP(AO89,Lookups!$A$130:$B$135,2,FALSE),VLOOKUP(AQ89,Lookups!$A$130:$B$135,2,FALSE)<0.8*VLOOKUP(AP89,Lookups!$A$130:$B$135,2,FALSE)),$I$9,IF(AND(VLOOKUP(AQ89,Lookups!$A$130:$B$135,2,FALSE)<=VLOOKUP(AP89,Lookups!$A$130:$B$135,2,FALSE),VLOOKUP(AQ89,Lookups!$A$130:$B$135,2,FALSE)>=0.8*VLOOKUP(AP89,Lookups!$A$130:$B$135,2,FALSE)),$I$10,IF(VLOOKUP(AQ89,Lookups!$A$130:$B$135,2,FALSE)>VLOOKUP(AP89,Lookups!$A$130:$B$135,2,FALSE),$I$11,""))))) -> 0
A90: =SUM(D90:D90) -> 7% | B90: Minimum months from model introduction to model end-of-sale | D90: 7.0% | F90: 15 | G90: 18 | I90: =IF(OR(H90="",H90="No NBD warranty available"),$I$7,IF(VLOOKUP(H90,Lookups!$A$138:$B$144,2,FALSE)<VLOOKUP(F90,Lookups!$A$138:$B$144,2,FALSE),$I$8,IF(AND(VLOOKUP(H90,Lookups!$A$138:$B$144,2,FALSE)>=VLOOKUP(F90,Lookups!$A$138:$B$144,2,FALSE),VLOOKUP(H90,Lookups!$A$138:$B$144,2,FALSE)<0.8*VLOOKUP(G90,Lookups!$A$138:$B$144,2,FALSE)),$I$9,IF(AND(VLOOKUP(H90,Lookups!$A$138:$B$144,2,FALSE)<=VLOOKUP(G90,Lookups!$A$138:$B$144,2,FALSE),VLOOKUP(H90,Lookups!$A$138:$B$144,2,FALSE)>=0.8*VLOOKUP(G90,Lookups!$A$138:$B$144,2,FALSE)),$I$10,IF(VLOOKUP(H90,Lookups!$A$138:$B$144,2,FALSE)>VLOOKUP(G90,Lookups!$A$138:$B$144,2,FALSE),$I$11,""))))) -> 0 | K90: 15 | L90: 18 | N90: =IF(OR(M90="",M90="No NBD warranty available"),$I$7,IF(VLOOKUP(M90,Lookups!$A$138:$B$144,2,FALSE)<VLOOKUP(K90,Lookups!$A$138:$B$144,2,FALSE),$I$8,IF(AND(VLOOKUP(M90,Lookups!$A$138:$B$144,2,FALSE)>=VLOOKUP(K90,Lookups!$A$138:$B$144,2,FALSE),VLOOKUP(M90,Lookups!$A$138:$B$144,2,FALSE)<0.8*VLOOKUP(L90,Lookups!$A$138:$B$144,2,FALSE)),$I$9,IF(AND(VLOOKUP(M90,Lookups!$A$138:$B$144,2,FALSE)<=VLOOKUP(L90,Lookups!$A$138:$B$144,2,FALSE),VLOOKUP(M90,Lookups!$A$138:$B$144,2,FALSE)>=0.8*VLOOKUP(L90,Lookups!$A$138:$B$144,2,FALSE)),$I$10,IF(VLOOKUP(M90,Lookups!$A$138:$B$144,2,FALSE)>VLOOKUP(L90,Lookups!$A$138:$B$144,2,FALSE),$I$11,""))))) -> 0 | P90: 15 | Q90: 18 | S90: =IF(OR(R90="",R90="No NBD warranty available"),$I$7,IF(VLOOKUP(R90,Lookups!$A$138:$B$144,2,FALSE)<VLOOKUP(P90,Lookups!$A$138:$B$144,2,FALSE),$I$8,IF(AND(VLOOKUP(R90,Lookups!$A$138:$B$144,2,FALSE)>=VLOOKUP(P90,Lookups!$A$138:$B$144,2,FALSE),VLOOKUP(R90,Lookups!$A$138:$B$144,2,FALSE)<0.8*VLOOKUP(Q90,Lookups!$A$138:$B$144,2,FALSE)),$I$9,IF(AND(VLOOKUP(R90,Lookups!$A$138:$B$144,2,FALSE)<=VLOOKUP(Q90,Lookups!$A$138:$B$144,2,FALSE),VLOOKUP(R90,Lookups!$A$138:$B$144,2,FALSE)>=0.8*VLOOKUP(Q90,Lookups!$A$138:$B$144,2,FALSE)),$I$10,IF(VLOOKUP(R90,Lookups!$A$138:$B$144,2,FALSE)>VLOOKUP(Q90,Lookups!$A$138:$B$144,2,FALSE),$I$11,""))))) -> 0 | U90: 15 | V90: 18 | X90: =IF(OR(W90="",W90="No NBD warranty available"),$I$7,IF(VLOOKUP(W90,Lookups!$A$138:$B$144,2,FALSE)<VLOOKUP(U90,Lookups!$A$138:$B$144,2,FALSE),$I$8,IF(AND(VLOOKUP(W90,Lookups!$A$138:$B$144,2,FALSE)>=VLOOKUP(U90,Lookups!$A$138:$B$144,2,FALSE),VLOOKUP(W90,Lookups!$A$138:$B$144,2,FALSE)<0.8*VLOOKUP(V90,Lookups!$A$138:$B$144,2,FALSE)),$I$9,IF(AND(VLOOKUP(W90,Lookups!$A$138:$B$144,2,FALSE)<=VLOOKUP(V90,Lookups!$A$138:$B$144,2,FALSE),VLOOKUP(W90,Lookups!$A$138:$B$144,2,FALSE)>=0.8*VLOOKUP(V90,Lookups!$A$138:$B$144,2,FALSE)),$I$10,IF(VLOOKUP(W90,Lookups!$A$138:$B$144,2,FALSE)>VLOOKUP(V90,Lookups!$A$138:$B$144,2,FALSE),$I$11,""))))) -> 0 | Z90: 15 | AA90: 18 | AC90: =IF(OR(AB90="",AB90="No NBD warranty available"),$I$7,IF(VLOOKUP(AB90,Lookups!$A$138:$B$144,2,FALSE)<VLOOKUP(Z90,Lookups!$A$138:$B$144,2,FALSE),$I$8,IF(AND(VLOOKUP(AB90,Lookups!$A$138:$B$144,2,FALSE)>=VLOOKUP(Z90,Lookups!$A$138:$B$144,2,FALSE),VLOOKUP(AB90,Lookups!$A$138:$B$144,2,FALSE)<0.8*VLOOKUP(AA90,Lookups!$A$138:$B$144,2,FALSE)),$I$9,IF(AND(VLOOKUP(AB90,Lookups!$A$138:$B$144,2,FALSE)<=VLOOKUP(AA90,Lookups!$A$138:$B$144,2,FALSE),VLOOKUP(AB90,Lookups!$A$138:$B$144,2,FALSE)>=0.8*VLOOKUP(AA90,Lookups!$A$138:$B$144,2,FALSE)),$I$10,IF(VLOOKUP(AB90,Lookups!$A$138:$B$144,2,FALSE)>VLOOKUP(AA90,Lookups!$A$138:$B$144,2,FALSE),$I$11,""))))) -> 0 | AE90: =SUM(AH90:AH90) -> 7% | AF90: Minimum months from model introduction to model end-of-sale | AH90: 7.0% | AJ90: 15 | AK90: 18 | AM90: =IF(OR(AL90="",AL90="No NBD warranty available"),$I$7,IF(VLOOKUP(AL90,Lookups!$A$138:$B$144,2,FALSE)<VLOOKUP(AJ90,Lookups!$A$138:$B$144,2,FALSE),$I$8,IF(AND(VLOOKUP(AL90,Lookups!$A$138:$B$144,2,FALSE)>=VLOOKUP(AJ90,Lookups!$A$138:$B$144,2,FALSE),VLOOKUP(AL90,Lookups!$A$138:$B$144,2,FALSE)<0.8*VLOOKUP(AK90,Lookups!$A$138:$B$144,2,FALSE)),$I$9,IF(AND(VLOOKUP(AL90,Lookups!$A$138:$B$144,2,FALSE)<=VLOOKUP(AK90,Lookups!$A$138:$B$144,2,FALSE),VLOOKUP(AL90,Lookups!$A$138:$B$144,2,FALSE)>=0.8*VLOOKUP(AK90,Lookups!$A$138:$B$144,2,FALSE)),$I$10,IF(VLOOKUP(AL90,Lookups!$A$138:$B$144,2,FALSE)>VLOOKUP(AK90,Lookups!$A$138:$B$144,2,FALSE),$I$11,""))))) -> 0 | AO90: 15 | AP90: 18 | AR90: =IF(OR(AQ90="",AQ90="No NBD warranty available"),$I$7,IF(VLOOKUP(AQ90,Lookups!$A$138:$B$144,2,FALSE)<VLOOKUP(AO90,Lookups!$A$138:$B$144,2,FALSE),$I$8,IF(AND(VLOOKUP(AQ90,Lookups!$A$138:$B$144,2,FALSE)>=VLOOKUP(AO90,Lookups!$A$138:$B$144,2,FALSE),VLOOKUP(AQ90,Lookups!$A$138:$B$144,2,FALSE)<0.8*VLOOKUP(AP90,Lookups!$A$138:$B$144,2,FALSE)),$I$9,IF(AND(VLOOKUP(AQ90,Lookups!$A$138:$B$144,2,FALSE)<=VLOOKUP(AP90,Lookups!$A$138:$B$144,2,FALSE),VLOOKUP(AQ90,Lookups!$A$138:$B$144,2,FALSE)>=0.8*VLOOKUP(AP90,Lookups!$A$138:$B$144,2,FALSE)),$I$10,IF(VLOOKUP(AQ90,Lookups!$A$138:$B$144,2,FALSE)>VLOOKUP(AP90,Lookups!$A$138:$B$144,2,FALSE),$I$11,""))))) -> 0 | AT90: 15 | AU90: 18 | AW90: =IF(OR(AV90="",AV90="No NBD warranty available"),$I$7,IF(VLOOKUP(AV90,Lookups!$A$138:$B$144,2,FALSE)<VLOOKUP(AT90,Lookups!$A$138:$B$144,2,FALSE),$I$8,IF(AND(VLOOKUP(AV90,Lookups!$A$138:$B$144,2,FALSE)>=VLOOKUP(AT90,Lookups!$A$138:$B$144,2,FALSE),VLOOKUP(AV90,Lookups!$A$138:$B$144,2,FALSE)<0.8*VLOOKUP(AU90,Lookups!$A$138:$B$144,2,FALSE)),$I$9,IF(AND(VLOOKUP(AV90,Lookups!$A$138:$B$144,2,FALSE)<=VLOOKUP(AU90,Lookups!$A$138:$B$144,2,FALSE),VLOOKUP(AV90,Lookups!$A$138:$B$144,2,FALSE)>=0.8*VLOOKUP(AU90,Lookups!$A$138:$B$144,2,FALSE)),$I$10,IF(VLOOKUP(AV90,Lookups!$A$138:$B$144,2,FALSE)>VLOOKUP(AU90,Lookups!$A$138:$B$144,2,FALSE),$I$11,""))))) -> 0
A91: =SUM(A22:A90) -> 100% | D91: =SUM(D22:D90) -> 100% | H91: Model Score | I91: =IF(H85="No",0,ROUNDUP(SUMPRODUCT($D22:$D90,I22:I90)*10,0)) -> 3 | M91: Model Score | N91: =IF(M85="No",0,ROUNDUP(SUMPRODUCT($D22:$D90,N22:N90)*10,0)) -> 0 | R91: Model Score | S91: =IF(R85="No",0,ROUNDUP(SUMPRODUCT($D22:$D90,S22:S90)*10,0)) -> 0 | W91: Model Score | X91: =IF(W85="No",0,ROUNDUP(SUMPRODUCT($D22:$D90,X22:X90)*10,0)) -> 0 | AB91: Model Score | AC91: =IF(AB85="No",0,ROUNDUP(SUMPRODUCT($D22:$D90,AC22:AC90)*10,0)) -> 0 | AE91: =SUM(AE22:AE90) -> 100% | AH91: =SUM(AH22:AH90) -> 100% | AL91: Model Score | AM91: =IF(AL85="No",0,ROUNDUP(SUMPRODUCT($D22:$D90,AM22:AM90)*10,0)) -> 0 | AQ91: Model Score | AR91: =IF(AQ85="No",0,ROUNDUP(SUMPRODUCT($D22:$D90,AR22:AR90)*10,0)) -> 0 | AV91: Model Score | AW91: =IF(AV85="No",0,ROUNDUP(SUMPRODUCT($D22:$D90,AW22:AW90)*10,0)) -> 0
A93: Weight | B93: Maximum annual failure per 100 devices for years 4,5,6 and 7 | H93: Number of Failures | M93: Number of Failures | R93: Number of Failures | W93: Number of Failures | AB93: Number of Failures | AE93: Weight | AF93: Failure per 100 devices over a five year period | AL93: Number of Failures | AQ93: Number of Failures | AV93: Number of Failures
A94: 3% | B94: Adapter, AC | AE94: 3% | AF94: Adapter, AC
A95: 28% | B95: Base Unit/Chasis | AE95: 28% | AF95: Base Unit/Chasis
A96: 7% | B96: Battery (Notebook) | AE96: 7% | AF96: Battery (Notebook)
A97: 3% | B97: Camera | AE97: 3% | AF97: Camera
A98: 2% | B98: Fan Assembly | AE98: 2% | AF98: Fan Assembly
A99: 4% | B99: Hard Drive | AE99: 4% | AF99: Hard Drive
A100: 5% | B100: Heatsink | AE100: 5% | AF100: Heatsink
A101: 9% | B101: Keyboard | AE101: 9% | AF101: Keyboard
A102: 12% | B102: LCD Panel | AE102: 12% | AF102: LCD Panel
A103: 2% | B103: Memory | AE103: 2% | AF103: Memory
A104: 21% | B104: Motherboard | AE104: 21% | AF104: Motherboard
A105: 3% | B105: Speaker | AE105: 3% | AF105: Speaker
A106: 2% | B106: Port Replicator/Docks | AE106: 2% | AF106: Port Replicator/Docks
G107: Failure Index | H107: =IF(OR(H94="",H95="",H96="",H97="",H98="",H99="",H100="",H101="",H102="",H103="",H104="",H106="",H105=""),0,ROUND(SUMPRODUCT($A94:$A106,H94:H106),0)) -> 0 | L107: Failure Index | M107: =IF(OR(M94="",M95="",M96="",M97="",M98="",M99="",M100="",M101="",M102="",M103="",M104="",M106="",M105=""),0,ROUND(SUMPRODUCT($A94:$A106,M94:M106),0)) -> 0 | Q107: Failure Index | R107: =IF(OR(R94="",R95="",R96="",R97="",R98="",R99="",R100="",R101="",R102="",R103="",R104="",R106="",R105=""),0,ROUND(SUMPRODUCT($A94:$A106,R94:R106),0)) -> 0 | V107: Failure Index | W107: =IF(OR(W94="",W95="",W96="",W97="",W98="",W99="",W100="",W101="",W102="",W103="",W104="",W106="",W105=""),0,ROUND(SUMPRODUCT($A94:$A106,W94:W106),0)) -> 0 | AA107: Failure Index | AB107: =IF(OR(AB94="",AB95="",AB96="",AB97="",AB98="",AB99="",AB100="",AB101="",AB102="",AB103="",AB104="",AB106="",AB105=""),0,ROUND(SUMPRODUCT($A94:$A106,AB94:AB106),0)) -> 0 | AK107: Failure Index | AL107: =IF(OR(AL94="",AL95="",AL96="",AL97="",AL98="",AL99="",AL100="",AL101="",AL102="",AL103="",AL104="",AL106="",AL105=""),0,ROUND(SUMPRODUCT($A94:$A106,AL94:AL106),0)) -> 0 | AP107: Failure Index | AQ107: =IF(OR(AQ94="",AQ95="",AQ96="",AQ97="",AQ98="",AQ99="",AQ100="",AQ101="",AQ102="",AQ103="",AQ104="",AQ106="",AQ105=""),0,ROUND(SUMPRODUCT($A94:$A106,AQ94:AQ106),0)) -> 0 | AU107: Failure Index | AV107: =IF(OR(AV94="",AV95="",AV96="",AV97="",AV98="",AV99="",AV100="",AV101="",AV102="",AV103="",AV104="",AV106="",AV105=""),0,ROUND(SUMPRODUCT($A94:$A106,AV94:AV106),0)) -> 0
A109: Weight | B109: Docking Station/Port Replicator Configuration | D109: Weight | F109: Mainstream Docking Station/Port Replicator | K109: High-End Docking Station/Port Replicator
F110: Make | K110: Make
F111: Model | K111: Model
F112: Required | G112: Desired | H112: Proposed | I112: Score | K112: Required | L112: Desired | M112: Proposed | N112: Score
A113: =SUM(D113:D115) -> 33% | B113: Video Out | C113: HDMI 2 | D113: 15.0% | F113: 1 | G113: 2 | I113: =IF(OR(H113="",H113=0),$I$7,IF(H113<F113,$I$8,IF(AND(H113>=F113,H113<0.9*G113),$I$9,IF(AND(H113<=G113,H113>=0.9*G113),$I$10,IF(H113>G113,$I$11,""))))) -> 0 | K113: 2 | L113: 6 | N113: =IF(OR(M113="",M113=0),$I$7,IF(M113<K113,$I$8,IF(AND(M113>=K113,M113<0.9*L113),$I$9,IF(AND(M113<=L113,M113>=0.9*L113),$I$10,IF(M113>L113,$I$11,""))))) -> 0
B114: Number of ports | C114: DisplayPort 1.4 (mini or std) | D114: 15.0% | F114: 1 | G114: 2 | I114: 0 | K114: 2 | L114: 2 | N114: 0
C115: VGA | D115: 2.5% | I115: 0 | N115: 0
A116: =SUM(D116:D118) -> 33% | B116: Number of USB Ports | C116: USB 2 | D116: 2.5% | I116: 0 | N116: 0
C117: USB 3 Gen 1 | D117: 15.0% | F117: 2 | G117: 4 | I117: 0 | K117: 4 | L117: 6 | N117: 0
C118: USB type C | D118: 15.0% | F118: 1 | G118: 2 | I118: 0 | K118: 1 | L118: 2 | N118: 0
A119: =SUM(D119:D120) -> 20% | B119: Connectivity | C119: Line in/out/mic/headphone | D119: 5.0% | F119: Yes | G119: Yes | I119: =IF(H119="",$I$7,IF(AND(H119=G119,H119="Yes"),$I$10,IF(AND(H119=F119,H119="Yes"),$I$9,3))) -> 0 | K119: Yes | L119: Yes | N119: =IF(M119="",$I$7,IF(AND(M119=L119,M119="Yes"),$I$10,IF(AND(M119=K119,M119="Yes"),$I$9,3))) -> 0
C120: RJ45 Gigabit LAN (Built-in) | D120: 15.0% | F120: Yes | G120: Yes | I120: =IF(H120="",$I$7,IF(AND(H120=G120,H120="Yes"),8,IF(AND(H120=F120,H120="Yes"),$I$9,3))) -> 0 | K120: Yes | L120: Yes | N120: =IF(M120="",$I$7,IF(AND(M120=L120,M120="Yes"),8,IF(AND(M120=K120,M120="Yes"),$I$9,3))) -> 0
A121: =SUM(D121:D122) -> 15% | B121: Maximum Next Business Day (NBD) Warranty in Years Available at Point of Sale for the device | D121: 7.5% | F121: 3 | G121: 5 | I121: =IF(OR(H121="",H121="No NBD warranty available"),$I$7,IF(VLOOKUP(H121,Lookups!$A$130:$B$135,2,FALSE)<VLOOKUP(F121,Lookups!$A$130:$B$135,2,FALSE),$I$8,IF(AND(VLOOKUP(H121,Lookups!$A$130:$B$135,2,FALSE)>=VLOOKUP(F121,Lookups!$A$130:$B$135,2,FALSE),VLOOKUP(H121,Lookups!$A$130:$B$135,2,FALSE)<0.8*VLOOKUP(G121,Lookups!$A$130:$B$135,2,FALSE)),$I$9,IF(AND(VLOOKUP(H121,Lookups!$A$130:$B$135,2,FALSE)<=VLOOKUP(G121,Lookups!$A$130:$B$135,2,FALSE),VLOOKUP(H121,Lookups!$A$130:$B$135,2,FALSE)>=0.8*VLOOKUP(G121,Lookups!$A$130:$B$135,2,FALSE)),$I$10,IF(VLOOKUP(H121,Lookups!$A$130:$B$135,2,FALSE)>VLOOKUP(G121,Lookups!$A$130:$B$135,2,FALSE),$I$11,""))))) -> 0 | K121: 3 | L121: 5 | N121: =IF(OR(M121="",M121="No NBD warranty available"),$I$7,IF(VLOOKUP(M121,Lookups!$A$130:$B$135,2,FALSE)<VLOOKUP(K121,Lookups!$A$130:$B$135,2,FALSE),$I$8,IF(AND(VLOOKUP(M121,Lookups!$A$130:$B$135,2,FALSE)>=VLOOKUP(K121,Lookups!$A$130:$B$135,2,FALSE),VLOOKUP(M121,Lookups!$A$130:$B$135,2,FALSE)<0.8*VLOOKUP(L121,Lookups!$A$130:$B$135,2,FALSE)),$I$9,IF(AND(VLOOKUP(M121,Lookups!$A$130:$B$135,2,FALSE)<=VLOOKUP(L121,Lookups!$A$130:$B$135,2,FALSE),VLOOKUP(M121,Lookups!$A$130:$B$135,2,FALSE)>=0.8*VLOOKUP(L121,Lookups!$A$130:$B$135,2,FALSE)),$I$10,IF(VLOOKUP(M121,Lookups!$A$130:$B$135,2,FALSE)>VLOOKUP(L121,Lookups!$A$130:$B$135,2,FALSE),$I$11,""))))) -> 0
B122: Next Business Day (NBD) Warranty Included in the Proposed Device for the device | D122: 7.5% | F122: 3 | G122: 5 | I122: =IF(OR(H122="",H122="No NBD warranty available"),$I$7,IF(VLOOKUP(H122,Lookups!$A$130:$B$135,2,FALSE)<VLOOKUP(F122,Lookups!$A$130:$B$135,2,FALSE),$I$8,IF(AND(VLOOKUP(H122,Lookups!$A$130:$B$135,2,FALSE)>=VLOOKUP(F122,Lookups!$A$130:$B$135,2,FALSE),VLOOKUP(H122,Lookups!$A$130:$B$135,2,FALSE)<0.8*VLOOKUP(G122,Lookups!$A$130:$B$135,2,FALSE)),$I$9,IF(AND(VLOOKUP(H122,Lookups!$A$130:$B$135,2,FALSE)<=VLOOKUP(G122,Lookups!$A$130:$B$135,2,FALSE),VLOOKUP(H122,Lookups!$A$130:$B$135,2,FALSE)>=0.8*VLOOKUP(G122,Lookups!$A$130:$B$135,2,FALSE)),$I$10,IF(VLOOKUP(H122,Lookups!$A$130:$B$135,2,FALSE)>VLOOKUP(G122,Lookups!$A$130:$B$135,2,FALSE),$I$11,""))))) -> 0 | K122: 3 | L122: 5 | N122: =IF(OR(M122="",M122="No NBD warranty available"),$I$7,IF(VLOOKUP(M122,Lookups!$A$130:$B$135,2,FALSE)<VLOOKUP(K122,Lookups!$A$130:$B$135,2,FALSE),$I$8,IF(AND(VLOOKUP(M122,Lookups!$A$130:$B$135,2,FALSE)>=VLOOKUP(K122,Lookups!$A$130:$B$135,2,FALSE),VLOOKUP(M122,Lookups!$A$130:$B$135,2,FALSE)<0.8*VLOOKUP(L122,Lookups!$A$130:$B$135,2,FALSE)),$I$9,IF(AND(VLOOKUP(M122,Lookups!$A$130:$B$135,2,FALSE)<=VLOOKUP(L122,Lookups!$A$130:$B$135,2,FALSE),VLOOKUP(M122,Lookups!$A$130:$B$135,2,FALSE)>=0.8*VLOOKUP(L122,Lookups!$A$130:$B$135,2,FALSE)),$I$10,IF(VLOOKUP(M122,Lookups!$A$130:$B$135,2,FALSE)>VLOOKUP(L122,Lookups!$A$130:$B$135,2,FALSE),$I$11,""))))) -> 0
A123: =SUM(A113:A122) -> 100% | D123: =SUM(D113:D122) -> 100% | H123: Option 1 Score | I123: =SUMPRODUCT($D113:$D120*I113:I120)*10 -> 0 | M123: Option 2 Score | N123: =SUMPRODUCT($D113:$D120*N113:N120)*10 -> 0
A1048252: 5%

Sheet Annex A Technical req 2
B1: Instructions to complete:
B2: 1. Please complete only the green cells
B3: 2. The project plan and sub-sections will become part of the contracted agreement, should the Bidder be successful, and also provides the evaluation committee with a view of the ability of the Bidder to execute on the contract.
B4: 3. By answering yes, the Bidder binds themselves to deliver on each corresponding aspect of the project.
B6: Annex A Technical spec 2
B7: Bidder Name: | C7: =IF('Annex A Technical req 1'!C4="","",'Annex A Technical req 1'!C4) -> hkjg nb
B8: Criteria | C8: Yes /No | D8: Score allocation: 0: Unable to meet requirement 10: Able to meet requirement | E8: Comments
A9: 1 | B9: Order fulfilment
A10: 1.1 | B10: The bidder must establish a mechanism to generate quotes and time to fulfil
A11: 1.1.1 | B11: Requirement: Self-help portal to generate immediate quotes | D11: =IF(C11="yes",10,0) -> 0
A12: 1.1.2 | B12: Requirement: Generating Manual quotes via e-Mail and call-in, requires acknowledgement within 2 hours, and 4-hour time to receive the quote | D12: 0
A13: 1.2 | B13: Time to process an order
A14: 1.2.1 | B14: Requirement: An acknowledgement e-mail must be returned within 2 hours of orders received, including the expected delivery date for Laptops, Desktops, and Accessories for upgrades, as well as status updates sent via e-mail to the CSIR Procurement department and ordering user. | D14: 0
A15: 1.2.1 | B15: Requirement: Integration with the CSIR procurement system with that of the OEM/Supplier, to streamline the ordering process | D15: 0
A16: 1.3 | B16: Lead time to deliver
A17: 1.3.1 | B17: The bidder must have the ability to fulfil all orders for standard models within at least 10 days, irrespective of the number of devices ordered. | D17: =IF(C17="yes",10,0) -> 0
A18: 1.3.2 | B18: Modern mainstream and highly mobile class Notebooks to be delivered within at least 3 days from order. | D18: =IF(C18="yes",10,0) -> 0
A19: 1.3.3 | B19: Desktop modern mainstream to be delivered in at least 3 days. | D19: =IF(C19="yes",10,0) -> 0
A20: 1.3.4 | B20: Orders are to be fulfilled for Nonstandard models within at least 21 days. | D20: =IF(C20="yes",10,0) -> 0
A21: 2 | B21: Enterprise portal
B22: Requirement: An enterprise portal must be enabled with a reporting feature, which includes the following fields:
A23: 2.1 | B23: · Asset reports: Containing, Inventory information, containing the model, drivers, and parts detail, as well as the serial numbers of each. | D23: 0
A24: 2.2 | B24: · Purchase Report: Containing, Purchasing date, CSIR order number, Delivery date, and Vendor order number | D24: 0
A25: 2.3 | B25: · SLA performance report: Containing, MTTR, Mean time between failures (MTBF), Time from order to delivery of all orders, warranty, and parts replaced. | D25: 0
A26: 3 | B26: Enterprise-level Hardware Quality
A27: 3.1 | B27: All models are of equal quality, and the longevity of models are similar for all releases. | D27: 0
A28: 3.2 | B28: If problematic parts, due to poor design or quality, result in failures, the Bidder will replace all affected (i.e. batteries, screens, keyboards, motherboards, fans). | D28: 0
A29: 4 | B29: Local Hardware Storage/Warehousing
A30: 4.1 | B30: The bidder is be able to provide a warehousing facility. | D30: 0
A31: 5 | B31: OEM Future Product/Service Strategy and Roadmap
A32: 5.1 | B32: All parts for all models to be supplied and supported for at least 7 years | D32: 0
A33: 5.2 | B33: Models supplied should not reach the end of life within less than 24 months | D33: 0
A34: 5.3 | B34: Configuration changes are to be maintained for a minimum period of 24 months | D34: 0
A35: 6 | B35: Readily available enterprise-grade asset life cycle management information
B36: The OEMs and potential bidders must make the following information available through an online portal for a minimum period of seven years:
A37: 6.1 | B37: Statistics (volume, specifications, and cost) related to buying patterns, including deviations from the CSIR standard | D37: 0
A38: 6.2 | B38: Real-time tracking of orders and their delivery | D38: 0
A39: 6.3 | B39: Detailed asset configuration information down to component levels including a serial number when available, for each component | D39: 0
A40: 6.4 | B40: Integration between the CSIR procurement system and the supplier online ordering | D40: 0
A41: 6.5 | B41: The ability to “burn” CSIR asset info in the bios and to affix an asset tag at the time of shipment. | D41: 0
A42: 6.6 | B42: Include CSIR order and asset info in the reporting and online query system(s) | D42: 0
A43: 6.7 | B43: Provisioning of LAB machines at cost ( 2 of each of the new and evaluation models). For every mode renewal cycle, the number of machines supplied at cost will not exceed 10 | D43: 0
A44: 7 | B44: Backward compatibility of Docking stations
A45: 7.1 | B45: OEM to guarantee the backward compatibility of docking stations | D45: =IF(C45="yes",10,0) -> 0
A46: 8 | B46: LAB Infrastructure and Imaging of new models
A47: 8.1 | B47: Provisioning of LAB machines at cost ( 2 of each of the new models) | D47: 0
A48: 8.2 | B48: Images to be preloaded and certified | D48: 0
A49: 8.3 | B49: New drivers to be automatically added to the image by the supplier | D49: 0
A50: 9 | B50: Equipment management
A51: 9.1 | B51: The supplier must confirm all models to be in working order, by testing at the time of delivery at the CSIR. | D51: 0
A52: 9.2 | B52: Proposal submitted to manage the CSIR equipment and parts storerooms on the CSIR premises | D52: 0
A53: 9.3 | B53: All equipment to be returned to the storerooms, with the intent to be e-wasted by the bidder, on behalf of the OEM. | D53: 0
A54: 9.4 | B54: It is expected that equipment destined for e-waste, must be collected on a monthly basis, and a rebate paid to the CSIR, through a credit | D54: 0
D55: =IF(SUM(D9:D54)=0,0,SUM(D9:D54)/320*10) -> 0.00
C56: Points | D56: 320
B57: Annex A Technical requirement 2 | C57: =IF(D55<=D57,"Do not proceed","Proceed") -> Do not proceed | D57: 240
B59: Certify correctness
B61: On behalf of the Bidder
B67: Signature
B69: Name and Surname
B71: Designation or Role

Sheet Annex B SLA Perf requirements
A2: Annexure B: SLA Performance requirements
A3: Bidder Name: | B3: =IF('Annex A Technical req 1'!C4="","",'Annex A Technical req 1'!C4) -> hkjg nb
B4: SLA call resolution requirements | C4: Expected service delivery criteria | D4: Performance level | E4: Reporting requirements | F4: Met (yes or no) | G4: Score
B5: Same day for high priority calls | C5: 365 x 24 x 7 x 2hr to replace | D5: 95% on average | E5: Monthly SLA reporting to include the following:
C6: Defined as: days of the year x hours x days of the week x resolution time | D6: 95% on average | E6: Number of calls logged per month | G6: =IF(F6="yes",10,0) -> 0
E7: MTTR | G7: =IF(F7="yes",10,0) -> 0
E8: Root Cause Analysis report for all incidents/requests. | G8: =IF(F8="yes",10,0) -> 0
E9: Summary of maintenance and support actions undertaken per month | G9: =IF(F9="yes",10,0) -> 0
B10: Next business day (NBD) resolution for medium priority calls | C10: Expected service delivery criteria | D10: Performance level | E10: Monthly SLA reporting to include the following:
C11: 365 x 24 x 7 x NBD to replace | D11: 95% on average | E11: Number of calls logged per month | G11: =IF(F11="yes",10,0) -> 0
C12: Defined as: days of the year x hours x days of the week x resolution time | D12: 95% on average | E12: MTTR | G12: =IF(F12="yes",10,0) -> 0
E13: Root Cause Analysis report for all incidents/requests. | G13: =IF(F13="yes",10,0) -> 0
E14: Summary of maintenance and support actions undertaken per month | G14: =IF(F14="yes",10,0) -> 0
B15: Average delivery time requirement | C15: Expected service delivery criteria | D15: Performance level | E15: Reporting requirements
B16: Highly Mobile Notebook/desktops (Mobile, Connector) | C16: Delivery on average: within 12 days | D16: No more than 10% over 15 days | E16: A report containing the delivery time per order, and a report containing the average delivery times of all orders | G16: =IF(F16="yes",10,0) -> 0
B17: Traditional Mainstream Notebook and Desktop (Connector, Collaborator) | C17: Delivery on average: within 7 days | D17: No more than 10% over 10 days | E17: A report containing the delivery time per order, and a report containing the average delivery times of all orders | G17: =IF(F17="yes",10,0) -> 0
B18: Modern Mainstream Notebook (Connector, Collaborator) | C18: Delivery on average: within 7 days | D18: No more than 10% over 10 days | E18: A report containing the delivery time per order, and a report containing the average delivery times of all orders | G18: =IF(F18="yes",10,0) -> 0
B19: High-End Notebook (Connector, Collaborator)- 15" screen | C19: Delivery on average: within 7 days | D19: No more than 10% over 10 days | E19: A report containing the delivery time per order, and a report containing the average delivery times of all orders | G19: =IF(F19="yes",10,0) -> 0
B20: High-End Notebook (Connector, Collaborator) - 17" screen | C20: Delivery on average: within 7 days | D20: No more than 10% over 10 days | E20: A report containing the delivery time per order, and a report containing the average delivery times of all orders | G20: =IF(F20="yes",10,0) -> 0
F21: Total score | G21: =SUM(G5:G20) -> 0
F22: Maximum points | G22: 130
B23: SLA Performance requirements | C23: =IF(G23<G21,"Proceed","Do not proceed") -> Do not proceed | F23: Minimum required | G23: =G22*0.75 -> 98
F24: Score out of 10 | G24: =G21/G22*10 -> 0.00
A27: Certify correctness
A29: On behalf of the Bidder
A35: Signature
A37: Name and Surname
A39: Designation or Role

Sheet Annex C Company Info
A2: Annexure C: Company Informaton
A4: Bidder Name: | B4: =IF('Annex A Technical req 1'!C4="","",'Annex A Technical req 1'!C4) -> hkjg nb
A7: OEM Presence Region | B7: OEM Office(s) | C7: 24x7x365 Call Centre | D7: Number of Next Business Day On-site Repair Agents | E7: Number Spares Stores
A8: GAUTENG | D8: =SUM(D9:D13) -> 0
A9: CSIR Pretoria
A10: CSIR Kloppersbos (Pretoria North)
A11: CSIR Paardefontein (Pretoria North)
A12: CSIR Johannesburg: Frost Avenue (Cottesloe)
A13: CSIR Johannesburg: Carlow Road
A14: WESTERN CAPE | D14: =SUM(D15:D16) -> 0
A15: CSIR Rosebank (Cape Town)
A16: CSIR Stellenbosch
A17: KWAZULU NATAL | D17: =D18 -> 0
A18: CSIR Durban
A19: INTERNATIONAL | B19: Not Applicable | D19: Not Applicable | E19: Not Applicable
A20: Invidual Totals | B20: =IF(OR(B8="yes",B14="yes",B17="yes"),100,0) -> 0 | C20: =IF(AND(COUNTIF(C8:C18,"24x7x365")>=1,C19="24x7x365"),100,IF(AND(COUNTIF(C8:C18,"Office Hours")>=1,C19="24x7x365"),80,IF(COUNTIF(C8:C18,"24x7x365")>=1,90,IF(C19="24x7x365",70,IF(COUNTIF(C8:C18,"Office Hours")>=1,60,IF(C19="Office Hours",50,0)))))) -> 0 | D20: =IF(AND(D8>=1,D14>=1,D17>=1),100,0) -> 0 | E20: =IF(AND(E8>=1,E14>=1,E17>=1),100,IF(OR(AND(E8>=1,E14>=1),AND(E8>=1,E17>=1)),50,0)) -> 0
A21: Weight | B21: 20% | C21: 20% | D21: 30% | E21: 30%
A22: Individual Weighted Score | B22: =B21*B20 -> 0 | C22: =C21*C20 -> 0 | D22: =D21*D20 -> 0 | E22: =E21*E20 -> 0
A23: Total Weighted Score | B23: =SUM(B22:E22) -> 0

Sheet PART 2 Pricing Schedule
A2: PRICING SCHEDULE
A4: Bidder Name: | B4: =IF('Annex A Technical req 1'!C4="","",'Annex A Technical req 1'!C4) -> hkjg nb
A6: Notebook/Desktops Pricing in ZAR | D6: Highly Mobile Notebook (Mobile, Connector) | J6: Traditional Mainstream Notebook (Connector, Collaborator) | P6: Modern Mainstream Notebook (Connector, Collaborator) | V6: High-End Notebook (Connector, Collaborator)- 15" screen | AB6: High-End Notebook (Connector, Collaborator) - 17" screen | AH6: Traditional Mainstream Desktop (Connector, Collaborator) | AN6: Modern Mainstream Desktop (Connector, Collaborator) | AT6: High-End Desktop with Xeon CPU (Connector, Collaborator)
A7: Make | D7: =IF('Annex A Technical req 1'!G19="","",'Annex A Technical req 1'!G19) ->  | J7: =IF('Annex A Technical req 1'!L19="","",'Annex A Technical req 1'!L19) ->  | P7: =IF('Annex A Technical req 1'!Q19="","",'Annex A Technical req 1'!Q19) ->  | V7: =IF('Annex A Technical req 1'!V19="","",'Annex A Technical req 1'!V19) ->  | AB7: =IF('Annex A Technical req 1'!AA19="","",'Annex A Technical req 1'!AA19) ->  | AH7: =IF('Annex A Technical req 1'!AK19="","",'Annex A Technical req 1'!AK19) ->  | AN7: =IF('Annex A Technical req 1'!AP19="","",'Annex A Technical req 1'!AP19) ->  | AT7: =IF('Annex A Technical req 1'!AU19="","",'Annex A Technical req 1'!AU19) -> 
A8: Model | D8: =IF('Annex A Technical req 1'!G20="","",'Annex A Technical req 1'!G20) ->  | J8: =IF('Annex A Technical req 1'!L20="","",'Annex A Technical req 1'!L20) ->  | P8: =IF('Annex A Technical req 1'!Q20="","",'Annex A Technical req 1'!Q20) ->  | V8: =IF('Annex A Technical req 1'!V20="","",'Annex A Technical req 1'!V20) ->  | AB8: =IF('Annex A Technical req 1'!AA20="","",'Annex A Technical req 1'!AA20) ->  | AH8: =IF('Annex A Technical req 1'!AK20="","",'Annex A Technical req 1'!AK20) ->  | AN8: =IF('Annex A Technical req 1'!AP20="","",'Annex A Technical req 1'!AP20) ->  | AT8: =IF('Annex A Technical req 1'!AU20="","",'Annex A Technical req 1'!AU20) -> 
A9: Next Business Day (NBD) Warranty Included | D9: =IF('Annex A Technical req 1'!H89="","",'Annex A Technical req 1'!H89) ->  | J9: =IF('Annex A Technical req 1'!M89="","",'Annex A Technical req 1'!M89) ->  | P9: =IF('Annex A Technical req 1'!R89="","",'Annex A Technical req 1'!R89) ->  | V9: =IF('Annex A Technical req 1'!W89="","",'Annex A Technical req 1'!W89) ->  | AB9: =IF('Annex A Technical req 1'!AB89="","",'Annex A Technical req 1'!AB89) ->  | AH9: =IF('Annex A Technical req 1'!AL89="","",'Annex A Technical req 1'!AL89) ->  | AN9: =IF('Annex A Technical req 1'!AQ89="","",'Annex A Technical req 1'!AQ89) ->  | AT9: =IF('Annex A Technical req 1'!AN89="","",'Annex A Technical req 1'!AN89) -> 
A10: Outright purchase | B10: Purchase Price
B11: Maximum % Increase for the equivalent replacement model at the time of release | D11: Year 1 | E11: Year 2 | F11: Year 3 | G11: Year 4 | H11: Year 5 | J11: Year 1 | K11: Year 2 | L11: Year 3 | M11: Year 4 | N11: Year 5 | P11: Year 1 | Q11: Year 2 | R11: Year 3 | S11: Year 4 | T11: Year 5 | V11: Year 1 | W11: Year 2 | X11: Year 3 | Y11: Year 4 | Z11: Year 5 | AB11: Year 1 | AC11: Year 2 | AD11: Year 3 | AE11: Year 4 | AF11: Year 5 | AH11: Year 1 | AI11: Year 2 | AJ11: Year 3 | AK11: Year 4 | AL11: Year 5 | AN11: Year 1 | AO11: Year 2 | AP11: Year 3 | AQ11: Year 4 | AR11: Year 5 | AT11: Year 1 | AU11: Year 2 | AV11: Year 3 | AW11: Year 4 | AX11: Year 5
D12: 0% | J12: 0% | P12: 0% | V12: 0% | AB12: 0% | AH12: 0% | AN12: 0% | AT12: 0%
A13: 36 Month Rental | B13: Annual Rental Cost
B14: Maximum % Increase for the equivalent replacement model at the time of release | D14: Year 1 | E14: Year 2 | F14: Year 3 | G14: Year 4 | H14: Year 5 | J14: Year 1 | K14: Year 2 | L14: Year 3 | M14: Year 4 | N14: Year 5 | P14: Year 1 | Q14: Year 2 | R14: Year 3 | S14: Year 4 | T14: Year 5 | V14: Year 1 | W14: Year 2 | X14: Year 3 | Y14: Year 4 | Z14: Year 5 | AB14: Year 1 | AC14: Year 2 | AD14: Year 3 | AE14: Year 4 | AF14: Year 5 | AH14: Year 1 | AI14: Year 2 | AJ14: Year 3 | AK14: Year 4 | AL14: Year 5 | AN14: Year 1 | AO14: Year 2 | AP14: Year 3 | AQ14: Year 4 | AR14: Year 5 | AT14: Year 1 | AU14: Year 2 | AV14: Year 3 | AW14: Year 4 | AX14: Year 5
D15: 0% | J15: 0% | P15: 0% | V15: 0% | AB15: 0% | AH15: 0% | AN15: 0% | AT15: 0%
A16: 60 Month Rental | B16: Annual Rental Cost
B17: Maximum % Increase for the equivalent replacement model at the time of release | D17: Year 1 | E17: Year 2 | F17: Year 3 | G17: Year 4 | H17: Year 5 | J17: Year 1 | K17: Year 2 | L17: Year 3 | M17: Year 4 | N17: Year 5 | P17: Year 1 | Q17: Year 2 | R17: Year 3 | S17: Year 4 | T17: Year 5 | V17: Year 1 | W17: Year 2 | X17: Year 3 | Y17: Year 4 | Z17: Year 5 | AB17: Year 1 | AC17: Year 2 | AD17: Year 3 | AE17: Year 4 | AF17: Year 5 | AH17: Year 1 | AI17: Year 2 | AJ17: Year 3 | AK17: Year 4 | AL17: Year 5 | AN17: Year 1 | AO17: Year 2 | AP17: Year 3 | AQ17: Year 4 | AR17: Year 5 | AT17: Year 1 | AU17: Year 2 | AV17: Year 3 | AW17: Year 4 | AX17: Year 5
D18: 0% | J18: 0% | P18: 0% | V18: 0% | AB18: 0% | AH18: 0% | AN18: 0% | AT18: 0%
A20: Out of Warranty Component and Installation Cost in ZAR | D20: Highly Mobile Notebook (Mobile, Connector) | J20: Traditional Mainstream Notebook (Connector, Collaborator) | P20: Modern Mainstream Notebook (Connector, Collaborator) | V20: High-End Notebook (Connector, Collaborator)- 15" screen | AB20: High-End Notebook (Connector, Collaborator) - 17" screen | AH20: Traditional Mainstream Desktop (Connector, Collaborator) | AN20: Modern Mainstream Desktop (Connector, Collaborator) | AT20: High-End Desktop with Xeon CPU (Connector, Collaborator)
A21: Adapter, AC
A22: Base Unit/Chasis
A23: Battery (Notebook)
A24: Camera
A25: Fan Assembly
A26: Hard Drive
A27: Heatsink
A28: Keyboard
A29: LCD Panel
A30: Memory
A31: Motherboard
A32: Speaker
A33: Port Replicator/Docks
A34: Projected total out-of-warranty repair cost for years 1 to 5 | D34: =ROUNDUP(SUMPRODUCT('Annex A Technical req 1'!H94:H105,D21:D32),0) -> 0 | J34: =ROUNDUP(SUMPRODUCT('Annex A Technical req 1'!M94:M105,$J21:$J32),0) -> 0 | P34: =ROUNDUP(SUMPRODUCT('Annex A Technical req 1'!R94:R105,P21:P32),0) -> 0 | V34: =ROUNDUP(SUMPRODUCT('Annex A Technical req 1'!W94:W105,V21:V32),0) -> 0 | AB34: =ROUNDUP(SUMPRODUCT('Annex A Technical req 1'!AB94:AB105,AB21:AB32),0) -> 0 | AH34: =ROUNDUP(SUMPRODUCT('Annex A Technical req 1'!AL94:AL105,AH21:AH32),0) -> 0 | AN34: =ROUNDUP(SUMPRODUCT('Annex A Technical req 1'!AQ94:AQ105,AN21:AN32),0) -> 0 | AT34: =ROUNDUP(SUMPRODUCT('Annex A Technical req 1'!AV94:AV105,AT21:AT32),0) -> 0
A35: Projected total out-of-warranty repair cost for years 1 to 5 | D35: =ROUNDUP('Annex A Technical req 1'!H106*D33,0) -> 0 | J35: =ROUNDUP('Annex A Technical req 1'!M106*$J33,0) -> 0 | P35: =ROUNDUP('Annex A Technical req 1'!R106*P33,0) -> 0 | V35: =ROUNDUP('Annex A Technical req 1'!W106*V33,0) -> 0 | AB35: =ROUNDUP('Annex A Technical req 1'!AB106*AB33,0) -> 0 | AH35: =ROUNDUP('Annex A Technical req 1'!AL106*AH33,0) -> 0 | AN35: =ROUNDUP('Annex A Technical req 1'!AQ106*AN33,0) -> 0 | AT35: =ROUNDUP('Annex A Technical req 1'!AV106*AT33,0) -> 0
A36: Average Maximum Annual % Increase for All Components Above | D36: Year 1 | E36: Year 2 | F36: Year 3 | G36: Year 4 | H36: Year 5 | J36: Year 1 | K36: Year 2 | L36: Year 3 | M36: Year 4 | N36: Year 5 | P36: Year 1 | Q36: Year 2 | R36: Year 3 | S36: Year 4 | T36: Year 5 | V36: Year 1 | W36: Year 2 | X36: Year 3 | Y36: Year 4 | Z36: Year 5 | AB36: Year 1 | AC36: Year 2 | AD36: Year 3 | AE36: Year 4 | AF36: Year 5 | AH36: Year 1 | AI36: Year 2 | AJ36: Year 3 | AK36: Year 4 | AL36: Year 5 | AN36: Year 1 | AO36: Year 2 | AP36: Year 3 | AQ36: Year 4 | AR36: Year 5 | AT36: Year 1 | AU36: Year 2 | AV36: Year 3 | AW36: Year 4 | AX36: Year 5
D37: 0% | J37: 0% | P37: 0% | V37: 0% | AB37: 0% | AH37: 0% | AN37: 0% | AT37: 0%
A39: Docking Station/Port Replicator Pricing in ZAR | D39: Mainstream Docking Station/Port Replicator | J39: High-end Docking Station/Port Replicator
A40: Make | D40: =IF('Annex A Technical req 1'!G110="","",'Annex A Technical req 1'!G110) ->  | J40: =IF('Annex A Technical req 1'!L110="","",'Annex A Technical req 1'!L110) -> 
A41: Model | D41: =IF('Annex A Technical req 1'!G111="","",'Annex A Technical req 1'!G111) ->  | J41: =IF('Annex A Technical req 1'!L111="","",'Annex A Technical req 1'!L111) -> 
A42: Next Business Day (NBD) Warranty Included | D42: =IF('Annex A Technical req 1'!H122="","",'Annex A Technical req 1'!H122) ->  | J42: =IF('Annex A Technical req 1'!M122="","",'Annex A Technical req 1'!M122) -> 
A43: Outright purchase | B43: Purchase Price
B44: Maximum % Increase for the equivalent replacement model at the time of release | D44: Year 1 | E44: Year 2 | F44: Year 3 | G44: Year 4 | H44: Year 5 | J44: Year 1 | K44: Year 2 | L44: Year 3 | M44: Year 4 | N44: Year 5
D45: 0% | J45: 0%
A46: 36 Month Rental | B46: Annual Rental Cost
B47: Maximum % Increase for the equivalent replacement model at the time of release | D47: Year 1 | E47: Year 2 | F47: Year 3 | G47: Year 4 | H47: Year 5 | J47: Year 1 | K47: Year 2 | L47: Year 3 | M47: Year 4 | N47: Year 5
D48: 0% | J48: 0%
A49: 60 Month Rental | B49: Annual Rental Cost
B50: Maximum % Increase for the equivalent replacement model at the time of release | D50: Year 1 | E50: Year 2 | F50: Year 3 | G50: Year 4 | H50: Year 5 | J50: Year 1 | K50: Year 2 | L50: Year 3 | M50: Year 4 | N50: Year 5
D51: 0% | J51: 0%
A53: Screen Cost in ZAR | D53: Traditional Mainstream Screen | J53: Modern Mainstream Screen | P53: High-End 27" Screen | V53: High-End 32" Screen
A54: Minimum Screen Specification | D54: Screen Size - 22" | F54: Native Resolution - 1920 x 1080 | J54: Screen Size - 24" | L54: Native Resolution - 1920 x 1080 | P54: Screen Size - 27" | R54: Native Resolution - 2560 x 1440 | V54: Screen Size - 32" | X54: Native Resolution - 3840 x 2160
D55: Brightness - 250 Nits | F55: Refresh Rate at 1920 x 1080 - 60Hz | J55: SDR IPS LCD Panel | L55: Refresh Rate at 1820 x1080 - 60Hz | P55: HDR IPS LCD Panel | R55: Refresh Rate at 2560 x 1440 - 75Hz | V55: HDR IPS LCD Panel | X55: Refresh Rate at 3840 2160 - 100Hz
D56: SDR VA LCD Panel | F56: Contrast Ratio - 1000:1 to 3000:1 | J56: Brightness - 300 Nits | L56: Contrast Ratio - 1000:1 to 3000:1 | P56: Brightness - 350 Nits | R56: Contrast Ratio - Greater than 3000:1 | V56: Brightness - 350 Nits | X56: Contrast Ratio - Greater than 3000:1
D57: Warranty | E57: =CONCATENATE(TEXT(D42,0)," Years") -> Years | F57: No Blue light Filter or Touch Screen | J57: Warranty | K57: =CONCATENATE(TEXT(D42,0)," Years") -> Years | L57: No Blue light Filter or Touch Screen | P57: Warranty | Q57: =CONCATENATE(TEXT(J42,0)," Years") -> Years | R57: No Blue light Filter or Touch Screen | V57: Warranty | W57: =CONCATENATE(TEXT(J42,0)," Years") -> Years | X57: No Blue light Filter or Touch Screen
A58: Outright purchase | B58: Purchase Price
B59: Maximum % Increase for the equivalent replacement model at the time of release | D59: Year 1 | E59: Year 2 | F59: Year 3 | G59: Year 4 | H59: Year 5 | J59: Year 1 | K59: Year 2 | L59: Year 3 | M59: Year 4 | N59: Year 5 | P59: Year 1 | Q59: Year 2 | R59: Year 3 | S59: Year 4 | T59: Year 5 | V59: Year 1 | W59: Year 2 | X59: Year 3 | Y59: Year 4 | Z59: Year 5
D60: 0% | J60: 0% | P60: 0% | V60: 0%
A61: 36 Month Rental | B61: Annual Rental Cost
B62: Maximum % Increase for the equivalent replacement model at the time of release | D62: Year 1 | E62: Year 2 | F62: Year 3 | G62: Year 4 | H62: Year 5 | J62: Year 1 | K62: Year 2 | L62: Year 3 | M62: Year 4 | N62: Year 5 | P62: Year 1 | Q62: Year 2 | R62: Year 3 | S62: Year 4 | T62: Year 5 | V62: Year 1 | W62: Year 2 | X62: Year 3 | Y62: Year 4 | Z62: Year 5
D63: 0% | J63: 0% | P63: 0% | V63: 0%
A64: 60 Month Rental | B64: Annual Rental Cost
B65: Maximum % Increase for the equivalent replacement model at the time of release | D65: Year 1 | E65: Year 2 | F65: Year 3 | G65: Year 4 | H65: Year 5 | J65: Year 1 | K65: Year 2 | L65: Year 3 | M65: Year 4 | N65: Year 5 | P65: Year 1 | Q65: Year 2 | R65: Year 3 | S65: Year 4 | T65: Year 5 | V65: Year 1 | W65: Year 2 | X65: Year 3 | Y65: Year 4 | Z65: Year 5
D66: 0% | J66: 0% | P66: 0% | V66: 0%
A68: Minimum Keyboard and Mouse Cost in ZAR | D68: Standard Keyboard and Mouse
A69: Minimum Keyboard and Mouse Specification | D69: Full-Size QUERTY keyboard with Numpad, laptop-like keys which are backlit. Optical tracking mouse with a minimum 800 dpi resolution, two buttons and a scroll wheel. Both devices must be able to connect using bluetooth and a single wireless dongle.
A70: Outright purchase | B70: Purchase Price
B71: Maximum % Increase for the equivalent replacement model at the time of release | D71: Year 1 | E71: Year 2 | F71: Year 3 | G71: Year 4 | H71: Year 5
D72: 0%
A73: 36 Month Rental | B73: Annual Rental Cost
B74: Maximum % Increase for the equivalent replacement model at the time of release | D74: Year 1 | E74: Year 2 | F74: Year 3 | G74: Year 4 | H74: Year 5
D75: 0%
A76: 60 Month Rental | B76: Annual Rental Cost
B77: Maximum % Increase for the equivalent replacement model at the time of release | D77: Year 1 | E77: Year 2 | F77: Year 3 | G77: Year 4 | H77: Year 5
D78: 0%

Sheet TCO
A2: Total Cost of Ownership
A4: Bidder Name: | B4: =IF('Annex A Technical req 1'!C4="","",'Annex A Technical req 1'!C4) -> hkjg nb
A6: Overall TCOE | D6: Total | F6: Normalized per year under Warranty
A7: Outright purchase | D7: =SUM(D15:AX15) -> 0 | F7: =D15/D$14+J15/J$14+P15/P$14+V15/V$14+AB15/AB$14+AH15/AH$14+AN15/AN$14+AT15/AT$14 -> 
A8: 36 Month Rental | D8: =SUM(D21:AX21) -> 0 | F8: =D21/D$14+J21/J$14+P21/P$14+V21/V$14+AB21/AB$14+AH21/AH$14+AN21/AN$14+AT21/AT$14 -> 
A9: 60 Month Rental | D9: =SUM(D27:AX27) -> 0 | F9: =D27/D$14+J27/J$14+P27/P$14+V27/V$14+AB27/AB$14+AH27/AH$14+AN27/AN$14+AT27/AT$14 -> 
A11: TCOE per Model | D11: Highly Mobile Notebook (Mobile, Connector) | J11: Traditional Mainstream Notebook (Connector, Collaborator) | P11: Modern Mainstream Notebook (Connector, Collaborator) | V11: High-End Notebook (Connector, Collaborator)- 15" screen | AB11: High-End Notebook (Connector, Collaborator) - 17" screen | AH11: Traditional Mainstream Desktop (Connector, Collaborator) | AN11: Modern Mainstream Desktop (Connector, Collaborator) | AT11: High-End Desktop with Xeon CPU (Connector, Collaborator)
A12: Make | D12: =D35 ->  | J12: =J35 ->  | P12: =P35 ->  | V12: =V35 ->  | AB12: =AB35 ->  | AH12: =AH35 ->  | AN12: =AN35 ->  | AT12: =AT35 -> 
A13: Model | D13: =D36 ->  | J13: =J36 ->  | P13: =P36 ->  | V13: =V36 ->  | AB13: =AB36 ->  | AH13: =AH36 ->  | AN13: =AN36 ->  | AT13: =AT36 -> 
A14: Next Business Day (NBD) Warranty Included | D14: =D37 -> 3 | J14: =J37 ->  | P14: =P37 ->  | V14: =V37 ->  | AB14: =AB37 ->  | AH14: =AH37 ->  | AN14: =AN37 ->  | AT14: =AT37 -> 
A15: Outright purchase | B15: Total Cost per Model | D15: =SUM(D16:H20) -> 0 | J15: =SUM(J16:N20) -> 0 | P15: =SUM(P16:T20) -> 0 | V15: =SUM(V16:Z20) -> 0 | AB15: =SUM(AB16:AF20) -> 0 | AH15: =SUM(AH16:AL20) -> 0 | AN15: =SUM(AN16:AR20) -> 0 | AT15: =SUM(AT16:AX20) -> 0
B16: Notebook/Desktop Cost | D16: =SUM(D39:H39) -> 0 | J16: =SUM(J39:N39) -> 0 | P16: =SUM(P39:T39) -> 0 | V16: =SUM(V39:Z39) -> 0 | AB16: =SUM(AB39:AF39) -> 0 | AH16: =SUM(AH39:AL39) -> 0 | AN16: =SUM(AN39:AR39) -> 0 | AT16: =SUM(AT39:AX39) -> 0
B17: Docking Station Cost | D17: =$J$61*Lookups!$J$3/5+$K$61*Lookups!$J$3/5+$L$61*Lookups!$J$3/5+$M$61*Lookups!$J$3/5+$N$61*Lookups!$J$3/5 -> 0 | J17: =$D$61*Lookups!$J$4/5+$E$61*Lookups!$J$4/5+$F$61*Lookups!$J$4/5+$G$61*Lookups!$J$4/5+$H$61*Lookups!$J$4/5 -> 0 | P17: =$J$61*Lookups!$J$5/5+$K$61*Lookups!$J$5/5+$L$61*Lookups!$J$5/5+$M$61*Lookups!$J$5/5+$N$61*Lookups!$J$5/5 -> 0 | V17: =$J$61*Lookups!$J$6/5+$K$61*Lookups!$J$6/5+$L$61*Lookups!$J$6/5+$M$61*Lookups!$J$6/5+$N$61*Lookups!$J$6/5 -> 0 | AB17: =$J$61*Lookups!$J$7/5+$K$61*Lookups!$J$7/5+$L$61*Lookups!$J$7/5+$M$61*Lookups!$J$7/5+$N$61*Lookups!$J$7/5 -> 0
B18: Display Screen Cost | D18: =$P$82*Lookups!$J$3/5+$Q$82*Lookups!$J$3/5+$R$82*Lookups!$J$3/5+$S$82*Lookups!$J$3/5+$T$82*Lookups!$J$3/5 -> 0 | J18: =$D$82*Lookups!$J$4/5+$E$82*Lookups!$J$4/5+$F$82*Lookups!$J$4/5+$G$82*Lookups!$J$4/5+$H$82*Lookups!$J$4/5 -> 0 | P18: =$P$82*Lookups!$J$5/5+$Q$82*Lookups!$J$5/5+$R$82*Lookups!$J$5/5+$S$82*Lookups!$J$5/5+$T$82*Lookups!$J$5/5 -> 0 | V18: =$P$82*Lookups!$J$6/5+$Q$82*Lookups!$J$6/5+$R$82*Lookups!$J$6/5+$S$82*Lookups!$J$6/5+$T$82*Lookups!$J$6/5 -> 0 | AB18: =$P$82*Lookups!$J$7/5+$Q$82*Lookups!$J$7/5+$R$82*Lookups!$J$7/5+$S$82*Lookups!$J$7/5+$T$82*Lookups!$J$7/5 -> 0 | AH18: =$J$82*Lookups!$J$8/5+$K$82*Lookups!$J$8/5+$L$82*Lookups!$J$8/5+$M$82*Lookups!$J$8/5+$N$82*Lookups!$J$8/5 -> 0 | AN18: =$P$82*Lookups!$J$9/5+$Q$82*Lookups!$J$9/5+$R$82*Lookups!$J$9/5+$S$82*Lookups!$J$9/5+$T$82*Lookups!$J$9/5 -> 0 | AT18: =$V$82*Lookups!$J$10/5+$W$82*Lookups!$J$10/5+$X$82*Lookups!$J$10/5+$Y$82*Lookups!$J$10/5+$Z$82*Lookups!$J$10/5 -> 0
B19: Keyboard and Mouse Cost | D19: =$D$99*Lookups!$J$3/5+$E$99*Lookups!$J$3/5+$F$99*Lookups!$J$3/5+$G$99*Lookups!$J$3/5+$H$99*Lookups!$J$3/5 -> 0 | J19: =$D$99*Lookups!$J$3/5+$E$99*Lookups!$J$3/5+$F$99*Lookups!$J$3/5+$G$99*Lookups!$J$3/5+$H$99*Lookups!$J$3/5 -> 0 | P19: =$D$99*Lookups!$J$5/5+$E$99*Lookups!$J$5/5+$F$99*Lookups!$J$5/5+$G$99*Lookups!$J$5/5+$H$99*Lookups!$J$5/5 -> 0 | V19: =$D$99*Lookups!$J$6/5+$E$99*Lookups!$J$6/5+$F$99*Lookups!$J$6/5+$G$99*Lookups!$J$6/5+$H$99*Lookups!$J$6/5 -> 0 | AB19: =$D$99*Lookups!$J$7/5+$E$99*Lookups!$J$7/5+$F$99*Lookups!$J$7/5+$G$99*Lookups!$J$7/5+$H$99*Lookups!$J$7/5 -> 0 | AH19: =$D$99*Lookups!$J$8/5+$E$99*Lookups!$J$8/5+$F$99*Lookups!$J$8/5+$G$99*Lookups!$J$8/5+$H$99*Lookups!$J$8/5 -> 0 | AN19: =$D$99*Lookups!$J$9/5+$E$99*Lookups!$J$9/5+$F$99*Lookups!$J$9/5+$G$99*Lookups!$J$9/5+$H$99*Lookups!$J$9/5 -> 0 | AT19: =$D$99*Lookups!$J$10/5+$E$99*Lookups!$J$10/5+$F$99*Lookups!$J$10/5+$G$99*Lookups!$J$10/5+$H$99*Lookups!$J$10/5 -> 0
B20: Out-of-Warranty Repair Cost | D20: =SUM(D$53:H$54) -> 0 | J20: =SUM(J$53:N$54) -> 0 | P20: =SUM(P$53:T$54) -> 0 | V20: =SUM(V$53:Z$54) -> 0 | AB20: =SUM(AB$53:AF$54) -> 0 | AH20: =SUM(AH$53:AL$54) -> 0 | AN20: =SUM(AN$53:AR$54) -> 0 | AT20: =SUM(AT$53:AX$54) -> 0
A21: 36 Month Rental | B21: Total Cost per Model | D21: =SUM(D22:H26) -> 0 | J21: =SUM(J22:N26) -> 0 | P21: =SUM(P22:T26) -> 0 | V21: =SUM(V22:Z26) -> 0 | AB21: =SUM(AB22:AF26) -> 0 | AH21: =SUM(AH22:AL26) -> 0 | AN21: =SUM(AN22:AR26) -> 0 | AT21: =SUM(AT22:AX26) -> 0
B22: Notebook/Desktop Cost | D22: =SUM(D40:H40) -> 0 | J22: =SUM(J40:N40) -> 0 | P22: =SUM(P40:T40) -> 0 | V22: =SUM(V40:Z40) -> 0 | AB22: =SUM(AB40:AF40) -> 0 | AH22: =SUM(AH40:AL40) -> 0 | AN22: =SUM(AN40:AR40) -> 0 | AT22: =SUM(AT40:AX40) -> 0
B23: Docking Station Cost | D23: =$J$62*Lookups!$J$3/5+$K$62*Lookups!$J$3/5+$L$62*Lookups!$J$3/5+$M$62*Lookups!$J$3/5+$N$62*Lookups!$J$3/5 -> 0 | J23: =$D$62*Lookups!$J$4/5+$E$62*Lookups!$J$4/5+$F$62*Lookups!$J$4/5+$G$62*Lookups!$J$4/5+$H$62*Lookups!$J$4/5 -> 0 | P23: =$J$62*Lookups!$J$5/5+$K$62*Lookups!$J$5/5+$L$62*Lookups!$J$5/5+$M$62*Lookups!$J$5/5+$N$62*Lookups!$J$5/5 -> 0 | V23: =$J$62*Lookups!$J$6/5+$K$62*Lookups!$J$6/5+$L$62*Lookups!$J$6/5+$M$62*Lookups!$J$6/5+$N$62*Lookups!$J$6/5 -> 0 | AB23: =$J$62*Lookups!$J$7/5+$K$62*Lookups!$J$7/5+$L$62*Lookups!$J$7/5+$M$62*Lookups!$J$7/5+$N$62*Lookups!$J$7/5 -> 0
B24: Display Screen Cost | D24: =$P$83*Lookups!$J$3/5+$Q$83*Lookups!$J$3/5+$R$83*Lookups!$J$3/5+$S$83*Lookups!$J$3/5+$T$83*Lookups!$J$3/5 -> 0 | J24: =$D$83*Lookups!$J$4/5+$E$83*Lookups!$J$4/5+$F$83*Lookups!$J$4/5+$G$83*Lookups!$J$4/5+$H$83*Lookups!$J$4/5 -> 0 | P24: =$P$83*Lookups!$J$5/5+$Q$83*Lookups!$J$5/5+$R$83*Lookups!$J$5/5+$S$83*Lookups!$J$5/5+$T$83*Lookups!$J$5/5 -> 0 | V24: =$P$83*Lookups!$J$6/5+$Q$83*Lookups!$J$6/5+$R$83*Lookups!$J$6/5+$S$83*Lookups!$J$6/5+$T$83*Lookups!$J$6/5 -> 0 | AB24: =$P$83*Lookups!$J$7/5+$Q$83*Lookups!$J$7/5+$R$83*Lookups!$J$7/5+$S$83*Lookups!$J$7/5+$T$83*Lookups!$J$7/5 -> 0 | AH24: =$J$83*Lookups!$J$8/5+$K$83*Lookups!$J$8/5+$L$83*Lookups!$J$8/5+$M$83*Lookups!$J$8/5+$N$83*Lookups!$J$8/5 -> 0 | AN24: =$P$83*Lookups!$J$9/5+$Q$83*Lookups!$J$9/5+$R$83*Lookups!$J$9/5+$S$83*Lookups!$J$9/5+$T$83*Lookups!$J$9/5 -> 0 | AT24: =$V$83*Lookups!$J$10/5+$W$83*Lookups!$J$10/5+$X$83*Lookups!$J$10/5+$Y$83*Lookups!$J$10/5+$Z$83*Lookups!$J$10/5 -> 0
B25: Keyboard and Mouse Cost | D25: =$D$100*Lookups!$J$3/5+$E$100*Lookups!$J$3/5+$F$100*Lookups!$J$3/5+$G$100*Lookups!$J$3/5+$H$100*Lookups!$J$3/5 -> 0 | J25: =$D$100*Lookups!$J$3/5+$E$100*Lookups!$J$3/5+$F$100*Lookups!$J$3/5+$G$100*Lookups!$J$3/5+$H$100*Lookups!$J$3/5 -> 0 | P25: =$D$100*Lookups!$J$5/5+$E$100*Lookups!$J$5/5+$F$100*Lookups!$J$5/5+$G$100*Lookups!$J$5/5+$H$100*Lookups!$J$5/5 -> 0 | V25: =$D$100*Lookups!$J$6/5+$E$100*Lookups!$J$6/5+$F$100*Lookups!$J$6/5+$G$100*Lookups!$J$6/5+$H$100*Lookups!$J$6/5 -> 0 | AB25: =$D$100*Lookups!$J$7/5+$E$100*Lookups!$J$7/5+$F$100*Lookups!$J$7/5+$G$100*Lookups!$J$7/5+$H$100*Lookups!$J$7/5 -> 0 | AH25: =$D$100*Lookups!$J$8/5+$E$100*Lookups!$J$8/5+$F$100*Lookups!$J$8/5+$G$100*Lookups!$J$8/5+$H$100*Lookups!$J$8/5 -> 0 | AN25: =$D$100*Lookups!$J$9/5+$E$100*Lookups!$J$9/5+$F$100*Lookups!$J$9/5+$G$100*Lookups!$J$9/5+$H$100*Lookups!$J$9/5 -> 0 | AT25: =$D$100*Lookups!$J$10/5+$E$100*Lookups!$J$10/5+$F$100*Lookups!$J$10/5+$G$100*Lookups!$J$10/5+$H$100*Lookups!$J$10/5 -> 0
B26: Out-of-Warranty Repair Cost | D26: =SUM(D$53:H$54) -> 0 | J26: =SUM(J$53:N$54) -> 0 | P26: =SUM(P$53:T$54) -> 0 | V26: =SUM(V$53:Z$54) -> 0 | AB26: =SUM(AB$53:AF$54) -> 0 | AH26: =SUM(AH$53:AL$54) -> 0 | AN26: =SUM(AN$53:AR$54) -> 0 | AT26: =SUM(AT$53:AX$54) -> 0
A27: 60 Month Rental | B27: Total Cost per Model | D27: =SUM(D28:H32) -> 0 | J27: =SUM(J28:N32) -> 0 | P27: =SUM(P28:T32) -> 0 | V27: =SUM(V28:Z32) -> 0 | AB27: =SUM(AB28:AF32) -> 0 | AH27: =SUM(AH28:AL32) -> 0 | AN27: =SUM(AN28:AR32) -> 0 | AT27: =SUM(AT28:AX32) -> 0
B28: Notebook/Desktop Cost | D28: =SUM(D46:H46) -> 0 | J28: =SUM(J46:N46) -> 0 | P28: =SUM(P46:T46) -> 0 | V28: =SUM(V46:Z46) -> 0 | AB28: =SUM(AB46:AF46) -> 0 | AH28: =SUM(AH46:AL46) -> 0 | AN28: =SUM(AN46:AR46) -> 0 | AT28: =SUM(AT46:AX46) -> 0
B29: Docking Station Cost | D29: =$J$68*Lookups!$J$3/5+$K$68*Lookups!$J$3/5+$L$68*Lookups!$J$3/5+$M$68*Lookups!$J$3/5+$N$68*Lookups!$J$3/5 -> 0 | J29: =$D$68*Lookups!$J$4/5+$E$68*Lookups!$J$4/5+$F$68*Lookups!$J$4/5+$G$68*Lookups!$J$4/5+$H$68*Lookups!$J$4/5 -> 0 | P29: =$J$68*Lookups!$J$5/5+$K$68*Lookups!$J$5/5+$L$68*Lookups!$J$5/5+$M$68*Lookups!$J$5/5+$N$68*Lookups!$J$5/5 -> 0 | V29: =$J$68*Lookups!$J$6/5+$K$68*Lookups!$J$6/5+$L$68*Lookups!$J$6/5+$M$68*Lookups!$J$6/5+$N$68*Lookups!$J$6/5 -> 0 | AB29: =$J$61*Lookups!$J$7/5+$K$61*Lookups!$J$7/5+$L$61*Lookups!$J$7/5+$M$61*Lookups!$J$7/5+$N$61*Lookups!$J$7/5 -> 0
B30: Display Screen Cost | D30: =$P$89*Lookups!$J$3/5+$Q$89*Lookups!$J$3/5+$R$89*Lookups!$J$3/5+$S$89*Lookups!$J$3/5+$T$89*Lookups!$J$3/5 -> 0 | J30: =$D$89*Lookups!$J$4/5+$E$89*Lookups!$J$4/5+$F$89*Lookups!$J$4/5+$G$89*Lookups!$J$4/5+$H$89*Lookups!$J$4/5 -> 0 | P30: =$P$89*Lookups!$J$5/5+$Q$89*Lookups!$J$5/5+$R$89*Lookups!$J$5/5+$S$89*Lookups!$J$5/5+$T$89*Lookups!$J$5/5 -> 0 | V30: =$P$89*Lookups!$J$6/5+$Q$89*Lookups!$J$6/5+$R$89*Lookups!$J$6/5+$S$89*Lookups!$J$6/5+$T$89*Lookups!$J$6/5 -> 0 | AB30: =$P$89*Lookups!$J$7/5+$Q$89*Lookups!$J$7/5+$R$89*Lookups!$J$7/5+$S$89*Lookups!$J$7/5+$T$89*Lookups!$J$7/5 -> 0 | AH30: =$J$89*Lookups!$J$8/5+$K$89*Lookups!$J$8/5+$L$89*Lookups!$J$8/5+$M$89*Lookups!$J$8/5+$N$89*Lookups!$J$8/5 -> 0 | AN30: =$P$89*Lookups!$J$9/5+$Q$89*Lookups!$J$9/5+$R$89*Lookups!$J$9/5+$S$89*Lookups!$J$9/5+$T$89*Lookups!$J$9/5 -> 0 | AT30: =$V$89*Lookups!$J$10/5+$W$89*Lookups!$J$10/5+$X$89*Lookups!$J$10/5+$Y$89*Lookups!$J$10/5+$Z$89*Lookups!$J$10/5 -> 0
B31: Keyboard and Mouse Cost | D31: =$D$106*Lookups!$J$3/5+$E$106*Lookups!$J$3/5+$F$106*Lookups!$J$3/5+$G$106*Lookups!$J$3/5+$H$106*Lookups!$J$3/5 -> 0 | J31: =$D$106*Lookups!$J$3/5+$E$106*Lookups!$J$3/5+$F$106*Lookups!$J$3/5+$G$106*Lookups!$J$3/5+$H$106*Lookups!$J$3/5 -> 0 | P31: =$D$106*Lookups!$J$5/5+$E$106*Lookups!$J$5/5+$F$106*Lookups!$J$5/5+$G$106*Lookups!$J$5/5+$H$106*Lookups!$J$5/5 -> 0 | V31: =$D$106*Lookups!$J$6/5+$E$106*Lookups!$J$6/5+$F$106*Lookups!$J$6/5+$G$106*Lookups!$J$6/5+$H$106*Lookups!$J$6/5 -> 0 | AB31: =$D$106*Lookups!$J$7/5+$E$106*Lookups!$J$7/5+$F$106*Lookups!$J$7/5+$G$106*Lookups!$J$7/5+$H$106*Lookups!$J$7/5 -> 0 | AH31: =$D$106*Lookups!$J$8/5+$E$106*Lookups!$J$8/5+$F$106*Lookups!$J$8/5+$G$106*Lookups!$J$8/5+$H$106*Lookups!$J$8/5 -> 0 | AN31: =$D$106*Lookups!$J$9/5+$E$106*Lookups!$J$9/5+$F$106*Lookups!$J$9/5+$G$106*Lookups!$J$9/5+$H$106*Lookups!$J$9/5 -> 0 | AT31: =$D$106*Lookups!$J$10/5+$E$106*Lookups!$J$10/5+$F$106*Lookups!$J$10/5+$G$106*Lookups!$J$10/5+$H$106*Lookups!$J$10/5 -> 0
B32: Out-of-Warranty Repair Cost | D32: =SUM(D$53:H$54) -> 0 | J32: =SUM(J$53:N$54) -> 0 | P32: =SUM(P$53:T$54) -> 0 | V32: =SUM(V$53:Z$54) -> 0 | AB32: =SUM(AB$53:AF$54) -> 0 | AH32: =SUM(AH$53:AL$54) -> 0 | AN32: =SUM(AN$53:AR$54) -> 0 | AT32: =SUM(AT$53:AX$54) -> 0
A34: Annual Cost per Notebook/Desktop | D34: Highly Mobile Notebook (Mobile, Connector) | J34: Traditional Mainstream Notebook (Connector, Collaborator) | P34: Modern Mainstream Notebook (Connector, Collaborator) | V34: High-End Notebook (Connector, Collaborator)- 15" screen | AB34: High-End Notebook (Connector, Collaborator) - 17" screen | AH34: Traditional Mainstream Desktop (Connector, Collaborator) | AN34: Modern Mainstream Desktop (Connector, Collaborator) | AT34: High-End Desktop with Xeon CPU (Connector, Collaborator)
A35: Make | D35: =IF('Annex A Technical req 1'!G$19="","",'Annex A Technical req 1'!G$19) ->  | J35: =IF('Annex A Technical req 1'!L$19="","",'Annex A Technical req 1'!L$19) ->  | P35: =IF('Annex A Technical req 1'!Q$19="","",'Annex A Technical req 1'!Q$19) ->  | V35: =IF('Annex A Technical req 1'!V$19="","",'Annex A Technical req 1'!V$19) ->  | AB35: =IF('Annex A Technical req 1'!AA$19="","",'Annex A Technical req 1'!AA$19) ->  | AH35: =IF('Annex A Technical req 1'!AK$19="","",'Annex A Technical req 1'!AK$19) ->  | AN35: =IF('Annex A Technical req 1'!AP$19="","",'Annex A Technical req 1'!AP$19) ->  | AT35: =IF('Annex A Technical req 1'!AU$19="","",'Annex A Technical req 1'!AU$19) -> 
A36: Model | D36: =IF('Annex A Technical req 1'!G$20="","",'Annex A Technical req 1'!G$20) ->  | J36: =IF('Annex A Technical req 1'!L$20="","",'Annex A Technical req 1'!L$20) ->  | P36: =IF('Annex A Technical req 1'!Q$20="","",'Annex A Technical req 1'!Q$20) ->  | V36: =IF('Annex A Technical req 1'!V$20="","",'Annex A Technical req 1'!V$20) ->  | AB36: =IF('Annex A Technical req 1'!AA$20="","",'Annex A Technical req 1'!AA$20) ->  | AH36: =IF('Annex A Technical req 1'!AK$20="","",'Annex A Technical req 1'!AK$20) ->  | AN36: =IF('Annex A Technical req 1'!AP$20="","",'Annex A Technical req 1'!AP$20) ->  | AT36: =IF('Annex A Technical req 1'!AU$20="","",'Annex A Technical req 1'!AU$20) -> 
A37: Next Business Day (NBD) Warranty Included | D37: 3 | J37: =IF('Annex A Technical req 1'!M$88="","",'Annex A Technical req 1'!M$88) ->  | P37: =IF('Annex A Technical req 1'!R$88="","",'Annex A Technical req 1'!R$88) ->  | V37: =IF('Annex A Technical req 1'!W$88="","",'Annex A Technical req 1'!W$88) ->  | AB37: =IF('Annex A Technical req 1'!AB$88="","",'Annex A Technical req 1'!AB$88) ->  | AH37: =IF('Annex A Technical req 1'!AL$88="","",'Annex A Technical req 1'!AL$88) ->  | AN37: =IF('Annex A Technical req 1'!AQ$88="","",'Annex A Technical req 1'!AQ$88) ->  | AT37: =IF('Annex A Technical req 1'!AV$88="","",'Annex A Technical req 1'!AV$88) -> 
D38: Year 1 | E38: Year 2 | F38: Year 3 | G38: Year 4 | H38: Year 5 | J38: Year 1 | K38: Year 2 | L38: Year 3 | M38: Year 4 | N38: Year 5 | P38: Year 1 | Q38: Year 2 | R38: Year 3 | S38: Year 4 | T38: Year 5 | V38: Year 1 | W38: Year 2 | X38: Year 3 | Y38: Year 4 | Z38: Year 5 | AB38: Year 1 | AC38: Year 2 | AD38: Year 3 | AE38: Year 4 | AF38: Year 5 | AH38: Year 1 | AI38: Year 2 | AJ38: Year 3 | AK38: Year 4 | AL38: Year 5 | AN38: Year 1 | AO38: Year 2 | AP38: Year 3 | AQ38: Year 4 | AR38: Year 5 | AT38: Year 1 | AU38: Year 2 | AV38: Year 3 | AW38: Year 4 | AX38: Year 5
A39: Outright purchase | D39: ='PART 2 Pricing Schedule'!$D10*Lookups!$J$3/5 -> 0 | E39: =D39*(1+'PART 2 Pricing Schedule'!E$12) -> 0 | F39: =E39*(1+'PART 2 Pricing Schedule'!F$12) -> 0 | G39: =F39*(1+'PART 2 Pricing Schedule'!G$12) -> 0 | H39: =G39*(1+'PART 2 Pricing Schedule'!H$12) -> 0 | J39: ='PART 2 Pricing Schedule'!J10*Lookups!$J$4/5 -> 0 | K39: =J39*(1+'PART 2 Pricing Schedule'!K$12) -> 0 | L39: =K39*(1+'PART 2 Pricing Schedule'!L$12) -> 0 | M39: =L39*(1+'PART 2 Pricing Schedule'!M$12) -> 0 | N39: =M39*(1+'PART 2 Pricing Schedule'!N$12) -> 0 | P39: ='PART 2 Pricing Schedule'!P10*Lookups!$J$5/5 -> 0 | Q39: =P39*(1+'PART 2 Pricing Schedule'!Q$12) -> 0 | R39: =Q39*(1+'PART 2 Pricing Schedule'!R$12) -> 0 | S39: =R39*(1+'PART 2 Pricing Schedule'!S$12) -> 0 | T39: =S39*(1+'PART 2 Pricing Schedule'!T$12) -> 0 | V39: ='PART 2 Pricing Schedule'!V10*Lookups!$J$6/5 -> 0 | W39: =V39*(1+'PART 2 Pricing Schedule'!W$12) -> 0 | X39: =W39*(1+'PART 2 Pricing Schedule'!X$12) -> 0 | Y39: =X39*(1+'PART 2 Pricing Schedule'!Y$12) -> 0 | Z39: =Y39*(1+'PART 2 Pricing Schedule'!Z$12) -> 0 | AB39: ='PART 2 Pricing Schedule'!AB10*Lookups!$J$7/5 -> 0 | AC39: =AB39*(1+'PART 2 Pricing Schedule'!AC$12) -> 0 | AD39: =AC39*(1+'PART 2 Pricing Schedule'!AD$12) -> 0 | AE39: =AD39*(1+'PART 2 Pricing Schedule'!AE$12) -> 0 | AF39: =AE39*(1+'PART 2 Pricing Schedule'!AF$12) -> 0 | AH39: ='PART 2 Pricing Schedule'!AH10*Lookups!$J$8/5 -> 0 | AI39: =AH39*(1+'PART 2 Pricing Schedule'!AI$12) -> 0 | AJ39: =AI39*(1+'PART 2 Pricing Schedule'!AJ$12) -> 0 | AK39: =AJ39*(1+'PART 2 Pricing Schedule'!AK$12) -> 0 | AL39: =AK39*(1+'PART 2 Pricing Schedule'!AL$12) -> 0 | AN39: ='PART 2 Pricing Schedule'!AN10*Lookups!$J$9/5 -> 0 | AO39: =AN39*(1+'PART 2 Pricing Schedule'!AO$12) -> 0 | AP39: =AO39*(1+'PART 2 Pricing Schedule'!AP$12) -> 0 | AQ39: =AP39*(1+'PART 2 Pricing Schedule'!AQ$12) -> 0 | AR39: =AQ39*(1+'PART 2 Pricing Schedule'!AR$12) -> 0 | AT39: ='PART 2 Pricing Schedule'!AT10*Lookups!$J$10/5 -> 0 | AU39: =AT39*(1+'PART 2 Pricing Schedule'!AU$12) -> 0 | AV39: =AU39*(1+'PART 2 Pricing Schedule'!AV$12) -> 0 | AW39: =AV39*(1+'PART 2 Pricing Schedule'!AW$12) -> 0 | AX39: =AW39*(1+'PART 2 Pricing Schedule'!AX$12) -> 0
A40: 36 Month Rental | B40: Total | D40: =SUM(D41:D45) -> 0 | E40: =SUM(E41:E45) -> 0 | F40: 0 | G40: 0 | H40: 0 | J40: =SUM(J41:J45) -> 0 | K40: =SUM(K41:K45) -> 0 | L40: =SUM(L41:L45) -> 0 | M40: =SUM(M41:M45) -> 0 | N40: =SUM(N41:N45) -> 0 | P40: =SUM(P41:P45) -> 0 | Q40: =SUM(Q41:Q45) -> 0 | R40: =SUM(R41:R45) -> 0 | S40: =SUM(S41:S45) -> 0 | T40: =SUM(T41:T45) -> 0 | V40: =SUM(V41:V45) -> 0 | W40: =SUM(W41:W45) -> 0 | X40: =SUM(X41:X45) -> 0 | Y40: =SUM(Y41:Y45) -> 0 | Z40: =SUM(Z41:Z45) -> 0 | AB40: =SUM(AB41:AB45) -> 0 | AC40: =SUM(AC41:AC45) -> 0 | AD40: =SUM(AD41:AD45) -> 0 | AE40: =SUM(AE41:AE45) -> 0 | AF40: =SUM(AF41:AF45) -> 0 | AH40: =SUM(AH41:AH45) -> 0 | AI40: =SUM(AI41:AI45) -> 0 | AJ40: =SUM(AJ41:AJ45) -> 0 | AK40: =SUM(AK41:AK45) -> 0 | AL40: =SUM(AL41:AL45) -> 0 | AN40: =SUM(AN41:AN45) -> 0 | AO40: =SUM(AO41:AO45) -> 0 | AP40: =SUM(AP41:AP45) -> 0 | AQ40: =SUM(AQ41:AQ45) -> 0 | AR40: =SUM(AR41:AR45) -> 0 | AT40: =SUM(AT41:AT45) -> 0 | AU40: =SUM(AU41:AU45) -> 0 | AV40: =SUM(AV41:AV45) -> 0 | AW40: =SUM(AW41:AW45) -> 0 | AX40: =SUM(AX41:AX45) -> 0
B41: Year 1 Cost | D41: ='PART 2 Pricing Schedule'!$D13*Lookups!$J$3/5 -> 0 | E41: =D41 -> 0 | F41: =E41 -> 0 | J41: ='PART 2 Pricing Schedule'!J13*Lookups!$J$4/5 -> 0 | K41: =J41 -> 0 | L41: =K41 -> 0 | P41: ='PART 2 Pricing Schedule'!P13*Lookups!$J$5/5 -> 0 | Q41: =P41 -> 0 | R41: =Q41 -> 0 | V41: ='PART 2 Pricing Schedule'!V13*Lookups!$J$6/5 -> 0 | W41: =V41 -> 0 | X41: =W41 -> 0 | AB41: ='PART 2 Pricing Schedule'!AB13*Lookups!$J$7/5 -> 0 | AC41: =AB41 -> 0 | AD41: =AC41 -> 0 | AH41: ='PART 2 Pricing Schedule'!AH13*Lookups!$J$8/5 -> 0 | AI41: =AH41 -> 0 | AJ41: =AI41 -> 0 | AN41: ='PART 2 Pricing Schedule'!AN13*Lookups!$J$9/5 -> 0 | AO41: =AN41 -> 0 | AP41: =AO41 -> 0 | AT41: ='PART 2 Pricing Schedule'!AT13*Lookups!$J$10/5 -> 0 | AU41: =AT41 -> 0 | AV41: =AU41 -> 0
B42: Year 2 Cost | E42: =D41*(1+'PART 2 Pricing Schedule'!E$15) -> 0 | F42: =E42 -> 0 | G42: =F42 -> 0 | K42: =J41*(1+'PART 2 Pricing Schedule'!K$15) -> 0 | L42: =K42 -> 0 | M42: =L42 -> 0 | Q42: =P41*(1+'PART 2 Pricing Schedule'!Q$15) -> 0 | R42: =Q42 -> 0 | S42: =R42 -> 0 | W42: =V41*(1+'PART 2 Pricing Schedule'!W$15) -> 0 | X42: =W42 -> 0 | Y42: =X42 -> 0 | AC42: =AB41*(1+'PART 2 Pricing Schedule'!AC$15) -> 0 | AD42: =AC42 -> 0 | AE42: =AD42 -> 0 | AI42: =AH41*(1+'PART 2 Pricing Schedule'!AI$116) -> 0 | AJ42: =AI42 -> 0 | AK42: =AJ42 -> 0 | AO42: =AN41*(1+'PART 2 Pricing Schedule'!AO$15) -> 0 | AP42: =AO42 -> 0 | AQ42: =AP42 -> 0 | AU42: =AT41*(1+'PART 2 Pricing Schedule'!AU$15) -> 0 | AV42: =AU42 -> 0 | AW42: =AV42 -> 0
B43: Year 3 Cost | F43: =E42*(1+'PART 2 Pricing Schedule'!F$15) -> 0 | G43: =F43 -> 0 | H43: =G43 -> 0 | L43: =K42*(1+'PART 2 Pricing Schedule'!L$15) -> 0 | M43: =L43 -> 0 | N43: =M43 -> 0 | R43: =Q42*(1+'PART 2 Pricing Schedule'!R$15) -> 0 | S43: =R43 -> 0 | T43: =S43 -> 0 | X43: =W42*(1+'PART 2 Pricing Schedule'!X$15) -> 0 | Y43: =X43 -> 0 | Z43: =Y43 -> 0 | AD43: =AC42*(1+'PART 2 Pricing Schedule'!AD$15) -> 0 | AE43: =AD43 -> 0 | AF43: =AE43 -> 0 | AJ43: =AI42*(1+'PART 2 Pricing Schedule'!AJ$116) -> 0 | AK43: =AJ43 -> 0 | AL43: =AK43 -> 0 | AP43: =AO42*(1+'PART 2 Pricing Schedule'!AP$15) -> 0 | AQ43: =AP43 -> 0 | AR43: =AQ43 -> 0 | AV43: =AU42*(1+'PART 2 Pricing Schedule'!AV$15) -> 0 | AW43: =AV43 -> 0 | AX43: =AW43 -> 0
B44: Year 4 Cost | G44: =F43*(1+'PART 2 Pricing Schedule'!G$15) -> 0 | H44: =G44 -> 0 | M44: =L43*(1+'PART 2 Pricing Schedule'!M$15) -> 0 | N44: =M44 -> 0 | S44: =R43*(1+'PART 2 Pricing Schedule'!S$15) -> 0 | T44: =S44 -> 0 | Y44: =X43*(1+'PART 2 Pricing Schedule'!Y$15) -> 0 | Z44: =Y44 -> 0 | AE44: =AD43*(1+'PART 2 Pricing Schedule'!AE$15) -> 0 | AF44: =AE44 -> 0 | AK44: =AJ43*(1+'PART 2 Pricing Schedule'!AK$116) -> 0 | AL44: =AK44 -> 0 | AQ44: =AP43*(1+'PART 2 Pricing Schedule'!AQ$15) -> 0 | AR44: =AQ44 -> 0 | AW44: =AV43*(1+'PART 2 Pricing Schedule'!AW$15) -> 0 | AX44: =AW44 -> 0
B45: Year 5 Cost | H45: =G44*(1+'PART 2 Pricing Schedule'!H$15) -> 0 | N45: =M44*(1+'PART 2 Pricing Schedule'!N$15) -> 0 | T45: =S44*(1+'PART 2 Pricing Schedule'!T$15) -> 0 | Z45: =Y44*(1+'PART 2 Pricing Schedule'!Z$15) -> 0 | AF45: =AE44*(1+'PART 2 Pricing Schedule'!AF$15) -> 0 | AL45: =AK44*(1+'PART 2 Pricing Schedule'!AL$116) -> 0 | AR45: =AQ44*(1+'PART 2 Pricing Schedule'!AR$15) -> 0 | AX45: =AW44*(1+'PART 2 Pricing Schedule'!AX$15) -> 0
A46: 60 Month Rental | B46: Total | D46: =SUM(D47:D51) -> 0 | E46: =SUM(E47:E51) -> 0 | F46: =SUM(F47:F51) -> 0 | G46: =SUM(G47:G51) -> 0 | H46: =SUM(H47:H51) -> 0 | J46: =SUM(J47:J51) -> 0 | K46: =SUM(K47:K51) -> 0 | L46: =SUM(L47:L51) -> 0 | M46: =SUM(M47:M51) -> 0 | N46: =SUM(N47:N51) -> 0 | P46: =SUM(P47:P51) -> 0 | Q46: =SUM(Q47:Q51) -> 0 | R46: =SUM(R47:R51) -> 0 | S46: =SUM(S47:S51) -> 0 | T46: =SUM(T47:T51) -> 0 | V46: =SUM(V47:V51) -> 0 | W46: =SUM(W47:W51) -> 0 | X46: =SUM(X47:X51) -> 0 | Y46: =SUM(Y47:Y51) -> 0 | Z46: =SUM(Z47:Z51) -> 0 | AB46: =SUM(AB47:AB51) -> 0 | AC46: =SUM(AC47:AC51) -> 0 | AD46: =SUM(AD47:AD51) -> 0 | AE46: =SUM(AE47:AE51) -> 0 | AF46: =SUM(AF47:AF51) -> 0 | AH46: =SUM(AH47:AH51) -> 0 | AI46: =SUM(AI47:AI51) -> 0 | AJ46: =SUM(AJ47:AJ51) -> 0 | AK46: =SUM(AK47:AK51) -> 0 | AL46: =SUM(AL47:AL51) -> 0 | AN46: =SUM(AN47:AN51) -> 0 | AO46: =SUM(AO47:AO51) -> 0 | AP46: =SUM(AP47:AP51) -> 0 | AQ46: =SUM(AQ47:AQ51) -> 0 | AR46: =SUM(AR47:AR51) -> 0 | AT46: =SUM(AT47:AT51) -> 0 | AU46: =SUM(AU47:AU51) -> 0 | AV46: =SUM(AV47:AV51) -> 0 | AW46: =SUM(AW47:AW51) -> 0 | AX46: =SUM(AX47:AX51) -> 0
B47: Year 1 Cost | D47: ='PART 2 Pricing Schedule'!$D16*Lookups!$J$3/5 -> 0 | E47: =D47 -> 0 | F47: =E47 -> 0 | G47: 0 | H47: 0 | J47: ='PART 2 Pricing Schedule'!J16*Lookups!$J$4/5 -> 0 | K47: =J47 -> 0 | L47: =K47 -> 0 | M47: 0 | N47: 0 | P47: ='PART 2 Pricing Schedule'!P16*Lookups!$J$5/5 -> 0 | Q47: =P47 -> 0 | R47: =Q47 -> 0 | S47: 0 | T47: 0 | V47: ='PART 2 Pricing Schedule'!V16*Lookups!$J$6/5 -> 0 | W47: =V47 -> 0 | X47: =W47 -> 0 | Y47: 0 | Z47: 0 | AB47: ='PART 2 Pricing Schedule'!AB16*Lookups!$J$7/5 -> 0 | AC47: =AB47 -> 0 | AD47: =AC47 -> 0 | AE47: =AD47 -> 0 | AF47: =AE47 -> 0 | AH47: ='PART 2 Pricing Schedule'!AH16*Lookups!$J$8/5 -> 0 | AI47: =AH47 -> 0 | AJ47: =AI47 -> 0 | AK47: 0 | AL47: 0 | AN47: ='PART 2 Pricing Schedule'!AN16*Lookups!$J$9/5 -> 0 | AO47: =AN47 -> 0 | AP47: =AO47 -> 0 | AQ47: 0 | AR47: 0 | AT47: ='PART 2 Pricing Schedule'!AT16*Lookups!$J$10/5 -> 0 | AU47: =AT47 -> 0 | AV47: =AU47 -> 0 | AW47: 0 | AX47: 0
B48: Year 2 Cost | E48: =D47*(1+'PART 2 Pricing Schedule'!E$18) -> 0 | F48: 0 | G48: =F48 -> 0 | H48: =G48 -> 0 | K48: =J47*(1+'PART 2 Pricing Schedule'!K$18) -> 0 | L48: 0 | M48: =L48 -> 0 | N48: 0 | Q48: =P47*(1+'PART 2 Pricing Schedule'!Q$18) -> 0 | R48: 0 | S48: =R48 -> 0 | T48: 0 | W48: =V47*(1+'PART 2 Pricing Schedule'!W$18) -> 0 | X48: 0 | Y48: =X48 -> 0 | Z48: =Y48 -> 0 | AC48: =AB47*(1+'PART 2 Pricing Schedule'!AC$18) -> 0 | AD48: 0 | AE48: 0 | AF48: 0 | AI48: =AH47*(1+'PART 2 Pricing Schedule'!AI$18) -> 0 | AJ48: 0 | AK48: =AJ48 -> 0 | AL48: 0 | AO48: =AN47*(1+'PART 2 Pricing Schedule'!AO$18) -> 0 | AP48: 0 | AQ48: =AP48 -> 0 | AR48: 0 | AU48: =AT47*(1+'PART 2 Pricing Schedule'!AU$18) -> 0 | AV48: 0 | AW48: =AV48 -> 0 | AX48: 0
B49: Year 3 Cost | F49: =E48*(1+'PART 2 Pricing Schedule'!F$18) -> 0 | G49: =F49 -> 0 | H49: =G49 -> 0 | L49: =K48*(1+'PART 2 Pricing Schedule'!L$18) -> 0 | M49: =L49 -> 0 | N49: 0 | R49: =Q48*(1+'PART 2 Pricing Schedule'!R$18) -> 0 | S49: =R49 -> 0 | T49: 0 | X49: =W48*(1+'PART 2 Pricing Schedule'!X$18) -> 0 | Y49: =X49 -> 0 | Z49: =Y49 -> 0 | AD49: =AC48*(1+'PART 2 Pricing Schedule'!AD$18) -> 0 | AE49: =AD49 -> 0 | AF49: 0 | AJ49: =AI48*(1+'PART 2 Pricing Schedule'!AJ$18) -> 0 | AK49: =AJ49 -> 0 | AL49: 0 | AP49: =AO48*(1+'PART 2 Pricing Schedule'!AP$18) -> 0 | AQ49: =AP49 -> 0 | AR49: 0 | AV49: =AU48*(1+'PART 2 Pricing Schedule'!AV$18) -> 0 | AW49: =AV49 -> 0 | AX49: 0
B50: Year 4 Cost | G50: =F49*(1+'PART 2 Pricing Schedule'!G$18) -> 0 | H50: =G50 -> 0 | M50: =L49*(1+'PART 2 Pricing Schedule'!M$18) -> 0 | N50: =M50 -> 0 | S50: =R49*(1+'PART 2 Pricing Schedule'!S$18) -> 0 | T50: =S50 -> 0 | Y50: =X49*(1+'PART 2 Pricing Schedule'!Y$18) -> 0 | Z50: =Y50 -> 0 | AE50: =AD49*(1+'PART 2 Pricing Schedule'!AE$18) -> 0 | AF50: =AE50 -> 0 | AK50: =AJ49*(1+'PART 2 Pricing Schedule'!AK$18) -> 0 | AL50: =AK50 -> 0 | AQ50: =AP49*(1+'PART 2 Pricing Schedule'!AQ$18) -> 0 | AR50: =AQ50 -> 0 | AW50: =AV49*(1+'PART 2 Pricing Schedule'!AW$18) -> 0 | AX50: =AW50 -> 0
B51: Year 5 Cost | H51: =G50*(1+'PART 2 Pricing Schedule'!H$18) -> 0 | N51: =M50*(1+'PART 2 Pricing Schedule'!N$18) -> 0 | T51: =S50*(1+'PART 2 Pricing Schedule'!T$18) -> 0 | Z51: =Y50*(1+'PART 2 Pricing Schedule'!Z$18) -> 0 | AF51: =AE50*(1+'PART 2 Pricing Schedule'!AF$18) -> 0 | AL51: =AK50*(1+'PART 2 Pricing Schedule'!AL$18) -> 0 | AR51: =AQ50*(1+'PART 2 Pricing Schedule'!AR$18) -> 0 | AX51: =AW50*(1+'PART 2 Pricing Schedule'!AX$18) -> 0
A53: Average out-of-warranty replacement costs for desktops/notebooks | D53: =IF(1<=D$37,0,'PART 2 Pricing Schedule'!D34*(Lookups!$J$3/100)) -> 0 | E53: =IF(2<=D$37,0,'PART 2 Pricing Schedule'!$D34*(Lookups!$J$3/100))*(1+'PART 2 Pricing Schedule'!E37) -> 0 | F53: =IF(3<=D37,0,'PART 2 Pricing Schedule'!D34*(Lookups!$J$3/100))*(1+'PART 2 Pricing Schedule'!E37)*(1+'PART 2 Pricing Schedule'!F37) -> 0 | G53: =IF(4<=D37,0,'PART 2 Pricing Schedule'!D34*(Lookups!$J$3/100))*(1+'PART 2 Pricing Schedule'!E37)*(1+'PART 2 Pricing Schedule'!F37)*(1+'PART 2 Pricing Schedule'!G37) -> 0 | H53: =IF(5<=D37,0,'PART 2 Pricing Schedule'!D34*(Lookups!$J$3/100))*(1+'PART 2 Pricing Schedule'!E37)*(1+'PART 2 Pricing Schedule'!F37)*(1+'PART 2 Pricing Schedule'!G37)*(1+'PART 2 Pricing Schedule'!H37) -> 0 | J53: =IF(1<=J$37,0,'PART 2 Pricing Schedule'!J34*(Lookups!$J$4/100)) -> 0 | K53: =IF(2<=J$37,0,'PART 2 Pricing Schedule'!$D34*(Lookups!$J$4/100))*(1+'PART 2 Pricing Schedule'!K37) -> 0 | L53: =IF(3<=J37,0,'PART 2 Pricing Schedule'!J34*(Lookups!$J$4/100))*(1+'PART 2 Pricing Schedule'!K37)*(1+'PART 2 Pricing Schedule'!L37) -> 0 | M53: =IF(4<=J37,0,'PART 2 Pricing Schedule'!J34*(Lookups!$J$4/100))*(1+'PART 2 Pricing Schedule'!K37)*(1+'PART 2 Pricing Schedule'!L37)*(1+'PART 2 Pricing Schedule'!M37) -> 0 | N53: =IF(5<=J37,0,'PART 2 Pricing Schedule'!J34*(Lookups!$J$4/100))*(1+'PART 2 Pricing Schedule'!K37)*(1+'PART 2 Pricing Schedule'!L37)*(1+'PART 2 Pricing Schedule'!M37)*(1+'PART 2 Pricing Schedule'!N37) -> 0 | P53: =IF(1<=P$37,0,'PART 2 Pricing Schedule'!P34*(Lookups!$J$5/100)) -> 0 | Q53: =IF(2<=P$37,0,'PART 2 Pricing Schedule'!$D34*(Lookups!$J$5/100))*(1+'PART 2 Pricing Schedule'!Q37) -> 0 | R53: =IF(3<=P37,0,'PART 2 Pricing Schedule'!P34*(Lookups!$J$5/100))*(1+'PART 2 Pricing Schedule'!Q37)*(1+'PART 2 Pricing Schedule'!R37) -> 0 | S53: =IF(4<=P37,0,'PART 2 Pricing Schedule'!P34*(Lookups!$J$5/100))*(1+'PART 2 Pricing Schedule'!Q37)*(1+'PART 2 Pricing Schedule'!R37)*(1+'PART 2 Pricing Schedule'!S37) -> 0 | T53: =IF(5<=P37,0,'PART 2 Pricing Schedule'!P34*(Lookups!$J$5/100))*(1+'PART 2 Pricing Schedule'!Q37)*(1+'PART 2 Pricing Schedule'!R37)*(1+'PART 2 Pricing Schedule'!S37)*(1+'PART 2 Pricing Schedule'!T37) -> 0 | V53: =IF(1<=V$37,0,'PART 2 Pricing Schedule'!V34*(Lookups!$J$6/100)) -> 0 | W53: =IF(2<=V$37,0,'PART 2 Pricing Schedule'!$D34*(Lookups!$J$6/100))*(1+'PART 2 Pricing Schedule'!W37) -> 0 | X53: =IF(3<=V37,0,'PART 2 Pricing Schedule'!V34*(Lookups!$J$6/100))*(1+'PART 2 Pricing Schedule'!W37)*(1+'PART 2 Pricing Schedule'!X37) -> 0 | Y53: =IF(4<=V37,0,'PART 2 Pricing Schedule'!V34*(Lookups!$J$6/100))*(1+'PART 2 Pricing Schedule'!W37)*(1+'PART 2 Pricing Schedule'!X37)*(1+'PART 2 Pricing Schedule'!Y37) -> 0 | Z53: =IF(5<=V37,0,'PART 2 Pricing Schedule'!V34*(Lookups!$J$6/100))*(1+'PART 2 Pricing Schedule'!W37)*(1+'PART 2 Pricing Schedule'!X37)*(1+'PART 2 Pricing Schedule'!Y37)*(1+'PART 2 Pricing Schedule'!Z37) -> 0 | AB53: =IF(1<=AB$37,0,'PART 2 Pricing Schedule'!AB34*(Lookups!$J$7/100)) -> 0 | AC53: =IF(2<=AB$37,0,'PART 2 Pricing Schedule'!$D34*(Lookups!$J$7/100))*(1+'PART 2 Pricing Schedule'!AC37) -> 0 | AD53: =IF(3<=AB37,0,'PART 2 Pricing Schedule'!AB34*(Lookups!$J$7/100))*(1+'PART 2 Pricing Schedule'!AC37)*(1+'PART 2 Pricing Schedule'!AD37) -> 0 | AE53: =IF(4<=AB37,0,'PART 2 Pricing Schedule'!AB34*(Lookups!$J$7/100))*(1+'PART 2 Pricing Schedule'!AC37)*(1+'PART 2 Pricing Schedule'!AD37)*(1+'PART 2 Pricing Schedule'!AE37) -> 0 | AF53: =IF(5<=AB37,0,'PART 2 Pricing Schedule'!AB34*(Lookups!$J$7/100))*(1+'PART 2 Pricing Schedule'!AC37)*(1+'PART 2 Pricing Schedule'!AD37)*(1+'PART 2 Pricing Schedule'!AE37)*(1+'PART 2 Pricing Schedule'!AF37) -> 0 | AH53: =IF(1<=AH$37,0,'PART 2 Pricing Schedule'!AH34*(Lookups!$J$8/100)) -> 0 | AI53: =IF(2<=AH$37,0,'PART 2 Pricing Schedule'!$D34*(Lookups!$J$8/100))*(1+'PART 2 Pricing Schedule'!AI37) -> 0 | AJ53: =IF(3<=AH37,0,'PART 2 Pricing Schedule'!AH34*(Lookups!$J$8/100))*(1+'PART 2 Pricing Schedule'!AI37)*(1+'PART 2 Pricing Schedule'!AJ37) -> 0 | AK53: =IF(4<=AH37,0,'PART 2 Pricing Schedule'!AH34*(Lookups!$J$8/100))*(1+'PART 2 Pricing Schedule'!AI37)*(1+'PART 2 Pricing Schedule'!AJ37)*(1+'PART 2 Pricing Schedule'!AK37) -> 0 | AL53: =IF(5<=AH37,0,'PART 2 Pricing Schedule'!AH34*(Lookups!$J$8/100))*(1+'PART 2 Pricing Schedule'!AI37)*(1+'PART 2 Pricing Schedule'!AJ37)*(1+'PART 2 Pricing Schedule'!AK37)*(1+'PART 2 Pricing Schedule'!AL37) -> 0 | AN53: =IF(1<=AN$37,0,'PART 2 Pricing Schedule'!AN34*(Lookups!$J$9/100)) -> 0 | AO53: =IF(2<=AN$37,0,'PART 2 Pricing Schedule'!$D34*(Lookups!$J$9/100))*(1+'PART 2 Pricing Schedule'!AO37) -> 0 | AP53: =IF(3<=AN37,0,'PART 2 Pricing Schedule'!AN34*(Lookups!$J$9/100))*(1+'PART 2 Pricing Schedule'!AO37)*(1+'PART 2 Pricing Schedule'!AP37) -> 0 | AQ53: =IF(4<=AN37,0,'PART 2 Pricing Schedule'!AN34*(Lookups!$J$9/100))*(1+'PART 2 Pricing Schedule'!AO37)*(1+'PART 2 Pricing Schedule'!AP37)*(1+'PART 2 Pricing Schedule'!AQ37) -> 0 | AR53: =IF(5<=AN37,0,'PART 2 Pricing Schedule'!AN34*(Lookups!$J$9/100))*(1+'PART 2 Pricing Schedule'!AO37)*(1+'PART 2 Pricing Schedule'!AP37)*(1+'PART 2 Pricing Schedule'!AQ37)*(1+'PART 2 Pricing Schedule'!AR37) -> 0 | AT53: =IF(1<=AT$37,0,'PART 2 Pricing Schedule'!AT34*(Lookups!$J$10/100)) -> 0 | AU53: =IF(2<=AT$37,0,'PART 2 Pricing Schedule'!$D34*(Lookups!$J$10/100))*(1+'PART 2 Pricing Schedule'!AU37) -> 0 | AV53: =IF(3<=AT37,0,'PART 2 Pricing Schedule'!AT34*(Lookups!$J$10/100))*(1+'PART 2 Pricing Schedule'!AU37)*(1+'PART 2 Pricing Schedule'!AV37) -> 0 | AW53: =IF(4<=AT37,0,'PART 2 Pricing Schedule'!AT34*(Lookups!$J$10/100))*(1+'PART 2 Pricing Schedule'!AU37)*(1+'PART 2 Pricing Schedule'!AV37)*(1+'PART 2 Pricing Schedule'!AW37) -> 0 | AX53: =IF(5<=AT37,0,'PART 2 Pricing Schedule'!AT34*(Lookups!$J$10/100))*(1+'PART 2 Pricing Schedule'!AU37)*(1+'PART 2 Pricing Schedule'!AV37)*(1+'PART 2 Pricing Schedule'!AW37)*(1+'PART 2 Pricing Schedule'!AX37) -> 0
A54: Average out-of-warranty replacement costs for docking stations | D54: =IF(1<=D37,0,'PART 2 Pricing Schedule'!D35*Lookups!$J$3/100) -> 0 | E54: =IF(2<=D37,0,'PART 2 Pricing Schedule'!D35*Lookups!$J$3/100)*(1+'PART 2 Pricing Schedule'!E37) -> 0 | F54: =IF(3<=D37,0,'PART 2 Pricing Schedule'!D35*Lookups!$J$3/100)*(1+'PART 2 Pricing Schedule'!E37)*(1+'PART 2 Pricing Schedule'!F37) -> 0 | G54: =IF(4<=D37,0,'PART 2 Pricing Schedule'!D35*Lookups!$J$3/100)*(1+'PART 2 Pricing Schedule'!E37)*(1+'PART 2 Pricing Schedule'!F37)*(1+'PART 2 Pricing Schedule'!G37) -> 0 | H54: =IF(5<=D37,0,'PART 2 Pricing Schedule'!D35*Lookups!$J$3/100)*(1+'PART 2 Pricing Schedule'!E37)*(1+'PART 2 Pricing Schedule'!F37)*(1+'PART 2 Pricing Schedule'!G37)*(1+'PART 2 Pricing Schedule'!H37) -> 0 | J54: =IF(1<=J37,0,'PART 2 Pricing Schedule'!J35*Lookups!$J$4/100) -> 0 | K54: =IF(2<=J37,0,'PART 2 Pricing Schedule'!J35*Lookups!$J$4/100)*(1+'PART 2 Pricing Schedule'!K37) -> 0 | L54: =IF(3<=J37,0,'PART 2 Pricing Schedule'!J35*Lookups!$J$4/100)*(1+'PART 2 Pricing Schedule'!K37)*(1+'PART 2 Pricing Schedule'!L37) -> 0 | M54: =IF(4<=J37,0,'PART 2 Pricing Schedule'!J35*Lookups!$J$4/100)*(1+'PART 2 Pricing Schedule'!K37)*(1+'PART 2 Pricing Schedule'!L37)*(1+'PART 2 Pricing Schedule'!M37) -> 0 | N54: =IF(5<=J37,0,'PART 2 Pricing Schedule'!J35*Lookups!$J$4/100)*(1+'PART 2 Pricing Schedule'!K37)*(1+'PART 2 Pricing Schedule'!L37)*(1+'PART 2 Pricing Schedule'!M37)*(1+'PART 2 Pricing Schedule'!N37) -> 0 | P54: =IF(1<=P37,0,'PART 2 Pricing Schedule'!P35*Lookups!$J$5/100) -> 0 | Q54: =IF(2<=P37,0,'PART 2 Pricing Schedule'!P35*Lookups!$J$5/100)*(1+'PART 2 Pricing Schedule'!Q37) -> 0 | R54: =IF(3<=P37,0,'PART 2 Pricing Schedule'!P35*Lookups!$J$5/100)*(1+'PART 2 Pricing Schedule'!Q37)*(1+'PART 2 Pricing Schedule'!R37) -> 0 | S54: =IF(4<=P37,0,'PART 2 Pricing Schedule'!P35*Lookups!$J$5/100)*(1+'PART 2 Pricing Schedule'!Q37)*(1+'PART 2 Pricing Schedule'!R37)*(1+'PART 2 Pricing Schedule'!S37) -> 0 | T54: =IF(5<=P37,0,'PART 2 Pricing Schedule'!P35*Lookups!$J$5/100)*(1+'PART 2 Pricing Schedule'!Q37)*(1+'PART 2 Pricing Schedule'!R37)*(1+'PART 2 Pricing Schedule'!S37)*(1+'PART 2 Pricing Schedule'!T37) -> 0 | V54: =IF(1<=V37,0,'PART 2 Pricing Schedule'!V35*Lookups!$J$6/100) -> 0 | W54: =IF(2<=V37,0,'PART 2 Pricing Schedule'!V35*Lookups!$J$6/100)*(1+'PART 2 Pricing Schedule'!W37) -> 0 | X54: =IF(3<=V37,0,'PART 2 Pricing Schedule'!V35*Lookups!$J$6/100)*(1+'PART 2 Pricing Schedule'!W37)*(1+'PART 2 Pricing Schedule'!X37) -> 0 | Y54: =IF(4<=V37,0,'PART 2 Pricing Schedule'!V35*Lookups!$J$6/100)*(1+'PART 2 Pricing Schedule'!W37)*(1+'PART 2 Pricing Schedule'!X37)*(1+'PART 2 Pricing Schedule'!Y37) -> 0 | Z54: =IF(5<=V37,0,'PART 2 Pricing Schedule'!V35*Lookups!$J$6/100)*(1+'PART 2 Pricing Schedule'!W37)*(1+'PART 2 Pricing Schedule'!X37)*(1+'PART 2 Pricing Schedule'!Y37)*(1+'PART 2 Pricing Schedule'!Z37) -> 0 | AB54: =IF(1<=AB37,0,'PART 2 Pricing Schedule'!AB35*Lookups!$J$7/100) -> 0 | AC54: =IF(2<=AB37,0,'PART 2 Pricing Schedule'!AB35*Lookups!$J$7/100)*(1+'PART 2 Pricing Schedule'!AC37) -> 0 | AD54: =IF(3<=AB37,0,'PART 2 Pricing Schedule'!AB35*Lookups!$J$7/100)*(1+'PART 2 Pricing Schedule'!AC37)*(1+'PART 2 Pricing Schedule'!AD37) -> 0 | AE54: =IF(4<=AB37,0,'PART 2 Pricing Schedule'!AB35*Lookups!$J$7/100)*(1+'PART 2 Pricing Schedule'!AC37)*(1+'PART 2 Pricing Schedule'!AD37)*(1+'PART 2 Pricing Schedule'!AE37) -> 0 | AF54: =IF(5<=AB37,0,'PART 2 Pricing Schedule'!AB35*Lookups!$J$7/100)*(1+'PART 2 Pricing Schedule'!AC37)*(1+'PART 2 Pricing Schedule'!AD37)*(1+'PART 2 Pricing Schedule'!AE37)*(1+'PART 2 Pricing Schedule'!AF37) -> 0 | AH54: =IF(1<=AH37,0,'PART 2 Pricing Schedule'!AH35*Lookups!$J$8/100) -> 0 | AI54: =IF(2<=AH37,0,'PART 2 Pricing Schedule'!AH35*Lookups!$J$8/100)*(1+'PART 2 Pricing Schedule'!AI37) -> 0 | AJ54: =IF(3<=AH37,0,'PART 2 Pricing Schedule'!AH35*Lookups!$J$8/100)*(1+'PART 2 Pricing Schedule'!AI37)*(1+'PART 2 Pricing Schedule'!AJ37) -> 0 | AK54: =IF(4<=AH37,0,'PART 2 Pricing Schedule'!AH35*Lookups!$J$8/100)*(1+'PART 2 Pricing Schedule'!AI37)*(1+'PART 2 Pricing Schedule'!AJ37)*(1+'PART 2 Pricing Schedule'!AK37) -> 0 | AL54: =IF(5<=AH37,0,'PART 2 Pricing Schedule'!AH35*Lookups!$J$8/100)*(1+'PART 2 Pricing Schedule'!AI37)*(1+'PART 2 Pricing Schedule'!AJ37)*(1+'PART 2 Pricing Schedule'!AK37)*(1+'PART 2 Pricing Schedule'!AL37) -> 0 | AN54: =IF(1<=AN37,0,'PART 2 Pricing Schedule'!AN35*Lookups!$J$9/100) -> 0 | AO54: =IF(2<=AN37,0,'PART 2 Pricing Schedule'!AN35*Lookups!$J$9/100)*(1+'PART 2 Pricing Schedule'!AO37) -> 0 | AP54: =IF(3<=AN37,0,'PART 2 Pricing Schedule'!AN35*Lookups!$J$9/100)*(1+'PART 2 Pricing Schedule'!AO37)*(1+'PART 2 Pricing Schedule'!AP37) -> 0 | AQ54: =IF(4<=AN37,0,'PART 2 Pricing Schedule'!AN35*Lookups!$J$9/100)*(1+'PART 2 Pricing Schedule'!AO37)*(1+'PART 2 Pricing Schedule'!AP37)*(1+'PART 2 Pricing Schedule'!AQ37) -> 0 | AR54: =IF(5<=AN37,0,'PART 2 Pricing Schedule'!AN35*Lookups!$J$9/100)*(1+'PART 2 Pricing Schedule'!AO37)*(1+'PART 2 Pricing Schedule'!AP37)*(1+'PART 2 Pricing Schedule'!AQ37)*(1+'PART 2 Pricing Schedule'!AR37) -> 0 | AT54: =IF(1<=AT37,0,'PART 2 Pricing Schedule'!AT35*Lookups!$J$10/100) -> 0 | AU54: =IF(2<=AT37,0,'PART 2 Pricing Schedule'!AT35*Lookups!$J$10/100)*(1+'PART 2 Pricing Schedule'!AU37) -> 0 | AV54: =IF(3<=AT37,0,'PART 2 Pricing Schedule'!AT35*Lookups!$J$10/100)*(1+'PART 2 Pricing Schedule'!AU37)*(1+'PART 2 Pricing Schedule'!AV37) -> 0 | AW54: =IF(4<=AT37,0,'PART 2 Pricing Schedule'!AT35*Lookups!$J$10/100)*(1+'PART 2 Pricing Schedule'!AU37)*(1+'PART 2 Pricing Schedule'!AV37)*(1+'PART 2 Pricing Schedule'!AW37) -> 0 | AX54: =IF(5<=AT37,0,'PART 2 Pricing Schedule'!AT35*Lookups!$J$10/100)*(1+'PART 2 Pricing Schedule'!AU37)*(1+'PART 2 Pricing Schedule'!AV37)*(1+'PART 2 Pricing Schedule'!AW37)*(1+'PART 2 Pricing Schedule'!AX37) -> 0
A56: Annual Cost per Docking Station Option | D56: Option 1 (Basic) | J56: Option 2 (Advanced)
A57: Make | D57: =IF('Annex A Technical req 1'!G$110="","",'Annex A Technical req 1'!G$110) ->  | J57: =IF('Annex A Technical req 1'!L$110="","",'Annex A Technical req 1'!L$110) -> 
A58: Model | D58: =IF('Annex A Technical req 1'!G$111="","",'Annex A Technical req 1'!G$111) ->  | J58: =IF('Annex A Technical req 1'!L$111="","",'Annex A Technical req 1'!L$111) -> 
A59: Next Business Day (NBD) Warranty Included | D59: =IF('Annex A Technical req 1'!H122="","",'Annex A Technical req 1'!H122) ->  | J59: =IF('Annex A Technical req 1'!M122="","",'Annex A Technical req 1'!M122) -> 
D60: Year 1 | E60: Year 2 | F60: Year 3 | G60: Year 4 | H60: Year 5 | J60: Year 1 | K60: Year 2 | L60: Year 3 | M60: Year 4 | N60: Year 5
A61: Outright purchase | D61: ='PART 2 Pricing Schedule'!$D43 -> 0 | E61: =D61*(1+'PART 2 Pricing Schedule'!E$45) -> 0 | F61: =E61*(1+'PART 2 Pricing Schedule'!F$45) -> 0 | G61: =F61*(1+'PART 2 Pricing Schedule'!G$45) -> 0 | H61: =G61*(1+'PART 2 Pricing Schedule'!H$45) -> 0 | J61: ='PART 2 Pricing Schedule'!$J43 -> 0 | K61: =J61*(1+'PART 2 Pricing Schedule'!K$45) -> 0 | L61: =K61*(1+'PART 2 Pricing Schedule'!L$45) -> 0 | M61: =L61*(1+'PART 2 Pricing Schedule'!M$45) -> 0 | N61: =M61*(1+'PART 2 Pricing Schedule'!N$45) -> 0
A62: 36 Month Rental | B62: Total | D62: =SUM(D63:D67) -> 0 | E62: =SUM(E63:E67) -> 0 | F62: =SUM(F63:F67) -> 0 | G62: =SUM(G63:G67) -> 0 | H62: =SUM(H63:H67) -> 0 | J62: =SUM(J63:J67) -> 0 | K62: =SUM(K63:K67) -> 0 | L62: =SUM(L63:L67) -> 0 | M62: =SUM(M63:M67) -> 0 | N62: =SUM(N63:N67) -> 0
B63: Year 1 Cost | D63: ='PART 2 Pricing Schedule'!$D46 -> 0 | E63: =D63 -> 0 | F63: =E63 -> 0 | J63: ='PART 2 Pricing Schedule'!$J46 -> 0 | K63: =J63 -> 0 | L63: =K63 -> 0
B64: Year 2 Cost | E64: =D63*(1+'PART 2 Pricing Schedule'!E$48) -> 0 | F64: =E64 -> 0 | G64: =F64 -> 0 | K64: =J63*(1+'PART 2 Pricing Schedule'!K$48) -> 0 | L64: =K64 -> 0 | M64: =L64 -> 0
B65: Year 3 Cost | F65: =E64*(1+'PART 2 Pricing Schedule'!F$48) -> 0 | G65: =F65 -> 0 | H65: =G65 -> 0 | L65: =K64*(1+'PART 2 Pricing Schedule'!L$48) -> 0 | M65: =L65 -> 0 | N65: =M65 -> 0
B66: Year 4 Cost | G66: =F65*(1+'PART 2 Pricing Schedule'!G$48) -> 0 | H66: =G66 -> 0 | M66: =L65*(1+'PART 2 Pricing Schedule'!M$48) -> 0 | N66: =M66 -> 0
B67: Year 5 Cost | H67: =G66*(1+'PART 2 Pricing Schedule'!H$48) -> 0 | N67: =M66*(1+'PART 2 Pricing Schedule'!N$48) -> 0
A68: 60 Month Rental | B68: Total | D68: =SUM(D69:D73) -> 0 | E68: =SUM(E69:E73) -> 0 | F68: =SUM(F69:F73) -> 0 | G68: =SUM(G69:G73) -> 0 | H68: =SUM(H69:H73) -> 0 | J68: =SUM(J69:J73) -> 0 | K68: =SUM(K69:K73) -> 0 | L68: =SUM(L69:L73) -> 0 | M68: =SUM(M69:M73) -> 0 | N68: =SUM(N69:N73) -> 0
B69: Year 1 Cost | D69: ='PART 2 Pricing Schedule'!$D49 -> 0 | E69: =D69 -> 0 | F69: =E69 -> 0 | G69: 0 | H69: 0 | J69: ='PART 2 Pricing Schedule'!$J49 -> 0 | K69: =J69 -> 0 | L69: =K69 -> 0 | M69: 0 | N69: 0
B70: Year 2 Cost | E70: =D69*(1+'PART 2 Pricing Schedule'!E$51) -> 0 | F70: 0 | G70: =F70 -> 0 | H70: 0 | K70: =J69*(1+'PART 2 Pricing Schedule'!K$51) -> 0 | L70: 0 | M70: =L70 -> 0 | N70: 0
B71: Year 3 Cost | F71: =E70*(1+'PART 2 Pricing Schedule'!F$51) -> 0 | G71: =F71 -> 0 | H71: 0 | L71: =K70*(1+'PART 2 Pricing Schedule'!L$51) -> 0 | M71: =L71 -> 0 | N71: 0
B72: Year 4 Cost | G72: =F71*(1+'PART 2 Pricing Schedule'!G$51) -> 0 | H72: =G72 -> 0 | M72: =L71*(1+'PART 2 Pricing Schedule'!M$51) -> 0 | N72: =M72 -> 0
B73: Year 5 Cost | H73: =G72*(1+'PART 2 Pricing Schedule'!H$51) -> 0 | N73: =M72*(1+'PART 2 Pricing Schedule'!N$51) -> 0
A76: Annual Screen Cost in ZAR | D76: Traditional Mainstream Screen | J76: Modern Mainstream Screen | P76: High-End 27" Screen | V76: High-End 32" Screen
A77: Minimum Screen Specification | D77: Screen Size - 22" | F77: Native Resolution - 1920 x 1080 | J77: Screen Size - 24" | L77: Native Resolution - 1920 x 1080 | P77: Screen Size - 27" | R77: Native Resolution - 2560 x 1440 | V77: Screen Size - 32" | X77: Native Resolution - 3840 x 2160
D78: Brightness - 250 Nits | F78: Refresh Rate at 1920 x 1080 - 60Hz | J78: SDR IPS LCD Panel | L78: Refresh Rate at 1820 x1080 - 60Hz | P78: HDR IPS LCD Panel | R78: Refresh Rate at 2560 x 1440 - 75Hz | V78: HDR IPS LCD Panel | X78: Refresh Rate at 3840 2160 - 100Hz
D79: SDR VA LCD Panel | F79: Contrast Ratio - 1000:1 to 3000:1 | J79: Brightness - 300 Nits | L79: Contrast Ratio - 1000:1 to 3000:1 | P79: Brightness - 350 Nits | R79: Contrast Ratio - Greater than 3000:1 | V79: Brightness - 350 Nits | X79: Contrast Ratio - Greater than 3000:1
D80: Warranty | E80: =CONCATENATE(TEXT(D58,0)," Years") -> Years | F80: No Blue light Filter or Touch Screen | J80: Warranty | K80: =CONCATENATE(TEXT(D58,0)," Years") -> Years | L80: No Blue light Filter or Touch Screen | P80: Warranty | Q80: =CONCATENATE(TEXT(J58,0)," Years") -> Years | R80: No Blue light Filter or Touch Screen | V80: Warranty | W80: =CONCATENATE(TEXT(J58,0)," Years") -> Years | X80: No Blue light Filter or Touch Screen
D81: Year 1 | E81: Year 2 | F81: Year 3 | G81: Year 4 | H81: Year 5 | J81: Year 1 | K81: Year 2 | L81: Year 3 | M81: Year 4 | N81: Year 5 | P81: Year 1 | Q81: Year 2 | R81: Year 3 | S81: Year 4 | T81: Year 5 | V81: Year 1 | W81: Year 2 | X81: Year 3 | Y81: Year 4 | Z81: Year 5
A82: Outright purchase | D82: ='PART 2 Pricing Schedule'!D58 -> 0 | E82: =D82*(1+'PART 2 Pricing Schedule'!E60) -> 0 | F82: =E82*(1+'PART 2 Pricing Schedule'!F60) -> 0 | G82: =F82*(1+'PART 2 Pricing Schedule'!G60) -> 0 | H82: =G82*(1+'PART 2 Pricing Schedule'!H60) -> 0 | J82: ='PART 2 Pricing Schedule'!J58 -> 0 | K82: =J82*(1+'PART 2 Pricing Schedule'!K60) -> 0 | L82: =K82*(1+'PART 2 Pricing Schedule'!L60) -> 0 | M82: =L82*(1+'PART 2 Pricing Schedule'!M60) -> 0 | N82: =M82*(1+'PART 2 Pricing Schedule'!N60) -> 0 | P82: ='PART 2 Pricing Schedule'!P58 -> 0 | Q82: =P82*(1+'PART 2 Pricing Schedule'!Q60) -> 0 | R82: =Q82*(1+'PART 2 Pricing Schedule'!R60) -> 0 | S82: =R82*(1+'PART 2 Pricing Schedule'!S60) -> 0 | T82: =S82*(1+'PART 2 Pricing Schedule'!T60) -> 0 | V82: ='PART 2 Pricing Schedule'!V58 -> 0 | W82: =V82*(1+'PART 2 Pricing Schedule'!W60) -> 0 | X82: =W82*(1+'PART 2 Pricing Schedule'!X60) -> 0 | Y82: =X82*(1+'PART 2 Pricing Schedule'!Y60) -> 0 | Z82: =Y82*(1+'PART 2 Pricing Schedule'!Z60) -> 0
A83: 36 Month Rental | B83: Total | D83: =SUM(D84:D88) -> 0 | E83: =SUM(E84:E88) -> 0 | F83: =SUM(F84:F88) -> 0 | G83: =SUM(G84:G88) -> 0 | H83: =SUM(H84:H88) -> 0 | J83: =SUM(J84:J88) -> 0 | K83: =SUM(K84:K88) -> 0 | L83: =SUM(L84:L88) -> 0 | M83: =SUM(M84:M88) -> 0 | N83: =SUM(N84:N88) -> 0 | P83: =SUM(P84:P88) -> 0 | Q83: =SUM(Q84:Q88) -> 0 | R83: =SUM(R84:R88) -> 0 | S83: =SUM(S84:S88) -> 0 | T83: =SUM(T84:T88) -> 0 | V83: =SUM(V84:V88) -> 0 | W83: =SUM(W84:W88) -> 0 | X83: =SUM(X84:X88) -> 0 | Y83: =SUM(Y84:Y88) -> 0 | Z83: =SUM(Z84:Z88) -> 0
B84: Year 1 Cost | D84: ='PART 2 Pricing Schedule'!D61 -> 0 | E84: =D84 -> 0 | F84: =E84 -> 0 | J84: ='PART 2 Pricing Schedule'!J61 -> 0 | K84: =J84 -> 0 | L84: =K84 -> 0 | P84: ='PART 2 Pricing Schedule'!P61 -> 0 | Q84: =P84 -> 0 | R84: =Q84 -> 0 | V84: ='PART 2 Pricing Schedule'!V61 -> 0 | W84: =V84 -> 0 | X84: =W84 -> 0
B85: Year 2 Cost | E85: =D84*(1+'PART 2 Pricing Schedule'!E67) -> 0 | F85: =E85 -> 0 | G85: =F85 -> 0 | K85: =J84*(1+'PART 2 Pricing Schedule'!K67) -> 0 | L85: =K85 -> 0 | M85: =L85 -> 0 | Q85: =P84*(1+'PART 2 Pricing Schedule'!Q67) -> 0 | R85: =Q85 -> 0 | S85: =R85 -> 0 | W85: =V84*(1+'PART 2 Pricing Schedule'!W67) -> 0 | X85: =W85 -> 0 | Y85: =X85 -> 0
B86: Year 3 Cost | F86: =E85*(1+'PART 2 Pricing Schedule'!F67) -> 0 | G86: =F86 -> 0 | H86: =G86 -> 0 | L86: =K85*(1+'PART 2 Pricing Schedule'!L67) -> 0 | M86: =L86 -> 0 | N86: =M86 -> 0 | R86: =Q85*(1+'PART 2 Pricing Schedule'!R67) -> 0 | S86: =R86 -> 0 | T86: =S86 -> 0 | X86: =W85*(1+'PART 2 Pricing Schedule'!X67) -> 0 | Y86: =X86 -> 0 | Z86: =Y86 -> 0
B87: Year 4 Cost | G87: =F86*(1+'PART 2 Pricing Schedule'!G67) -> 0 | H87: =G87 -> 0 | M87: =L86*(1+'PART 2 Pricing Schedule'!M67) -> 0 | N87: =M87 -> 0 | S87: =R86*(1+'PART 2 Pricing Schedule'!S67) -> 0 | T87: =S87 -> 0 | Y87: =X86*(1+'PART 2 Pricing Schedule'!Y67) -> 0 | Z87: =Y87 -> 0
B88: Year 5 Cost | H88: =G87*(1+'PART 2 Pricing Schedule'!H67) -> 0 | N88: =M87*(1+'PART 2 Pricing Schedule'!N67) -> 0 | T88: =S87*(1+'PART 2 Pricing Schedule'!T67) -> 0 | Z88: =Y87*(1+'PART 2 Pricing Schedule'!Z67) -> 0
A89: 60 Month Rental | B89: Total | D89: =SUM(D90:D94) -> 0 | E89: =SUM(E90:E94) -> 0 | F89: =SUM(F90:F94) -> 0 | G89: =SUM(G90:G94) -> 0 | H89: =SUM(H90:H94) -> 0 | J89: =SUM(J90:J94) -> 0 | K89: =SUM(K90:K94) -> 0 | L89: =SUM(L90:L94) -> 0 | M89: =SUM(M90:M94) -> 0 | N89: =SUM(N90:N94) -> 0 | P89: =SUM(P90:P94) -> 0 | Q89: =SUM(Q90:Q94) -> 0 | R89: =SUM(R90:R94) -> 0 | S89: =SUM(S90:S94) -> 0 | T89: =SUM(T90:T94) -> 0 | V89: =SUM(V90:V94) -> 0 | W89: =SUM(W90:W94) -> 0 | X89: =SUM(X90:X94) -> 0 | Y89: =SUM(Y90:Y94) -> 0 | Z89: =SUM(Z90:Z94) -> 0
B90: Year 1 Cost | D90: ='PART 2 Pricing Schedule'!D64 -> 0 | E90: =D90 -> 0 | F90: =E90 -> 0 | G90: 0 | H90: 0 | J90: ='PART 2 Pricing Schedule'!J64 -> 0 | K90: =J90 -> 0 | L90: =K90 -> 0 | M90: 0 | N90: 0 | P90: ='PART 2 Pricing Schedule'!P64 -> 0 | Q90: =P90 -> 0 | R90: =Q90 -> 0 | S90: 0 | T90: 0 | V90: ='PART 2 Pricing Schedule'!V64 -> 0 | W90: =V90 -> 0 | X90: =W90 -> 0 | Y90: 0 | Z90: 0
B91: Year 2 Cost | E91: =D90*(1+'PART 2 Pricing Schedule'!E66) -> 0 | F91: 0 | G91: =F91 -> 0 | H91: 0 | K91: =J90*(1+'PART 2 Pricing Schedule'!K66) -> 0 | L91: 0 | M91: =L91 -> 0 | N91: 0 | Q91: =P90*(1+'PART 2 Pricing Schedule'!Q66) -> 0 | R91: 0 | S91: =R91 -> 0 | T91: 0 | W91: =V90*(1+'PART 2 Pricing Schedule'!W66) -> 0 | X91: 0 | Y91: =X91 -> 0 | Z91: 0
B92: Year 3 Cost | F92: =E91*(1+'PART 2 Pricing Schedule'!F66) -> 0 | G92: =F92 -> 0 | H92: 0 | L92: =K91*(1+'PART 2 Pricing Schedule'!L66) -> 0 | M92: =L92 -> 0 | N92: 0 | R92: =Q91*(1+'PART 2 Pricing Schedule'!R66) -> 0 | S92: =R92 -> 0 | T92: 0 | X92: =W91*(1+'PART 2 Pricing Schedule'!X66) -> 0 | Y92: =X92 -> 0 | Z92: 0
B93: Year 4 Cost | G93: =F92*(1+'PART 2 Pricing Schedule'!G66) -> 0 | H93: =G93 -> 0 | M93: =L92*(1+'PART 2 Pricing Schedule'!M66) -> 0 | N93: =M93 -> 0 | S93: =R92*(1+'PART 2 Pricing Schedule'!S66) -> 0 | T93: =S93 -> 0 | Y93: =X92*(1+'PART 2 Pricing Schedule'!Y66) -> 0 | Z93: =Y93 -> 0
B94: Year 5 Cost | H94: =G93*(1+'PART 2 Pricing Schedule'!H66) -> 0 | N94: =M93*(1+'PART 2 Pricing Schedule'!N66) -> 0 | T94: =S93*(1+'PART 2 Pricing Schedule'!T66) -> 0 | Z94: =Y93*(1+'PART 2 Pricing Schedule'!Z66) -> 0
A96: Minimum Keyboard and Mouse Cost in ZAR | D96: Standard Keyboard and Mouse
A97: Minimum Keyboard and Mouse Specification | D97: Full-Size QUERTY keyboard with Numpad, laptop-like keys which are backlit. Optical tracking mouse with a minimum 800 dpi resolution, two buttons and a scroll wheel. Both devices must be able to connect using bluetooth and a single wireless dongle.
D98: Year 1 | E98: Year 2 | F98: Year 3 | G98: Year 4 | H98: Year 5
A99: Outright purchase | D99: ='PART 2 Pricing Schedule'!D70 -> 0 | E99: =D99*(1+'PART 2 Pricing Schedule'!E72) -> 0 | F99: =E99*(1+'PART 2 Pricing Schedule'!F72) -> 0 | G99: =F99*(1+'PART 2 Pricing Schedule'!G72) -> 0 | H99: =G99*(1+'PART 2 Pricing Schedule'!H72) -> 0
A100: 36 Month Rental | B100: Total | D100: =SUM(D101:D105) -> 0 | E100: =SUM(E101:E105) -> 0 | F100: =SUM(F101:F105) -> 0 | G100: =SUM(G101:G105) -> 0 | H100: =SUM(H101:H105) -> 0
B101: Year 1 Cost | D101: ='PART 2 Pricing Schedule'!D73 -> 0 | E101: =D101 -> 0 | F101: =E101 -> 0
B102: Year 2 Cost | E102: =D101*(1+'PART 2 Pricing Schedule'!E75) -> 0 | F102: =E102 -> 0 | G102: =F102 -> 0
B103: Year 3 Cost | F103: =E102*(1+'PART 2 Pricing Schedule'!F75) -> 0 | G103: =F103 -> 0 | H103: =G103 -> 0
B104: Year 4 Cost | G104: =F103*(1+'PART 2 Pricing Schedule'!G75) -> 0 | H104: =G104 -> 0
B105: Year 5 Cost | H105: =G104*(1+'PART 2 Pricing Schedule'!H75) -> 0
A106: 60 Month Rental | B106: Total | D106: =SUM(D107:D111) -> 0 | E106: =SUM(E107:E111) -> 0 | F106: =SUM(F107:F111) -> 0 | G106: =SUM(G107:G111) -> 0 | H106: =SUM(H107:H111) -> 0
B107: Year 1 Cost | D107: ='PART 2 Pricing Schedule'!D76 -> 0 | E107: =D107 -> 0 | F107: =E107 -> 0 | G107: 0 | H107: 0
B108: Year 2 Cost | E108: =D107*(1+'PART 2 Pricing Schedule'!E78) -> 0 | F108: 0 | G108: 0 | H108: 0
B109: Year 3 Cost | F109: =E108*(1+'PART 2 Pricing Schedule'!F78) -> 0 | G109: 0 | H109: 0
B110: Year 4 Cost | G110: =F109*(1+'PART 2 Pricing Schedule'!G78) -> 0 | H110: 0
B111: Year 5 Cost | H111: =G110*(1+'PART 2 Pricing Schedule'!H78) -> 0

Sheet Lookups (hidden)
I2: MODEL | J2: UNITS | K2: % | M2: Yes
A3: HD (1280x720) | B3: 1280 | C3: 720 | F3: 80% | I3: Highly Mobile Notebook (Mobile, Connector) | J3: 489 | K3: =J3/SUM($J$3:$J$10) -> 27% | M3: No
A4: FHD (1920x1080) | B4: 1920 | C4: 1080 | I4: Traditional Mainstream Notebook (Connector, Collaborator) | J4: 75 | K4: =J4/SUM($J$3:$J$10) -> 4%
A5: QHD (2560x1440) | B5: 2560 | C5: 1440 | I5: Modern Mainstream Notebook (Connector, Collaborator) | J5: 710 | K5: 39%
A6: UHD(3840x2160) | B6: 3840 | C6: 2160 | I6: High-End Notebook (Connector, Collaborator)- 15" screen | J6: =ROUND(268*0.3,0) -> 80 | K6: 4%
A7: UHD (7680x4320) | B7: 7680 | C7: 4320 | I7: High-End Notebook (Connector, Collaborator) - 17" screen | J7: =ROUND(268*0.7,0) -> 188 | K7: 10%
I8: Traditional Mainstream Desktop (Connector, Collaborator) | J8: 118 | K8: 6%
I9: Modern Mainstream Desktop (Connector, Collaborator) | J9: 164 | K9: 9%
I10: High-End Desktop with Xeon CPU (Connector, Collaborator) | J10: 14 | K10: 1%
A12: SATA HDD | B12: 1
